Workbook

Sheet Erstauslegung
A1: Spring #1 | F1: Spring #2
A2: Measure | B2: Magnitude | C2: Unit | D2: converted | E2: Unit | F2: Measure | G2: Magnitude | H2: Unit | I2: converted | J2: Unit
A3: Installation Space - outer radius | B3: 130 | C3: mm | D3: =B3*0.001 -> 0.13 | E3: m
A4: Installation Space - inner radius | B4: 100 | C4: mm | D4: =B4/1000 -> 0.1 | E4: m
A5: Installation Space - mean radius | B5: =(B3+B4)/2 -> 115 | C5: mm | D5: =B5/1000 -> 0.115 | E5: m
A6: Nominal spring length | B6: =(B4)*D17 -> 300.1966313 | C6: mm | D6: =B6/1000 -> 0.3001966313 | E6: m | F6: Nominal spring length | G6: =($B$4)*I17 -> 256.8434804 | H6: mm | I6: =G6/1000 -> 0.2568434804 | J6: m
A7: Outer coil diameter | B7: =B3-B4 -> 30 | C7: mm | D7: =B7/1000 -> 0.03 | E7: m | F7: Outer coil diameter | G7: =$B$7-(B44+B45) -> 25.05 | H7: mm | I7: =G7/1000 -> 0.02505 | J7: m
A8: Minimum spring index | B8: 4 | F8: Minimum spring index | G8: 4
A10: Torque Stage 1 | B10: 40 | C10: Nm
A11: Transmitted torque | B11: 89.27 | C11: Nm | F11: Transmitted torque | G11: 70 | H11: Nm
A12: Transmitted force | B12: =B11/D5 -> 776.2608696 | C12: N | F12: Transmitted force | G12: =G11/D5 -> 608.6956522 | H12: N
A14: Number of springs | B14: 2 | C14: - | F14: Number of springs | G14: 2 | H14: -
A15: Free angle | B15: 1 | C15: ° | D15: =B15*PI()/180 -> 0.01745329252 | E15: rad
... 14 more rows

Sheet Input&Overview
A1: Spring #1 | F1: Spring #2 | K1: Spring #3
A2: Measure | B2: Magnitude | C2: Unit | D2: converted | E2: Unit | F2: Measure | G2: Magnitude | H2: Unit | I2: converted | J2: Unit | K2: Measure | L2: Magnitude | M2: Unit | N2: converted | O2: Unit
A3: Installation Space - outer radius | B3: 130 | C3: mm | D3: =B3*0.001 -> 0.13 | E3: m
A4: Installation Space - inner radius | B4: 100 | C4: mm | D4: =B4/1000 -> 0.1 | E4: m
A5: Torque applied | B5: 350 | D5: =B5*1000 -> 350000 | E5: Nmm
A6: Torque factor | B6: 0.3
A7: Final torque | B7: =B5+(B6*B5) -> 455 | C7: Nm | D7: =B7*0.001 -> 0.455
A9: Number of springs | B9: 2 | C9: - | F9: Number of springs | G9: 2 | H9: - | K9: Number of springs | L9: =G9 -> 2 | M9: -
A10: Free angle | B10: 1 | C10: ° | D10: =B10*PI()/180 -> 0.01745329252 | E10: rad
A11: Stopper width | B11: 3 | C11: ° | D11: =B11*PI()/180 -> 0.05235987756 | E11: rad
A12: Active inner spring | B12: 2
A13: Transmitted torque | B13: =IF($B$12=1,$B$7/$B$9,IF($B$12=2,((($B$7-B14)/(B9*B15+G9*G15))*B9*B15+B14)/B9,(B14+B15*B9*(G14-B14)/(B15*B9+L16*G9)+B15*B9*(B7-G14)/(B15*B9+L15*G9))/B9)) -> 97.93269231 | C13: Nm | F13: Transmitted torque | G13: =IF($B$12=1,0,IF($B$12=2,((($B$7-B14)/(B9*B15+G9*G15))*G9*G15)/G9,(L16*G9*(G14-B14)/(B15*B9+L16*G9))/G9)) -> 129.5673077 | H13: Nm | K13: Transmitted torque | L13: =IF($B$12=1,0,IF($B$12=2,0,(L16*G9*(G14-B14)/(B15*B9+L16*G9)+L15*L9*(L14-G14)/(B15*B9+L15*L9))/L9)) -> 0 | M13: Nm
A14: Torque Stage 1 | B14: 70 | C14: Nm | D14: =B14*1000 -> 70000 | E14: Nmm | F14: Torque Stage 1 | G14: 300 | H14: Nm | I14: =$G$14*1000 -> 300000 | J14: Nmm | K14: Torque Stage 1 | L14: =B7 -> 455 | M14: Nm | N14: =$L$14*1000 -> 455000 | O14: Nmm
A15: Optimal spring stiffness | B15: 1.7 | C15: Nm/° | D15: =$B$15*180/PI() -> 97.40282517 | E15: Nm/rad | F15: Optimal spring stiffness | G15: 3.5 | H15: Nm/° | I15: =$G$15*180/PI() -> 200.5352283 | J15: Nm/rad | K15: Optimal spring stiffness | L15: 9 | M15: Nm/° | N15: =$L$15*180/PI() -> 515.6620156 | O15: Nm/rad
... 16 more rows

Sheet Graph_data
A1: Stiffness stage | B1: Torque | C1: Twist angle | E1: Activate inner spring
A2: 0 | B2: =IF(50*Graph_data!A2<='Input&Overview'!$B$7,50*Graph_data!A2," ") -> 0 | C2: 0 | E2: No
A3: 1 | B3: 0 | C3: ='Input&Overview'!$B$10 -> 1 | E3: 1 inner
A4: 2 | B4: =IF('Input&Overview'!$B$12=1,'Input&Overview'!B7,'Input&Overview'!B14) -> 70 | C4: ='Input&Overview'!B34 -> 21.58823529 | E4: 2 inner
A5: 3 | B5: =IF('Input&Overview'!$B$12=1,Graph_data!$B4,IF('Input&Overview'!$B$12=2,'Input&Overview'!$B$7,'Input&Overview'!G14)) -> 455 | C5: =IF('Input&Overview'!$B$12=1,C4,'Input&Overview'!G34) -> 58.60746606
A6: 4 | B6: =IF('Input&Overview'!$B$12=1,Graph_data!B4,IF('Input&Overview'!$B$12=2,Graph_data!B5,'Input&Overview'!L14)) -> 455 | C6: =IF('Input&Overview'!$B$12=1,C4,IF('Input&Overview'!$B$12=2,C5,'Input&Overview'!L34)) -> 58.60746606

Sheet c
A1: c <-> | B1: D | C1: c=Dm/d
A2: d | B2: 25 | C2: 25.2 | D2: 25.4 | E2: 25.6 | F2: 25.8 | G2: 26 | H2: 26.2 | I2: 26.4 | J2: 26.6 | K2: 26.8 | L2: 27 | M2: 27.2 | N2: 27.4 | O2: 27.6 | P2: 27.8 | Q2: 28 | R2: 28.2 | S2: 28.4 | T2: 28.6 | U2: 28.8 | V2: 29 | W2: 29.2 | X2: 29.4 | Y2: 29.6 | Z2: 29.8 | AA2: 30 | AB2: 30.2 | AC2: 30.4 | AD2: 30.6 | AE2: 30.8 | AF2: 31 | AG2: 31.2 | AH2: 31.4 | AI2: 31.6 | AJ2: 31.8 | AK2: 32 | AL2: 32.2 | AM2: 32.4 | AN2: 32.6 | AO2: 32.8 | AP2: 33 | AQ2: 33.2 | AR2: 33.4 | AS2: 33.6 | AT2: 33.8 | AU2: 34 | AV2: 34.2 | AW2: 34.4 | AX2: 34.6 | AY2: 34.8 | AZ2: 35 | BA2: 35.2 | BB2: 35.4 | BC2: 35.6 | BD2: 35.8 | BE2: 36 | BF2: 36.2 | BG2: 36.4 | BH2: 36.6 | BI2: 36.8 | BJ2: 37 | BK2: 37.2 | BL2: 37.4 | BM2: 37.6 | BN2: 37.8 | BO2: 38 | BP2: 38.2 | BQ2: 38.4 | BR2: 38.6 | BS2: 38.8 | BT2: 39 | BU2: 39.2 | BV2: 39.4 | BW2: 39.6 | BX2: 39.8 | BY2: 40 | BZ2: 40.2 | CA2: 40.4 | CB2: 40.6 | CC2: 40.8 | CD2: 41 | CE2: 41.2 | CF2: 41.4 | CG2: 41.6 | CH2: 41.8 | CI2: 42
A3: 3 | B3: =(B$2-$A3)/$A3 -> 7.333333333 | C3: =(C$2-$A3)/$A3 -> 7.4 | D3: 7.466666667 | E3: 7.533333333 | F3: 7.6 | G3: 7.666666667 | H3: 7.733333333 | I3: 7.8 | J3: 7.866666667 | K3: 7.933333333 | L3: 8 | M3: 8.066666667 | N3: 8.133333333 | O3: 8.2 | P3: 8.266666667 | Q3: 8.333333333 | R3: 8.4 | S3: 8.466666667 | T3: 8.533333333 | U3: 8.6 | V3: 8.666666667 | W3: 8.733333333 | X3: 8.8 | Y3: 8.866666667 | Z3: 8.933333333 | AA3: 9 | AB3: 9.066666667 | AC3: 9.133333333 | AD3: 9.2 | AE3: 9.266666667 | AF3: 9.333333333 | AG3: 9.4 | AH3: 9.466666667 | AI3: 9.533333333 | AJ3: 9.6 | AK3: 9.666666667 | AL3: 9.733333333 | AM3: 9.8 | AN3: 9.866666667 | AO3: 9.933333333 | AP3: 10 | AQ3: 10.06666667 | AR3: 10.13333333 | AS3: 10.2 | AT3: 10.26666667 | AU3: 10.33333333 | AV3: 10.4 | AW3: 10.46666667 | AX3: 10.53333333 | AY3: 10.6 | AZ3: 10.66666667 | BA3: 10.73333333 | BB3: 10.8 | BC3: 10.86666667 | BD3: 10.93333333 | BE3: 11 | BF3: 11.06666667 | BG3: 11.13333333 | BH3: 11.2 | BI3: 11.26666667 | BJ3: 11.33333333 | BK3: 11.4 | BL3: 11.46666667 | BM3: 11.53333333 | BN3: 11.6 | BO3: =(BO$2-$A3)/$A3 -> 11.66666667 | BP3: 11.73333333 | BQ3: 11.8 | BR3: 11.86666667 | BS3: 11.93333333 | BT3: 12 | BU3: 12.06666667 | BV3: 12.13333333 | BW3: 12.2 | BX3: 12.26666667 | BY3: 12.33333333 | BZ3: 12.4 | CA3: 12.46666667 | CB3: 12.53333333 | CC3: 12.6 | CD3: 12.66666667 | CE3: 12.73333333 | CF3: 12.8 | CG3: 12.86666667 | CH3: 12.93333333 | CI3: 13
A4: 3.1 | B4: =(B$2-$A4)/$A4 -> 7.064516129 | C4: 7.129032258 | D4: 7.193548387 | E4: 7.258064516 | F4: 7.322580645 | G4: 7.387096774 | H4: 7.451612903 | I4: 7.516129032 | J4: 7.580645161 | K4: 7.64516129 | L4: 7.709677419 | M4: 7.774193548 | N4: 7.838709677 | O4: 7.903225806 | P4: 7.967741935 | Q4: 8.032258065 | R4: 8.096774194 | S4: 8.161290323 | T4: 8.225806452 | U4: 8.290322581 | V4: 8.35483871 | W4: 8.419354839 | X4: 8.483870968 | Y4: 8.548387097 | Z4: 8.612903226 | AA4: 8.677419355 | AB4: 8.741935484 | AC4: 8.806451613 | AD4: 8.870967742 | AE4: 8.935483871 | AF4: 9 | AG4: 9.064516129 | AH4: 9.129032258 | AI4: 9.193548387 | AJ4: 9.258064516 | AK4: 9.322580645 | AL4: 9.387096774 | AM4: 9.451612903 | AN4: 9.516129032 | AO4: 9.580645161 | AP4: 9.64516129 | AQ4: 9.709677419 | AR4: 9.774193548 | AS4: 9.838709677 | AT4: 9.903225806 | AU4: 9.967741935 | AV4: 10.03225806 | AW4: 10.09677419 | AX4: 10.16129032 | AY4: 10.22580645 | AZ4: 10.29032258 | BA4: 10.35483871 | BB4: 10.41935484 | BC4: 10.48387097 | BD4: 10.5483871 | BE4: 10.61290323 | BF4: 10.67741935 | BG4: 10.74193548 | BH4: 10.80645161 | BI4: 10.87096774 | BJ4: 10.93548387 | BK4: 11 | BL4: 11.06451613 | BM4: 11.12903226 | BN4: 11.19354839 | BO4: 11.25806452 | BP4: 11.32258065 | BQ4: 11.38709677 | BR4: 11.4516129 | BS4: 11.51612903 | BT4: 11.58064516 | BU4: 11.64516129 | BV4: 11.70967742 | BW4: 11.77419355 | BX4: 11.83870968 | BY4: 11.90322581 | BZ4: 11.96774194 | CA4: 12.03225806 | CB4: 12.09677419 | CC4: 12.16129032 | CD4: 12.22580645 | CE4: 12.29032258 | CF4: 12.35483871 | CG4: 12.41935484 | CH4: 12.48387097 | CI4: 12.5483871
A5: 3.2 | B5: 6.8125 | C5: 6.875 | D5: 6.9375 | E5: 7 | F5: 7.0625 | G5: 7.125 | H5: 7.1875 | I5: 7.25 | J5: 7.3125 | K5: 7.375 | L5: 7.4375 | M5: 7.5 | N5: 7.5625 | O5: 7.625 | P5: 7.6875 | Q5: 7.75 | R5: 7.8125 | S5: 7.875 | T5: 7.9375 | U5: 8 | V5: 8.0625 | W5: 8.125 | X5: 8.1875 | Y5: 8.25 | Z5: 8.3125 | AA5: 8.375 | AB5: 8.4375 | AC5: 8.5 | AD5: 8.5625 | AE5: 8.625 | AF5: 8.6875 | AG5: 8.75 | AH5: 8.8125 | AI5: 8.875 | AJ5: 8.9375 | AK5: 9 | AL5: 9.0625 | AM5: 9.125 | AN5: 9.1875 | AO5: 9.25 | AP5: 9.3125 | AQ5: 9.375 | AR5: 9.4375 | AS5: 9.5 | AT5: 9.5625 | AU5: 9.625 | AV5: 9.6875 | AW5: 9.75 | AX5: 9.8125 | AY5: 9.875 | AZ5: 9.9375 | BA5: 10 | BB5: 10.0625 | BC5: 10.125 | BD5: 10.1875 | BE5: 10.25 | BF5: 10.3125 | BG5: 10.375 | BH5: 10.4375 | BI5: 10.5 | BJ5: 10.5625 | BK5: 10.625 | BL5: 10.6875 | BM5: 10.75 | BN5: 10.8125 | BO5: 10.875 | BP5: 10.9375 | BQ5: 11 | BR5: 11.0625 | BS5: 11.125 | BT5: 11.1875 | BU5: 11.25 | BV5: 11.3125 | BW5: 11.375 | BX5: 11.4375 | BY5: 11.5 | BZ5: 11.5625 | CA5: 11.625 | CB5: 11.6875 | CC5: 11.75 | CD5: 11.8125 | CE5: 11.875 | CF5: 11.9375 | CG5: 12 | CH5: 12.0625 | CI5: 12.125
A6: 3.3 | B6: 6.575757576 | C6: 6.636363636 | D6: 6.696969697 | E6: 6.757575758 | F6: 6.818181818 | G6: 6.878787879 | H6: 6.939393939 | I6: 7 | J6: 7.060606061 | K6: 7.121212121 | L6: 7.181818182 | M6: 7.242424242 | N6: 7.303030303 | O6: 7.363636364 | P6: 7.424242424 | Q6: 7.484848485 | R6: 7.545454545 | S6: 7.606060606 | T6: 7.666666667 | U6: 7.727272727 | V6: 7.787878788 | W6: 7.848484848 | X6: 7.909090909 | Y6: 7.96969697 | Z6: 8.03030303 | AA6: 8.090909091 | AB6: 8.151515152 | AC6: 8.212121212 | AD6: 8.272727273 | AE6: 8.333333333 | AF6: 8.393939394 | AG6: 8.454545455 | AH6: 8.515151515 | AI6: 8.575757576 | AJ6: 8.636363636 | AK6: 8.696969697 | AL6: 8.757575758 | AM6: 8.818181818 | AN6: 8.878787879 | AO6: 8.939393939 | AP6: 9 | AQ6: 9.060606061 | AR6: 9.121212121 | AS6: 9.181818182 | AT6: 9.242424242 | AU6: 9.303030303 | AV6: 9.363636364 | AW6: 9.424242424 | AX6: 9.484848485 | AY6: 9.545454545 | AZ6: 9.606060606 | BA6: 9.666666667 | BB6: 9.727272727 | BC6: 9.787878788 | BD6: 9.848484848 | BE6: 9.909090909 | BF6: 9.96969697 | BG6: 10.03030303 | BH6: 10.09090909 | BI6: 10.15151515 | BJ6: 10.21212121 | BK6: 10.27272727 | BL6: 10.33333333 | BM6: 10.39393939 | BN6: 10.45454545 | BO6: 10.51515152 | BP6: 10.57575758 | BQ6: 10.63636364 | BR6: 10.6969697 | BS6: 10.75757576 | BT6: 10.81818182 | BU6: 10.87878788 | BV6: 10.93939394 | BW6: 11 | BX6: 11.06060606 | BY6: 11.12121212 | BZ6: 11.18181818 | CA6: 11.24242424 | CB6: 11.3030303 | CC6: 11.36363636 | CD6: 11.42424242 | CE6: 11.48484848 | CF6: 11.54545455 | CG6: 11.60606061 | CH6: 11.66666667 | CI6: 11.72727273
A7: 3.4 | B7: 6.352941176 | C7: 6.411764706 | D7: 6.470588235 | E7: 6.529411765 | F7: 6.588235294 | G7: 6.647058824 | H7: 6.705882353 | I7: 6.764705882 | J7: 6.823529412 | K7: 6.882352941 | L7: 6.941176471 | M7: 7 | N7: 7.058823529 | O7: 7.117647059 | P7: 7.176470588 | Q7: 7.235294118 | R7: 7.294117647 | S7: 7.352941176 | T7: 7.411764706 | U7: 7.470588235 | V7: 7.529411765 | W7: 7.588235294 | X7: 7.647058824 | Y7: 7.705882353 | Z7: 7.764705882 | AA7: 7.823529412 | AB7: 7.882352941 | AC7: 7.941176471 | AD7: 8 | AE7: 8.058823529 | AF7: =(AF$2-$A7)/$A7 -> 8.117647059 | AG7: 8.176470588 | AH7: 8.235294118 | AI7: 8.294117647 | AJ7: 8.352941176 | AK7: 8.411764706 | AL7: 8.470588235 | AM7: 8.529411765 | AN7: 8.588235294 | AO7: 8.647058824 | AP7: 8.705882353 | AQ7: 8.764705882 | AR7: 8.823529412 | AS7: 8.882352941 | AT7: 8.941176471 | AU7: 9 | AV7: 9.058823529 | AW7: 9.117647059 | AX7: 9.176470588 | AY7: 9.235294118 | AZ7: 9.294117647 | BA7: 9.352941176 | BB7: 9.411764706 | BC7: 9.470588235 | BD7: 9.529411765 | BE7: 9.588235294 | BF7: 9.647058824 | BG7: 9.705882353 | BH7: 9.764705882 | BI7: 9.823529412 | BJ7: 9.882352941 | BK7: 9.941176471 | BL7: 10 | BM7: 10.05882353 | BN7: 10.11764706 | BO7: 10.17647059 | BP7: 10.23529412 | BQ7: 10.29411765 | BR7: 10.35294118 | BS7: 10.41176471 | BT7: 10.47058824 | BU7: 10.52941176 | BV7: 10.58823529 | BW7: 10.64705882 | BX7: 10.70588235 | BY7: 10.76470588 | BZ7: 10.82352941 | CA7: 10.88235294 | CB7: 10.94117647 | CC7: 11 | CD7: 11.05882353 | CE7: 11.11764706 | CF7: 11.17647059 | CG7: 11.23529412 | CH7: 11.29411765 | CI7: 11.35294118
A8: 3.5 | B8: 6.142857143 | C8: 6.2 | D8: 6.257142857 | E8: 6.314285714 | F8: 6.371428571 | G8: 6.428571429 | H8: 6.485714286 | I8: 6.542857143 | J8: 6.6 | K8: 6.657142857 | L8: 6.714285714 | M8: 6.771428571 | N8: 6.828571429 | O8: 6.885714286 | P8: 6.942857143 | Q8: 7 | R8: =(R$2-$A8)/$A8 -> 7.057142857 | S8: 7.114285714 | T8: 7.171428571 | U8: 7.228571429 | V8: 7.285714286 | W8: 7.342857143 | X8: 7.4 | Y8: 7.457142857 | Z8: 7.514285714 | AA8: 7.571428571 | AB8: 7.628571429 | AC8: 7.685714286 | AD8: 7.742857143 | AE8: 7.8 | AF8: 7.857142857 | AG8: 7.914285714 | AH8: 7.971428571 | AI8: 8.028571429 | AJ8: 8.085714286 | AK8: 8.142857143 | AL8: 8.2 | AM8: 8.257142857 | AN8: 8.314285714 | AO8: 8.371428571 | AP8: 8.428571429 | AQ8: 8.485714286 | AR8: 8.542857143 | AS8: 8.6 | AT8: 8.657142857 | AU8: 8.714285714 | AV8: 8.771428571 | AW8: 8.828571429 | AX8: 8.885714286 | AY8: 8.942857143 | AZ8: 9 | BA8: 9.057142857 | BB8: 9.114285714 | BC8: 9.171428571 | BD8: 9.228571429 | BE8: 9.285714286 | BF8: 9.342857143 | BG8: 9.4 | BH8: 9.457142857 | BI8: 9.514285714 | BJ8: 9.571428571 | BK8: 9.628571429 | BL8: 9.685714286 | BM8: 9.742857143 | BN8: 9.8 | BO8: 9.857142857 | BP8: 9.914285714 | BQ8: 9.971428571 | BR8: 10.02857143 | BS8: 10.08571429 | BT8: 10.14285714 | BU8: 10.2 | BV8: 10.25714286 | BW8: 10.31428571 | BX8: 10.37142857 | BY8: 10.42857143 | BZ8: 10.48571429 | CA8: 10.54285714 | CB8: 10.6 | CC8: 10.65714286 | CD8: 10.71428571 | CE8: 10.77142857 | CF8: 10.82857143 | CG8: 10.88571429 | CH8: 10.94285714 | CI8: 11
A9: 3.6 | B9: 5.944444444 | C9: 6 | D9: 6.055555556 | E9: 6.111111111 | F9: 6.166666667 | G9: 6.222222222 | H9: 6.277777778 | I9: 6.333333333 | J9: 6.388888889 | K9: 6.444444444 | L9: 6.5 | M9: 6.555555556 | N9: 6.611111111 | O9: 6.666666667 | P9: 6.722222222 | Q9: 6.777777778 | R9: 6.833333333 | S9: 6.888888889 | T9: 6.944444444 | U9: 7 | V9: 7.055555556 | W9: 7.111111111 | X9: 7.166666667 | Y9: 7.222222222 | Z9: 7.277777778 | AA9: 7.333333333 | AB9: 7.388888889 | AC9: 7.444444444 | AD9: 7.5 | AE9: 7.555555556 | AF9: 7.611111111 | AG9: 7.666666667 | AH9: 7.722222222 | AI9: 7.777777778 | AJ9: 7.833333333 | AK9: 7.888888889 | AL9: 7.944444444 | AM9: 8 | AN9: 8.055555556 | AO9: 8.111111111 | AP9: 8.166666667 | AQ9: 8.222222222 | AR9: 8.277777778 | AS9: 8.333333333 | AT9: 8.388888889 | AU9: 8.444444444 | AV9: 8.5 | AW9: 8.555555556 | AX9: 8.611111111 | AY9: 8.666666667 | AZ9: 8.722222222 | BA9: 8.777777778 | BB9: 8.833333333 | BC9: 8.888888889 | BD9: 8.944444444 | BE9: 9 | BF9: 9.055555556 | BG9: 9.111111111 | BH9: 9.166666667 | BI9: 9.222222222 | BJ9: 9.277777778 | BK9: 9.333333333 | BL9: 9.388888889 | BM9: 9.444444444 | BN9: 9.5 | BO9: 9.555555556 | BP9: 9.611111111 | BQ9: 9.666666667 | BR9: 9.722222222 | BS9: 9.777777778 | BT9: 9.833333333 | BU9: 9.888888889 | BV9: 9.944444444 | BW9: 10 | BX9: 10.05555556 | BY9: 10.11111111 | BZ9: 10.16666667 | CA9: 10.22222222 | CB9: 10.27777778 | CC9: 10.33333333 | CD9: 10.38888889 | CE9: 10.44444444 | CF9: 10.5 | CG9: 10.55555556 | CH9: 10.61111111 | CI9: 10.66666667
A10: 3.7 | B10: 5.756756757 | C10: 5.810810811 | D10: 5.864864865 | E10: 5.918918919 | F10: 5.972972973 | G10: 6.027027027 | H10: 6.081081081 | I10: 6.135135135 | J10: 6.189189189 | K10: 6.243243243 | L10: 6.297297297 | M10: 6.351351351 | N10: 6.405405405 | O10: 6.459459459 | P10: 6.513513514 | Q10: 6.567567568 | R10: 6.621621622 | S10: 6.675675676 | T10: 6.72972973 | U10: 6.783783784 | V10: 6.837837838 | W10: 6.891891892 | X10: 6.945945946 | Y10: 7 | Z10: 7.054054054 | AA10: 7.108108108 | AB10: 7.162162162 | AC10: 7.216216216 | AD10: 7.27027027 | AE10: 7.324324324 | AF10: 7.378378378 | AG10: 7.432432432 | AH10: 7.486486486 | AI10: 7.540540541 | AJ10: 7.594594595 | AK10: 7.648648649 | AL10: 7.702702703 | AM10: 7.756756757 | AN10: 7.810810811 | AO10: 7.864864865 | AP10: 7.918918919 | AQ10: 7.972972973 | AR10: 8.027027027 | AS10: 8.081081081 | AT10: 8.135135135 | AU10: 8.189189189 | AV10: 8.243243243 | AW10: 8.297297297 | AX10: 8.351351351 | AY10: 8.405405405 | AZ10: 8.459459459 | BA10: 8.513513514 | BB10: 8.567567568 | BC10: 8.621621622 | BD10: 8.675675676 | BE10: 8.72972973 | BF10: 8.783783784 | BG10: 8.837837838 | BH10: 8.891891892 | BI10: 8.945945946 | BJ10: 9 | BK10: 9.054054054 | BL10: 9.108108108 | BM10: 9.162162162 | BN10: 9.216216216 | BO10: 9.27027027 | BP10: 9.324324324 | BQ10: 9.378378378 | BR10: 9.432432432 | BS10: 9.486486486 | BT10: 9.540540541 | BU10: 9.594594595 | BV10: 9.648648649 | BW10: 9.702702703 | BX10: 9.756756757 | BY10: 9.810810811 | BZ10: 9.864864865 | CA10: 9.918918919 | CB10: 9.972972973 | CC10: 10.02702703 | CD10: 10.08108108 | CE10: 10.13513514 | CF10: 10.18918919 | CG10: 10.24324324 | CH10: 10.2972973 | CI10: 10.35135135
A11: 3.8 | B11: 5.578947368 | C11: 5.631578947 | D11: 5.684210526 | E11: 5.736842105 | F11: 5.789473684 | G11: 5.842105263 | H11: 5.894736842 | I11: 5.947368421 | J11: 6 | K11: 6.052631579 | L11: 6.105263158 | M11: 6.157894737 | N11: 6.210526316 | O11: 6.263157895 | P11: 6.315789474 | Q11: 6.368421053 | R11: 6.421052632 | S11: 6.473684211 | T11: 6.526315789 | U11: 6.578947368 | V11: 6.631578947 | W11: 6.684210526 | X11: 6.736842105 | Y11: 6.789473684 | Z11: 6.842105263 | AA11: 6.894736842 | AB11: 6.947368421 | AC11: 7 | AD11: 7.052631579 | AE11: 7.105263158 | AF11: 7.157894737 | AG11: 7.210526316 | AH11: 7.263157895 | AI11: 7.315789474 | AJ11: 7.368421053 | AK11: 7.421052632 | AL11: 7.473684211 | AM11: 7.526315789 | AN11: 7.578947368 | AO11: 7.631578947 | AP11: 7.684210526 | AQ11: 7.736842105 | AR11: 7.789473684 | AS11: 7.842105263 | AT11: 7.894736842 | AU11: 7.947368421 | AV11: 8 | AW11: 8.052631579 | AX11: 8.105263158 | AY11: 8.157894737 | AZ11: 8.210526316 | BA11: 8.263157895 | BB11: 8.315789474 | BC11: 8.368421053 | BD11: 8.421052632 | BE11: 8.473684211 | BF11: 8.526315789 | BG11: 8.578947368 | BH11: 8.631578947 | BI11: 8.684210526 | BJ11: 8.736842105 | BK11: 8.789473684 | BL11: 8.842105263 | BM11: 8.894736842 | BN11: 8.947368421 | BO11: 9 | BP11: 9.052631579 | BQ11: 9.105263158 | BR11: 9.157894737 | BS11: 9.210526316 | BT11: 9.263157895 | BU11: 9.315789474 | BV11: 9.368421053 | BW11: 9.421052632 | BX11: 9.473684211 | BY11: 9.526315789 | BZ11: 9.578947368 | CA11: 9.631578947 | CB11: 9.684210526 | CC11: 9.736842105 | CD11: 9.789473684 | CE11: 9.842105263 | CF11: 9.894736842 | CG11: 9.947368421 | CH11: 10 | CI11: 10.05263158
A12: 3.9 | B12: 5.41025641 | C12: 5.461538462 | D12: 5.512820513 | E12: 5.564102564 | F12: 5.615384615 | G12: 5.666666667 | H12: 5.717948718 | I12: 5.769230769 | J12: 5.820512821 | K12: 5.871794872 | L12: 5.923076923 | M12: 5.974358974 | N12: 6.025641026 | O12: 6.076923077 | P12: 6.128205128 | Q12: 6.179487179 | R12: 6.230769231 | S12: 6.282051282 | T12: 6.333333333 | U12: 6.384615385 | V12: 6.435897436 | W12: 6.487179487 | X12: 6.538461538 | Y12: 6.58974359 | Z12: 6.641025641 | AA12: 6.692307692 | AB12: 6.743589744 | AC12: 6.794871795 | AD12: 6.846153846 | AE12: 6.897435897 | AF12: 6.948717949 | AG12: 7 | AH12: 7.051282051 | AI12: 7.102564103 | AJ12: 7.153846154 | AK12: 7.205128205 | AL12: 7.256410256 | AM12: 7.307692308 | AN12: 7.358974359 | AO12: 7.41025641 | AP12: 7.461538462 | AQ12: 7.512820513 | AR12: 7.564102564 | AS12: 7.615384615 | AT12: 7.666666667 | AU12: 7.717948718 | AV12: 7.769230769 | AW12: 7.820512821 | AX12: 7.871794872 | AY12: 7.923076923 | AZ12: 7.974358974 | BA12: 8.025641026 | BB12: 8.076923077 | BC12: 8.128205128 | BD12: 8.179487179 | BE12: 8.230769231 | BF12: 8.282051282 | BG12: 8.333333333 | BH12: 8.384615385 | BI12: 8.435897436 | BJ12: 8.487179487 | BK12: 8.538461538 | BL12: 8.58974359 | BM12: 8.641025641 | BN12: 8.692307692 | BO12: 8.743589744 | BP12: 8.794871795 | BQ12: 8.846153846 | BR12: 8.897435897 | BS12: 8.948717949 | BT12: 9 | BU12: 9.051282051 | BV12: 9.102564103 | BW12: 9.153846154 | BX12: 9.205128205 | BY12: 9.256410256 | BZ12: 9.307692308 | CA12: 9.358974359 | CB12: 9.41025641 | CC12: 9.461538462 | CD12: 9.512820513 | CE12: 9.564102564 | CF12: 9.615384615 | CG12: 9.666666667 | CH12: 9.717948718 | CI12: 9.769230769
A13: 4 | B13: 5.25 | C13: 5.3 | D13: 5.35 | E13: 5.4 | F13: 5.45 | G13: 5.5 | H13: 5.55 | I13: 5.6 | J13: 5.65 | K13: 5.7 | L13: 5.75 | M13: 5.8 | N13: 5.85 | O13: 5.9 | P13: 5.95 | Q13: 6 | R13: =(R$2-$A13)/$A13 -> 6.05 | S13: 6.1 | T13: 6.15 | U13: 6.2 | V13: 6.25 | W13: 6.3 | X13: 6.35 | Y13: 6.4 | Z13: 6.45 | AA13: 6.5 | AB13: 6.55 | AC13: 6.6 | AD13: 6.65 | AE13: 6.7 | AF13: 6.75 | AG13: 6.8 | AH13: 6.85 | AI13: 6.9 | AJ13: 6.95 | AK13: 7 | AL13: 7.05 | AM13: 7.1 | AN13: 7.15 | AO13: 7.2 | AP13: 7.25 | AQ13: 7.3 | AR13: 7.35 | AS13: 7.4 | AT13: 7.45 | AU13: 7.5 | AV13: 7.55 | AW13: 7.6 | AX13: 7.65 | AY13: 7.7 | AZ13: 7.75 | BA13: 7.8 | BB13: 7.85 | BC13: 7.9 | BD13: 7.95 | BE13: 8 | BF13: 8.05 | BG13: 8.1 | BH13: 8.15 | BI13: 8.2 | BJ13: 8.25 | BK13: 8.3 | BL13: 8.35 | BM13: 8.4 | BN13: 8.45 | BO13: 8.5 | BP13: 8.55 | BQ13: 8.6 | BR13: 8.65 | BS13: 8.7 | BT13: 8.75 | BU13: 8.8 | BV13: 8.85 | BW13: 8.9 | BX13: 8.95 | BY13: 9 | BZ13: 9.05 | CA13: 9.1 | CB13: 9.15 | CC13: 9.2 | CD13: 9.25 | CE13: 9.3 | CF13: 9.35 | CG13: 9.4 | CH13: 9.45 | CI13: 9.5
A14: 4.1 | B14: 5.097560976 | C14: 5.146341463 | D14: 5.195121951 | E14: 5.243902439 | F14: 5.292682927 | G14: 5.341463415 | H14: 5.390243902 | I14: 5.43902439 | J14: 5.487804878 | K14: 5.536585366 | L14: 5.585365854 | M14: 5.634146341 | N14: 5.682926829 | O14: 5.731707317 | P14: 5.780487805 | Q14: 5.829268293 | R14: 5.87804878 | S14: 5.926829268 | T14: 5.975609756 | U14: 6.024390244 | V14: 6.073170732 | W14: 6.12195122 | X14: 6.170731707 | Y14: 6.219512195 | Z14: 6.268292683 | AA14: 6.317073171 | AB14: 6.365853659 | AC14: 6.414634146 | AD14: 6.463414634 | AE14: 6.512195122 | AF14: 6.56097561 | AG14: 6.609756098 | AH14: 6.658536585 | AI14: 6.707317073 | AJ14: 6.756097561 | AK14: 6.804878049 | AL14: 6.853658537 | AM14: 6.902439024 | AN14: 6.951219512 | AO14: 7 | AP14: 7.048780488 | AQ14: 7.097560976 | AR14: 7.146341463 | AS14: 7.195121951 | AT14: 7.243902439 | AU14: 7.292682927 | AV14: 7.341463415 | AW14: 7.390243902 | AX14: 7.43902439 | AY14: 7.487804878 | AZ14: 7.536585366 | BA14: 7.585365854 | BB14: 7.634146341 | BC14: 7.682926829 | BD14: 7.731707317 | BE14: 7.780487805 | BF14: 7.829268293 | BG14: 7.87804878 | BH14: 7.926829268 | BI14: 7.975609756 | BJ14: 8.024390244 | BK14: 8.073170732 | BL14: 8.12195122 | BM14: 8.170731707 | BN14: 8.219512195 | BO14: 8.268292683 | BP14: 8.317073171 | BQ14: 8.365853659 | BR14: 8.414634146 | BS14: 8.463414634 | BT14: 8.512195122 | BU14: 8.56097561 | BV14: 8.609756098 | BW14: 8.658536585 | BX14: 8.707317073 | BY14: 8.756097561 | BZ14: 8.804878049 | CA14: 8.853658537 | CB14: 8.902439024 | CC14: 8.951219512 | CD14: 9 | CE14: 9.048780488 | CF14: 9.097560976 | CG14: 9.146341463 | CH14: 9.195121951 | CI14: 9.243902439
A15: 4.2 | B15: 4.952380952 | C15: 5 | D15: 5.047619048 | E15: 5.095238095 | F15: 5.142857143 | G15: 5.19047619 | H15: 5.238095238 | I15: 5.285714286 | J15: 5.333333333 | K15: 5.380952381 | L15: 5.428571429 | M15: 5.476190476 | N15: 5.523809524 | O15: 5.571428571 | P15: 5.619047619 | Q15: 5.666666667 | R15: 5.714285714 | S15: 5.761904762 | T15: 5.80952381 | U15: 5.857142857 | V15: 5.904761905 | W15: 5.952380952 | X15: 6 | Y15: 6.047619048 | Z15: 6.095238095 | AA15: 6.142857143 | AB15: 6.19047619 | AC15: 6.238095238 | AD15: 6.285714286 | AE15: 6.333333333 | AF15: 6.380952381 | AG15: 6.428571429 | AH15: 6.476190476 | AI15: 6.523809524 | AJ15: 6.571428571 | AK15: 6.619047619 | AL15: 6.666666667 | AM15: 6.714285714 | AN15: 6.761904762 | AO15: 6.80952381 | AP15: 6.857142857 | AQ15: 6.904761905 | AR15: 6.952380952 | AS15: 7 | AT15: 7.047619048 | AU15: 7.095238095 | AV15: 7.142857143 | AW15: 7.19047619 | AX15: 7.238095238 | AY15: 7.285714286 | AZ15: 7.333333333 | BA15: 7.380952381 | BB15: 7.428571429 | BC15: 7.476190476 | BD15: 7.523809524 | BE15: 7.571428571 | BF15: 7.619047619 | BG15: 7.666666667 | BH15: 7.714285714 | BI15: 7.761904762 | BJ15: 7.80952381 | BK15: 7.857142857 | BL15: 7.904761905 | BM15: 7.952380952 | BN15: 8 | BO15: 8.047619048 | BP15: 8.095238095 | BQ15: 8.142857143 | BR15: 8.19047619 | BS15: 8.238095238 | BT15: 8.285714286 | BU15: 8.333333333 | BV15: 8.380952381 | BW15: 8.428571429 | BX15: 8.476190476 | BY15: 8.523809524 | BZ15: 8.571428571 | CA15: 8.619047619 | CB15: 8.666666667 | CC15: 8.714285714 | CD15: 8.761904762 | CE15: 8.80952381 | CF15: 8.857142857 | CG15: 8.904761905 | CH15: 8.952380952 | CI15: 9
... 18 more rows

Sheet tau1
A1: tau_k1 <N/mm²> | B1: D | C1: tau_k1 = (8*Dm*F)/(pi*d³)
A2: d | B2: ='c'!B$2 -> 25 | C2: ='c'!C$2 -> 25.2 | D2: ='c'!D$2 -> 25.4 | E2: ='c'!E$2 -> 25.6 | F2: ='c'!F$2 -> 25.8 | G2: ='c'!G$2 -> 26 | H2: ='c'!H$2 -> 26.2 | I2: ='c'!I$2 -> 26.4 | J2: ='c'!J$2 -> 26.6 | K2: ='c'!K$2 -> 26.8 | L2: ='c'!L$2 -> 27 | M2: ='c'!M$2 -> 27.2 | N2: ='c'!N$2 -> 27.4 | O2: ='c'!O$2 -> 27.6 | P2: ='c'!P$2 -> 27.8 | Q2: ='c'!Q$2 -> 28 | R2: ='c'!R$2 -> 28.2 | S2: ='c'!S$2 -> 28.4 | T2: ='c'!T$2 -> 28.6 | U2: ='c'!U$2 -> 28.8 | V2: ='c'!V$2 -> 29 | W2: ='c'!W$2 -> 29.2 | X2: ='c'!X$2 -> 29.4 | Y2: ='c'!Y$2 -> 29.6 | Z2: ='c'!Z$2 -> 29.8 | AA2: ='c'!AA$2 -> 30 | AB2: ='c'!AB$2 -> 30.2 | AC2: ='c'!AC$2 -> 30.4 | AD2: ='c'!AD$2 -> 30.6 | AE2: ='c'!AE$2 -> 30.8 | AF2: ='c'!AF$2 -> 31 | AG2: ='c'!AG$2 -> 31.2 | AH2: ='c'!AH$2 -> 31.4 | AI2: ='c'!AI$2 -> 31.6 | AJ2: ='c'!AJ$2 -> 31.8 | AK2: ='c'!AK$2 -> 32 | AL2: ='c'!AL$2 -> 32.2 | AM2: ='c'!AM$2 -> 32.4 | AN2: ='c'!AN$2 -> 32.6 | AO2: ='c'!AO$2 -> 32.8 | AP2: ='c'!AP$2 -> 33 | AQ2: ='c'!AQ$2 -> 33.2 | AR2: ='c'!AR$2 -> 33.4 | AS2: ='c'!AS$2 -> 33.6 | AT2: ='c'!AT$2 -> 33.8 | AU2: ='c'!AU$2 -> 34 | AV2: ='c'!AV$2 -> 34.2 | AW2: ='c'!AW$2 -> 34.4 | AX2: ='c'!AX$2 -> 34.6 | AY2: ='c'!AY$2 -> 34.8 | AZ2: ='c'!AZ$2 -> 35 | BA2: ='c'!BA$2 -> 35.2 | BB2: ='c'!BB$2 -> 35.4 | BC2: ='c'!BC$2 -> 35.6 | BD2: ='c'!BD$2 -> 35.8 | BE2: ='c'!BE$2 -> 36 | BF2: ='c'!BF$2 -> 36.2 | BG2: ='c'!BG$2 -> 36.4 | BH2: ='c'!BH$2 -> 36.6 | BI2: ='c'!BI$2 -> 36.8 | BJ2: ='c'!BJ$2 -> 37 | BK2: ='c'!BK$2 -> 37.2 | BL2: ='c'!BL$2 -> 37.4 | BM2: ='c'!BM$2 -> 37.6 | BN2: ='c'!BN$2 -> 37.8 | BO2: ='c'!BO$2 -> 38 | BP2: ='c'!BP$2 -> 38.2 | BQ2: ='c'!BQ$2 -> 38.4 | BR2: ='c'!BR$2 -> 38.6 | BS2: ='c'!BS$2 -> 38.8 | BT2: ='c'!BT$2 -> 39 | BU2: ='c'!BU$2 -> 39.2 | BV2: ='c'!BV$2 -> 39.4 | BW2: ='c'!BW$2 -> 39.6 | BX2: ='c'!BX$2 -> 39.8 | BY2: ='c'!BY$2 -> 40 | BZ2: ='c'!BZ$2 -> 40.2 | CA2: ='c'!CA$2 -> 40.4 | CB2: ='c'!CB$2 -> 40.6 | CC2: ='c'!CC$2 -> 40.8 | CD2: ='c'!CD$2 -> 41 | CE2: ='c'!CE$2 -> 41.2 | CF2: ='c'!CF$2 -> 41.4 | CG2: ='c'!CG$2 -> 41.6 | CH2: ='c'!CH$2 -> 41.8 | CI2: ='c'!CI$2 -> 42
A3: ='c'!$A3 -> 3 | B3: =((8*'Input&Overview'!$B$13*(B$2*0.001-$A3*0.001))/(('Input&Overview'!$D$3-0.5*B$2*0.001)*PI()*($A3*0.001)^3))*0.000001 -> 1729.373733 | C3: =((8*'Input&Overview'!$B$13*(C$2*0.001-$A3*0.001))/(('Input&Overview'!$D$3-0.5*C$2*0.001)*PI()*($A3*0.001)^3))*0.000001 -> 1746.581765 | D3: =((8*'Input&Overview'!$B$13*(D$2*0.001-$A3*0.001))/(('Input&Overview'!$D$3-0.5*D$2*0.001)*PI()*($A3*0.001)^3))*0.000001 -> 1763.819137 | E3: =((8*'Input&Overview'!$B$13*(E$2*0.001-$A3*0.001))/(('Input&Overview'!$D$3-0.5*E$2*0.001)*PI()*($A3*0.001)^3))*0.000001 -> 1781.085925 | F3: =((8*'Input&Overview'!$B$13*(F$2*0.001-$A3*0.001))/(('Input&Overview'!$D$3-0.5*F$2*0.001)*PI()*($A3*0.001)^3))*0.000001 -> 1798.382203 | G3: =((8*'Input&Overview'!$B$13*(G$2*0.001-$A3*0.001))/(('Input&Overview'!$D$3-0.5*G$2*0.001)*PI()*($A3*0.001)^3))*0.000001 -> 1815.708048 | H3: =((8*'Input&Overview'!$B$13*(H$2*0.001-$A3*0.001))/(('Input&Overview'!$D$3-0.5*H$2*0.001)*PI()*($A3*0.001)^3))*0.000001 -> 1833.063534 | I3: =((8*'Input&Overview'!$B$13*(I$2*0.001-$A3*0.001))/(('Input&Overview'!$D$3-0.5*I$2*0.001)*PI()*($A3*0.001)^3))*0.000001 -> 1850.448739 | J3: =((8*'Input&Overview'!$B$13*(J$2*0.001-$A3*0.001))/(('Input&Overview'!$D$3-0.5*J$2*0.001)*PI()*($A3*0.001)^3))*0.000001 -> 1867.863739 | K3: =((8*'Input&Overview'!$B$13*(K$2*0.001-$A3*0.001))/(('Input&Overview'!$D$3-0.5*K$2*0.001)*PI()*($A3*0.001)^3))*0.000001 -> 1885.30861 | L3: =((8*'Input&Overview'!$B$13*(L$2*0.001-$A3*0.001))/(('Input&Overview'!$D$3-0.5*L$2*0.001)*PI()*($A3*0.001)^3))*0.000001 -> 1902.783429 | M3: =((8*'Input&Overview'!$B$13*(M$2*0.001-$A3*0.001))/(('Input&Overview'!$D$3-0.5*M$2*0.001)*PI()*($A3*0.001)^3))*0.000001 -> 1920.288273 | N3: =((8*'Input&Overview'!$B$13*(N$2*0.001-$A3*0.001))/(('Input&Overview'!$D$3-0.5*N$2*0.001)*PI()*($A3*0.001)^3))*0.000001 -> 1937.823221 | O3: =((8*'Input&Overview'!$B$13*(O$2*0.001-$A3*0.001))/(('Input&Overview'!$D$3-0.5*O$2*0.001)*PI()*($A3*0.001)^3))*0.000001 -> 1955.388349 | P3: =((8*'Input&Overview'!$B$13*(P$2*0.001-$A3*0.001))/(('Input&Overview'!$D$3-0.5*P$2*0.001)*PI()*($A3*0.001)^3))*0.000001 -> 1972.983736 | Q3: =((8*'Input&Overview'!$B$13*(Q$2*0.001-$A3*0.001))/(('Input&Overview'!$D$3-0.5*Q$2*0.001)*PI()*($A3*0.001)^3))*0.000001 -> 1990.60946 | R3: =((8*'Input&Overview'!$B$13*(R$2*0.001-$A3*0.001))/(('Input&Overview'!$D$3-0.5*R$2*0.001)*PI()*($A3*0.001)^3))*0.000001 -> 2008.265599 | S3: =((8*'Input&Overview'!$B$13*(S$2*0.001-$A3*0.001))/(('Input&Overview'!$D$3-0.5*S$2*0.001)*PI()*($A3*0.001)^3))*0.000001 -> 2025.952232 | T3: =((8*'Input&Overview'!$B$13*(T$2*0.001-$A3*0.001))/(('Input&Overview'!$D$3-0.5*T$2*0.001)*PI()*($A3*0.001)^3))*0.000001 -> 2043.669439 | U3: =((8*'Input&Overview'!$B$13*(U$2*0.001-$A3*0.001))/(('Input&Overview'!$D$3-0.5*U$2*0.001)*PI()*($A3*0.001)^3))*0.000001 -> 2061.417298 | V3: =((8*'Input&Overview'!$B$13*(V$2*0.001-$A3*0.001))/(('Input&Overview'!$D$3-0.5*V$2*0.001)*PI()*($A3*0.001)^3))*0.000001 -> 2079.19589 | W3: =((8*'Input&Overview'!$B$13*(W$2*0.001-$A3*0.001))/(('Input&Overview'!$D$3-0.5*W$2*0.001)*PI()*($A3*0.001)^3))*0.000001 -> 2097.005293 | X3: =((8*'Input&Overview'!$B$13*(X$2*0.001-$A3*0.001))/(('Input&Overview'!$D$3-0.5*X$2*0.001)*PI()*($A3*0.001)^3))*0.000001 -> 2114.845589 | Y3: =((8*'Input&Overview'!$B$13*(Y$2*0.001-$A3*0.001))/(('Input&Overview'!$D$3-0.5*Y$2*0.001)*PI()*($A3*0.001)^3))*0.000001 -> 2132.716857 | Z3: =((8*'Input&Overview'!$B$13*(Z$2*0.001-$A3*0.001))/(('Input&Overview'!$D$3-0.5*Z$2*0.001)*PI()*($A3*0.001)^3))*0.000001 -> 2150.619179 | AA3: =((8*'Input&Overview'!$B$13*(AA$2*0.001-$A3*0.001))/(('Input&Overview'!$D$3-0.5*AA$2*0.001)*PI()*($A3*0.001)^3))*0.000001 -> 2168.552636 | AB3: =((8*'Input&Overview'!$B$13*(AB$2*0.001-$A3*0.001))/(('Input&Overview'!$D$3-0.5*AB$2*0.001)*PI()*($A3*0.001)^3))*0.000001 -> 2186.517308 | AC3: =((8*'Input&Overview'!$B$13*(AC$2*0.001-$A3*0.001))/(('Input&Overview'!$D$3-0.5*AC$2*0.001)*PI()*($A3*0.001)^3))*0.000001 -> 2204.513278 | AD3: =((8*'Input&Overview'!$B$13*(AD$2*0.001-$A3*0.001))/(('Input&Overview'!$D$3-0.5*AD$2*0.001)*PI()*($A3*0.001)^3))*0.000001 -> 2222.540627 | AE3: =((8*'Input&Overview'!$B$13*(AE$2*0.001-$A3*0.001))/(('Input&Overview'!$D$3-0.5*AE$2*0.001)*PI()*($A3*0.001)^3))*0.000001 -> 2240.599437 | AF3: =((8*'Input&Overview'!$B$13*(AF$2*0.001-$A3*0.001))/(('Input&Overview'!$D$3-0.5*AF$2*0.001)*PI()*($A3*0.001)^3))*0.000001 -> 2258.689791 | AG3: =((8*'Input&Overview'!$B$13*(AG$2*0.001-$A3*0.001))/(('Input&Overview'!$D$3-0.5*AG$2*0.001)*PI()*($A3*0.001)^3))*0.000001 -> 2276.811771 | AH3: =((8*'Input&Overview'!$B$13*(AH$2*0.001-$A3*0.001))/(('Input&Overview'!$D$3-0.5*AH$2*0.001)*PI()*($A3*0.001)^3))*0.000001 -> 2294.965461 | AI3: =((8*'Input&Overview'!$B$13*(AI$2*0.001-$A3*0.001))/(('Input&Overview'!$D$3-0.5*AI$2*0.001)*PI()*($A3*0.001)^3))*0.000001 -> 2313.150944 | AJ3: =((8*'Input&Overview'!$B$13*(AJ$2*0.001-$A3*0.001))/(('Input&Overview'!$D$3-0.5*AJ$2*0.001)*PI()*($A3*0.001)^3))*0.000001 -> 2331.368303 | AK3: =((8*'Input&Overview'!$B$13*(AK$2*0.001-$A3*0.001))/(('Input&Overview'!$D$3-0.5*AK$2*0.001)*PI()*($A3*0.001)^3))*0.000001 -> 2349.617622 | AL3: =((8*'Input&Overview'!$B$13*(AL$2*0.001-$A3*0.001))/(('Input&Overview'!$D$3-0.5*AL$2*0.001)*PI()*($A3*0.001)^3))*0.000001 -> 2367.898986 | AM3: =((8*'Input&Overview'!$B$13*(AM$2*0.001-$A3*0.001))/(('Input&Overview'!$D$3-0.5*AM$2*0.001)*PI()*($A3*0.001)^3))*0.000001 -> 2386.212479 | AN3: =((8*'Input&Overview'!$B$13*(AN$2*0.001-$A3*0.001))/(('Input&Overview'!$D$3-0.5*AN$2*0.001)*PI()*($A3*0.001)^3))*0.000001 -> 2404.558185 | AO3: =((8*'Input&Overview'!$B$13*(AO$2*0.001-$A3*0.001))/(('Input&Overview'!$D$3-0.5*AO$2*0.001)*PI()*($A3*0.001)^3))*0.000001 -> 2422.93619 | AP3: =((8*'Input&Overview'!$B$13*(AP$2*0.001-$A3*0.001))/(('Input&Overview'!$D$3-0.5*AP$2*0.001)*PI()*($A3*0.001)^3))*0.000001 -> 2441.34658 | AQ3: =((8*'Input&Overview'!$B$13*(AQ$2*0.001-$A3*0.001))/(('Input&Overview'!$D$3-0.5*AQ$2*0.001)*PI()*($A3*0.001)^3))*0.000001 -> 2459.789439 | AR3: =((8*'Input&Overview'!$B$13*(AR$2*0.001-$A3*0.001))/(('Input&Overview'!$D$3-0.5*AR$2*0.001)*PI()*($A3*0.001)^3))*0.000001 -> 2478.264854 | AS3: =((8*'Input&Overview'!$B$13*(AS$2*0.001-$A3*0.001))/(('Input&Overview'!$D$3-0.5*AS$2*0.001)*PI()*($A3*0.001)^3))*0.000001 -> 2496.772911 | AT3: =((8*'Input&Overview'!$B$13*(AT$2*0.001-$A3*0.001))/(('Input&Overview'!$D$3-0.5*AT$2*0.001)*PI()*($A3*0.001)^3))*0.000001 -> 2515.313697 | AU3: =((8*'Input&Overview'!$B$13*(AU$2*0.001-$A3*0.001))/(('Input&Overview'!$D$3-0.5*AU$2*0.001)*PI()*($A3*0.001)^3))*0.000001 -> 2533.887298 | AV3: =((8*'Input&Overview'!$B$13*(AV$2*0.001-$A3*0.001))/(('Input&Overview'!$D$3-0.5*AV$2*0.001)*PI()*($A3*0.001)^3))*0.000001 -> 2552.493802 | AW3: =((8*'Input&Overview'!$B$13*(AW$2*0.001-$A3*0.001))/(('Input&Overview'!$D$3-0.5*AW$2*0.001)*PI()*($A3*0.001)^3))*0.000001 -> 2571.133297 | AX3: =((8*'Input&Overview'!$B$13*(AX$2*0.001-$A3*0.001))/(('Input&Overview'!$D$3-0.5*AX$2*0.001)*PI()*($A3*0.001)^3))*0.000001 -> 2589.805869 | AY3: =((8*'Input&Overview'!$B$13*(AY$2*0.001-$A3*0.001))/(('Input&Overview'!$D$3-0.5*AY$2*0.001)*PI()*($A3*0.001)^3))*0.000001 -> 2608.511608 | AZ3: =((8*'Input&Overview'!$B$13*(AZ$2*0.001-$A3*0.001))/(('Input&Overview'!$D$3-0.5*AZ$2*0.001)*PI()*($A3*0.001)^3))*0.000001 -> 2627.250601 | BA3: =((8*'Input&Overview'!$B$13*(BA$2*0.001-$A3*0.001))/(('Input&Overview'!$D$3-0.5*BA$2*0.001)*PI()*($A3*0.001)^3))*0.000001 -> 2646.022938 | BB3: =((8*'Input&Overview'!$B$13*(BB$2*0.001-$A3*0.001))/(('Input&Overview'!$D$3-0.5*BB$2*0.001)*PI()*($A3*0.001)^3))*0.000001 -> 2664.828707 | BC3: =((8*'Input&Overview'!$B$13*(BC$2*0.001-$A3*0.001))/(('Input&Overview'!$D$3-0.5*BC$2*0.001)*PI()*($A3*0.001)^3))*0.000001 -> 2683.667998 | BD3: =((8*'Input&Overview'!$B$13*(BD$2*0.001-$A3*0.001))/(('Input&Overview'!$D$3-0.5*BD$2*0.001)*PI()*($A3*0.001)^3))*0.000001 -> 2702.5409 | BE3: =((8*'Input&Overview'!$B$13*(BE$2*0.001-$A3*0.001))/(('Input&Overview'!$D$3-0.5*BE$2*0.001)*PI()*($A3*0.001)^3))*0.000001 -> 2721.447504 | BF3: =((8*'Input&Overview'!$B$13*(BF$2*0.001-$A3*0.001))/(('Input&Overview'!$D$3-0.5*BF$2*0.001)*PI()*($A3*0.001)^3))*0.000001 -> 2740.387901 | BG3: =((8*'Input&Overview'!$B$13*(BG$2*0.001-$A3*0.001))/(('Input&Overview'!$D$3-0.5*BG$2*0.001)*PI()*($A3*0.001)^3))*0.000001 -> 2759.362179 | BH3: =((8*'Input&Overview'!$B$13*(BH$2*0.001-$A3*0.001))/(('Input&Overview'!$D$3-0.5*BH$2*0.001)*PI()*($A3*0.001)^3))*0.000001 -> 2778.370432 | BI3: =((8*'Input&Overview'!$B$13*(BI$2*0.001-$A3*0.001))/(('Input&Overview'!$D$3-0.5*BI$2*0.001)*PI()*($A3*0.001)^3))*0.000001 -> 2797.412749 | BJ3: =((8*'Input&Overview'!$B$13*(BJ$2*0.001-$A3*0.001))/(('Input&Overview'!$D$3-0.5*BJ$2*0.001)*PI()*($A3*0.001)^3))*0.000001 -> 2816.489223 | BK3: =((8*'Input&Overview'!$B$13*(BK$2*0.001-$A3*0.001))/(('Input&Overview'!$D$3-0.5*BK$2*0.001)*PI()*($A3*0.001)^3))*0.000001 -> 2835.599946 | BL3: =((8*'Input&Overview'!$B$13*(BL$2*0.001-$A3*0.001))/(('Input&Overview'!$D$3-0.5*BL$2*0.001)*PI()*($A3*0.001)^3))*0.000001 -> 2854.745009 | BM3: =((8*'Input&Overview'!$B$13*(BM$2*0.001-$A3*0.001))/(('Input&Overview'!$D$3-0.5*BM$2*0.001)*PI()*($A3*0.001)^3))*0.000001 -> 2873.924507 | BN3: =((8*'Input&Overview'!$B$13*(BN$2*0.001-$A3*0.001))/(('Input&Overview'!$D$3-0.5*BN$2*0.001)*PI()*($A3*0.001)^3))*0.000001 -> 2893.13853 | BO3: =((8*'Input&Overview'!$B$13*(BO$2*0.001-$A3*0.001))/(('Input&Overview'!$D$3-0.5*BO$2*0.001)*PI()*($A3*0.001)^3))*0.000001 -> 2912.387174 | BP3: =((8*'Input&Overview'!$B$13*(BP$2*0.001-$A3*0.001))/(('Input&Overview'!$D$3-0.5*BP$2*0.001)*PI()*($A3*0.001)^3))*0.000001 -> 2931.670531 | BQ3: =((8*'Input&Overview'!$B$13*(BQ$2*0.001-$A3*0.001))/(('Input&Overview'!$D$3-0.5*BQ$2*0.001)*PI()*($A3*0.001)^3))*0.000001 -> 2950.988695 | BR3: =((8*'Input&Overview'!$B$13*(BR$2*0.001-$A3*0.001))/(('Input&Overview'!$D$3-0.5*BR$2*0.001)*PI()*($A3*0.001)^3))*0.000001 -> 2970.341762 | BS3: =((8*'Input&Overview'!$B$13*(BS$2*0.001-$A3*0.001))/(('Input&Overview'!$D$3-0.5*BS$2*0.001)*PI()*($A3*0.001)^3))*0.000001 -> 2989.729825 | BT3: =((8*'Input&Overview'!$B$13*(BT$2*0.001-$A3*0.001))/(('Input&Overview'!$D$3-0.5*BT$2*0.001)*PI()*($A3*0.001)^3))*0.000001 -> 3009.152979 | BU3: =((8*'Input&Overview'!$B$13*(BU$2*0.001-$A3*0.001))/(('Input&Overview'!$D$3-0.5*BU$2*0.001)*PI()*($A3*0.001)^3))*0.000001 -> 3028.61132 | BV3: =((8*'Input&Overview'!$B$13*(BV$2*0.001-$A3*0.001))/(('Input&Overview'!$D$3-0.5*BV$2*0.001)*PI()*($A3*0.001)^3))*0.000001 -> 3048.104944 | BW3: =((8*'Input&Overview'!$B$13*(BW$2*0.001-$A3*0.001))/(('Input&Overview'!$D$3-0.5*BW$2*0.001)*PI()*($A3*0.001)^3))*0.000001 -> 3067.633947 | BX3: =((8*'Input&Overview'!$B$13*(BX$2*0.001-$A3*0.001))/(('Input&Overview'!$D$3-0.5*BX$2*0.001)*PI()*($A3*0.001)^3))*0.000001 -> 3087.198424 | BY3: =((8*'Input&Overview'!$B$13*(BY$2*0.001-$A3*0.001))/(('Input&Overview'!$D$3-0.5*BY$2*0.001)*PI()*($A3*0.001)^3))*0.000001 -> 3106.798473 | BZ3: =((8*'Input&Overview'!$B$13*(BZ$2*0.001-$A3*0.001))/(('Input&Overview'!$D$3-0.5*BZ$2*0.001)*PI()*($A3*0.001)^3))*0.000001 -> 3126.434192 | CA3: =((8*'Input&Overview'!$B$13*(CA$2*0.001-$A3*0.001))/(('Input&Overview'!$D$3-0.5*CA$2*0.001)*PI()*($A3*0.001)^3))*0.000001 -> 3146.105676 | CB3: =((8*'Input&Overview'!$B$13*(CB$2*0.001-$A3*0.001))/(('Input&Overview'!$D$3-0.5*CB$2*0.001)*PI()*($A3*0.001)^3))*0.000001 -> 3165.813025 | CC3: =((8*'Input&Overview'!$B$13*(CC$2*0.001-$A3*0.001))/(('Input&Overview'!$D$3-0.5*CC$2*0.001)*PI()*($A3*0.001)^3))*0.000001 -> 3185.556336 | CD3: =((8*'Input&Overview'!$B$13*(CD$2*0.001-$A3*0.001))/(('Input&Overview'!$D$3-0.5*CD$2*0.001)*PI()*($A3*0.001)^3))*0.000001 -> 3205.335707 | CE3: =((8*'Input&Overview'!$B$13*(CE$2*0.001-$A3*0.001))/(('Input&Overview'!$D$3-0.5*CE$2*0.001)*PI()*($A3*0.001)^3))*0.000001 -> 3225.151239 | CF3: =((8*'Input&Overview'!$B$13*(CF$2*0.001-$A3*0.001))/(('Input&Overview'!$D$3-0.5*CF$2*0.001)*PI()*($A3*0.001)^3))*0.000001 -> 3245.00303 | CG3: =((8*'Input&Overview'!$B$13*(CG$2*0.001-$A3*0.001))/(('Input&Overview'!$D$3-0.5*CG$2*0.001)*PI()*($A3*0.001)^3))*0.000001 -> 3264.891179 | CH3: =((8*'Input&Overview'!$B$13*(CH$2*0.001-$A3*0.001))/(('Input&Overview'!$D$3-0.5*CH$2*0.001)*PI()*($A3*0.001)^3))*0.000001 -> 3284.815786 | CI3: =((8*'Input&Overview'!$B$13*(CI$2*0.001-$A3*0.001))/(('Input&Overview'!$D$3-0.5*CI$2*0.001)*PI()*($A3*0.001)^3))*0.000001 -> 3304.776953
A4: ='c'!$A4 -> 3.1 | B4: =((8*'Input&Overview'!$B$13*(B$2*0.001-$A4*0.001))/(('Input&Overview'!$D$3-0.5*B$2*0.001)*PI()*($A4*0.001)^3))*0.000001 -> 1560.23126 | C4: =((8*'Input&Overview'!$B$13*(C$2*0.001-$A4*0.001))/(('Input&Overview'!$D$3-0.5*C$2*0.001)*PI()*($A4*0.001)^3))*0.000001 -> 1575.821072 | D4: =((8*'Input&Overview'!$B$13*(D$2*0.001-$A4*0.001))/(('Input&Overview'!$D$3-0.5*D$2*0.001)*PI()*($A4*0.001)^3))*0.000001 -> 1591.437465 | E4: =((8*'Input&Overview'!$B$13*(E$2*0.001-$A4*0.001))/(('Input&Overview'!$D$3-0.5*E$2*0.001)*PI()*($A4*0.001)^3))*0.000001 -> 1607.080507 | F4: =((8*'Input&Overview'!$B$13*(F$2*0.001-$A4*0.001))/(('Input&Overview'!$D$3-0.5*F$2*0.001)*PI()*($A4*0.001)^3))*0.000001 -> 1622.750266 | G4: =((8*'Input&Overview'!$B$13*(G$2*0.001-$A4*0.001))/(('Input&Overview'!$D$3-0.5*G$2*0.001)*PI()*($A4*0.001)^3))*0.000001 -> 1638.446811 | H4: =((8*'Input&Overview'!$B$13*(H$2*0.001-$A4*0.001))/(('Input&Overview'!$D$3-0.5*H$2*0.001)*PI()*($A4*0.001)^3))*0.000001 -> 1654.170211 | I4: =((8*'Input&Overview'!$B$13*(I$2*0.001-$A4*0.001))/(('Input&Overview'!$D$3-0.5*I$2*0.001)*PI()*($A4*0.001)^3))*0.000001 -> 1669.920534 | J4: =((8*'Input&Overview'!$B$13*(J$2*0.001-$A4*0.001))/(('Input&Overview'!$D$3-0.5*J$2*0.001)*PI()*($A4*0.001)^3))*0.000001 -> 1685.697851 | K4: =((8*'Input&Overview'!$B$13*(K$2*0.001-$A4*0.001))/(('Input&Overview'!$D$3-0.5*K$2*0.001)*PI()*($A4*0.001)^3))*0.000001 -> 1701.502229 | L4: =((8*'Input&Overview'!$B$13*(L$2*0.001-$A4*0.001))/(('Input&Overview'!$D$3-0.5*L$2*0.001)*PI()*($A4*0.001)^3))*0.000001 -> 1717.33374 | M4: =((8*'Input&Overview'!$B$13*(M$2*0.001-$A4*0.001))/(('Input&Overview'!$D$3-0.5*M$2*0.001)*PI()*($A4*0.001)^3))*0.000001 -> 1733.192452 | N4: =((8*'Input&Overview'!$B$13*(N$2*0.001-$A4*0.001))/(('Input&Overview'!$D$3-0.5*N$2*0.001)*PI()*($A4*0.001)^3))*0.000001 -> 1749.078437 | O4: =((8*'Input&Overview'!$B$13*(O$2*0.001-$A4*0.001))/(('Input&Overview'!$D$3-0.5*O$2*0.001)*PI()*($A4*0.001)^3))*0.000001 -> 1764.991764 | P4: =((8*'Input&Overview'!$B$13*(P$2*0.001-$A4*0.001))/(('Input&Overview'!$D$3-0.5*P$2*0.001)*PI()*($A4*0.001)^3))*0.000001 -> 1780.932504 | Q4: =((8*'Input&Overview'!$B$13*(Q$2*0.001-$A4*0.001))/(('Input&Overview'!$D$3-0.5*Q$2*0.001)*PI()*($A4*0.001)^3))*0.000001 -> 1796.900728 | R4: =((8*'Input&Overview'!$B$13*(R$2*0.001-$A4*0.001))/(('Input&Overview'!$D$3-0.5*R$2*0.001)*PI()*($A4*0.001)^3))*0.000001 -> 1812.896508 | S4: =((8*'Input&Overview'!$B$13*(S$2*0.001-$A4*0.001))/(('Input&Overview'!$D$3-0.5*S$2*0.001)*PI()*($A4*0.001)^3))*0.000001 -> 1828.919914 | T4: =((8*'Input&Overview'!$B$13*(T$2*0.001-$A4*0.001))/(('Input&Overview'!$D$3-0.5*T$2*0.001)*PI()*($A4*0.001)^3))*0.000001 -> 1844.971018 | U4: =((8*'Input&Overview'!$B$13*(U$2*0.001-$A4*0.001))/(('Input&Overview'!$D$3-0.5*U$2*0.001)*PI()*($A4*0.001)^3))*0.000001 -> 1861.049892 | V4: =((8*'Input&Overview'!$B$13*(V$2*0.001-$A4*0.001))/(('Input&Overview'!$D$3-0.5*V$2*0.001)*PI()*($A4*0.001)^3))*0.000001 -> 1877.156608 | W4: =((8*'Input&Overview'!$B$13*(W$2*0.001-$A4*0.001))/(('Input&Overview'!$D$3-0.5*W$2*0.001)*PI()*($A4*0.001)^3))*0.000001 -> 1893.291239 | X4: =((8*'Input&Overview'!$B$13*(X$2*0.001-$A4*0.001))/(('Input&Overview'!$D$3-0.5*X$2*0.001)*PI()*($A4*0.001)^3))*0.000001 -> 1909.453858 | Y4: =((8*'Input&Overview'!$B$13*(Y$2*0.001-$A4*0.001))/(('Input&Overview'!$D$3-0.5*Y$2*0.001)*PI()*($A4*0.001)^3))*0.000001 -> 1925.644536 | Z4: =((8*'Input&Overview'!$B$13*(Z$2*0.001-$A4*0.001))/(('Input&Overview'!$D$3-0.5*Z$2*0.001)*PI()*($A4*0.001)^3))*0.000001 -> 1941.863348 | AA4: =((8*'Input&Overview'!$B$13*(AA$2*0.001-$A4*0.001))/(('Input&Overview'!$D$3-0.5*AA$2*0.001)*PI()*($A4*0.001)^3))*0.000001 -> 1958.110366 | AB4: =((8*'Input&Overview'!$B$13*(AB$2*0.001-$A4*0.001))/(('Input&Overview'!$D$3-0.5*AB$2*0.001)*PI()*($A4*0.001)^3))*0.000001 -> 1974.385664 | AC4: =((8*'Input&Overview'!$B$13*(AC$2*0.001-$A4*0.001))/(('Input&Overview'!$D$3-0.5*AC$2*0.001)*PI()*($A4*0.001)^3))*0.000001 -> 1990.689317 | AD4: =((8*'Input&Overview'!$B$13*(AD$2*0.001-$A4*0.001))/(('Input&Overview'!$D$3-0.5*AD$2*0.001)*PI()*($A4*0.001)^3))*0.000001 -> 2007.021398 | AE4: =((8*'Input&Overview'!$B$13*(AE$2*0.001-$A4*0.001))/(('Input&Overview'!$D$3-0.5*AE$2*0.001)*PI()*($A4*0.001)^3))*0.000001 -> 2023.381982 | AF4: =((8*'Input&Overview'!$B$13*(AF$2*0.001-$A4*0.001))/(('Input&Overview'!$D$3-0.5*AF$2*0.001)*PI()*($A4*0.001)^3))*0.000001 -> 2039.771143 | AG4: =((8*'Input&Overview'!$B$13*(AG$2*0.001-$A4*0.001))/(('Input&Overview'!$D$3-0.5*AG$2*0.001)*PI()*($A4*0.001)^3))*0.000001 -> 2056.188956 | AH4: =((8*'Input&Overview'!$B$13*(AH$2*0.001-$A4*0.001))/(('Input&Overview'!$D$3-0.5*AH$2*0.001)*PI()*($A4*0.001)^3))*0.000001 -> 2072.635498 | AI4: =((8*'Input&Overview'!$B$13*(AI$2*0.001-$A4*0.001))/(('Input&Overview'!$D$3-0.5*AI$2*0.001)*PI()*($A4*0.001)^3))*0.000001 -> 2089.110842 | AJ4: =((8*'Input&Overview'!$B$13*(AJ$2*0.001-$A4*0.001))/(('Input&Overview'!$D$3-0.5*AJ$2*0.001)*PI()*($A4*0.001)^3))*0.000001 -> 2105.615065 | AK4: =((8*'Input&Overview'!$B$13*(AK$2*0.001-$A4*0.001))/(('Input&Overview'!$D$3-0.5*AK$2*0.001)*PI()*($A4*0.001)^3))*0.000001 -> 2122.148243 | AL4: =((8*'Input&Overview'!$B$13*(AL$2*0.001-$A4*0.001))/(('Input&Overview'!$D$3-0.5*AL$2*0.001)*PI()*($A4*0.001)^3))*0.000001 -> 2138.710451 | AM4: =((8*'Input&Overview'!$B$13*(AM$2*0.001-$A4*0.001))/(('Input&Overview'!$D$3-0.5*AM$2*0.001)*PI()*($A4*0.001)^3))*0.000001 -> 2155.301768 | AN4: =((8*'Input&Overview'!$B$13*(AN$2*0.001-$A4*0.001))/(('Input&Overview'!$D$3-0.5*AN$2*0.001)*PI()*($A4*0.001)^3))*0.000001 -> 2171.922269 | AO4: =((8*'Input&Overview'!$B$13*(AO$2*0.001-$A4*0.001))/(('Input&Overview'!$D$3-0.5*AO$2*0.001)*PI()*($A4*0.001)^3))*0.000001 -> 2188.572031 | AP4: =((8*'Input&Overview'!$B$13*(AP$2*0.001-$A4*0.001))/(('Input&Overview'!$D$3-0.5*AP$2*0.001)*PI()*($A4*0.001)^3))*0.000001 -> 2205.251132 | AQ4: =((8*'Input&Overview'!$B$13*(AQ$2*0.001-$A4*0.001))/(('Input&Overview'!$D$3-0.5*AQ$2*0.001)*PI()*($A4*0.001)^3))*0.000001 -> 2221.959649 | AR4: =((8*'Input&Overview'!$B$13*(AR$2*0.001-$A4*0.001))/(('Input&Overview'!$D$3-0.5*AR$2*0.001)*PI()*($A4*0.001)^3))*0.000001 -> 2238.697661 | AS4: =((8*'Input&Overview'!$B$13*(AS$2*0.001-$A4*0.001))/(('Input&Overview'!$D$3-0.5*AS$2*0.001)*PI()*($A4*0.001)^3))*0.000001 -> 2255.465245 | AT4: =((8*'Input&Overview'!$B$13*(AT$2*0.001-$A4*0.001))/(('Input&Overview'!$D$3-0.5*AT$2*0.001)*PI()*($A4*0.001)^3))*0.000001 -> 2272.26248 | AU4: =((8*'Input&Overview'!$B$13*(AU$2*0.001-$A4*0.001))/(('Input&Overview'!$D$3-0.5*AU$2*0.001)*PI()*($A4*0.001)^3))*0.000001 -> 2289.089445 | AV4: =((8*'Input&Overview'!$B$13*(AV$2*0.001-$A4*0.001))/(('Input&Overview'!$D$3-0.5*AV$2*0.001)*PI()*($A4*0.001)^3))*0.000001 -> 2305.946218 | AW4: =((8*'Input&Overview'!$B$13*(AW$2*0.001-$A4*0.001))/(('Input&Overview'!$D$3-0.5*AW$2*0.001)*PI()*($A4*0.001)^3))*0.000001 -> 2322.832879 | AX4: =((8*'Input&Overview'!$B$13*(AX$2*0.001-$A4*0.001))/(('Input&Overview'!$D$3-0.5*AX$2*0.001)*PI()*($A4*0.001)^3))*0.000001 -> 2339.749508 | AY4: =((8*'Input&Overview'!$B$13*(AY$2*0.001-$A4*0.001))/(('Input&Overview'!$D$3-0.5*AY$2*0.001)*PI()*($A4*0.001)^3))*0.000001 -> 2356.696184 | AZ4: =((8*'Input&Overview'!$B$13*(AZ$2*0.001-$A4*0.001))/(('Input&Overview'!$D$3-0.5*AZ$2*0.001)*PI()*($A4*0.001)^3))*0.000001 -> 2373.672987 | BA4: =((8*'Input&Overview'!$B$13*(BA$2*0.001-$A4*0.001))/(('Input&Overview'!$D$3-0.5*BA$2*0.001)*PI()*($A4*0.001)^3))*0.000001 -> 2390.679998 | BB4: =((8*'Input&Overview'!$B$13*(BB$2*0.001-$A4*0.001))/(('Input&Overview'!$D$3-0.5*BB$2*0.001)*PI()*($A4*0.001)^3))*0.000001 -> 2407.717298 | BC4: =((8*'Input&Overview'!$B$13*(BC$2*0.001-$A4*0.001))/(('Input&Overview'!$D$3-0.5*BC$2*0.001)*PI()*($A4*0.001)^3))*0.000001 -> 2424.784967 | BD4: =((8*'Input&Overview'!$B$13*(BD$2*0.001-$A4*0.001))/(('Input&Overview'!$D$3-0.5*BD$2*0.001)*PI()*($A4*0.001)^3))*0.000001 -> 2441.883087 | BE4: =((8*'Input&Overview'!$B$13*(BE$2*0.001-$A4*0.001))/(('Input&Overview'!$D$3-0.5*BE$2*0.001)*PI()*($A4*0.001)^3))*0.000001 -> 2459.01174 | BF4: =((8*'Input&Overview'!$B$13*(BF$2*0.001-$A4*0.001))/(('Input&Overview'!$D$3-0.5*BF$2*0.001)*PI()*($A4*0.001)^3))*0.000001 -> 2476.171006 | BG4: =((8*'Input&Overview'!$B$13*(BG$2*0.001-$A4*0.001))/(('Input&Overview'!$D$3-0.5*BG$2*0.001)*PI()*($A4*0.001)^3))*0.000001 -> 2493.360969 | BH4: =((8*'Input&Overview'!$B$13*(BH$2*0.001-$A4*0.001))/(('Input&Overview'!$D$3-0.5*BH$2*0.001)*PI()*($A4*0.001)^3))*0.000001 -> 2510.581711 | BI4: =((8*'Input&Overview'!$B$13*(BI$2*0.001-$A4*0.001))/(('Input&Overview'!$D$3-0.5*BI$2*0.001)*PI()*($A4*0.001)^3))*0.000001 -> 2527.833314 | BJ4: =((8*'Input&Overview'!$B$13*(BJ$2*0.001-$A4*0.001))/(('Input&Overview'!$D$3-0.5*BJ$2*0.001)*PI()*($A4*0.001)^3))*0.000001 -> 2545.115862 | BK4: =((8*'Input&Overview'!$B$13*(BK$2*0.001-$A4*0.001))/(('Input&Overview'!$D$3-0.5*BK$2*0.001)*PI()*($A4*0.001)^3))*0.000001 -> 2562.429438 | BL4: =((8*'Input&Overview'!$B$13*(BL$2*0.001-$A4*0.001))/(('Input&Overview'!$D$3-0.5*BL$2*0.001)*PI()*($A4*0.001)^3))*0.000001 -> 2579.774125 | BM4: =((8*'Input&Overview'!$B$13*(BM$2*0.001-$A4*0.001))/(('Input&Overview'!$D$3-0.5*BM$2*0.001)*PI()*($A4*0.001)^3))*0.000001 -> 2597.150008 | BN4: =((8*'Input&Overview'!$B$13*(BN$2*0.001-$A4*0.001))/(('Input&Overview'!$D$3-0.5*BN$2*0.001)*PI()*($A4*0.001)^3))*0.000001 -> 2614.557171 | BO4: =((8*'Input&Overview'!$B$13*(BO$2*0.001-$A4*0.001))/(('Input&Overview'!$D$3-0.5*BO$2*0.001)*PI()*($A4*0.001)^3))*0.000001 -> 2631.995697 | BP4: =((8*'Input&Overview'!$B$13*(BP$2*0.001-$A4*0.001))/(('Input&Overview'!$D$3-0.5*BP$2*0.001)*PI()*($A4*0.001)^3))*0.000001 -> 2649.465673 | BQ4: =((8*'Input&Overview'!$B$13*(BQ$2*0.001-$A4*0.001))/(('Input&Overview'!$D$3-0.5*BQ$2*0.001)*PI()*($A4*0.001)^3))*0.000001 -> 2666.967184 | BR4: =((8*'Input&Overview'!$B$13*(BR$2*0.001-$A4*0.001))/(('Input&Overview'!$D$3-0.5*BR$2*0.001)*PI()*($A4*0.001)^3))*0.000001 -> 2684.500313 | BS4: =((8*'Input&Overview'!$B$13*(BS$2*0.001-$A4*0.001))/(('Input&Overview'!$D$3-0.5*BS$2*0.001)*PI()*($A4*0.001)^3))*0.000001 -> 2702.065149 | BT4: =((8*'Input&Overview'!$B$13*(BT$2*0.001-$A4*0.001))/(('Input&Overview'!$D$3-0.5*BT$2*0.001)*PI()*($A4*0.001)^3))*0.000001 -> 2719.661776 | BU4: =((8*'Input&Overview'!$B$13*(BU$2*0.001-$A4*0.001))/(('Input&Overview'!$D$3-0.5*BU$2*0.001)*PI()*($A4*0.001)^3))*0.000001 -> 2737.290281 | BV4: =((8*'Input&Overview'!$B$13*(BV$2*0.001-$A4*0.001))/(('Input&Overview'!$D$3-0.5*BV$2*0.001)*PI()*($A4*0.001)^3))*0.000001 -> 2754.95075 | BW4: =((8*'Input&Overview'!$B$13*(BW$2*0.001-$A4*0.001))/(('Input&Overview'!$D$3-0.5*BW$2*0.001)*PI()*($A4*0.001)^3))*0.000001 -> 2772.643271 | BX4: =((8*'Input&Overview'!$B$13*(BX$2*0.001-$A4*0.001))/(('Input&Overview'!$D$3-0.5*BX$2*0.001)*PI()*($A4*0.001)^3))*0.000001 -> 2790.367931 | BY4: =((8*'Input&Overview'!$B$13*(BY$2*0.001-$A4*0.001))/(('Input&Overview'!$D$3-0.5*BY$2*0.001)*PI()*($A4*0.001)^3))*0.000001 -> 2808.124818 | BZ4: =((8*'Input&Overview'!$B$13*(BZ$2*0.001-$A4*0.001))/(('Input&Overview'!$D$3-0.5*BZ$2*0.001)*PI()*($A4*0.001)^3))*0.000001 -> 2825.91402 | CA4: =((8*'Input&Overview'!$B$13*(CA$2*0.001-$A4*0.001))/(('Input&Overview'!$D$3-0.5*CA$2*0.001)*PI()*($A4*0.001)^3))*0.000001 -> 2843.735624 | CB4: =((8*'Input&Overview'!$B$13*(CB$2*0.001-$A4*0.001))/(('Input&Overview'!$D$3-0.5*CB$2*0.001)*PI()*($A4*0.001)^3))*0.000001 -> 2861.58972 | CC4: =((8*'Input&Overview'!$B$13*(CC$2*0.001-$A4*0.001))/(('Input&Overview'!$D$3-0.5*CC$2*0.001)*PI()*($A4*0.001)^3))*0.000001 -> 2879.476396 | CD4: =((8*'Input&Overview'!$B$13*(CD$2*0.001-$A4*0.001))/(('Input&Overview'!$D$3-0.5*CD$2*0.001)*PI()*($A4*0.001)^3))*0.000001 -> 2897.395743 | CE4: =((8*'Input&Overview'!$B$13*(CE$2*0.001-$A4*0.001))/(('Input&Overview'!$D$3-0.5*CE$2*0.001)*PI()*($A4*0.001)^3))*0.000001 -> 2915.347848 | CF4: =((8*'Input&Overview'!$B$13*(CF$2*0.001-$A4*0.001))/(('Input&Overview'!$D$3-0.5*CF$2*0.001)*PI()*($A4*0.001)^3))*0.000001 -> 2933.332803 | CG4: =((8*'Input&Overview'!$B$13*(CG$2*0.001-$A4*0.001))/(('Input&Overview'!$D$3-0.5*CG$2*0.001)*PI()*($A4*0.001)^3))*0.000001 -> 2951.350697 | CH4: =((8*'Input&Overview'!$B$13*(CH$2*0.001-$A4*0.001))/(('Input&Overview'!$D$3-0.5*CH$2*0.001)*PI()*($A4*0.001)^3))*0.000001 -> 2969.401621 | CI4: =((8*'Input&Overview'!$B$13*(CI$2*0.001-$A4*0.001))/(('Input&Overview'!$D$3-0.5*CI$2*0.001)*PI()*($A4*0.001)^3))*0.000001 -> 2987.485666
A5: ='c'!$A5 -> 3.2 | B5: =((8*'Input&Overview'!$B$13*(B$2*0.001-$A5*0.001))/(('Input&Overview'!$D$3-0.5*B$2*0.001)*PI()*($A5*0.001)^3))*0.000001 -> 1412.005864 | C5: =((8*'Input&Overview'!$B$13*(C$2*0.001-$A5*0.001))/(('Input&Overview'!$D$3-0.5*C$2*0.001)*PI()*($A5*0.001)^3))*0.000001 -> 1426.173811 | D5: =((8*'Input&Overview'!$B$13*(D$2*0.001-$A5*0.001))/(('Input&Overview'!$D$3-0.5*D$2*0.001)*PI()*($A5*0.001)^3))*0.000001 -> 1440.365915 | E5: =((8*'Input&Overview'!$B$13*(E$2*0.001-$A5*0.001))/(('Input&Overview'!$D$3-0.5*E$2*0.001)*PI()*($A5*0.001)^3))*0.000001 -> 1454.582238 | F5: =((8*'Input&Overview'!$B$13*(F$2*0.001-$A5*0.001))/(('Input&Overview'!$D$3-0.5*F$2*0.001)*PI()*($A5*0.001)^3))*0.000001 -> 1468.822841 | G5: =((8*'Input&Overview'!$B$13*(G$2*0.001-$A5*0.001))/(('Input&Overview'!$D$3-0.5*G$2*0.001)*PI()*($A5*0.001)^3))*0.000001 -> 1483.087787 | H5: =((8*'Input&Overview'!$B$13*(H$2*0.001-$A5*0.001))/(('Input&Overview'!$D$3-0.5*H$2*0.001)*PI()*($A5*0.001)^3))*0.000001 -> 1497.377139 | I5: =((8*'Input&Overview'!$B$13*(I$2*0.001-$A5*0.001))/(('Input&Overview'!$D$3-0.5*I$2*0.001)*PI()*($A5*0.001)^3))*0.000001 -> 1511.690958 | J5: =((8*'Input&Overview'!$B$13*(J$2*0.001-$A5*0.001))/(('Input&Overview'!$D$3-0.5*J$2*0.001)*PI()*($A5*0.001)^3))*0.000001 -> 1526.029309 | K5: =((8*'Input&Overview'!$B$13*(K$2*0.001-$A5*0.001))/(('Input&Overview'!$D$3-0.5*K$2*0.001)*PI()*($A5*0.001)^3))*0.000001 -> 1540.392253 | L5: =((8*'Input&Overview'!$B$13*(L$2*0.001-$A5*0.001))/(('Input&Overview'!$D$3-0.5*L$2*0.001)*PI()*($A5*0.001)^3))*0.000001 -> 1554.779856 | M5: =((8*'Input&Overview'!$B$13*(M$2*0.001-$A5*0.001))/(('Input&Overview'!$D$3-0.5*M$2*0.001)*PI()*($A5*0.001)^3))*0.000001 -> 1569.192179 | N5: =((8*'Input&Overview'!$B$13*(N$2*0.001-$A5*0.001))/(('Input&Overview'!$D$3-0.5*N$2*0.001)*PI()*($A5*0.001)^3))*0.000001 -> 1583.629286 | O5: =((8*'Input&Overview'!$B$13*(O$2*0.001-$A5*0.001))/(('Input&Overview'!$D$3-0.5*O$2*0.001)*PI()*($A5*0.001)^3))*0.000001 -> 1598.091243 | P5: =((8*'Input&Overview'!$B$13*(P$2*0.001-$A5*0.001))/(('Input&Overview'!$D$3-0.5*P$2*0.001)*PI()*($A5*0.001)^3))*0.000001 -> 1612.578112 | Q5: =((8*'Input&Overview'!$B$13*(Q$2*0.001-$A5*0.001))/(('Input&Overview'!$D$3-0.5*Q$2*0.001)*PI()*($A5*0.001)^3))*0.000001 -> 1627.089959 | R5: =((8*'Input&Overview'!$B$13*(R$2*0.001-$A5*0.001))/(('Input&Overview'!$D$3-0.5*R$2*0.001)*PI()*($A5*0.001)^3))*0.000001 -> 1641.626848 | S5: =((8*'Input&Overview'!$B$13*(S$2*0.001-$A5*0.001))/(('Input&Overview'!$D$3-0.5*S$2*0.001)*PI()*($A5*0.001)^3))*0.000001 -> 1656.188843 | T5: =((8*'Input&Overview'!$B$13*(T$2*0.001-$A5*0.001))/(('Input&Overview'!$D$3-0.5*T$2*0.001)*PI()*($A5*0.001)^3))*0.000001 -> 1670.776011 | U5: =((8*'Input&Overview'!$B$13*(U$2*0.001-$A5*0.001))/(('Input&Overview'!$D$3-0.5*U$2*0.001)*PI()*($A5*0.001)^3))*0.000001 -> 1685.388416 | V5: =((8*'Input&Overview'!$B$13*(V$2*0.001-$A5*0.001))/(('Input&Overview'!$D$3-0.5*V$2*0.001)*PI()*($A5*0.001)^3))*0.000001 -> 1700.026124 | W5: =((8*'Input&Overview'!$B$13*(W$2*0.001-$A5*0.001))/(('Input&Overview'!$D$3-0.5*W$2*0.001)*PI()*($A5*0.001)^3))*0.000001 -> 1714.6892 | X5: =((8*'Input&Overview'!$B$13*(X$2*0.001-$A5*0.001))/(('Input&Overview'!$D$3-0.5*X$2*0.001)*PI()*($A5*0.001)^3))*0.000001 -> 1729.377711 | Y5: =((8*'Input&Overview'!$B$13*(Y$2*0.001-$A5*0.001))/(('Input&Overview'!$D$3-0.5*Y$2*0.001)*PI()*($A5*0.001)^3))*0.000001 -> 1744.091723 | Z5: =((8*'Input&Overview'!$B$13*(Z$2*0.001-$A5*0.001))/(('Input&Overview'!$D$3-0.5*Z$2*0.001)*PI()*($A5*0.001)^3))*0.000001 -> 1758.831303 | AA5: =((8*'Input&Overview'!$B$13*(AA$2*0.001-$A5*0.001))/(('Input&Overview'!$D$3-0.5*AA$2*0.001)*PI()*($A5*0.001)^3))*0.000001 -> 1773.596516 | AB5: =((8*'Input&Overview'!$B$13*(AB$2*0.001-$A5*0.001))/(('Input&Overview'!$D$3-0.5*AB$2*0.001)*PI()*($A5*0.001)^3))*0.000001 -> 1788.387431 | AC5: =((8*'Input&Overview'!$B$13*(AC$2*0.001-$A5*0.001))/(('Input&Overview'!$D$3-0.5*AC$2*0.001)*PI()*($A5*0.001)^3))*0.000001 -> 1803.204113 | AD5: =((8*'Input&Overview'!$B$13*(AD$2*0.001-$A5*0.001))/(('Input&Overview'!$D$3-0.5*AD$2*0.001)*PI()*($A5*0.001)^3))*0.000001 -> 1818.046631 | AE5: =((8*'Input&Overview'!$B$13*(AE$2*0.001-$A5*0.001))/(('Input&Overview'!$D$3-0.5*AE$2*0.001)*PI()*($A5*0.001)^3))*0.000001 -> 1832.915053 | AF5: =((8*'Input&Overview'!$B$13*(AF$2*0.001-$A5*0.001))/(('Input&Overview'!$D$3-0.5*AF$2*0.001)*PI()*($A5*0.001)^3))*0.000001 -> 1847.809445 | AG5: =((8*'Input&Overview'!$B$13*(AG$2*0.001-$A5*0.001))/(('Input&Overview'!$D$3-0.5*AG$2*0.001)*PI()*($A5*0.001)^3))*0.000001 -> 1862.729876 | AH5: =((8*'Input&Overview'!$B$13*(AH$2*0.001-$A5*0.001))/(('Input&Overview'!$D$3-0.5*AH$2*0.001)*PI()*($A5*0.001)^3))*0.000001 -> 1877.676415 | AI5: =((8*'Input&Overview'!$B$13*(AI$2*0.001-$A5*0.001))/(('Input&Overview'!$D$3-0.5*AI$2*0.001)*PI()*($A5*0.001)^3))*0.000001 -> 1892.64913 | AJ5: =((8*'Input&Overview'!$B$13*(AJ$2*0.001-$A5*0.001))/(('Input&Overview'!$D$3-0.5*AJ$2*0.001)*PI()*($A5*0.001)^3))*0.000001 -> 1907.64809 | AK5: =((8*'Input&Overview'!$B$13*(AK$2*0.001-$A5*0.001))/(('Input&Overview'!$D$3-0.5*AK$2*0.001)*PI()*($A5*0.001)^3))*0.000001 -> 1922.673364 | AL5: =((8*'Input&Overview'!$B$13*(AL$2*0.001-$A5*0.001))/(('Input&Overview'!$D$3-0.5*AL$2*0.001)*PI()*($A5*0.001)^3))*0.000001 -> 1937.725021 | AM5: =((8*'Input&Overview'!$B$13*(AM$2*0.001-$A5*0.001))/(('Input&Overview'!$D$3-0.5*AM$2*0.001)*PI()*($A5*0.001)^3))*0.000001 -> 1952.803131 | AN5: =((8*'Input&Overview'!$B$13*(AN$2*0.001-$A5*0.001))/(('Input&Overview'!$D$3-0.5*AN$2*0.001)*PI()*($A5*0.001)^3))*0.000001 -> 1967.907764 | AO5: =((8*'Input&Overview'!$B$13*(AO$2*0.001-$A5*0.001))/(('Input&Overview'!$D$3-0.5*AO$2*0.001)*PI()*($A5*0.001)^3))*0.000001 -> 1983.038989 | AP5: =((8*'Input&Overview'!$B$13*(AP$2*0.001-$A5*0.001))/(('Input&Overview'!$D$3-0.5*AP$2*0.001)*PI()*($A5*0.001)^3))*0.000001 -> 1998.196877 | AQ5: =((8*'Input&Overview'!$B$13*(AQ$2*0.001-$A5*0.001))/(('Input&Overview'!$D$3-0.5*AQ$2*0.001)*PI()*($A5*0.001)^3))*0.000001 -> 2013.381499 | AR5: =((8*'Input&Overview'!$B$13*(AR$2*0.001-$A5*0.001))/(('Input&Overview'!$D$3-0.5*AR$2*0.001)*PI()*($A5*0.001)^3))*0.000001 -> 2028.592925 | AS5: =((8*'Input&Overview'!$B$13*(AS$2*0.001-$A5*0.001))/(('Input&Overview'!$D$3-0.5*AS$2*0.001)*PI()*($A5*0.001)^3))*0.000001 -> 2043.831226 | AT5: =((8*'Input&Overview'!$B$13*(AT$2*0.001-$A5*0.001))/(('Input&Overview'!$D$3-0.5*AT$2*0.001)*PI()*($A5*0.001)^3))*0.000001 -> 2059.096474 | AU5: =((8*'Input&Overview'!$B$13*(AU$2*0.001-$A5*0.001))/(('Input&Overview'!$D$3-0.5*AU$2*0.001)*PI()*($A5*0.001)^3))*0.000001 -> 2074.38874 | AV5: =((8*'Input&Overview'!$B$13*(AV$2*0.001-$A5*0.001))/(('Input&Overview'!$D$3-0.5*AV$2*0.001)*PI()*($A5*0.001)^3))*0.000001 -> 2089.708096 | AW5: =((8*'Input&Overview'!$B$13*(AW$2*0.001-$A5*0.001))/(('Input&Overview'!$D$3-0.5*AW$2*0.001)*PI()*($A5*0.001)^3))*0.000001 -> 2105.054614 | AX5: =((8*'Input&Overview'!$B$13*(AX$2*0.001-$A5*0.001))/(('Input&Overview'!$D$3-0.5*AX$2*0.001)*PI()*($A5*0.001)^3))*0.000001 -> 2120.428366 | AY5: =((8*'Input&Overview'!$B$13*(AY$2*0.001-$A5*0.001))/(('Input&Overview'!$D$3-0.5*AY$2*0.001)*PI()*($A5*0.001)^3))*0.000001 -> 2135.829425 | AZ5: =((8*'Input&Overview'!$B$13*(AZ$2*0.001-$A5*0.001))/(('Input&Overview'!$D$3-0.5*AZ$2*0.001)*PI()*($A5*0.001)^3))*0.000001 -> 2151.257864 | BA5: =((8*'Input&Overview'!$B$13*(BA$2*0.001-$A5*0.001))/(('Input&Overview'!$D$3-0.5*BA$2*0.001)*PI()*($A5*0.001)^3))*0.000001 -> 2166.713755 | BB5: =((8*'Input&Overview'!$B$13*(BB$2*0.001-$A5*0.001))/(('Input&Overview'!$D$3-0.5*BB$2*0.001)*PI()*($A5*0.001)^3))*0.000001 -> 2182.197173 | BC5: =((8*'Input&Overview'!$B$13*(BC$2*0.001-$A5*0.001))/(('Input&Overview'!$D$3-0.5*BC$2*0.001)*PI()*($A5*0.001)^3))*0.000001 -> 2197.70819 | BD5: =((8*'Input&Overview'!$B$13*(BD$2*0.001-$A5*0.001))/(('Input&Overview'!$D$3-0.5*BD$2*0.001)*PI()*($A5*0.001)^3))*0.000001 -> 2213.246881 | BE5: =((8*'Input&Overview'!$B$13*(BE$2*0.001-$A5*0.001))/(('Input&Overview'!$D$3-0.5*BE$2*0.001)*PI()*($A5*0.001)^3))*0.000001 -> 2228.813319 | BF5: =((8*'Input&Overview'!$B$13*(BF$2*0.001-$A5*0.001))/(('Input&Overview'!$D$3-0.5*BF$2*0.001)*PI()*($A5*0.001)^3))*0.000001 -> 2244.40758 | BG5: =((8*'Input&Overview'!$B$13*(BG$2*0.001-$A5*0.001))/(('Input&Overview'!$D$3-0.5*BG$2*0.001)*PI()*($A5*0.001)^3))*0.000001 -> 2260.029737 | BH5: =((8*'Input&Overview'!$B$13*(BH$2*0.001-$A5*0.001))/(('Input&Overview'!$D$3-0.5*BH$2*0.001)*PI()*($A5*0.001)^3))*0.000001 -> 2275.679866 | BI5: =((8*'Input&Overview'!$B$13*(BI$2*0.001-$A5*0.001))/(('Input&Overview'!$D$3-0.5*BI$2*0.001)*PI()*($A5*0.001)^3))*0.000001 -> 2291.358041 | BJ5: =((8*'Input&Overview'!$B$13*(BJ$2*0.001-$A5*0.001))/(('Input&Overview'!$D$3-0.5*BJ$2*0.001)*PI()*($A5*0.001)^3))*0.000001 -> 2307.064339 | BK5: =((8*'Input&Overview'!$B$13*(BK$2*0.001-$A5*0.001))/(('Input&Overview'!$D$3-0.5*BK$2*0.001)*PI()*($A5*0.001)^3))*0.000001 -> 2322.798835 | BL5: =((8*'Input&Overview'!$B$13*(BL$2*0.001-$A5*0.001))/(('Input&Overview'!$D$3-0.5*BL$2*0.001)*PI()*($A5*0.001)^3))*0.000001 -> 2338.561605 | BM5: =((8*'Input&Overview'!$B$13*(BM$2*0.001-$A5*0.001))/(('Input&Overview'!$D$3-0.5*BM$2*0.001)*PI()*($A5*0.001)^3))*0.000001 -> 2354.352725 | BN5: =((8*'Input&Overview'!$B$13*(BN$2*0.001-$A5*0.001))/(('Input&Overview'!$D$3-0.5*BN$2*0.001)*PI()*($A5*0.001)^3))*0.000001 -> 2370.172273 | BO5: =((8*'Input&Overview'!$B$13*(BO$2*0.001-$A5*0.001))/(('Input&Overview'!$D$3-0.5*BO$2*0.001)*PI()*($A5*0.001)^3))*0.000001 -> 2386.020323 | BP5: =((8*'Input&Overview'!$B$13*(BP$2*0.001-$A5*0.001))/(('Input&Overview'!$D$3-0.5*BP$2*0.001)*PI()*($A5*0.001)^3))*0.000001 -> 2401.896955 | BQ5: =((8*'Input&Overview'!$B$13*(BQ$2*0.001-$A5*0.001))/(('Input&Overview'!$D$3-0.5*BQ$2*0.001)*PI()*($A5*0.001)^3))*0.000001 -> 2417.802245 | BR5: =((8*'Input&Overview'!$B$13*(BR$2*0.001-$A5*0.001))/(('Input&Overview'!$D$3-0.5*BR$2*0.001)*PI()*($A5*0.001)^3))*0.000001 -> 2433.73627 | BS5: =((8*'Input&Overview'!$B$13*(BS$2*0.001-$A5*0.001))/(('Input&Overview'!$D$3-0.5*BS$2*0.001)*PI()*($A5*0.001)^3))*0.000001 -> 2449.69911 | BT5: =((8*'Input&Overview'!$B$13*(BT$2*0.001-$A5*0.001))/(('Input&Overview'!$D$3-0.5*BT$2*0.001)*PI()*($A5*0.001)^3))*0.000001 -> 2465.690841 | BU5: =((8*'Input&Overview'!$B$13*(BU$2*0.001-$A5*0.001))/(('Input&Overview'!$D$3-0.5*BU$2*0.001)*PI()*($A5*0.001)^3))*0.000001 -> 2481.711543 | BV5: =((8*'Input&Overview'!$B$13*(BV$2*0.001-$A5*0.001))/(('Input&Overview'!$D$3-0.5*BV$2*0.001)*PI()*($A5*0.001)^3))*0.000001 -> 2497.761295 | BW5: =((8*'Input&Overview'!$B$13*(BW$2*0.001-$A5*0.001))/(('Input&Overview'!$D$3-0.5*BW$2*0.001)*PI()*($A5*0.001)^3))*0.000001 -> 2513.840174 | BX5: =((8*'Input&Overview'!$B$13*(BX$2*0.001-$A5*0.001))/(('Input&Overview'!$D$3-0.5*BX$2*0.001)*PI()*($A5*0.001)^3))*0.000001 -> 2529.948262 | BY5: =((8*'Input&Overview'!$B$13*(BY$2*0.001-$A5*0.001))/(('Input&Overview'!$D$3-0.5*BY$2*0.001)*PI()*($A5*0.001)^3))*0.000001 -> 2546.085637 | BZ5: =((8*'Input&Overview'!$B$13*(BZ$2*0.001-$A5*0.001))/(('Input&Overview'!$D$3-0.5*BZ$2*0.001)*PI()*($A5*0.001)^3))*0.000001 -> 2562.252379 | CA5: =((8*'Input&Overview'!$B$13*(CA$2*0.001-$A5*0.001))/(('Input&Overview'!$D$3-0.5*CA$2*0.001)*PI()*($A5*0.001)^3))*0.000001 -> 2578.448569 | CB5: =((8*'Input&Overview'!$B$13*(CB$2*0.001-$A5*0.001))/(('Input&Overview'!$D$3-0.5*CB$2*0.001)*PI()*($A5*0.001)^3))*0.000001 -> 2594.674287 | CC5: =((8*'Input&Overview'!$B$13*(CC$2*0.001-$A5*0.001))/(('Input&Overview'!$D$3-0.5*CC$2*0.001)*PI()*($A5*0.001)^3))*0.000001 -> 2610.929614 | CD5: =((8*'Input&Overview'!$B$13*(CD$2*0.001-$A5*0.001))/(('Input&Overview'!$D$3-0.5*CD$2*0.001)*PI()*($A5*0.001)^3))*0.000001 -> 2627.214631 | CE5: =((8*'Input&Overview'!$B$13*(CE$2*0.001-$A5*0.001))/(('Input&Overview'!$D$3-0.5*CE$2*0.001)*PI()*($A5*0.001)^3))*0.000001 -> 2643.52942 | CF5: =((8*'Input&Overview'!$B$13*(CF$2*0.001-$A5*0.001))/(('Input&Overview'!$D$3-0.5*CF$2*0.001)*PI()*($A5*0.001)^3))*0.000001 -> 2659.874061 | CG5: =((8*'Input&Overview'!$B$13*(CG$2*0.001-$A5*0.001))/(('Input&Overview'!$D$3-0.5*CG$2*0.001)*PI()*($A5*0.001)^3))*0.000001 -> 2676.248639 | CH5: =((8*'Input&Overview'!$B$13*(CH$2*0.001-$A5*0.001))/(('Input&Overview'!$D$3-0.5*CH$2*0.001)*PI()*($A5*0.001)^3))*0.000001 -> 2692.653233 | CI5: =((8*'Input&Overview'!$B$13*(CI$2*0.001-$A5*0.001))/(('Input&Overview'!$D$3-0.5*CI$2*0.001)*PI()*($A5*0.001)^3))*0.000001 -> 2709.087928
A6: ='c'!$A6 -> 3.3 | B6: =((8*'Input&Overview'!$B$13*(B$2*0.001-$A6*0.001))/(('Input&Overview'!$D$3-0.5*B$2*0.001)*PI()*($A6*0.001)^3))*0.000001 -> 1281.586299 | C6: =((8*'Input&Overview'!$B$13*(C$2*0.001-$A6*0.001))/(('Input&Overview'!$D$3-0.5*C$2*0.001)*PI()*($A6*0.001)^3))*0.000001 -> 1294.499857 | D6: =((8*'Input&Overview'!$B$13*(D$2*0.001-$A6*0.001))/(('Input&Overview'!$D$3-0.5*D$2*0.001)*PI()*($A6*0.001)^3))*0.000001 -> 1307.435432 | E6: =((8*'Input&Overview'!$B$13*(E$2*0.001-$A6*0.001))/(('Input&Overview'!$D$3-0.5*E$2*0.001)*PI()*($A6*0.001)^3))*0.000001 -> 1320.393081 | F6: =((8*'Input&Overview'!$B$13*(F$2*0.001-$A6*0.001))/(('Input&Overview'!$D$3-0.5*F$2*0.001)*PI()*($A6*0.001)^3))*0.000001 -> 1333.372862 | G6: =((8*'Input&Overview'!$B$13*(G$2*0.001-$A6*0.001))/(('Input&Overview'!$D$3-0.5*G$2*0.001)*PI()*($A6*0.001)^3))*0.000001 -> 1346.37483 | H6: =((8*'Input&Overview'!$B$13*(H$2*0.001-$A6*0.001))/(('Input&Overview'!$D$3-0.5*H$2*0.001)*PI()*($A6*0.001)^3))*0.000001 -> 1359.399043 | I6: =((8*'Input&Overview'!$B$13*(I$2*0.001-$A6*0.001))/(('Input&Overview'!$D$3-0.5*I$2*0.001)*PI()*($A6*0.001)^3))*0.000001 -> 1372.445558 | J6: =((8*'Input&Overview'!$B$13*(J$2*0.001-$A6*0.001))/(('Input&Overview'!$D$3-0.5*J$2*0.001)*PI()*($A6*0.001)^3))*0.000001 -> 1385.514431 | K6: =((8*'Input&Overview'!$B$13*(K$2*0.001-$A6*0.001))/(('Input&Overview'!$D$3-0.5*K$2*0.001)*PI()*($A6*0.001)^3))*0.000001 -> 1398.605722 | L6: =((8*'Input&Overview'!$B$13*(L$2*0.001-$A6*0.001))/(('Input&Overview'!$D$3-0.5*L$2*0.001)*PI()*($A6*0.001)^3))*0.000001 -> 1411.719486 | M6: =((8*'Input&Overview'!$B$13*(M$2*0.001-$A6*0.001))/(('Input&Overview'!$D$3-0.5*M$2*0.001)*PI()*($A6*0.001)^3))*0.000001 -> 1424.855783 | N6: =((8*'Input&Overview'!$B$13*(N$2*0.001-$A6*0.001))/(('Input&Overview'!$D$3-0.5*N$2*0.001)*PI()*($A6*0.001)^3))*0.000001 -> 1438.01467 | O6: =((8*'Input&Overview'!$B$13*(O$2*0.001-$A6*0.001))/(('Input&Overview'!$D$3-0.5*O$2*0.001)*PI()*($A6*0.001)^3))*0.000001 -> 1451.196206 | P6: =((8*'Input&Overview'!$B$13*(P$2*0.001-$A6*0.001))/(('Input&Overview'!$D$3-0.5*P$2*0.001)*PI()*($A6*0.001)^3))*0.000001 -> 1464.400449 | Q6: =((8*'Input&Overview'!$B$13*(Q$2*0.001-$A6*0.001))/(('Input&Overview'!$D$3-0.5*Q$2*0.001)*PI()*($A6*0.001)^3))*0.000001 -> 1477.627458 | R6: =((8*'Input&Overview'!$B$13*(R$2*0.001-$A6*0.001))/(('Input&Overview'!$D$3-0.5*R$2*0.001)*PI()*($A6*0.001)^3))*0.000001 -> 1490.877292 | S6: =((8*'Input&Overview'!$B$13*(S$2*0.001-$A6*0.001))/(('Input&Overview'!$D$3-0.5*S$2*0.001)*PI()*($A6*0.001)^3))*0.000001 -> 1504.15001 | T6: =((8*'Input&Overview'!$B$13*(T$2*0.001-$A6*0.001))/(('Input&Overview'!$D$3-0.5*T$2*0.001)*PI()*($A6*0.001)^3))*0.000001 -> 1517.445671 | U6: =((8*'Input&Overview'!$B$13*(U$2*0.001-$A6*0.001))/(('Input&Overview'!$D$3-0.5*U$2*0.001)*PI()*($A6*0.001)^3))*0.000001 -> 1530.764335 | V6: =((8*'Input&Overview'!$B$13*(V$2*0.001-$A6*0.001))/(('Input&Overview'!$D$3-0.5*V$2*0.001)*PI()*($A6*0.001)^3))*0.000001 -> 1544.106061 | W6: =((8*'Input&Overview'!$B$13*(W$2*0.001-$A6*0.001))/(('Input&Overview'!$D$3-0.5*W$2*0.001)*PI()*($A6*0.001)^3))*0.000001 -> 1557.470911 | X6: =((8*'Input&Overview'!$B$13*(X$2*0.001-$A6*0.001))/(('Input&Overview'!$D$3-0.5*X$2*0.001)*PI()*($A6*0.001)^3))*0.000001 -> 1570.858943 | Y6: =((8*'Input&Overview'!$B$13*(Y$2*0.001-$A6*0.001))/(('Input&Overview'!$D$3-0.5*Y$2*0.001)*PI()*($A6*0.001)^3))*0.000001 -> 1584.270218 | Z6: =((8*'Input&Overview'!$B$13*(Z$2*0.001-$A6*0.001))/(('Input&Overview'!$D$3-0.5*Z$2*0.001)*PI()*($A6*0.001)^3))*0.000001 -> 1597.704797 | AA6: =((8*'Input&Overview'!$B$13*(AA$2*0.001-$A6*0.001))/(('Input&Overview'!$D$3-0.5*AA$2*0.001)*PI()*($A6*0.001)^3))*0.000001 -> 1611.16274 | AB6: =((8*'Input&Overview'!$B$13*(AB$2*0.001-$A6*0.001))/(('Input&Overview'!$D$3-0.5*AB$2*0.001)*PI()*($A6*0.001)^3))*0.000001 -> 1624.644109 | AC6: =((8*'Input&Overview'!$B$13*(AC$2*0.001-$A6*0.001))/(('Input&Overview'!$D$3-0.5*AC$2*0.001)*PI()*($A6*0.001)^3))*0.000001 -> 1638.148964 | AD6: =((8*'Input&Overview'!$B$13*(AD$2*0.001-$A6*0.001))/(('Input&Overview'!$D$3-0.5*AD$2*0.001)*PI()*($A6*0.001)^3))*0.000001 -> 1651.677368 | AE6: =((8*'Input&Overview'!$B$13*(AE$2*0.001-$A6*0.001))/(('Input&Overview'!$D$3-0.5*AE$2*0.001)*PI()*($A6*0.001)^3))*0.000001 -> 1665.229381 | AF6: =((8*'Input&Overview'!$B$13*(AF$2*0.001-$A6*0.001))/(('Input&Overview'!$D$3-0.5*AF$2*0.001)*PI()*($A6*0.001)^3))*0.000001 -> 1678.805066 | AG6: =((8*'Input&Overview'!$B$13*(AG$2*0.001-$A6*0.001))/(('Input&Overview'!$D$3-0.5*AG$2*0.001)*PI()*($A6*0.001)^3))*0.000001 -> 1692.404485 | AH6: =((8*'Input&Overview'!$B$13*(AH$2*0.001-$A6*0.001))/(('Input&Overview'!$D$3-0.5*AH$2*0.001)*PI()*($A6*0.001)^3))*0.000001 -> 1706.0277 | AI6: =((8*'Input&Overview'!$B$13*(AI$2*0.001-$A6*0.001))/(('Input&Overview'!$D$3-0.5*AI$2*0.001)*PI()*($A6*0.001)^3))*0.000001 -> 1719.674773 | AJ6: =((8*'Input&Overview'!$B$13*(AJ$2*0.001-$A6*0.001))/(('Input&Overview'!$D$3-0.5*AJ$2*0.001)*PI()*($A6*0.001)^3))*0.000001 -> 1733.345767 | AK6: =((8*'Input&Overview'!$B$13*(AK$2*0.001-$A6*0.001))/(('Input&Overview'!$D$3-0.5*AK$2*0.001)*PI()*($A6*0.001)^3))*0.000001 -> 1747.040746 | AL6: =((8*'Input&Overview'!$B$13*(AL$2*0.001-$A6*0.001))/(('Input&Overview'!$D$3-0.5*AL$2*0.001)*PI()*($A6*0.001)^3))*0.000001 -> 1760.759772 | AM6: =((8*'Input&Overview'!$B$13*(AM$2*0.001-$A6*0.001))/(('Input&Overview'!$D$3-0.5*AM$2*0.001)*PI()*($A6*0.001)^3))*0.000001 -> 1774.502909 | AN6: =((8*'Input&Overview'!$B$13*(AN$2*0.001-$A6*0.001))/(('Input&Overview'!$D$3-0.5*AN$2*0.001)*PI()*($A6*0.001)^3))*0.000001 -> 1788.27022 | AO6: =((8*'Input&Overview'!$B$13*(AO$2*0.001-$A6*0.001))/(('Input&Overview'!$D$3-0.5*AO$2*0.001)*PI()*($A6*0.001)^3))*0.000001 -> 1802.06177 | AP6: =((8*'Input&Overview'!$B$13*(AP$2*0.001-$A6*0.001))/(('Input&Overview'!$D$3-0.5*AP$2*0.001)*PI()*($A6*0.001)^3))*0.000001 -> 1815.877621 | AQ6: =((8*'Input&Overview'!$B$13*(AQ$2*0.001-$A6*0.001))/(('Input&Overview'!$D$3-0.5*AQ$2*0.001)*PI()*($A6*0.001)^3))*0.000001 -> 1829.71784 | AR6: =((8*'Input&Overview'!$B$13*(AR$2*0.001-$A6*0.001))/(('Input&Overview'!$D$3-0.5*AR$2*0.001)*PI()*($A6*0.001)^3))*0.000001 -> 1843.582489 | AS6: =((8*'Input&Overview'!$B$13*(AS$2*0.001-$A6*0.001))/(('Input&Overview'!$D$3-0.5*AS$2*0.001)*PI()*($A6*0.001)^3))*0.000001 -> 1857.471634 | AT6: =((8*'Input&Overview'!$B$13*(AT$2*0.001-$A6*0.001))/(('Input&Overview'!$D$3-0.5*AT$2*0.001)*PI()*($A6*0.001)^3))*0.000001 -> 1871.385341 | AU6: =((8*'Input&Overview'!$B$13*(AU$2*0.001-$A6*0.001))/(('Input&Overview'!$D$3-0.5*AU$2*0.001)*PI()*($A6*0.001)^3))*0.000001 -> 1885.323673 | AV6: =((8*'Input&Overview'!$B$13*(AV$2*0.001-$A6*0.001))/(('Input&Overview'!$D$3-0.5*AV$2*0.001)*PI()*($A6*0.001)^3))*0.000001 -> 1899.286696 | AW6: =((8*'Input&Overview'!$B$13*(AW$2*0.001-$A6*0.001))/(('Input&Overview'!$D$3-0.5*AW$2*0.001)*PI()*($A6*0.001)^3))*0.000001 -> 1913.274477 | AX6: =((8*'Input&Overview'!$B$13*(AX$2*0.001-$A6*0.001))/(('Input&Overview'!$D$3-0.5*AX$2*0.001)*PI()*($A6*0.001)^3))*0.000001 -> 1927.287081 | AY6: =((8*'Input&Overview'!$B$13*(AY$2*0.001-$A6*0.001))/(('Input&Overview'!$D$3-0.5*AY$2*0.001)*PI()*($A6*0.001)^3))*0.000001 -> 1941.324574 | AZ6: =((8*'Input&Overview'!$B$13*(AZ$2*0.001-$A6*0.001))/(('Input&Overview'!$D$3-0.5*AZ$2*0.001)*PI()*($A6*0.001)^3))*0.000001 -> 1955.387022 | BA6: =((8*'Input&Overview'!$B$13*(BA$2*0.001-$A6*0.001))/(('Input&Overview'!$D$3-0.5*BA$2*0.001)*PI()*($A6*0.001)^3))*0.000001 -> 1969.474493 | BB6: =((8*'Input&Overview'!$B$13*(BB$2*0.001-$A6*0.001))/(('Input&Overview'!$D$3-0.5*BB$2*0.001)*PI()*($A6*0.001)^3))*0.000001 -> 1983.587052 | BC6: =((8*'Input&Overview'!$B$13*(BC$2*0.001-$A6*0.001))/(('Input&Overview'!$D$3-0.5*BC$2*0.001)*PI()*($A6*0.001)^3))*0.000001 -> 1997.724768 | BD6: =((8*'Input&Overview'!$B$13*(BD$2*0.001-$A6*0.001))/(('Input&Overview'!$D$3-0.5*BD$2*0.001)*PI()*($A6*0.001)^3))*0.000001 -> 2011.887707 | BE6: =((8*'Input&Overview'!$B$13*(BE$2*0.001-$A6*0.001))/(('Input&Overview'!$D$3-0.5*BE$2*0.001)*PI()*($A6*0.001)^3))*0.000001 -> 2026.075937 | BF6: =((8*'Input&Overview'!$B$13*(BF$2*0.001-$A6*0.001))/(('Input&Overview'!$D$3-0.5*BF$2*0.001)*PI()*($A6*0.001)^3))*0.000001 -> 2040.289526 | BG6: =((8*'Input&Overview'!$B$13*(BG$2*0.001-$A6*0.001))/(('Input&Overview'!$D$3-0.5*BG$2*0.001)*PI()*($A6*0.001)^3))*0.000001 -> 2054.528542 | BH6: =((8*'Input&Overview'!$B$13*(BH$2*0.001-$A6*0.001))/(('Input&Overview'!$D$3-0.5*BH$2*0.001)*PI()*($A6*0.001)^3))*0.000001 -> 2068.793053 | BI6: =((8*'Input&Overview'!$B$13*(BI$2*0.001-$A6*0.001))/(('Input&Overview'!$D$3-0.5*BI$2*0.001)*PI()*($A6*0.001)^3))*0.000001 -> 2083.083127 | BJ6: =((8*'Input&Overview'!$B$13*(BJ$2*0.001-$A6*0.001))/(('Input&Overview'!$D$3-0.5*BJ$2*0.001)*PI()*($A6*0.001)^3))*0.000001 -> 2097.398834 | BK6: =((8*'Input&Overview'!$B$13*(BK$2*0.001-$A6*0.001))/(('Input&Overview'!$D$3-0.5*BK$2*0.001)*PI()*($A6*0.001)^3))*0.000001 -> 2111.740242 | BL6: =((8*'Input&Overview'!$B$13*(BL$2*0.001-$A6*0.001))/(('Input&Overview'!$D$3-0.5*BL$2*0.001)*PI()*($A6*0.001)^3))*0.000001 -> 2126.107421 | BM6: =((8*'Input&Overview'!$B$13*(BM$2*0.001-$A6*0.001))/(('Input&Overview'!$D$3-0.5*BM$2*0.001)*PI()*($A6*0.001)^3))*0.000001 -> 2140.50044 | BN6: =((8*'Input&Overview'!$B$13*(BN$2*0.001-$A6*0.001))/(('Input&Overview'!$D$3-0.5*BN$2*0.001)*PI()*($A6*0.001)^3))*0.000001 -> 2154.91937 | BO6: =((8*'Input&Overview'!$B$13*(BO$2*0.001-$A6*0.001))/(('Input&Overview'!$D$3-0.5*BO$2*0.001)*PI()*($A6*0.001)^3))*0.000001 -> 2169.364279 | BP6: =((8*'Input&Overview'!$B$13*(BP$2*0.001-$A6*0.001))/(('Input&Overview'!$D$3-0.5*BP$2*0.001)*PI()*($A6*0.001)^3))*0.000001 -> 2183.835238 | BQ6: =((8*'Input&Overview'!$B$13*(BQ$2*0.001-$A6*0.001))/(('Input&Overview'!$D$3-0.5*BQ$2*0.001)*PI()*($A6*0.001)^3))*0.000001 -> 2198.332319 | BR6: =((8*'Input&Overview'!$B$13*(BR$2*0.001-$A6*0.001))/(('Input&Overview'!$D$3-0.5*BR$2*0.001)*PI()*($A6*0.001)^3))*0.000001 -> 2212.855591 | BS6: =((8*'Input&Overview'!$B$13*(BS$2*0.001-$A6*0.001))/(('Input&Overview'!$D$3-0.5*BS$2*0.001)*PI()*($A6*0.001)^3))*0.000001 -> 2227.405126 | BT6: =((8*'Input&Overview'!$B$13*(BT$2*0.001-$A6*0.001))/(('Input&Overview'!$D$3-0.5*BT$2*0.001)*PI()*($A6*0.001)^3))*0.000001 -> 2241.980995 | BU6: =((8*'Input&Overview'!$B$13*(BU$2*0.001-$A6*0.001))/(('Input&Overview'!$D$3-0.5*BU$2*0.001)*PI()*($A6*0.001)^3))*0.000001 -> 2256.583269 | BV6: =((8*'Input&Overview'!$B$13*(BV$2*0.001-$A6*0.001))/(('Input&Overview'!$D$3-0.5*BV$2*0.001)*PI()*($A6*0.001)^3))*0.000001 -> 2271.212021 | BW6: =((8*'Input&Overview'!$B$13*(BW$2*0.001-$A6*0.001))/(('Input&Overview'!$D$3-0.5*BW$2*0.001)*PI()*($A6*0.001)^3))*0.000001 -> 2285.867322 | BX6: =((8*'Input&Overview'!$B$13*(BX$2*0.001-$A6*0.001))/(('Input&Overview'!$D$3-0.5*BX$2*0.001)*PI()*($A6*0.001)^3))*0.000001 -> 2300.549245 | BY6: =((8*'Input&Overview'!$B$13*(BY$2*0.001-$A6*0.001))/(('Input&Overview'!$D$3-0.5*BY$2*0.001)*PI()*($A6*0.001)^3))*0.000001 -> 2315.257863 | BZ6: =((8*'Input&Overview'!$B$13*(BZ$2*0.001-$A6*0.001))/(('Input&Overview'!$D$3-0.5*BZ$2*0.001)*PI()*($A6*0.001)^3))*0.000001 -> 2329.993248 | CA6: =((8*'Input&Overview'!$B$13*(CA$2*0.001-$A6*0.001))/(('Input&Overview'!$D$3-0.5*CA$2*0.001)*PI()*($A6*0.001)^3))*0.000001 -> 2344.755473 | CB6: =((8*'Input&Overview'!$B$13*(CB$2*0.001-$A6*0.001))/(('Input&Overview'!$D$3-0.5*CB$2*0.001)*PI()*($A6*0.001)^3))*0.000001 -> 2359.544612 | CC6: =((8*'Input&Overview'!$B$13*(CC$2*0.001-$A6*0.001))/(('Input&Overview'!$D$3-0.5*CC$2*0.001)*PI()*($A6*0.001)^3))*0.000001 -> 2374.360738 | CD6: =((8*'Input&Overview'!$B$13*(CD$2*0.001-$A6*0.001))/(('Input&Overview'!$D$3-0.5*CD$2*0.001)*PI()*($A6*0.001)^3))*0.000001 -> 2389.203926 | CE6: =((8*'Input&Overview'!$B$13*(CE$2*0.001-$A6*0.001))/(('Input&Overview'!$D$3-0.5*CE$2*0.001)*PI()*($A6*0.001)^3))*0.000001 -> 2404.07425 | CF6: =((8*'Input&Overview'!$B$13*(CF$2*0.001-$A6*0.001))/(('Input&Overview'!$D$3-0.5*CF$2*0.001)*PI()*($A6*0.001)^3))*0.000001 -> 2418.971783 | CG6: =((8*'Input&Overview'!$B$13*(CG$2*0.001-$A6*0.001))/(('Input&Overview'!$D$3-0.5*CG$2*0.001)*PI()*($A6*0.001)^3))*0.000001 -> 2433.896602 | CH6: =((8*'Input&Overview'!$B$13*(CH$2*0.001-$A6*0.001))/(('Input&Overview'!$D$3-0.5*CH$2*0.001)*PI()*($A6*0.001)^3))*0.000001 -> 2448.84878 | CI6: =((8*'Input&Overview'!$B$13*(CI$2*0.001-$A6*0.001))/(('Input&Overview'!$D$3-0.5*CI$2*0.001)*PI()*($A6*0.001)^3))*0.000001 -> 2463.828393
A7: ='c'!$A7 -> 3.4 | B7: =((8*'Input&Overview'!$B$13*(B$2*0.001-$A7*0.001))/(('Input&Overview'!$D$3-0.5*B$2*0.001)*PI()*($A7*0.001)^3))*0.000001 -> 1166.398471 | C7: =((8*'Input&Overview'!$B$13*(C$2*0.001-$A7*0.001))/(('Input&Overview'!$D$3-0.5*C$2*0.001)*PI()*($A7*0.001)^3))*0.000001 -> 1178.201181 | D7: =((8*'Input&Overview'!$B$13*(D$2*0.001-$A7*0.001))/(('Input&Overview'!$D$3-0.5*D$2*0.001)*PI()*($A7*0.001)^3))*0.000001 -> 1190.024016 | E7: =((8*'Input&Overview'!$B$13*(E$2*0.001-$A7*0.001))/(('Input&Overview'!$D$3-0.5*E$2*0.001)*PI()*($A7*0.001)^3))*0.000001 -> 1201.867025 | F7: =((8*'Input&Overview'!$B$13*(F$2*0.001-$A7*0.001))/(('Input&Overview'!$D$3-0.5*F$2*0.001)*PI()*($A7*0.001)^3))*0.000001 -> 1213.730262 | G7: =((8*'Input&Overview'!$B$13*(G$2*0.001-$A7*0.001))/(('Input&Overview'!$D$3-0.5*G$2*0.001)*PI()*($A7*0.001)^3))*0.000001 -> 1225.613778 | H7: =((8*'Input&Overview'!$B$13*(H$2*0.001-$A7*0.001))/(('Input&Overview'!$D$3-0.5*H$2*0.001)*PI()*($A7*0.001)^3))*0.000001 -> 1237.517625 | I7: =((8*'Input&Overview'!$B$13*(I$2*0.001-$A7*0.001))/(('Input&Overview'!$D$3-0.5*I$2*0.001)*PI()*($A7*0.001)^3))*0.000001 -> 1249.441856 | J7: =((8*'Input&Overview'!$B$13*(J$2*0.001-$A7*0.001))/(('Input&Overview'!$D$3-0.5*J$2*0.001)*PI()*($A7*0.001)^3))*0.000001 -> 1261.386522 | K7: =((8*'Input&Overview'!$B$13*(K$2*0.001-$A7*0.001))/(('Input&Overview'!$D$3-0.5*K$2*0.001)*PI()*($A7*0.001)^3))*0.000001 -> 1273.351676 | L7: =((8*'Input&Overview'!$B$13*(L$2*0.001-$A7*0.001))/(('Input&Overview'!$D$3-0.5*L$2*0.001)*PI()*($A7*0.001)^3))*0.000001 -> 1285.337371 | M7: =((8*'Input&Overview'!$B$13*(M$2*0.001-$A7*0.001))/(('Input&Overview'!$D$3-0.5*M$2*0.001)*PI()*($A7*0.001)^3))*0.000001 -> 1297.34366 | N7: =((8*'Input&Overview'!$B$13*(N$2*0.001-$A7*0.001))/(('Input&Overview'!$D$3-0.5*N$2*0.001)*PI()*($A7*0.001)^3))*0.000001 -> 1309.370597 | O7: =((8*'Input&Overview'!$B$13*(O$2*0.001-$A7*0.001))/(('Input&Overview'!$D$3-0.5*O$2*0.001)*PI()*($A7*0.001)^3))*0.000001 -> 1321.418234 | P7: =((8*'Input&Overview'!$B$13*(P$2*0.001-$A7*0.001))/(('Input&Overview'!$D$3-0.5*P$2*0.001)*PI()*($A7*0.001)^3))*0.000001 -> 1333.486624 | Q7: =((8*'Input&Overview'!$B$13*(Q$2*0.001-$A7*0.001))/(('Input&Overview'!$D$3-0.5*Q$2*0.001)*PI()*($A7*0.001)^3))*0.000001 -> 1345.575823 | R7: =((8*'Input&Overview'!$B$13*(R$2*0.001-$A7*0.001))/(('Input&Overview'!$D$3-0.5*R$2*0.001)*PI()*($A7*0.001)^3))*0.000001 -> 1357.685882 | S7: =((8*'Input&Overview'!$B$13*(S$2*0.001-$A7*0.001))/(('Input&Overview'!$D$3-0.5*S$2*0.001)*PI()*($A7*0.001)^3))*0.000001 -> 1369.816857 | T7: =((8*'Input&Overview'!$B$13*(T$2*0.001-$A7*0.001))/(('Input&Overview'!$D$3-0.5*T$2*0.001)*PI()*($A7*0.001)^3))*0.000001 -> 1381.968802 | U7: =((8*'Input&Overview'!$B$13*(U$2*0.001-$A7*0.001))/(('Input&Overview'!$D$3-0.5*U$2*0.001)*PI()*($A7*0.001)^3))*0.000001 -> 1394.141771 | V7: =((8*'Input&Overview'!$B$13*(V$2*0.001-$A7*0.001))/(('Input&Overview'!$D$3-0.5*V$2*0.001)*PI()*($A7*0.001)^3))*0.000001 -> 1406.335819 | W7: =((8*'Input&Overview'!$B$13*(W$2*0.001-$A7*0.001))/(('Input&Overview'!$D$3-0.5*W$2*0.001)*PI()*($A7*0.001)^3))*0.000001 -> 1418.551 | X7: =((8*'Input&Overview'!$B$13*(X$2*0.001-$A7*0.001))/(('Input&Overview'!$D$3-0.5*X$2*0.001)*PI()*($A7*0.001)^3))*0.000001 -> 1430.78737 | Y7: =((8*'Input&Overview'!$B$13*(Y$2*0.001-$A7*0.001))/(('Input&Overview'!$D$3-0.5*Y$2*0.001)*PI()*($A7*0.001)^3))*0.000001 -> 1443.044984 | Z7: =((8*'Input&Overview'!$B$13*(Z$2*0.001-$A7*0.001))/(('Input&Overview'!$D$3-0.5*Z$2*0.001)*PI()*($A7*0.001)^3))*0.000001 -> 1455.323896 | AA7: =((8*'Input&Overview'!$B$13*(AA$2*0.001-$A7*0.001))/(('Input&Overview'!$D$3-0.5*AA$2*0.001)*PI()*($A7*0.001)^3))*0.000001 -> 1467.624163 | AB7: =((8*'Input&Overview'!$B$13*(AB$2*0.001-$A7*0.001))/(('Input&Overview'!$D$3-0.5*AB$2*0.001)*PI()*($A7*0.001)^3))*0.000001 -> 1479.945841 | AC7: =((8*'Input&Overview'!$B$13*(AC$2*0.001-$A7*0.001))/(('Input&Overview'!$D$3-0.5*AC$2*0.001)*PI()*($A7*0.001)^3))*0.000001 -> 1492.288985 | AD7: =((8*'Input&Overview'!$B$13*(AD$2*0.001-$A7*0.001))/(('Input&Overview'!$D$3-0.5*AD$2*0.001)*PI()*($A7*0.001)^3))*0.000001 -> 1504.653651 | AE7: =((8*'Input&Overview'!$B$13*(AE$2*0.001-$A7*0.001))/(('Input&Overview'!$D$3-0.5*AE$2*0.001)*PI()*($A7*0.001)^3))*0.000001 -> 1517.039896 | AF7: =((8*'Input&Overview'!$B$13*(AF$2*0.001-$A7*0.001))/(('Input&Overview'!$D$3-0.5*AF$2*0.001)*PI()*($A7*0.001)^3))*0.000001 -> 1529.447777 | AG7: =((8*'Input&Overview'!$B$13*(AG$2*0.001-$A7*0.001))/(('Input&Overview'!$D$3-0.5*AG$2*0.001)*PI()*($A7*0.001)^3))*0.000001 -> 1541.87735 | AH7: =((8*'Input&Overview'!$B$13*(AH$2*0.001-$A7*0.001))/(('Input&Overview'!$D$3-0.5*AH$2*0.001)*PI()*($A7*0.001)^3))*0.000001 -> 1554.328671 | AI7: =((8*'Input&Overview'!$B$13*(AI$2*0.001-$A7*0.001))/(('Input&Overview'!$D$3-0.5*AI$2*0.001)*PI()*($A7*0.001)^3))*0.000001 -> 1566.801799 | AJ7: =((8*'Input&Overview'!$B$13*(AJ$2*0.001-$A7*0.001))/(('Input&Overview'!$D$3-0.5*AJ$2*0.001)*PI()*($A7*0.001)^3))*0.000001 -> 1579.296791 | AK7: =((8*'Input&Overview'!$B$13*(AK$2*0.001-$A7*0.001))/(('Input&Overview'!$D$3-0.5*AK$2*0.001)*PI()*($A7*0.001)^3))*0.000001 -> 1591.813703 | AL7: =((8*'Input&Overview'!$B$13*(AL$2*0.001-$A7*0.001))/(('Input&Overview'!$D$3-0.5*AL$2*0.001)*PI()*($A7*0.001)^3))*0.000001 -> 1604.352594 | AM7: =((8*'Input&Overview'!$B$13*(AM$2*0.001-$A7*0.001))/(('Input&Overview'!$D$3-0.5*AM$2*0.001)*PI()*($A7*0.001)^3))*0.000001 -> 1616.913522 | AN7: =((8*'Input&Overview'!$B$13*(AN$2*0.001-$A7*0.001))/(('Input&Overview'!$D$3-0.5*AN$2*0.001)*PI()*($A7*0.001)^3))*0.000001 -> 1629.496545 | AO7: =((8*'Input&Overview'!$B$13*(AO$2*0.001-$A7*0.001))/(('Input&Overview'!$D$3-0.5*AO$2*0.001)*PI()*($A7*0.001)^3))*0.000001 -> 1642.101721 | AP7: =((8*'Input&Overview'!$B$13*(AP$2*0.001-$A7*0.001))/(('Input&Overview'!$D$3-0.5*AP$2*0.001)*PI()*($A7*0.001)^3))*0.000001 -> 1654.729109 | AQ7: =((8*'Input&Overview'!$B$13*(AQ$2*0.001-$A7*0.001))/(('Input&Overview'!$D$3-0.5*AQ$2*0.001)*PI()*($A7*0.001)^3))*0.000001 -> 1667.378767 | AR7: =((8*'Input&Overview'!$B$13*(AR$2*0.001-$A7*0.001))/(('Input&Overview'!$D$3-0.5*AR$2*0.001)*PI()*($A7*0.001)^3))*0.000001 -> 1680.050755 | AS7: =((8*'Input&Overview'!$B$13*(AS$2*0.001-$A7*0.001))/(('Input&Overview'!$D$3-0.5*AS$2*0.001)*PI()*($A7*0.001)^3))*0.000001 -> 1692.745131 | AT7: =((8*'Input&Overview'!$B$13*(AT$2*0.001-$A7*0.001))/(('Input&Overview'!$D$3-0.5*AT$2*0.001)*PI()*($A7*0.001)^3))*0.000001 -> 1705.461956 | AU7: =((8*'Input&Overview'!$B$13*(AU$2*0.001-$A7*0.001))/(('Input&Overview'!$D$3-0.5*AU$2*0.001)*PI()*($A7*0.001)^3))*0.000001 -> 1718.201288 | AV7: =((8*'Input&Overview'!$B$13*(AV$2*0.001-$A7*0.001))/(('Input&Overview'!$D$3-0.5*AV$2*0.001)*PI()*($A7*0.001)^3))*0.000001 -> 1730.963187 | AW7: =((8*'Input&Overview'!$B$13*(AW$2*0.001-$A7*0.001))/(('Input&Overview'!$D$3-0.5*AW$2*0.001)*PI()*($A7*0.001)^3))*0.000001 -> 1743.747714 | AX7: =((8*'Input&Overview'!$B$13*(AX$2*0.001-$A7*0.001))/(('Input&Overview'!$D$3-0.5*AX$2*0.001)*PI()*($A7*0.001)^3))*0.000001 -> 1756.554929 | AY7: =((8*'Input&Overview'!$B$13*(AY$2*0.001-$A7*0.001))/(('Input&Overview'!$D$3-0.5*AY$2*0.001)*PI()*($A7*0.001)^3))*0.000001 -> 1769.384892 | AZ7: =((8*'Input&Overview'!$B$13*(AZ$2*0.001-$A7*0.001))/(('Input&Overview'!$D$3-0.5*AZ$2*0.001)*PI()*($A7*0.001)^3))*0.000001 -> 1782.237664 | BA7: =((8*'Input&Overview'!$B$13*(BA$2*0.001-$A7*0.001))/(('Input&Overview'!$D$3-0.5*BA$2*0.001)*PI()*($A7*0.001)^3))*0.000001 -> 1795.113306 | BB7: =((8*'Input&Overview'!$B$13*(BB$2*0.001-$A7*0.001))/(('Input&Overview'!$D$3-0.5*BB$2*0.001)*PI()*($A7*0.001)^3))*0.000001 -> 1808.011878 | BC7: =((8*'Input&Overview'!$B$13*(BC$2*0.001-$A7*0.001))/(('Input&Overview'!$D$3-0.5*BC$2*0.001)*PI()*($A7*0.001)^3))*0.000001 -> 1820.933442 | BD7: =((8*'Input&Overview'!$B$13*(BD$2*0.001-$A7*0.001))/(('Input&Overview'!$D$3-0.5*BD$2*0.001)*PI()*($A7*0.001)^3))*0.000001 -> 1833.87806 | BE7: =((8*'Input&Overview'!$B$13*(BE$2*0.001-$A7*0.001))/(('Input&Overview'!$D$3-0.5*BE$2*0.001)*PI()*($A7*0.001)^3))*0.000001 -> 1846.845794 | BF7: =((8*'Input&Overview'!$B$13*(BF$2*0.001-$A7*0.001))/(('Input&Overview'!$D$3-0.5*BF$2*0.001)*PI()*($A7*0.001)^3))*0.000001 -> 1859.836704 | BG7: =((8*'Input&Overview'!$B$13*(BG$2*0.001-$A7*0.001))/(('Input&Overview'!$D$3-0.5*BG$2*0.001)*PI()*($A7*0.001)^3))*0.000001 -> 1872.850855 | BH7: =((8*'Input&Overview'!$B$13*(BH$2*0.001-$A7*0.001))/(('Input&Overview'!$D$3-0.5*BH$2*0.001)*PI()*($A7*0.001)^3))*0.000001 -> 1885.888307 | BI7: =((8*'Input&Overview'!$B$13*(BI$2*0.001-$A7*0.001))/(('Input&Overview'!$D$3-0.5*BI$2*0.001)*PI()*($A7*0.001)^3))*0.000001 -> 1898.949124 | BJ7: =((8*'Input&Overview'!$B$13*(BJ$2*0.001-$A7*0.001))/(('Input&Overview'!$D$3-0.5*BJ$2*0.001)*PI()*($A7*0.001)^3))*0.000001 -> 1912.033368 | BK7: =((8*'Input&Overview'!$B$13*(BK$2*0.001-$A7*0.001))/(('Input&Overview'!$D$3-0.5*BK$2*0.001)*PI()*($A7*0.001)^3))*0.000001 -> 1925.141103 | BL7: =((8*'Input&Overview'!$B$13*(BL$2*0.001-$A7*0.001))/(('Input&Overview'!$D$3-0.5*BL$2*0.001)*PI()*($A7*0.001)^3))*0.000001 -> 1938.272392 | BM7: =((8*'Input&Overview'!$B$13*(BM$2*0.001-$A7*0.001))/(('Input&Overview'!$D$3-0.5*BM$2*0.001)*PI()*($A7*0.001)^3))*0.000001 -> 1951.427298 | BN7: =((8*'Input&Overview'!$B$13*(BN$2*0.001-$A7*0.001))/(('Input&Overview'!$D$3-0.5*BN$2*0.001)*PI()*($A7*0.001)^3))*0.000001 -> 1964.605886 | BO7: =((8*'Input&Overview'!$B$13*(BO$2*0.001-$A7*0.001))/(('Input&Overview'!$D$3-0.5*BO$2*0.001)*PI()*($A7*0.001)^3))*0.000001 -> 1977.808219 | BP7: =((8*'Input&Overview'!$B$13*(BP$2*0.001-$A7*0.001))/(('Input&Overview'!$D$3-0.5*BP$2*0.001)*PI()*($A7*0.001)^3))*0.000001 -> 1991.034361 | BQ7: =((8*'Input&Overview'!$B$13*(BQ$2*0.001-$A7*0.001))/(('Input&Overview'!$D$3-0.5*BQ$2*0.001)*PI()*($A7*0.001)^3))*0.000001 -> 2004.284377 | BR7: =((8*'Input&Overview'!$B$13*(BR$2*0.001-$A7*0.001))/(('Input&Overview'!$D$3-0.5*BR$2*0.001)*PI()*($A7*0.001)^3))*0.000001 -> 2017.558331 | BS7: =((8*'Input&Overview'!$B$13*(BS$2*0.001-$A7*0.001))/(('Input&Overview'!$D$3-0.5*BS$2*0.001)*PI()*($A7*0.001)^3))*0.000001 -> 2030.856289 | BT7: =((8*'Input&Overview'!$B$13*(BT$2*0.001-$A7*0.001))/(('Input&Overview'!$D$3-0.5*BT$2*0.001)*PI()*($A7*0.001)^3))*0.000001 -> 2044.178316 | BU7: =((8*'Input&Overview'!$B$13*(BU$2*0.001-$A7*0.001))/(('Input&Overview'!$D$3-0.5*BU$2*0.001)*PI()*($A7*0.001)^3))*0.000001 -> 2057.524477 | BV7: =((8*'Input&Overview'!$B$13*(BV$2*0.001-$A7*0.001))/(('Input&Overview'!$D$3-0.5*BV$2*0.001)*PI()*($A7*0.001)^3))*0.000001 -> 2070.894838 | BW7: =((8*'Input&Overview'!$B$13*(BW$2*0.001-$A7*0.001))/(('Input&Overview'!$D$3-0.5*BW$2*0.001)*PI()*($A7*0.001)^3))*0.000001 -> 2084.289464 | BX7: =((8*'Input&Overview'!$B$13*(BX$2*0.001-$A7*0.001))/(('Input&Overview'!$D$3-0.5*BX$2*0.001)*PI()*($A7*0.001)^3))*0.000001 -> 2097.708422 | BY7: =((8*'Input&Overview'!$B$13*(BY$2*0.001-$A7*0.001))/(('Input&Overview'!$D$3-0.5*BY$2*0.001)*PI()*($A7*0.001)^3))*0.000001 -> 2111.151778 | BZ7: =((8*'Input&Overview'!$B$13*(BZ$2*0.001-$A7*0.001))/(('Input&Overview'!$D$3-0.5*BZ$2*0.001)*PI()*($A7*0.001)^3))*0.000001 -> 2124.619599 | CA7: =((8*'Input&Overview'!$B$13*(CA$2*0.001-$A7*0.001))/(('Input&Overview'!$D$3-0.5*CA$2*0.001)*PI()*($A7*0.001)^3))*0.000001 -> 2138.111952 | CB7: =((8*'Input&Overview'!$B$13*(CB$2*0.001-$A7*0.001))/(('Input&Overview'!$D$3-0.5*CB$2*0.001)*PI()*($A7*0.001)^3))*0.000001 -> 2151.628903 | CC7: =((8*'Input&Overview'!$B$13*(CC$2*0.001-$A7*0.001))/(('Input&Overview'!$D$3-0.5*CC$2*0.001)*PI()*($A7*0.001)^3))*0.000001 -> 2165.17052 | CD7: =((8*'Input&Overview'!$B$13*(CD$2*0.001-$A7*0.001))/(('Input&Overview'!$D$3-0.5*CD$2*0.001)*PI()*($A7*0.001)^3))*0.000001 -> 2178.73687 | CE7: =((8*'Input&Overview'!$B$13*(CE$2*0.001-$A7*0.001))/(('Input&Overview'!$D$3-0.5*CE$2*0.001)*PI()*($A7*0.001)^3))*0.000001 -> 2192.328022 | CF7: =((8*'Input&Overview'!$B$13*(CF$2*0.001-$A7*0.001))/(('Input&Overview'!$D$3-0.5*CF$2*0.001)*PI()*($A7*0.001)^3))*0.000001 -> 2205.944044 | CG7: =((8*'Input&Overview'!$B$13*(CG$2*0.001-$A7*0.001))/(('Input&Overview'!$D$3-0.5*CG$2*0.001)*PI()*($A7*0.001)^3))*0.000001 -> 2219.585003 | CH7: =((8*'Input&Overview'!$B$13*(CH$2*0.001-$A7*0.001))/(('Input&Overview'!$D$3-0.5*CH$2*0.001)*PI()*($A7*0.001)^3))*0.000001 -> 2233.250968 | CI7: =((8*'Input&Overview'!$B$13*(CI$2*0.001-$A7*0.001))/(('Input&Overview'!$D$3-0.5*CI$2*0.001)*PI()*($A7*0.001)^3))*0.000001 -> 2246.942009
A8: ='c'!$A8 -> 3.5 | B8: =((8*'Input&Overview'!$B$13*(B$2*0.001-$A8*0.001))/(('Input&Overview'!$D$3-0.5*B$2*0.001)*PI()*($A8*0.001)^3))*0.000001 -> 1064.300506 | C8: =((8*'Input&Overview'!$B$13*(C$2*0.001-$A8*0.001))/(('Input&Overview'!$D$3-0.5*C$2*0.001)*PI()*($A8*0.001)^3))*0.000001 -> 1075.115968 | D8: =((8*'Input&Overview'!$B$13*(D$2*0.001-$A8*0.001))/(('Input&Overview'!$D$3-0.5*D$2*0.001)*PI()*($A8*0.001)^3))*0.000001 -> 1085.949871 | E8: =((8*'Input&Overview'!$B$13*(E$2*0.001-$A8*0.001))/(('Input&Overview'!$D$3-0.5*E$2*0.001)*PI()*($A8*0.001)^3))*0.000001 -> 1096.802262 | F8: =((8*'Input&Overview'!$B$13*(F$2*0.001-$A8*0.001))/(('Input&Overview'!$D$3-0.5*F$2*0.001)*PI()*($A8*0.001)^3))*0.000001 -> 1107.673188 | G8: =((8*'Input&Overview'!$B$13*(G$2*0.001-$A8*0.001))/(('Input&Overview'!$D$3-0.5*G$2*0.001)*PI()*($A8*0.001)^3))*0.000001 -> 1118.562696 | H8: =((8*'Input&Overview'!$B$13*(H$2*0.001-$A8*0.001))/(('Input&Overview'!$D$3-0.5*H$2*0.001)*PI()*($A8*0.001)^3))*0.000001 -> 1129.470835 | I8: =((8*'Input&Overview'!$B$13*(I$2*0.001-$A8*0.001))/(('Input&Overview'!$D$3-0.5*I$2*0.001)*PI()*($A8*0.001)^3))*0.000001 -> 1140.397653 | J8: =((8*'Input&Overview'!$B$13*(J$2*0.001-$A8*0.001))/(('Input&Overview'!$D$3-0.5*J$2*0.001)*PI()*($A8*0.001)^3))*0.000001 -> 1151.343197 | K8: =((8*'Input&Overview'!$B$13*(K$2*0.001-$A8*0.001))/(('Input&Overview'!$D$3-0.5*K$2*0.001)*PI()*($A8*0.001)^3))*0.000001 -> 1162.307515 | L8: =((8*'Input&Overview'!$B$13*(L$2*0.001-$A8*0.001))/(('Input&Overview'!$D$3-0.5*L$2*0.001)*PI()*($A8*0.001)^3))*0.000001 -> 1173.290657 | M8: =((8*'Input&Overview'!$B$13*(M$2*0.001-$A8*0.001))/(('Input&Overview'!$D$3-0.5*M$2*0.001)*PI()*($A8*0.001)^3))*0.000001 -> 1184.292669 | N8: =((8*'Input&Overview'!$B$13*(N$2*0.001-$A8*0.001))/(('Input&Overview'!$D$3-0.5*N$2*0.001)*PI()*($A8*0.001)^3))*0.000001 -> 1195.313602 | O8: =((8*'Input&Overview'!$B$13*(O$2*0.001-$A8*0.001))/(('Input&Overview'!$D$3-0.5*O$2*0.001)*PI()*($A8*0.001)^3))*0.000001 -> 1206.353503 | P8: =((8*'Input&Overview'!$B$13*(P$2*0.001-$A8*0.001))/(('Input&Overview'!$D$3-0.5*P$2*0.001)*PI()*($A8*0.001)^3))*0.000001 -> 1217.412423 | Q8: =((8*'Input&Overview'!$B$13*(Q$2*0.001-$A8*0.001))/(('Input&Overview'!$D$3-0.5*Q$2*0.001)*PI()*($A8*0.001)^3))*0.000001 -> 1228.49041 | R8: =((8*'Input&Overview'!$B$13*(R$2*0.001-$A8*0.001))/(('Input&Overview'!$D$3-0.5*R$2*0.001)*PI()*($A8*0.001)^3))*0.000001 -> 1239.587513 | S8: =((8*'Input&Overview'!$B$13*(S$2*0.001-$A8*0.001))/(('Input&Overview'!$D$3-0.5*S$2*0.001)*PI()*($A8*0.001)^3))*0.000001 -> 1250.703782 | T8: =((8*'Input&Overview'!$B$13*(T$2*0.001-$A8*0.001))/(('Input&Overview'!$D$3-0.5*T$2*0.001)*PI()*($A8*0.001)^3))*0.000001 -> 1261.839266 | U8: =((8*'Input&Overview'!$B$13*(U$2*0.001-$A8*0.001))/(('Input&Overview'!$D$3-0.5*U$2*0.001)*PI()*($A8*0.001)^3))*0.000001 -> 1272.994017 | V8: =((8*'Input&Overview'!$B$13*(V$2*0.001-$A8*0.001))/(('Input&Overview'!$D$3-0.5*V$2*0.001)*PI()*($A8*0.001)^3))*0.000001 -> 1284.168082 | W8: =((8*'Input&Overview'!$B$13*(W$2*0.001-$A8*0.001))/(('Input&Overview'!$D$3-0.5*W$2*0.001)*PI()*($A8*0.001)^3))*0.000001 -> 1295.361514 | X8: =((8*'Input&Overview'!$B$13*(X$2*0.001-$A8*0.001))/(('Input&Overview'!$D$3-0.5*X$2*0.001)*PI()*($A8*0.001)^3))*0.000001 -> 1306.574362 | Y8: =((8*'Input&Overview'!$B$13*(Y$2*0.001-$A8*0.001))/(('Input&Overview'!$D$3-0.5*Y$2*0.001)*PI()*($A8*0.001)^3))*0.000001 -> 1317.806677 | Z8: =((8*'Input&Overview'!$B$13*(Z$2*0.001-$A8*0.001))/(('Input&Overview'!$D$3-0.5*Z$2*0.001)*PI()*($A8*0.001)^3))*0.000001 -> 1329.058509 | AA8: =((8*'Input&Overview'!$B$13*(AA$2*0.001-$A8*0.001))/(('Input&Overview'!$D$3-0.5*AA$2*0.001)*PI()*($A8*0.001)^3))*0.000001 -> 1340.329909 | AB8: =((8*'Input&Overview'!$B$13*(AB$2*0.001-$A8*0.001))/(('Input&Overview'!$D$3-0.5*AB$2*0.001)*PI()*($A8*0.001)^3))*0.000001 -> 1351.620929 | AC8: =((8*'Input&Overview'!$B$13*(AC$2*0.001-$A8*0.001))/(('Input&Overview'!$D$3-0.5*AC$2*0.001)*PI()*($A8*0.001)^3))*0.000001 -> 1362.93162 | AD8: =((8*'Input&Overview'!$B$13*(AD$2*0.001-$A8*0.001))/(('Input&Overview'!$D$3-0.5*AD$2*0.001)*PI()*($A8*0.001)^3))*0.000001 -> 1374.262033 | AE8: =((8*'Input&Overview'!$B$13*(AE$2*0.001-$A8*0.001))/(('Input&Overview'!$D$3-0.5*AE$2*0.001)*PI()*($A8*0.001)^3))*0.000001 -> 1385.61222 | AF8: =((8*'Input&Overview'!$B$13*(AF$2*0.001-$A8*0.001))/(('Input&Overview'!$D$3-0.5*AF$2*0.001)*PI()*($A8*0.001)^3))*0.000001 -> 1396.982232 | AG8: =((8*'Input&Overview'!$B$13*(AG$2*0.001-$A8*0.001))/(('Input&Overview'!$D$3-0.5*AG$2*0.001)*PI()*($A8*0.001)^3))*0.000001 -> 1408.372122 | AH8: =((8*'Input&Overview'!$B$13*(AH$2*0.001-$A8*0.001))/(('Input&Overview'!$D$3-0.5*AH$2*0.001)*PI()*($A8*0.001)^3))*0.000001 -> 1419.781942 | AI8: =((8*'Input&Overview'!$B$13*(AI$2*0.001-$A8*0.001))/(('Input&Overview'!$D$3-0.5*AI$2*0.001)*PI()*($A8*0.001)^3))*0.000001 -> 1431.211744 | AJ8: =((8*'Input&Overview'!$B$13*(AJ$2*0.001-$A8*0.001))/(('Input&Overview'!$D$3-0.5*AJ$2*0.001)*PI()*($A8*0.001)^3))*0.000001 -> 1442.661581 | AK8: =((8*'Input&Overview'!$B$13*(AK$2*0.001-$A8*0.001))/(('Input&Overview'!$D$3-0.5*AK$2*0.001)*PI()*($A8*0.001)^3))*0.000001 -> 1454.131505 | AL8: =((8*'Input&Overview'!$B$13*(AL$2*0.001-$A8*0.001))/(('Input&Overview'!$D$3-0.5*AL$2*0.001)*PI()*($A8*0.001)^3))*0.000001 -> 1465.62157 | AM8: =((8*'Input&Overview'!$B$13*(AM$2*0.001-$A8*0.001))/(('Input&Overview'!$D$3-0.5*AM$2*0.001)*PI()*($A8*0.001)^3))*0.000001 -> 1477.131828 | AN8: =((8*'Input&Overview'!$B$13*(AN$2*0.001-$A8*0.001))/(('Input&Overview'!$D$3-0.5*AN$2*0.001)*PI()*($A8*0.001)^3))*0.000001 -> 1488.662332 | AO8: =((8*'Input&Overview'!$B$13*(AO$2*0.001-$A8*0.001))/(('Input&Overview'!$D$3-0.5*AO$2*0.001)*PI()*($A8*0.001)^3))*0.000001 -> 1500.213137 | AP8: =((8*'Input&Overview'!$B$13*(AP$2*0.001-$A8*0.001))/(('Input&Overview'!$D$3-0.5*AP$2*0.001)*PI()*($A8*0.001)^3))*0.000001 -> 1511.784296 | AQ8: =((8*'Input&Overview'!$B$13*(AQ$2*0.001-$A8*0.001))/(('Input&Overview'!$D$3-0.5*AQ$2*0.001)*PI()*($A8*0.001)^3))*0.000001 -> 1523.375863 | AR8: =((8*'Input&Overview'!$B$13*(AR$2*0.001-$A8*0.001))/(('Input&Overview'!$D$3-0.5*AR$2*0.001)*PI()*($A8*0.001)^3))*0.000001 -> 1534.987891 | AS8: =((8*'Input&Overview'!$B$13*(AS$2*0.001-$A8*0.001))/(('Input&Overview'!$D$3-0.5*AS$2*0.001)*PI()*($A8*0.001)^3))*0.000001 -> 1546.620435 | AT8: =((8*'Input&Overview'!$B$13*(AT$2*0.001-$A8*0.001))/(('Input&Overview'!$D$3-0.5*AT$2*0.001)*PI()*($A8*0.001)^3))*0.000001 -> 1558.273549 | AU8: =((8*'Input&Overview'!$B$13*(AU$2*0.001-$A8*0.001))/(('Input&Overview'!$D$3-0.5*AU$2*0.001)*PI()*($A8*0.001)^3))*0.000001 -> 1569.947289 | AV8: =((8*'Input&Overview'!$B$13*(AV$2*0.001-$A8*0.001))/(('Input&Overview'!$D$3-0.5*AV$2*0.001)*PI()*($A8*0.001)^3))*0.000001 -> 1581.641708 | AW8: =((8*'Input&Overview'!$B$13*(AW$2*0.001-$A8*0.001))/(('Input&Overview'!$D$3-0.5*AW$2*0.001)*PI()*($A8*0.001)^3))*0.000001 -> 1593.356862 | AX8: =((8*'Input&Overview'!$B$13*(AX$2*0.001-$A8*0.001))/(('Input&Overview'!$D$3-0.5*AX$2*0.001)*PI()*($A8*0.001)^3))*0.000001 -> 1605.092806 | AY8: =((8*'Input&Overview'!$B$13*(AY$2*0.001-$A8*0.001))/(('Input&Overview'!$D$3-0.5*AY$2*0.001)*PI()*($A8*0.001)^3))*0.000001 -> 1616.849595 | AZ8: =((8*'Input&Overview'!$B$13*(AZ$2*0.001-$A8*0.001))/(('Input&Overview'!$D$3-0.5*AZ$2*0.001)*PI()*($A8*0.001)^3))*0.000001 -> 1628.627286 | BA8: =((8*'Input&Overview'!$B$13*(BA$2*0.001-$A8*0.001))/(('Input&Overview'!$D$3-0.5*BA$2*0.001)*PI()*($A8*0.001)^3))*0.000001 -> 1640.425933 | BB8: =((8*'Input&Overview'!$B$13*(BB$2*0.001-$A8*0.001))/(('Input&Overview'!$D$3-0.5*BB$2*0.001)*PI()*($A8*0.001)^3))*0.000001 -> 1652.245593 | BC8: =((8*'Input&Overview'!$B$13*(BC$2*0.001-$A8*0.001))/(('Input&Overview'!$D$3-0.5*BC$2*0.001)*PI()*($A8*0.001)^3))*0.000001 -> 1664.086321 | BD8: =((8*'Input&Overview'!$B$13*(BD$2*0.001-$A8*0.001))/(('Input&Overview'!$D$3-0.5*BD$2*0.001)*PI()*($A8*0.001)^3))*0.000001 -> 1675.948175 | BE8: =((8*'Input&Overview'!$B$13*(BE$2*0.001-$A8*0.001))/(('Input&Overview'!$D$3-0.5*BE$2*0.001)*PI()*($A8*0.001)^3))*0.000001 -> 1687.831211 | BF8: =((8*'Input&Overview'!$B$13*(BF$2*0.001-$A8*0.001))/(('Input&Overview'!$D$3-0.5*BF$2*0.001)*PI()*($A8*0.001)^3))*0.000001 -> 1699.735486 | BG8: =((8*'Input&Overview'!$B$13*(BG$2*0.001-$A8*0.001))/(('Input&Overview'!$D$3-0.5*BG$2*0.001)*PI()*($A8*0.001)^3))*0.000001 -> 1711.661056 | BH8: =((8*'Input&Overview'!$B$13*(BH$2*0.001-$A8*0.001))/(('Input&Overview'!$D$3-0.5*BH$2*0.001)*PI()*($A8*0.001)^3))*0.000001 -> 1723.607979 | BI8: =((8*'Input&Overview'!$B$13*(BI$2*0.001-$A8*0.001))/(('Input&Overview'!$D$3-0.5*BI$2*0.001)*PI()*($A8*0.001)^3))*0.000001 -> 1735.576313 | BJ8: =((8*'Input&Overview'!$B$13*(BJ$2*0.001-$A8*0.001))/(('Input&Overview'!$D$3-0.5*BJ$2*0.001)*PI()*($A8*0.001)^3))*0.000001 -> 1747.566114 | BK8: =((8*'Input&Overview'!$B$13*(BK$2*0.001-$A8*0.001))/(('Input&Overview'!$D$3-0.5*BK$2*0.001)*PI()*($A8*0.001)^3))*0.000001 -> 1759.577441 | BL8: =((8*'Input&Overview'!$B$13*(BL$2*0.001-$A8*0.001))/(('Input&Overview'!$D$3-0.5*BL$2*0.001)*PI()*($A8*0.001)^3))*0.000001 -> 1771.610351 | BM8: =((8*'Input&Overview'!$B$13*(BM$2*0.001-$A8*0.001))/(('Input&Overview'!$D$3-0.5*BM$2*0.001)*PI()*($A8*0.001)^3))*0.000001 -> 1783.664904 | BN8: =((8*'Input&Overview'!$B$13*(BN$2*0.001-$A8*0.001))/(('Input&Overview'!$D$3-0.5*BN$2*0.001)*PI()*($A8*0.001)^3))*0.000001 -> 1795.741157 | BO8: =((8*'Input&Overview'!$B$13*(BO$2*0.001-$A8*0.001))/(('Input&Overview'!$D$3-0.5*BO$2*0.001)*PI()*($A8*0.001)^3))*0.000001 -> 1807.839169 | BP8: =((8*'Input&Overview'!$B$13*(BP$2*0.001-$A8*0.001))/(('Input&Overview'!$D$3-0.5*BP$2*0.001)*PI()*($A8*0.001)^3))*0.000001 -> 1819.958998 | BQ8: =((8*'Input&Overview'!$B$13*(BQ$2*0.001-$A8*0.001))/(('Input&Overview'!$D$3-0.5*BQ$2*0.001)*PI()*($A8*0.001)^3))*0.000001 -> 1832.100705 | BR8: =((8*'Input&Overview'!$B$13*(BR$2*0.001-$A8*0.001))/(('Input&Overview'!$D$3-0.5*BR$2*0.001)*PI()*($A8*0.001)^3))*0.000001 -> 1844.264348 | BS8: =((8*'Input&Overview'!$B$13*(BS$2*0.001-$A8*0.001))/(('Input&Overview'!$D$3-0.5*BS$2*0.001)*PI()*($A8*0.001)^3))*0.000001 -> 1856.449987 | BT8: =((8*'Input&Overview'!$B$13*(BT$2*0.001-$A8*0.001))/(('Input&Overview'!$D$3-0.5*BT$2*0.001)*PI()*($A8*0.001)^3))*0.000001 -> 1868.657681 | BU8: =((8*'Input&Overview'!$B$13*(BU$2*0.001-$A8*0.001))/(('Input&Overview'!$D$3-0.5*BU$2*0.001)*PI()*($A8*0.001)^3))*0.000001 -> 1880.88749 | BV8: =((8*'Input&Overview'!$B$13*(BV$2*0.001-$A8*0.001))/(('Input&Overview'!$D$3-0.5*BV$2*0.001)*PI()*($A8*0.001)^3))*0.000001 -> 1893.139475 | BW8: =((8*'Input&Overview'!$B$13*(BW$2*0.001-$A8*0.001))/(('Input&Overview'!$D$3-0.5*BW$2*0.001)*PI()*($A8*0.001)^3))*0.000001 -> 1905.413696 | BX8: =((8*'Input&Overview'!$B$13*(BX$2*0.001-$A8*0.001))/(('Input&Overview'!$D$3-0.5*BX$2*0.001)*PI()*($A8*0.001)^3))*0.000001 -> 1917.710214 | BY8: =((8*'Input&Overview'!$B$13*(BY$2*0.001-$A8*0.001))/(('Input&Overview'!$D$3-0.5*BY$2*0.001)*PI()*($A8*0.001)^3))*0.000001 -> 1930.029089 | BZ8: =((8*'Input&Overview'!$B$13*(BZ$2*0.001-$A8*0.001))/(('Input&Overview'!$D$3-0.5*BZ$2*0.001)*PI()*($A8*0.001)^3))*0.000001 -> 1942.370382 | CA8: =((8*'Input&Overview'!$B$13*(CA$2*0.001-$A8*0.001))/(('Input&Overview'!$D$3-0.5*CA$2*0.001)*PI()*($A8*0.001)^3))*0.000001 -> 1954.734154 | CB8: =((8*'Input&Overview'!$B$13*(CB$2*0.001-$A8*0.001))/(('Input&Overview'!$D$3-0.5*CB$2*0.001)*PI()*($A8*0.001)^3))*0.000001 -> 1967.120468 | CC8: =((8*'Input&Overview'!$B$13*(CC$2*0.001-$A8*0.001))/(('Input&Overview'!$D$3-0.5*CC$2*0.001)*PI()*($A8*0.001)^3))*0.000001 -> 1979.529385 | CD8: =((8*'Input&Overview'!$B$13*(CD$2*0.001-$A8*0.001))/(('Input&Overview'!$D$3-0.5*CD$2*0.001)*PI()*($A8*0.001)^3))*0.000001 -> 1991.960966 | CE8: =((8*'Input&Overview'!$B$13*(CE$2*0.001-$A8*0.001))/(('Input&Overview'!$D$3-0.5*CE$2*0.001)*PI()*($A8*0.001)^3))*0.000001 -> 2004.415274 | CF8: =((8*'Input&Overview'!$B$13*(CF$2*0.001-$A8*0.001))/(('Input&Overview'!$D$3-0.5*CF$2*0.001)*PI()*($A8*0.001)^3))*0.000001 -> 2016.892371 | CG8: =((8*'Input&Overview'!$B$13*(CG$2*0.001-$A8*0.001))/(('Input&Overview'!$D$3-0.5*CG$2*0.001)*PI()*($A8*0.001)^3))*0.000001 -> 2029.39232 | CH8: =((8*'Input&Overview'!$B$13*(CH$2*0.001-$A8*0.001))/(('Input&Overview'!$D$3-0.5*CH$2*0.001)*PI()*($A8*0.001)^3))*0.000001 -> 2041.915184 | CI8: =((8*'Input&Overview'!$B$13*(CI$2*0.001-$A8*0.001))/(('Input&Overview'!$D$3-0.5*CI$2*0.001)*PI()*($A8*0.001)^3))*0.000001 -> 2054.461026
A9: ='c'!$A9 -> 3.6 | B9: =((8*'Input&Overview'!$B$13*(B$2*0.001-$A9*0.001))/(('Input&Overview'!$D$3-0.5*B$2*0.001)*PI()*($A9*0.001)^3))*0.000001 -> 973.5005759 | C9: =((8*'Input&Overview'!$B$13*(C$2*0.001-$A9*0.001))/(('Input&Overview'!$D$3-0.5*C$2*0.001)*PI()*($A9*0.001)^3))*0.000001 -> 983.4356787 | D9: =((8*'Input&Overview'!$B$13*(D$2*0.001-$A9*0.001))/(('Input&Overview'!$D$3-0.5*D$2*0.001)*PI()*($A9*0.001)^3))*0.000001 -> 993.3877211 | E9: =((8*'Input&Overview'!$B$13*(E$2*0.001-$A9*0.001))/(('Input&Overview'!$D$3-0.5*E$2*0.001)*PI()*($A9*0.001)^3))*0.000001 -> 1003.356746 | F9: =((8*'Input&Overview'!$B$13*(F$2*0.001-$A9*0.001))/(('Input&Overview'!$D$3-0.5*F$2*0.001)*PI()*($A9*0.001)^3))*0.000001 -> 1013.342798 | G9: =((8*'Input&Overview'!$B$13*(G$2*0.001-$A9*0.001))/(('Input&Overview'!$D$3-0.5*G$2*0.001)*PI()*($A9*0.001)^3))*0.000001 -> 1023.345921 | H9: =((8*'Input&Overview'!$B$13*(H$2*0.001-$A9*0.001))/(('Input&Overview'!$D$3-0.5*H$2*0.001)*PI()*($A9*0.001)^3))*0.000001 -> 1033.366157 | I9: =((8*'Input&Overview'!$B$13*(I$2*0.001-$A9*0.001))/(('Input&Overview'!$D$3-0.5*I$2*0.001)*PI()*($A9*0.001)^3))*0.000001 -> 1043.403551 | J9: =((8*'Input&Overview'!$B$13*(J$2*0.001-$A9*0.001))/(('Input&Overview'!$D$3-0.5*J$2*0.001)*PI()*($A9*0.001)^3))*0.000001 -> 1053.458147 | K9: =((8*'Input&Overview'!$B$13*(K$2*0.001-$A9*0.001))/(('Input&Overview'!$D$3-0.5*K$2*0.001)*PI()*($A9*0.001)^3))*0.000001 -> 1063.529989 | L9: =((8*'Input&Overview'!$B$13*(L$2*0.001-$A9*0.001))/(('Input&Overview'!$D$3-0.5*L$2*0.001)*PI()*($A9*0.001)^3))*0.000001 -> 1073.619122 | M9: =((8*'Input&Overview'!$B$13*(M$2*0.001-$A9*0.001))/(('Input&Overview'!$D$3-0.5*M$2*0.001)*PI()*($A9*0.001)^3))*0.000001 -> 1083.725591 | N9: =((8*'Input&Overview'!$B$13*(N$2*0.001-$A9*0.001))/(('Input&Overview'!$D$3-0.5*N$2*0.001)*PI()*($A9*0.001)^3))*0.000001 -> 1093.849439 | O9: =((8*'Input&Overview'!$B$13*(O$2*0.001-$A9*0.001))/(('Input&Overview'!$D$3-0.5*O$2*0.001)*PI()*($A9*0.001)^3))*0.000001 -> 1103.990712 | P9: =((8*'Input&Overview'!$B$13*(P$2*0.001-$A9*0.001))/(('Input&Overview'!$D$3-0.5*P$2*0.001)*PI()*($A9*0.001)^3))*0.000001 -> 1114.149455 | Q9: =((8*'Input&Overview'!$B$13*(Q$2*0.001-$A9*0.001))/(('Input&Overview'!$D$3-0.5*Q$2*0.001)*PI()*($A9*0.001)^3))*0.000001 -> 1124.325713 | R9: =((8*'Input&Overview'!$B$13*(R$2*0.001-$A9*0.001))/(('Input&Overview'!$D$3-0.5*R$2*0.001)*PI()*($A9*0.001)^3))*0.000001 -> 1134.519532 | S9: =((8*'Input&Overview'!$B$13*(S$2*0.001-$A9*0.001))/(('Input&Overview'!$D$3-0.5*S$2*0.001)*PI()*($A9*0.001)^3))*0.000001 -> 1144.730957 | T9: =((8*'Input&Overview'!$B$13*(T$2*0.001-$A9*0.001))/(('Input&Overview'!$D$3-0.5*T$2*0.001)*PI()*($A9*0.001)^3))*0.000001 -> 1154.960033 | U9: =((8*'Input&Overview'!$B$13*(U$2*0.001-$A9*0.001))/(('Input&Overview'!$D$3-0.5*U$2*0.001)*PI()*($A9*0.001)^3))*0.000001 -> 1165.206806 | V9: =((8*'Input&Overview'!$B$13*(V$2*0.001-$A9*0.001))/(('Input&Overview'!$D$3-0.5*V$2*0.001)*PI()*($A9*0.001)^3))*0.000001 -> 1175.471323 | W9: =((8*'Input&Overview'!$B$13*(W$2*0.001-$A9*0.001))/(('Input&Overview'!$D$3-0.5*W$2*0.001)*PI()*($A9*0.001)^3))*0.000001 -> 1185.753629 | X9: =((8*'Input&Overview'!$B$13*(X$2*0.001-$A9*0.001))/(('Input&Overview'!$D$3-0.5*X$2*0.001)*PI()*($A9*0.001)^3))*0.000001 -> 1196.053771 | Y9: =((8*'Input&Overview'!$B$13*(Y$2*0.001-$A9*0.001))/(('Input&Overview'!$D$3-0.5*Y$2*0.001)*PI()*($A9*0.001)^3))*0.000001 -> 1206.371795 | Z9: =((8*'Input&Overview'!$B$13*(Z$2*0.001-$A9*0.001))/(('Input&Overview'!$D$3-0.5*Z$2*0.001)*PI()*($A9*0.001)^3))*0.000001 -> 1216.707748 | AA9: =((8*'Input&Overview'!$B$13*(AA$2*0.001-$A9*0.001))/(('Input&Overview'!$D$3-0.5*AA$2*0.001)*PI()*($A9*0.001)^3))*0.000001 -> 1227.061677 | AB9: =((8*'Input&Overview'!$B$13*(AB$2*0.001-$A9*0.001))/(('Input&Overview'!$D$3-0.5*AB$2*0.001)*PI()*($A9*0.001)^3))*0.000001 -> 1237.433628 | AC9: =((8*'Input&Overview'!$B$13*(AC$2*0.001-$A9*0.001))/(('Input&Overview'!$D$3-0.5*AC$2*0.001)*PI()*($A9*0.001)^3))*0.000001 -> 1247.823648 | AD9: =((8*'Input&Overview'!$B$13*(AD$2*0.001-$A9*0.001))/(('Input&Overview'!$D$3-0.5*AD$2*0.001)*PI()*($A9*0.001)^3))*0.000001 -> 1258.231786 | AE9: =((8*'Input&Overview'!$B$13*(AE$2*0.001-$A9*0.001))/(('Input&Overview'!$D$3-0.5*AE$2*0.001)*PI()*($A9*0.001)^3))*0.000001 -> 1268.658088 | AF9: =((8*'Input&Overview'!$B$13*(AF$2*0.001-$A9*0.001))/(('Input&Overview'!$D$3-0.5*AF$2*0.001)*PI()*($A9*0.001)^3))*0.000001 -> 1279.102601 | AG9: =((8*'Input&Overview'!$B$13*(AG$2*0.001-$A9*0.001))/(('Input&Overview'!$D$3-0.5*AG$2*0.001)*PI()*($A9*0.001)^3))*0.000001 -> 1289.565375 | AH9: =((8*'Input&Overview'!$B$13*(AH$2*0.001-$A9*0.001))/(('Input&Overview'!$D$3-0.5*AH$2*0.001)*PI()*($A9*0.001)^3))*0.000001 -> 1300.046456 | AI9: =((8*'Input&Overview'!$B$13*(AI$2*0.001-$A9*0.001))/(('Input&Overview'!$D$3-0.5*AI$2*0.001)*PI()*($A9*0.001)^3))*0.000001 -> 1310.545892 | AJ9: =((8*'Input&Overview'!$B$13*(AJ$2*0.001-$A9*0.001))/(('Input&Overview'!$D$3-0.5*AJ$2*0.001)*PI()*($A9*0.001)^3))*0.000001 -> 1321.063733 | AK9: =((8*'Input&Overview'!$B$13*(AK$2*0.001-$A9*0.001))/(('Input&Overview'!$D$3-0.5*AK$2*0.001)*PI()*($A9*0.001)^3))*0.000001 -> 1331.600025 | AL9: =((8*'Input&Overview'!$B$13*(AL$2*0.001-$A9*0.001))/(('Input&Overview'!$D$3-0.5*AL$2*0.001)*PI()*($A9*0.001)^3))*0.000001 -> 1342.154819 | AM9: =((8*'Input&Overview'!$B$13*(AM$2*0.001-$A9*0.001))/(('Input&Overview'!$D$3-0.5*AM$2*0.001)*PI()*($A9*0.001)^3))*0.000001 -> 1352.728163 | AN9: =((8*'Input&Overview'!$B$13*(AN$2*0.001-$A9*0.001))/(('Input&Overview'!$D$3-0.5*AN$2*0.001)*PI()*($A9*0.001)^3))*0.000001 -> 1363.320105 | AO9: =((8*'Input&Overview'!$B$13*(AO$2*0.001-$A9*0.001))/(('Input&Overview'!$D$3-0.5*AO$2*0.001)*PI()*($A9*0.001)^3))*0.000001 -> 1373.930695 | AP9: =((8*'Input&Overview'!$B$13*(AP$2*0.001-$A9*0.001))/(('Input&Overview'!$D$3-0.5*AP$2*0.001)*PI()*($A9*0.001)^3))*0.000001 -> 1384.559982 | AQ9: =((8*'Input&Overview'!$B$13*(AQ$2*0.001-$A9*0.001))/(('Input&Overview'!$D$3-0.5*AQ$2*0.001)*PI()*($A9*0.001)^3))*0.000001 -> 1395.208015 | AR9: =((8*'Input&Overview'!$B$13*(AR$2*0.001-$A9*0.001))/(('Input&Overview'!$D$3-0.5*AR$2*0.001)*PI()*($A9*0.001)^3))*0.000001 -> 1405.874845 | AS9: =((8*'Input&Overview'!$B$13*(AS$2*0.001-$A9*0.001))/(('Input&Overview'!$D$3-0.5*AS$2*0.001)*PI()*($A9*0.001)^3))*0.000001 -> 1416.560521 | AT9: =((8*'Input&Overview'!$B$13*(AT$2*0.001-$A9*0.001))/(('Input&Overview'!$D$3-0.5*AT$2*0.001)*PI()*($A9*0.001)^3))*0.000001 -> 1427.265092 | AU9: =((8*'Input&Overview'!$B$13*(AU$2*0.001-$A9*0.001))/(('Input&Overview'!$D$3-0.5*AU$2*0.001)*PI()*($A9*0.001)^3))*0.000001 -> 1437.98861 | AV9: =((8*'Input&Overview'!$B$13*(AV$2*0.001-$A9*0.001))/(('Input&Overview'!$D$3-0.5*AV$2*0.001)*PI()*($A9*0.001)^3))*0.000001 -> 1448.731124 | AW9: =((8*'Input&Overview'!$B$13*(AW$2*0.001-$A9*0.001))/(('Input&Overview'!$D$3-0.5*AW$2*0.001)*PI()*($A9*0.001)^3))*0.000001 -> 1459.492686 | AX9: =((8*'Input&Overview'!$B$13*(AX$2*0.001-$A9*0.001))/(('Input&Overview'!$D$3-0.5*AX$2*0.001)*PI()*($A9*0.001)^3))*0.000001 -> 1470.273345 | AY9: =((8*'Input&Overview'!$B$13*(AY$2*0.001-$A9*0.001))/(('Input&Overview'!$D$3-0.5*AY$2*0.001)*PI()*($A9*0.001)^3))*0.000001 -> 1481.073153 | AZ9: =((8*'Input&Overview'!$B$13*(AZ$2*0.001-$A9*0.001))/(('Input&Overview'!$D$3-0.5*AZ$2*0.001)*PI()*($A9*0.001)^3))*0.000001 -> 1491.89216 | BA9: =((8*'Input&Overview'!$B$13*(BA$2*0.001-$A9*0.001))/(('Input&Overview'!$D$3-0.5*BA$2*0.001)*PI()*($A9*0.001)^3))*0.000001 -> 1502.730418 | BB9: =((8*'Input&Overview'!$B$13*(BB$2*0.001-$A9*0.001))/(('Input&Overview'!$D$3-0.5*BB$2*0.001)*PI()*($A9*0.001)^3))*0.000001 -> 1513.587979 | BC9: =((8*'Input&Overview'!$B$13*(BC$2*0.001-$A9*0.001))/(('Input&Overview'!$D$3-0.5*BC$2*0.001)*PI()*($A9*0.001)^3))*0.000001 -> 1524.464893 | BD9: =((8*'Input&Overview'!$B$13*(BD$2*0.001-$A9*0.001))/(('Input&Overview'!$D$3-0.5*BD$2*0.001)*PI()*($A9*0.001)^3))*0.000001 -> 1535.361213 | BE9: =((8*'Input&Overview'!$B$13*(BE$2*0.001-$A9*0.001))/(('Input&Overview'!$D$3-0.5*BE$2*0.001)*PI()*($A9*0.001)^3))*0.000001 -> 1546.276991 | BF9: =((8*'Input&Overview'!$B$13*(BF$2*0.001-$A9*0.001))/(('Input&Overview'!$D$3-0.5*BF$2*0.001)*PI()*($A9*0.001)^3))*0.000001 -> 1557.212279 | BG9: =((8*'Input&Overview'!$B$13*(BG$2*0.001-$A9*0.001))/(('Input&Overview'!$D$3-0.5*BG$2*0.001)*PI()*($A9*0.001)^3))*0.000001 -> 1568.167129 | BH9: =((8*'Input&Overview'!$B$13*(BH$2*0.001-$A9*0.001))/(('Input&Overview'!$D$3-0.5*BH$2*0.001)*PI()*($A9*0.001)^3))*0.000001 -> 1579.141594 | BI9: =((8*'Input&Overview'!$B$13*(BI$2*0.001-$A9*0.001))/(('Input&Overview'!$D$3-0.5*BI$2*0.001)*PI()*($A9*0.001)^3))*0.000001 -> 1590.135726 | BJ9: =((8*'Input&Overview'!$B$13*(BJ$2*0.001-$A9*0.001))/(('Input&Overview'!$D$3-0.5*BJ$2*0.001)*PI()*($A9*0.001)^3))*0.000001 -> 1601.149579 | BK9: =((8*'Input&Overview'!$B$13*(BK$2*0.001-$A9*0.001))/(('Input&Overview'!$D$3-0.5*BK$2*0.001)*PI()*($A9*0.001)^3))*0.000001 -> 1612.183205 | BL9: =((8*'Input&Overview'!$B$13*(BL$2*0.001-$A9*0.001))/(('Input&Overview'!$D$3-0.5*BL$2*0.001)*PI()*($A9*0.001)^3))*0.000001 -> 1623.236658 | BM9: =((8*'Input&Overview'!$B$13*(BM$2*0.001-$A9*0.001))/(('Input&Overview'!$D$3-0.5*BM$2*0.001)*PI()*($A9*0.001)^3))*0.000001 -> 1634.309992 | BN9: =((8*'Input&Overview'!$B$13*(BN$2*0.001-$A9*0.001))/(('Input&Overview'!$D$3-0.5*BN$2*0.001)*PI()*($A9*0.001)^3))*0.000001 -> 1645.403259 | BO9: =((8*'Input&Overview'!$B$13*(BO$2*0.001-$A9*0.001))/(('Input&Overview'!$D$3-0.5*BO$2*0.001)*PI()*($A9*0.001)^3))*0.000001 -> 1656.516514 | BP9: =((8*'Input&Overview'!$B$13*(BP$2*0.001-$A9*0.001))/(('Input&Overview'!$D$3-0.5*BP$2*0.001)*PI()*($A9*0.001)^3))*0.000001 -> 1667.649811 | BQ9: =((8*'Input&Overview'!$B$13*(BQ$2*0.001-$A9*0.001))/(('Input&Overview'!$D$3-0.5*BQ$2*0.001)*PI()*($A9*0.001)^3))*0.000001 -> 1678.803205 | BR9: =((8*'Input&Overview'!$B$13*(BR$2*0.001-$A9*0.001))/(('Input&Overview'!$D$3-0.5*BR$2*0.001)*PI()*($A9*0.001)^3))*0.000001 -> 1689.976749 | BS9: =((8*'Input&Overview'!$B$13*(BS$2*0.001-$A9*0.001))/(('Input&Overview'!$D$3-0.5*BS$2*0.001)*PI()*($A9*0.001)^3))*0.000001 -> 1701.170498 | BT9: =((8*'Input&Overview'!$B$13*(BT$2*0.001-$A9*0.001))/(('Input&Overview'!$D$3-0.5*BT$2*0.001)*PI()*($A9*0.001)^3))*0.000001 -> 1712.384508 | BU9: =((8*'Input&Overview'!$B$13*(BU$2*0.001-$A9*0.001))/(('Input&Overview'!$D$3-0.5*BU$2*0.001)*PI()*($A9*0.001)^3))*0.000001 -> 1723.618833 | BV9: =((8*'Input&Overview'!$B$13*(BV$2*0.001-$A9*0.001))/(('Input&Overview'!$D$3-0.5*BV$2*0.001)*PI()*($A9*0.001)^3))*0.000001 -> 1734.873528 | BW9: =((8*'Input&Overview'!$B$13*(BW$2*0.001-$A9*0.001))/(('Input&Overview'!$D$3-0.5*BW$2*0.001)*PI()*($A9*0.001)^3))*0.000001 -> 1746.148649 | BX9: =((8*'Input&Overview'!$B$13*(BX$2*0.001-$A9*0.001))/(('Input&Overview'!$D$3-0.5*BX$2*0.001)*PI()*($A9*0.001)^3))*0.000001 -> 1757.444252 | BY9: =((8*'Input&Overview'!$B$13*(BY$2*0.001-$A9*0.001))/(('Input&Overview'!$D$3-0.5*BY$2*0.001)*PI()*($A9*0.001)^3))*0.000001 -> 1768.760392 | BZ9: =((8*'Input&Overview'!$B$13*(BZ$2*0.001-$A9*0.001))/(('Input&Overview'!$D$3-0.5*BZ$2*0.001)*PI()*($A9*0.001)^3))*0.000001 -> 1780.097126 | CA9: =((8*'Input&Overview'!$B$13*(CA$2*0.001-$A9*0.001))/(('Input&Overview'!$D$3-0.5*CA$2*0.001)*PI()*($A9*0.001)^3))*0.000001 -> 1791.45451 | CB9: =((8*'Input&Overview'!$B$13*(CB$2*0.001-$A9*0.001))/(('Input&Overview'!$D$3-0.5*CB$2*0.001)*PI()*($A9*0.001)^3))*0.000001 -> 1802.832599 | CC9: =((8*'Input&Overview'!$B$13*(CC$2*0.001-$A9*0.001))/(('Input&Overview'!$D$3-0.5*CC$2*0.001)*PI()*($A9*0.001)^3))*0.000001 -> 1814.231452 | CD9: =((8*'Input&Overview'!$B$13*(CD$2*0.001-$A9*0.001))/(('Input&Overview'!$D$3-0.5*CD$2*0.001)*PI()*($A9*0.001)^3))*0.000001 -> 1825.651125 | CE9: =((8*'Input&Overview'!$B$13*(CE$2*0.001-$A9*0.001))/(('Input&Overview'!$D$3-0.5*CE$2*0.001)*PI()*($A9*0.001)^3))*0.000001 -> 1837.091674 | CF9: =((8*'Input&Overview'!$B$13*(CF$2*0.001-$A9*0.001))/(('Input&Overview'!$D$3-0.5*CF$2*0.001)*PI()*($A9*0.001)^3))*0.000001 -> 1848.553158 | CG9: =((8*'Input&Overview'!$B$13*(CG$2*0.001-$A9*0.001))/(('Input&Overview'!$D$3-0.5*CG$2*0.001)*PI()*($A9*0.001)^3))*0.000001 -> 1860.035634 | CH9: =((8*'Input&Overview'!$B$13*(CH$2*0.001-$A9*0.001))/(('Input&Overview'!$D$3-0.5*CH$2*0.001)*PI()*($A9*0.001)^3))*0.000001 -> 1871.539159 | CI9: =((8*'Input&Overview'!$B$13*(CI$2*0.001-$A9*0.001))/(('Input&Overview'!$D$3-0.5*CI$2*0.001)*PI()*($A9*0.001)^3))*0.000001 -> 1883.063791
A10: ='c'!$A10 -> 3.7 | B10: =((8*'Input&Overview'!$B$13*(B$2*0.001-$A10*0.001))/(('Input&Overview'!$D$3-0.5*B$2*0.001)*PI()*($A10*0.001)^3))*0.000001 -> 892.4920843 | C10: =((8*'Input&Overview'!$B$13*(C$2*0.001-$A10*0.001))/(('Input&Overview'!$D$3-0.5*C$2*0.001)*PI()*($A10*0.001)^3))*0.000001 -> 901.6396446 | D10: =((8*'Input&Overview'!$B$13*(D$2*0.001-$A10*0.001))/(('Input&Overview'!$D$3-0.5*D$2*0.001)*PI()*($A10*0.001)^3))*0.000001 -> 910.8028017 | E10: =((8*'Input&Overview'!$B$13*(E$2*0.001-$A10*0.001))/(('Input&Overview'!$D$3-0.5*E$2*0.001)*PI()*($A10*0.001)^3))*0.000001 -> 919.9815956 | F10: =((8*'Input&Overview'!$B$13*(F$2*0.001-$A10*0.001))/(('Input&Overview'!$D$3-0.5*F$2*0.001)*PI()*($A10*0.001)^3))*0.000001 -> 929.1760664 | G10: =((8*'Input&Overview'!$B$13*(G$2*0.001-$A10*0.001))/(('Input&Overview'!$D$3-0.5*G$2*0.001)*PI()*($A10*0.001)^3))*0.000001 -> 938.3862541 | H10: =((8*'Input&Overview'!$B$13*(H$2*0.001-$A10*0.001))/(('Input&Overview'!$D$3-0.5*H$2*0.001)*PI()*($A10*0.001)^3))*0.000001 -> 947.6121993 | I10: =((8*'Input&Overview'!$B$13*(I$2*0.001-$A10*0.001))/(('Input&Overview'!$D$3-0.5*I$2*0.001)*PI()*($A10*0.001)^3))*0.000001 -> 956.8539423 | J10: =((8*'Input&Overview'!$B$13*(J$2*0.001-$A10*0.001))/(('Input&Overview'!$D$3-0.5*J$2*0.001)*PI()*($A10*0.001)^3))*0.000001 -> 966.1115238 | K10: =((8*'Input&Overview'!$B$13*(K$2*0.001-$A10*0.001))/(('Input&Overview'!$D$3-0.5*K$2*0.001)*PI()*($A10*0.001)^3))*0.000001 -> 975.3849845 | L10: =((8*'Input&Overview'!$B$13*(L$2*0.001-$A10*0.001))/(('Input&Overview'!$D$3-0.5*L$2*0.001)*PI()*($A10*0.001)^3))*0.000001 -> 984.6743653 | M10: =((8*'Input&Overview'!$B$13*(M$2*0.001-$A10*0.001))/(('Input&Overview'!$D$3-0.5*M$2*0.001)*PI()*($A10*0.001)^3))*0.000001 -> 993.9797073 | N10: =((8*'Input&Overview'!$B$13*(N$2*0.001-$A10*0.001))/(('Input&Overview'!$D$3-0.5*N$2*0.001)*PI()*($A10*0.001)^3))*0.000001 -> 1003.301052 | O10: =((8*'Input&Overview'!$B$13*(O$2*0.001-$A10*0.001))/(('Input&Overview'!$D$3-0.5*O$2*0.001)*PI()*($A10*0.001)^3))*0.000001 -> 1012.638439 | P10: =((8*'Input&Overview'!$B$13*(P$2*0.001-$A10*0.001))/(('Input&Overview'!$D$3-0.5*P$2*0.001)*PI()*($A10*0.001)^3))*0.000001 -> 1021.991912 | Q10: =((8*'Input&Overview'!$B$13*(Q$2*0.001-$A10*0.001))/(('Input&Overview'!$D$3-0.5*Q$2*0.001)*PI()*($A10*0.001)^3))*0.000001 -> 1031.361512 | R10: =((8*'Input&Overview'!$B$13*(R$2*0.001-$A10*0.001))/(('Input&Overview'!$D$3-0.5*R$2*0.001)*PI()*($A10*0.001)^3))*0.000001 -> 1040.74728 | S10: =((8*'Input&Overview'!$B$13*(S$2*0.001-$A10*0.001))/(('Input&Overview'!$D$3-0.5*S$2*0.001)*PI()*($A10*0.001)^3))*0.000001 -> 1050.149258 | T10: =((8*'Input&Overview'!$B$13*(T$2*0.001-$A10*0.001))/(('Input&Overview'!$D$3-0.5*T$2*0.001)*PI()*($A10*0.001)^3))*0.000001 -> 1059.567489 | U10: =((8*'Input&Overview'!$B$13*(U$2*0.001-$A10*0.001))/(('Input&Overview'!$D$3-0.5*U$2*0.001)*PI()*($A10*0.001)^3))*0.000001 -> 1069.002014 | V10: =((8*'Input&Overview'!$B$13*(V$2*0.001-$A10*0.001))/(('Input&Overview'!$D$3-0.5*V$2*0.001)*PI()*($A10*0.001)^3))*0.000001 -> 1078.452876 | W10: =((8*'Input&Overview'!$B$13*(W$2*0.001-$A10*0.001))/(('Input&Overview'!$D$3-0.5*W$2*0.001)*PI()*($A10*0.001)^3))*0.000001 -> 1087.920118 | X10: =((8*'Input&Overview'!$B$13*(X$2*0.001-$A10*0.001))/(('Input&Overview'!$D$3-0.5*X$2*0.001)*PI()*($A10*0.001)^3))*0.000001 -> 1097.403781 | Y10: =((8*'Input&Overview'!$B$13*(Y$2*0.001-$A10*0.001))/(('Input&Overview'!$D$3-0.5*Y$2*0.001)*PI()*($A10*0.001)^3))*0.000001 -> 1106.903909 | Z10: =((8*'Input&Overview'!$B$13*(Z$2*0.001-$A10*0.001))/(('Input&Overview'!$D$3-0.5*Z$2*0.001)*PI()*($A10*0.001)^3))*0.000001 -> 1116.420545 | AA10: =((8*'Input&Overview'!$B$13*(AA$2*0.001-$A10*0.001))/(('Input&Overview'!$D$3-0.5*AA$2*0.001)*PI()*($A10*0.001)^3))*0.000001 -> 1125.953731 | AB10: =((8*'Input&Overview'!$B$13*(AB$2*0.001-$A10*0.001))/(('Input&Overview'!$D$3-0.5*AB$2*0.001)*PI()*($A10*0.001)^3))*0.000001 -> 1135.503511 | AC10: =((8*'Input&Overview'!$B$13*(AC$2*0.001-$A10*0.001))/(('Input&Overview'!$D$3-0.5*AC$2*0.001)*PI()*($A10*0.001)^3))*0.000001 -> 1145.069928 | AD10: =((8*'Input&Overview'!$B$13*(AD$2*0.001-$A10*0.001))/(('Input&Overview'!$D$3-0.5*AD$2*0.001)*PI()*($A10*0.001)^3))*0.000001 -> 1154.653026 | AE10: =((8*'Input&Overview'!$B$13*(AE$2*0.001-$A10*0.001))/(('Input&Overview'!$D$3-0.5*AE$2*0.001)*PI()*($A10*0.001)^3))*0.000001 -> 1164.252849 | AF10: =((8*'Input&Overview'!$B$13*(AF$2*0.001-$A10*0.001))/(('Input&Overview'!$D$3-0.5*AF$2*0.001)*PI()*($A10*0.001)^3))*0.000001 -> 1173.86944 | AG10: =((8*'Input&Overview'!$B$13*(AG$2*0.001-$A10*0.001))/(('Input&Overview'!$D$3-0.5*AG$2*0.001)*PI()*($A10*0.001)^3))*0.000001 -> 1183.502843 | AH10: =((8*'Input&Overview'!$B$13*(AH$2*0.001-$A10*0.001))/(('Input&Overview'!$D$3-0.5*AH$2*0.001)*PI()*($A10*0.001)^3))*0.000001 -> 1193.153102 | AI10: =((8*'Input&Overview'!$B$13*(AI$2*0.001-$A10*0.001))/(('Input&Overview'!$D$3-0.5*AI$2*0.001)*PI()*($A10*0.001)^3))*0.000001 -> 1202.820262 | AJ10: =((8*'Input&Overview'!$B$13*(AJ$2*0.001-$A10*0.001))/(('Input&Overview'!$D$3-0.5*AJ$2*0.001)*PI()*($A10*0.001)^3))*0.000001 -> 1212.504367 | AK10: =((8*'Input&Overview'!$B$13*(AK$2*0.001-$A10*0.001))/(('Input&Overview'!$D$3-0.5*AK$2*0.001)*PI()*($A10*0.001)^3))*0.000001 -> 1222.205462 | AL10: =((8*'Input&Overview'!$B$13*(AL$2*0.001-$A10*0.001))/(('Input&Overview'!$D$3-0.5*AL$2*0.001)*PI()*($A10*0.001)^3))*0.000001 -> 1231.923591 | AM10: =((8*'Input&Overview'!$B$13*(AM$2*0.001-$A10*0.001))/(('Input&Overview'!$D$3-0.5*AM$2*0.001)*PI()*($A10*0.001)^3))*0.000001 -> 1241.6588 | AN10: =((8*'Input&Overview'!$B$13*(AN$2*0.001-$A10*0.001))/(('Input&Overview'!$D$3-0.5*AN$2*0.001)*PI()*($A10*0.001)^3))*0.000001 -> 1251.411133 | AO10: =((8*'Input&Overview'!$B$13*(AO$2*0.001-$A10*0.001))/(('Input&Overview'!$D$3-0.5*AO$2*0.001)*PI()*($A10*0.001)^3))*0.000001 -> 1261.180635 | AP10: =((8*'Input&Overview'!$B$13*(AP$2*0.001-$A10*0.001))/(('Input&Overview'!$D$3-0.5*AP$2*0.001)*PI()*($A10*0.001)^3))*0.000001 -> 1270.967353 | AQ10: =((8*'Input&Overview'!$B$13*(AQ$2*0.001-$A10*0.001))/(('Input&Overview'!$D$3-0.5*AQ$2*0.001)*PI()*($A10*0.001)^3))*0.000001 -> 1280.771331 | AR10: =((8*'Input&Overview'!$B$13*(AR$2*0.001-$A10*0.001))/(('Input&Overview'!$D$3-0.5*AR$2*0.001)*PI()*($A10*0.001)^3))*0.000001 -> 1290.592615 | AS10: =((8*'Input&Overview'!$B$13*(AS$2*0.001-$A10*0.001))/(('Input&Overview'!$D$3-0.5*AS$2*0.001)*PI()*($A10*0.001)^3))*0.000001 -> 1300.431251 | AT10: =((8*'Input&Overview'!$B$13*(AT$2*0.001-$A10*0.001))/(('Input&Overview'!$D$3-0.5*AT$2*0.001)*PI()*($A10*0.001)^3))*0.000001 -> 1310.287285 | AU10: =((8*'Input&Overview'!$B$13*(AU$2*0.001-$A10*0.001))/(('Input&Overview'!$D$3-0.5*AU$2*0.001)*PI()*($A10*0.001)^3))*0.000001 -> 1320.160764 | AV10: =((8*'Input&Overview'!$B$13*(AV$2*0.001-$A10*0.001))/(('Input&Overview'!$D$3-0.5*AV$2*0.001)*PI()*($A10*0.001)^3))*0.000001 -> 1330.051734 | AW10: =((8*'Input&Overview'!$B$13*(AW$2*0.001-$A10*0.001))/(('Input&Overview'!$D$3-0.5*AW$2*0.001)*PI()*($A10*0.001)^3))*0.000001 -> 1339.96024 | AX10: =((8*'Input&Overview'!$B$13*(AX$2*0.001-$A10*0.001))/(('Input&Overview'!$D$3-0.5*AX$2*0.001)*PI()*($A10*0.001)^3))*0.000001 -> 1349.88633 | AY10: =((8*'Input&Overview'!$B$13*(AY$2*0.001-$A10*0.001))/(('Input&Overview'!$D$3-0.5*AY$2*0.001)*PI()*($A10*0.001)^3))*0.000001 -> 1359.830052 | AZ10: =((8*'Input&Overview'!$B$13*(AZ$2*0.001-$A10*0.001))/(('Input&Overview'!$D$3-0.5*AZ$2*0.001)*PI()*($A10*0.001)^3))*0.000001 -> 1369.79145 | BA10: =((8*'Input&Overview'!$B$13*(BA$2*0.001-$A10*0.001))/(('Input&Overview'!$D$3-0.5*BA$2*0.001)*PI()*($A10*0.001)^3))*0.000001 -> 1379.770574 | BB10: =((8*'Input&Overview'!$B$13*(BB$2*0.001-$A10*0.001))/(('Input&Overview'!$D$3-0.5*BB$2*0.001)*PI()*($A10*0.001)^3))*0.000001 -> 1389.76747 | BC10: =((8*'Input&Overview'!$B$13*(BC$2*0.001-$A10*0.001))/(('Input&Overview'!$D$3-0.5*BC$2*0.001)*PI()*($A10*0.001)^3))*0.000001 -> 1399.782186 | BD10: =((8*'Input&Overview'!$B$13*(BD$2*0.001-$A10*0.001))/(('Input&Overview'!$D$3-0.5*BD$2*0.001)*PI()*($A10*0.001)^3))*0.000001 -> 1409.814769 | BE10: =((8*'Input&Overview'!$B$13*(BE$2*0.001-$A10*0.001))/(('Input&Overview'!$D$3-0.5*BE$2*0.001)*PI()*($A10*0.001)^3))*0.000001 -> 1419.865268 | BF10: =((8*'Input&Overview'!$B$13*(BF$2*0.001-$A10*0.001))/(('Input&Overview'!$D$3-0.5*BF$2*0.001)*PI()*($A10*0.001)^3))*0.000001 -> 1429.93373 | BG10: =((8*'Input&Overview'!$B$13*(BG$2*0.001-$A10*0.001))/(('Input&Overview'!$D$3-0.5*BG$2*0.001)*PI()*($A10*0.001)^3))*0.000001 -> 1440.020203 | BH10: =((8*'Input&Overview'!$B$13*(BH$2*0.001-$A10*0.001))/(('Input&Overview'!$D$3-0.5*BH$2*0.001)*PI()*($A10*0.001)^3))*0.000001 -> 1450.124737 | BI10: =((8*'Input&Overview'!$B$13*(BI$2*0.001-$A10*0.001))/(('Input&Overview'!$D$3-0.5*BI$2*0.001)*PI()*($A10*0.001)^3))*0.000001 -> 1460.247379 | BJ10: =((8*'Input&Overview'!$B$13*(BJ$2*0.001-$A10*0.001))/(('Input&Overview'!$D$3-0.5*BJ$2*0.001)*PI()*($A10*0.001)^3))*0.000001 -> 1470.388178 | BK10: =((8*'Input&Overview'!$B$13*(BK$2*0.001-$A10*0.001))/(('Input&Overview'!$D$3-0.5*BK$2*0.001)*PI()*($A10*0.001)^3))*0.000001 -> 1480.547183 | BL10: =((8*'Input&Overview'!$B$13*(BL$2*0.001-$A10*0.001))/(('Input&Overview'!$D$3-0.5*BL$2*0.001)*PI()*($A10*0.001)^3))*0.000001 -> 1490.724443 | BM10: =((8*'Input&Overview'!$B$13*(BM$2*0.001-$A10*0.001))/(('Input&Overview'!$D$3-0.5*BM$2*0.001)*PI()*($A10*0.001)^3))*0.000001 -> 1500.920008 | BN10: =((8*'Input&Overview'!$B$13*(BN$2*0.001-$A10*0.001))/(('Input&Overview'!$D$3-0.5*BN$2*0.001)*PI()*($A10*0.001)^3))*0.000001 -> 1511.133927 | BO10: =((8*'Input&Overview'!$B$13*(BO$2*0.001-$A10*0.001))/(('Input&Overview'!$D$3-0.5*BO$2*0.001)*PI()*($A10*0.001)^3))*0.000001 -> 1521.366249 | BP10: =((8*'Input&Overview'!$B$13*(BP$2*0.001-$A10*0.001))/(('Input&Overview'!$D$3-0.5*BP$2*0.001)*PI()*($A10*0.001)^3))*0.000001 -> 1531.617025 | BQ10: =((8*'Input&Overview'!$B$13*(BQ$2*0.001-$A10*0.001))/(('Input&Overview'!$D$3-0.5*BQ$2*0.001)*PI()*($A10*0.001)^3))*0.000001 -> 1541.886303 | BR10: =((8*'Input&Overview'!$B$13*(BR$2*0.001-$A10*0.001))/(('Input&Overview'!$D$3-0.5*BR$2*0.001)*PI()*($A10*0.001)^3))*0.000001 -> 1552.174135 | BS10: =((8*'Input&Overview'!$B$13*(BS$2*0.001-$A10*0.001))/(('Input&Overview'!$D$3-0.5*BS$2*0.001)*PI()*($A10*0.001)^3))*0.000001 -> 1562.480571 | BT10: =((8*'Input&Overview'!$B$13*(BT$2*0.001-$A10*0.001))/(('Input&Overview'!$D$3-0.5*BT$2*0.001)*PI()*($A10*0.001)^3))*0.000001 -> 1572.80566 | BU10: =((8*'Input&Overview'!$B$13*(BU$2*0.001-$A10*0.001))/(('Input&Overview'!$D$3-0.5*BU$2*0.001)*PI()*($A10*0.001)^3))*0.000001 -> 1583.149455 | BV10: =((8*'Input&Overview'!$B$13*(BV$2*0.001-$A10*0.001))/(('Input&Overview'!$D$3-0.5*BV$2*0.001)*PI()*($A10*0.001)^3))*0.000001 -> 1593.512006 | BW10: =((8*'Input&Overview'!$B$13*(BW$2*0.001-$A10*0.001))/(('Input&Overview'!$D$3-0.5*BW$2*0.001)*PI()*($A10*0.001)^3))*0.000001 -> 1603.893363 | BX10: =((8*'Input&Overview'!$B$13*(BX$2*0.001-$A10*0.001))/(('Input&Overview'!$D$3-0.5*BX$2*0.001)*PI()*($A10*0.001)^3))*0.000001 -> 1614.293578 | BY10: =((8*'Input&Overview'!$B$13*(BY$2*0.001-$A10*0.001))/(('Input&Overview'!$D$3-0.5*BY$2*0.001)*PI()*($A10*0.001)^3))*0.000001 -> 1624.712703 | BZ10: =((8*'Input&Overview'!$B$13*(BZ$2*0.001-$A10*0.001))/(('Input&Overview'!$D$3-0.5*BZ$2*0.001)*PI()*($A10*0.001)^3))*0.000001 -> 1635.150789 | CA10: =((8*'Input&Overview'!$B$13*(CA$2*0.001-$A10*0.001))/(('Input&Overview'!$D$3-0.5*CA$2*0.001)*PI()*($A10*0.001)^3))*0.000001 -> 1645.607887 | CB10: =((8*'Input&Overview'!$B$13*(CB$2*0.001-$A10*0.001))/(('Input&Overview'!$D$3-0.5*CB$2*0.001)*PI()*($A10*0.001)^3))*0.000001 -> 1656.084051 | CC10: =((8*'Input&Overview'!$B$13*(CC$2*0.001-$A10*0.001))/(('Input&Overview'!$D$3-0.5*CC$2*0.001)*PI()*($A10*0.001)^3))*0.000001 -> 1666.579332 | CD10: =((8*'Input&Overview'!$B$13*(CD$2*0.001-$A10*0.001))/(('Input&Overview'!$D$3-0.5*CD$2*0.001)*PI()*($A10*0.001)^3))*0.000001 -> 1677.093782 | CE10: =((8*'Input&Overview'!$B$13*(CE$2*0.001-$A10*0.001))/(('Input&Overview'!$D$3-0.5*CE$2*0.001)*PI()*($A10*0.001)^3))*0.000001 -> 1687.627454 | CF10: =((8*'Input&Overview'!$B$13*(CF$2*0.001-$A10*0.001))/(('Input&Overview'!$D$3-0.5*CF$2*0.001)*PI()*($A10*0.001)^3))*0.000001 -> 1698.180401 | CG10: =((8*'Input&Overview'!$B$13*(CG$2*0.001-$A10*0.001))/(('Input&Overview'!$D$3-0.5*CG$2*0.001)*PI()*($A10*0.001)^3))*0.000001 -> 1708.752676 | CH10: =((8*'Input&Overview'!$B$13*(CH$2*0.001-$A10*0.001))/(('Input&Overview'!$D$3-0.5*CH$2*0.001)*PI()*($A10*0.001)^3))*0.000001 -> 1719.344332 | CI10: =((8*'Input&Overview'!$B$13*(CI$2*0.001-$A10*0.001))/(('Input&Overview'!$D$3-0.5*CI$2*0.001)*PI()*($A10*0.001)^3))*0.000001 -> 1729.955422
A11: ='c'!$A11 -> 3.8 | B11: =((8*'Input&Overview'!$B$13*(B$2*0.001-$A11*0.001))/(('Input&Overview'!$D$3-0.5*B$2*0.001)*PI()*($A11*0.001)^3))*0.000001 -> 820.002191 | C11: =((8*'Input&Overview'!$B$13*(C$2*0.001-$A11*0.001))/(('Input&Overview'!$D$3-0.5*C$2*0.001)*PI()*($A11*0.001)^3))*0.000001 -> 828.4431187 | D11: =((8*'Input&Overview'!$B$13*(D$2*0.001-$A11*0.001))/(('Input&Overview'!$D$3-0.5*D$2*0.001)*PI()*($A11*0.001)^3))*0.000001 -> 836.8984385 | E11: =((8*'Input&Overview'!$B$13*(E$2*0.001-$A11*0.001))/(('Input&Overview'!$D$3-0.5*E$2*0.001)*PI()*($A11*0.001)^3))*0.000001 -> 845.3681871 | F11: =((8*'Input&Overview'!$B$13*(F$2*0.001-$A11*0.001))/(('Input&Overview'!$D$3-0.5*F$2*0.001)*PI()*($A11*0.001)^3))*0.000001 -> 853.8524015 | G11: =((8*'Input&Overview'!$B$13*(G$2*0.001-$A11*0.001))/(('Input&Overview'!$D$3-0.5*G$2*0.001)*PI()*($A11*0.001)^3))*0.000001 -> 862.3511189 | H11: =((8*'Input&Overview'!$B$13*(H$2*0.001-$A11*0.001))/(('Input&Overview'!$D$3-0.5*H$2*0.001)*PI()*($A11*0.001)^3))*0.000001 -> 870.8643764 | I11: =((8*'Input&Overview'!$B$13*(I$2*0.001-$A11*0.001))/(('Input&Overview'!$D$3-0.5*I$2*0.001)*PI()*($A11*0.001)^3))*0.000001 -> 879.3922114 | J11: =((8*'Input&Overview'!$B$13*(J$2*0.001-$A11*0.001))/(('Input&Overview'!$D$3-0.5*J$2*0.001)*PI()*($A11*0.001)^3))*0.000001 -> 887.9346614 | K11: =((8*'Input&Overview'!$B$13*(K$2*0.001-$A11*0.001))/(('Input&Overview'!$D$3-0.5*K$2*0.001)*PI()*($A11*0.001)^3))*0.000001 -> 896.491764 | L11: =((8*'Input&Overview'!$B$13*(L$2*0.001-$A11*0.001))/(('Input&Overview'!$D$3-0.5*L$2*0.001)*PI()*($A11*0.001)^3))*0.000001 -> 905.0635569 | M11: =((8*'Input&Overview'!$B$13*(M$2*0.001-$A11*0.001))/(('Input&Overview'!$D$3-0.5*M$2*0.001)*PI()*($A11*0.001)^3))*0.000001 -> 913.6500779 | N11: =((8*'Input&Overview'!$B$13*(N$2*0.001-$A11*0.001))/(('Input&Overview'!$D$3-0.5*N$2*0.001)*PI()*($A11*0.001)^3))*0.000001 -> 922.2513651 | O11: =((8*'Input&Overview'!$B$13*(O$2*0.001-$A11*0.001))/(('Input&Overview'!$D$3-0.5*O$2*0.001)*PI()*($A11*0.001)^3))*0.000001 -> 930.8674566 | P11: =((8*'Input&Overview'!$B$13*(P$2*0.001-$A11*0.001))/(('Input&Overview'!$D$3-0.5*P$2*0.001)*PI()*($A11*0.001)^3))*0.000001 -> 939.4983906 | Q11: =((8*'Input&Overview'!$B$13*(Q$2*0.001-$A11*0.001))/(('Input&Overview'!$D$3-0.5*Q$2*0.001)*PI()*($A11*0.001)^3))*0.000001 -> 948.1442055 | R11: =((8*'Input&Overview'!$B$13*(R$2*0.001-$A11*0.001))/(('Input&Overview'!$D$3-0.5*R$2*0.001)*PI()*($A11*0.001)^3))*0.000001 -> 956.8049399 | S11: =((8*'Input&Overview'!$B$13*(S$2*0.001-$A11*0.001))/(('Input&Overview'!$D$3-0.5*S$2*0.001)*PI()*($A11*0.001)^3))*0.000001 -> 965.4806323 | T11: =((8*'Input&Overview'!$B$13*(T$2*0.001-$A11*0.001))/(('Input&Overview'!$D$3-0.5*T$2*0.001)*PI()*($A11*0.001)^3))*0.000001 -> 974.1713217 | U11: =((8*'Input&Overview'!$B$13*(U$2*0.001-$A11*0.001))/(('Input&Overview'!$D$3-0.5*U$2*0.001)*PI()*($A11*0.001)^3))*0.000001 -> 982.8770468 | V11: =((8*'Input&Overview'!$B$13*(V$2*0.001-$A11*0.001))/(('Input&Overview'!$D$3-0.5*V$2*0.001)*PI()*($A11*0.001)^3))*0.000001 -> 991.5978468 | W11: =((8*'Input&Overview'!$B$13*(W$2*0.001-$A11*0.001))/(('Input&Overview'!$D$3-0.5*W$2*0.001)*PI()*($A11*0.001)^3))*0.000001 -> 1000.333761 | X11: =((8*'Input&Overview'!$B$13*(X$2*0.001-$A11*0.001))/(('Input&Overview'!$D$3-0.5*X$2*0.001)*PI()*($A11*0.001)^3))*0.000001 -> 1009.084828 | Y11: =((8*'Input&Overview'!$B$13*(Y$2*0.001-$A11*0.001))/(('Input&Overview'!$D$3-0.5*Y$2*0.001)*PI()*($A11*0.001)^3))*0.000001 -> 1017.851088 | Z11: =((8*'Input&Overview'!$B$13*(Z$2*0.001-$A11*0.001))/(('Input&Overview'!$D$3-0.5*Z$2*0.001)*PI()*($A11*0.001)^3))*0.000001 -> 1026.632581 | AA11: =((8*'Input&Overview'!$B$13*(AA$2*0.001-$A11*0.001))/(('Input&Overview'!$D$3-0.5*AA$2*0.001)*PI()*($A11*0.001)^3))*0.000001 -> 1035.429346 | AB11: =((8*'Input&Overview'!$B$13*(AB$2*0.001-$A11*0.001))/(('Input&Overview'!$D$3-0.5*AB$2*0.001)*PI()*($A11*0.001)^3))*0.000001 -> 1044.241423 | AC11: =((8*'Input&Overview'!$B$13*(AC$2*0.001-$A11*0.001))/(('Input&Overview'!$D$3-0.5*AC$2*0.001)*PI()*($A11*0.001)^3))*0.000001 -> 1053.068852 | AD11: =((8*'Input&Overview'!$B$13*(AD$2*0.001-$A11*0.001))/(('Input&Overview'!$D$3-0.5*AD$2*0.001)*PI()*($A11*0.001)^3))*0.000001 -> 1061.911673 | AE11: =((8*'Input&Overview'!$B$13*(AE$2*0.001-$A11*0.001))/(('Input&Overview'!$D$3-0.5*AE$2*0.001)*PI()*($A11*0.001)^3))*0.000001 -> 1070.769926 | AF11: =((8*'Input&Overview'!$B$13*(AF$2*0.001-$A11*0.001))/(('Input&Overview'!$D$3-0.5*AF$2*0.001)*PI()*($A11*0.001)^3))*0.000001 -> 1079.643653 | AG11: =((8*'Input&Overview'!$B$13*(AG$2*0.001-$A11*0.001))/(('Input&Overview'!$D$3-0.5*AG$2*0.001)*PI()*($A11*0.001)^3))*0.000001 -> 1088.532893 | AH11: =((8*'Input&Overview'!$B$13*(AH$2*0.001-$A11*0.001))/(('Input&Overview'!$D$3-0.5*AH$2*0.001)*PI()*($A11*0.001)^3))*0.000001 -> 1097.437687 | AI11: =((8*'Input&Overview'!$B$13*(AI$2*0.001-$A11*0.001))/(('Input&Overview'!$D$3-0.5*AI$2*0.001)*PI()*($A11*0.001)^3))*0.000001 -> 1106.358076 | AJ11: =((8*'Input&Overview'!$B$13*(AJ$2*0.001-$A11*0.001))/(('Input&Overview'!$D$3-0.5*AJ$2*0.001)*PI()*($A11*0.001)^3))*0.000001 -> 1115.294102 | AK11: =((8*'Input&Overview'!$B$13*(AK$2*0.001-$A11*0.001))/(('Input&Overview'!$D$3-0.5*AK$2*0.001)*PI()*($A11*0.001)^3))*0.000001 -> 1124.245804 | AL11: =((8*'Input&Overview'!$B$13*(AL$2*0.001-$A11*0.001))/(('Input&Overview'!$D$3-0.5*AL$2*0.001)*PI()*($A11*0.001)^3))*0.000001 -> 1133.213226 | AM11: =((8*'Input&Overview'!$B$13*(AM$2*0.001-$A11*0.001))/(('Input&Overview'!$D$3-0.5*AM$2*0.001)*PI()*($A11*0.001)^3))*0.000001 -> 1142.196407 | AN11: =((8*'Input&Overview'!$B$13*(AN$2*0.001-$A11*0.001))/(('Input&Overview'!$D$3-0.5*AN$2*0.001)*PI()*($A11*0.001)^3))*0.000001 -> 1151.195389 | AO11: =((8*'Input&Overview'!$B$13*(AO$2*0.001-$A11*0.001))/(('Input&Overview'!$D$3-0.5*AO$2*0.001)*PI()*($A11*0.001)^3))*0.000001 -> 1160.210215 | AP11: =((8*'Input&Overview'!$B$13*(AP$2*0.001-$A11*0.001))/(('Input&Overview'!$D$3-0.5*AP$2*0.001)*PI()*($A11*0.001)^3))*0.000001 -> 1169.240927 | AQ11: =((8*'Input&Overview'!$B$13*(AQ$2*0.001-$A11*0.001))/(('Input&Overview'!$D$3-0.5*AQ$2*0.001)*PI()*($A11*0.001)^3))*0.000001 -> 1178.287565 | AR11: =((8*'Input&Overview'!$B$13*(AR$2*0.001-$A11*0.001))/(('Input&Overview'!$D$3-0.5*AR$2*0.001)*PI()*($A11*0.001)^3))*0.000001 -> 1187.350173 | AS11: =((8*'Input&Overview'!$B$13*(AS$2*0.001-$A11*0.001))/(('Input&Overview'!$D$3-0.5*AS$2*0.001)*PI()*($A11*0.001)^3))*0.000001 -> 1196.428792 | AT11: =((8*'Input&Overview'!$B$13*(AT$2*0.001-$A11*0.001))/(('Input&Overview'!$D$3-0.5*AT$2*0.001)*PI()*($A11*0.001)^3))*0.000001 -> 1205.523465 | AU11: =((8*'Input&Overview'!$B$13*(AU$2*0.001-$A11*0.001))/(('Input&Overview'!$D$3-0.5*AU$2*0.001)*PI()*($A11*0.001)^3))*0.000001 -> 1214.634236 | AV11: =((8*'Input&Overview'!$B$13*(AV$2*0.001-$A11*0.001))/(('Input&Overview'!$D$3-0.5*AV$2*0.001)*PI()*($A11*0.001)^3))*0.000001 -> 1223.761145 | AW11: =((8*'Input&Overview'!$B$13*(AW$2*0.001-$A11*0.001))/(('Input&Overview'!$D$3-0.5*AW$2*0.001)*PI()*($A11*0.001)^3))*0.000001 -> 1232.904238 | AX11: =((8*'Input&Overview'!$B$13*(AX$2*0.001-$A11*0.001))/(('Input&Overview'!$D$3-0.5*AX$2*0.001)*PI()*($A11*0.001)^3))*0.000001 -> 1242.063555 | AY11: =((8*'Input&Overview'!$B$13*(AY$2*0.001-$A11*0.001))/(('Input&Overview'!$D$3-0.5*AY$2*0.001)*PI()*($A11*0.001)^3))*0.000001 -> 1251.239142 | AZ11: =((8*'Input&Overview'!$B$13*(AZ$2*0.001-$A11*0.001))/(('Input&Overview'!$D$3-0.5*AZ$2*0.001)*PI()*($A11*0.001)^3))*0.000001 -> 1260.431041 | BA11: =((8*'Input&Overview'!$B$13*(BA$2*0.001-$A11*0.001))/(('Input&Overview'!$D$3-0.5*BA$2*0.001)*PI()*($A11*0.001)^3))*0.000001 -> 1269.639295 | BB11: =((8*'Input&Overview'!$B$13*(BB$2*0.001-$A11*0.001))/(('Input&Overview'!$D$3-0.5*BB$2*0.001)*PI()*($A11*0.001)^3))*0.000001 -> 1278.863949 | BC11: =((8*'Input&Overview'!$B$13*(BC$2*0.001-$A11*0.001))/(('Input&Overview'!$D$3-0.5*BC$2*0.001)*PI()*($A11*0.001)^3))*0.000001 -> 1288.105046 | BD11: =((8*'Input&Overview'!$B$13*(BD$2*0.001-$A11*0.001))/(('Input&Overview'!$D$3-0.5*BD$2*0.001)*PI()*($A11*0.001)^3))*0.000001 -> 1297.36263 | BE11: =((8*'Input&Overview'!$B$13*(BE$2*0.001-$A11*0.001))/(('Input&Overview'!$D$3-0.5*BE$2*0.001)*PI()*($A11*0.001)^3))*0.000001 -> 1306.636746 | BF11: =((8*'Input&Overview'!$B$13*(BF$2*0.001-$A11*0.001))/(('Input&Overview'!$D$3-0.5*BF$2*0.001)*PI()*($A11*0.001)^3))*0.000001 -> 1315.927437 | BG11: =((8*'Input&Overview'!$B$13*(BG$2*0.001-$A11*0.001))/(('Input&Overview'!$D$3-0.5*BG$2*0.001)*PI()*($A11*0.001)^3))*0.000001 -> 1325.234749 | BH11: =((8*'Input&Overview'!$B$13*(BH$2*0.001-$A11*0.001))/(('Input&Overview'!$D$3-0.5*BH$2*0.001)*PI()*($A11*0.001)^3))*0.000001 -> 1334.558725 | BI11: =((8*'Input&Overview'!$B$13*(BI$2*0.001-$A11*0.001))/(('Input&Overview'!$D$3-0.5*BI$2*0.001)*PI()*($A11*0.001)^3))*0.000001 -> 1343.899412 | BJ11: =((8*'Input&Overview'!$B$13*(BJ$2*0.001-$A11*0.001))/(('Input&Overview'!$D$3-0.5*BJ$2*0.001)*PI()*($A11*0.001)^3))*0.000001 -> 1353.256852 | BK11: =((8*'Input&Overview'!$B$13*(BK$2*0.001-$A11*0.001))/(('Input&Overview'!$D$3-0.5*BK$2*0.001)*PI()*($A11*0.001)^3))*0.000001 -> 1362.631093 | BL11: =((8*'Input&Overview'!$B$13*(BL$2*0.001-$A11*0.001))/(('Input&Overview'!$D$3-0.5*BL$2*0.001)*PI()*($A11*0.001)^3))*0.000001 -> 1372.022178 | BM11: =((8*'Input&Overview'!$B$13*(BM$2*0.001-$A11*0.001))/(('Input&Overview'!$D$3-0.5*BM$2*0.001)*PI()*($A11*0.001)^3))*0.000001 -> 1381.430154 | BN11: =((8*'Input&Overview'!$B$13*(BN$2*0.001-$A11*0.001))/(('Input&Overview'!$D$3-0.5*BN$2*0.001)*PI()*($A11*0.001)^3))*0.000001 -> 1390.855066 | BO11: =((8*'Input&Overview'!$B$13*(BO$2*0.001-$A11*0.001))/(('Input&Overview'!$D$3-0.5*BO$2*0.001)*PI()*($A11*0.001)^3))*0.000001 -> 1400.296959 | BP11: =((8*'Input&Overview'!$B$13*(BP$2*0.001-$A11*0.001))/(('Input&Overview'!$D$3-0.5*BP$2*0.001)*PI()*($A11*0.001)^3))*0.000001 -> 1409.755881 | BQ11: =((8*'Input&Overview'!$B$13*(BQ$2*0.001-$A11*0.001))/(('Input&Overview'!$D$3-0.5*BQ$2*0.001)*PI()*($A11*0.001)^3))*0.000001 -> 1419.231876 | BR11: =((8*'Input&Overview'!$B$13*(BR$2*0.001-$A11*0.001))/(('Input&Overview'!$D$3-0.5*BR$2*0.001)*PI()*($A11*0.001)^3))*0.000001 -> 1428.724992 | BS11: =((8*'Input&Overview'!$B$13*(BS$2*0.001-$A11*0.001))/(('Input&Overview'!$D$3-0.5*BS$2*0.001)*PI()*($A11*0.001)^3))*0.000001 -> 1438.235274 | BT11: =((8*'Input&Overview'!$B$13*(BT$2*0.001-$A11*0.001))/(('Input&Overview'!$D$3-0.5*BT$2*0.001)*PI()*($A11*0.001)^3))*0.000001 -> 1447.762769 | BU11: =((8*'Input&Overview'!$B$13*(BU$2*0.001-$A11*0.001))/(('Input&Overview'!$D$3-0.5*BU$2*0.001)*PI()*($A11*0.001)^3))*0.000001 -> 1457.307524 | BV11: =((8*'Input&Overview'!$B$13*(BV$2*0.001-$A11*0.001))/(('Input&Overview'!$D$3-0.5*BV$2*0.001)*PI()*($A11*0.001)^3))*0.000001 -> 1466.869586 | BW11: =((8*'Input&Overview'!$B$13*(BW$2*0.001-$A11*0.001))/(('Input&Overview'!$D$3-0.5*BW$2*0.001)*PI()*($A11*0.001)^3))*0.000001 -> 1476.449002 | BX11: =((8*'Input&Overview'!$B$13*(BX$2*0.001-$A11*0.001))/(('Input&Overview'!$D$3-0.5*BX$2*0.001)*PI()*($A11*0.001)^3))*0.000001 -> 1486.045819 | BY11: =((8*'Input&Overview'!$B$13*(BY$2*0.001-$A11*0.001))/(('Input&Overview'!$D$3-0.5*BY$2*0.001)*PI()*($A11*0.001)^3))*0.000001 -> 1495.660086 | BZ11: =((8*'Input&Overview'!$B$13*(BZ$2*0.001-$A11*0.001))/(('Input&Overview'!$D$3-0.5*BZ$2*0.001)*PI()*($A11*0.001)^3))*0.000001 -> 1505.291848 | CA11: =((8*'Input&Overview'!$B$13*(CA$2*0.001-$A11*0.001))/(('Input&Overview'!$D$3-0.5*CA$2*0.001)*PI()*($A11*0.001)^3))*0.000001 -> 1514.941155 | CB11: =((8*'Input&Overview'!$B$13*(CB$2*0.001-$A11*0.001))/(('Input&Overview'!$D$3-0.5*CB$2*0.001)*PI()*($A11*0.001)^3))*0.000001 -> 1524.608054 | CC11: =((8*'Input&Overview'!$B$13*(CC$2*0.001-$A11*0.001))/(('Input&Overview'!$D$3-0.5*CC$2*0.001)*PI()*($A11*0.001)^3))*0.000001 -> 1534.292593 | CD11: =((8*'Input&Overview'!$B$13*(CD$2*0.001-$A11*0.001))/(('Input&Overview'!$D$3-0.5*CD$2*0.001)*PI()*($A11*0.001)^3))*0.000001 -> 1543.994821 | CE11: =((8*'Input&Overview'!$B$13*(CE$2*0.001-$A11*0.001))/(('Input&Overview'!$D$3-0.5*CE$2*0.001)*PI()*($A11*0.001)^3))*0.000001 -> 1553.714786 | CF11: =((8*'Input&Overview'!$B$13*(CF$2*0.001-$A11*0.001))/(('Input&Overview'!$D$3-0.5*CF$2*0.001)*PI()*($A11*0.001)^3))*0.000001 -> 1563.452537 | CG11: =((8*'Input&Overview'!$B$13*(CG$2*0.001-$A11*0.001))/(('Input&Overview'!$D$3-0.5*CG$2*0.001)*PI()*($A11*0.001)^3))*0.000001 -> 1573.208122 | CH11: =((8*'Input&Overview'!$B$13*(CH$2*0.001-$A11*0.001))/(('Input&Overview'!$D$3-0.5*CH$2*0.001)*PI()*($A11*0.001)^3))*0.000001 -> 1582.981592 | CI11: =((8*'Input&Overview'!$B$13*(CI$2*0.001-$A11*0.001))/(('Input&Overview'!$D$3-0.5*CI$2*0.001)*PI()*($A11*0.001)^3))*0.000001 -> 1592.772994
A12: ='c'!$A12 -> 3.9 | B12: =((8*'Input&Overview'!$B$13*(B$2*0.001-$A12*0.001))/(('Input&Overview'!$D$3-0.5*B$2*0.001)*PI()*($A12*0.001)^3))*0.000001 -> 754.9506719 | C12: =((8*'Input&Overview'!$B$13*(C$2*0.001-$A12*0.001))/(('Input&Overview'!$D$3-0.5*C$2*0.001)*PI()*($A12*0.001)^3))*0.000001 -> 762.7557562 | D12: =((8*'Input&Overview'!$B$13*(D$2*0.001-$A12*0.001))/(('Input&Overview'!$D$3-0.5*D$2*0.001)*PI()*($A12*0.001)^3))*0.000001 -> 770.5741485 | E12: =((8*'Input&Overview'!$B$13*(E$2*0.001-$A12*0.001))/(('Input&Overview'!$D$3-0.5*E$2*0.001)*PI()*($A12*0.001)^3))*0.000001 -> 778.4058827 | F12: =((8*'Input&Overview'!$B$13*(F$2*0.001-$A12*0.001))/(('Input&Overview'!$D$3-0.5*F$2*0.001)*PI()*($A12*0.001)^3))*0.000001 -> 786.2509931 | G12: =((8*'Input&Overview'!$B$13*(G$2*0.001-$A12*0.001))/(('Input&Overview'!$D$3-0.5*G$2*0.001)*PI()*($A12*0.001)^3))*0.000001 -> 794.109514 | H12: =((8*'Input&Overview'!$B$13*(H$2*0.001-$A12*0.001))/(('Input&Overview'!$D$3-0.5*H$2*0.001)*PI()*($A12*0.001)^3))*0.000001 -> 801.9814797 | I12: =((8*'Input&Overview'!$B$13*(I$2*0.001-$A12*0.001))/(('Input&Overview'!$D$3-0.5*I$2*0.001)*PI()*($A12*0.001)^3))*0.000001 -> 809.8669248 | J12: =((8*'Input&Overview'!$B$13*(J$2*0.001-$A12*0.001))/(('Input&Overview'!$D$3-0.5*J$2*0.001)*PI()*($A12*0.001)^3))*0.000001 -> 817.7658839 | K12: =((8*'Input&Overview'!$B$13*(K$2*0.001-$A12*0.001))/(('Input&Overview'!$D$3-0.5*K$2*0.001)*PI()*($A12*0.001)^3))*0.000001 -> 825.6783918 | L12: =((8*'Input&Overview'!$B$13*(L$2*0.001-$A12*0.001))/(('Input&Overview'!$D$3-0.5*L$2*0.001)*PI()*($A12*0.001)^3))*0.000001 -> 833.6044835 | M12: =((8*'Input&Overview'!$B$13*(M$2*0.001-$A12*0.001))/(('Input&Overview'!$D$3-0.5*M$2*0.001)*PI()*($A12*0.001)^3))*0.000001 -> 841.5441939 | N12: =((8*'Input&Overview'!$B$13*(N$2*0.001-$A12*0.001))/(('Input&Overview'!$D$3-0.5*N$2*0.001)*PI()*($A12*0.001)^3))*0.000001 -> 849.4975581 | O12: =((8*'Input&Overview'!$B$13*(O$2*0.001-$A12*0.001))/(('Input&Overview'!$D$3-0.5*O$2*0.001)*PI()*($A12*0.001)^3))*0.000001 -> 857.4646114 | P12: =((8*'Input&Overview'!$B$13*(P$2*0.001-$A12*0.001))/(('Input&Overview'!$D$3-0.5*P$2*0.001)*PI()*($A12*0.001)^3))*0.000001 -> 865.4453891 | Q12: =((8*'Input&Overview'!$B$13*(Q$2*0.001-$A12*0.001))/(('Input&Overview'!$D$3-0.5*Q$2*0.001)*PI()*($A12*0.001)^3))*0.000001 -> 873.4399269 | R12: =((8*'Input&Overview'!$B$13*(R$2*0.001-$A12*0.001))/(('Input&Overview'!$D$3-0.5*R$2*0.001)*PI()*($A12*0.001)^3))*0.000001 -> 881.4482602 | S12: =((8*'Input&Overview'!$B$13*(S$2*0.001-$A12*0.001))/(('Input&Overview'!$D$3-0.5*S$2*0.001)*PI()*($A12*0.001)^3))*0.000001 -> 889.4704248 | T12: =((8*'Input&Overview'!$B$13*(T$2*0.001-$A12*0.001))/(('Input&Overview'!$D$3-0.5*T$2*0.001)*PI()*($A12*0.001)^3))*0.000001 -> 897.5064566 | U12: =((8*'Input&Overview'!$B$13*(U$2*0.001-$A12*0.001))/(('Input&Overview'!$D$3-0.5*U$2*0.001)*PI()*($A12*0.001)^3))*0.000001 -> 905.5563916 | V12: =((8*'Input&Overview'!$B$13*(V$2*0.001-$A12*0.001))/(('Input&Overview'!$D$3-0.5*V$2*0.001)*PI()*($A12*0.001)^3))*0.000001 -> 913.6202659 | W12: =((8*'Input&Overview'!$B$13*(W$2*0.001-$A12*0.001))/(('Input&Overview'!$D$3-0.5*W$2*0.001)*PI()*($A12*0.001)^3))*0.000001 -> 921.6981157 | X12: =((8*'Input&Overview'!$B$13*(X$2*0.001-$A12*0.001))/(('Input&Overview'!$D$3-0.5*X$2*0.001)*PI()*($A12*0.001)^3))*0.000001 -> 929.7899773 | Y12: =((8*'Input&Overview'!$B$13*(Y$2*0.001-$A12*0.001))/(('Input&Overview'!$D$3-0.5*Y$2*0.001)*PI()*($A12*0.001)^3))*0.000001 -> 937.8958874 | Z12: =((8*'Input&Overview'!$B$13*(Z$2*0.001-$A12*0.001))/(('Input&Overview'!$D$3-0.5*Z$2*0.001)*PI()*($A12*0.001)^3))*0.000001 -> 946.0158824 | AA12: =((8*'Input&Overview'!$B$13*(AA$2*0.001-$A12*0.001))/(('Input&Overview'!$D$3-0.5*AA$2*0.001)*PI()*($A12*0.001)^3))*0.000001 -> 954.1499991 | AB12: =((8*'Input&Overview'!$B$13*(AB$2*0.001-$A12*0.001))/(('Input&Overview'!$D$3-0.5*AB$2*0.001)*PI()*($A12*0.001)^3))*0.000001 -> 962.2982745 | AC12: =((8*'Input&Overview'!$B$13*(AC$2*0.001-$A12*0.001))/(('Input&Overview'!$D$3-0.5*AC$2*0.001)*PI()*($A12*0.001)^3))*0.000001 -> 970.4607454 | AD12: =((8*'Input&Overview'!$B$13*(AD$2*0.001-$A12*0.001))/(('Input&Overview'!$D$3-0.5*AD$2*0.001)*PI()*($A12*0.001)^3))*0.000001 -> 978.6374491 | AE12: =((8*'Input&Overview'!$B$13*(AE$2*0.001-$A12*0.001))/(('Input&Overview'!$D$3-0.5*AE$2*0.001)*PI()*($A12*0.001)^3))*0.000001 -> 986.8284228 | AF12: =((8*'Input&Overview'!$B$13*(AF$2*0.001-$A12*0.001))/(('Input&Overview'!$D$3-0.5*AF$2*0.001)*PI()*($A12*0.001)^3))*0.000001 -> 995.0337039 | AG12: =((8*'Input&Overview'!$B$13*(AG$2*0.001-$A12*0.001))/(('Input&Overview'!$D$3-0.5*AG$2*0.001)*PI()*($A12*0.001)^3))*0.000001 -> 1003.25333 | AH12: =((8*'Input&Overview'!$B$13*(AH$2*0.001-$A12*0.001))/(('Input&Overview'!$D$3-0.5*AH$2*0.001)*PI()*($A12*0.001)^3))*0.000001 -> 1011.487338 | AI12: =((8*'Input&Overview'!$B$13*(AI$2*0.001-$A12*0.001))/(('Input&Overview'!$D$3-0.5*AI$2*0.001)*PI()*($A12*0.001)^3))*0.000001 -> 1019.735767 | AJ12: =((8*'Input&Overview'!$B$13*(AJ$2*0.001-$A12*0.001))/(('Input&Overview'!$D$3-0.5*AJ$2*0.001)*PI()*($A12*0.001)^3))*0.000001 -> 1027.998654 | AK12: =((8*'Input&Overview'!$B$13*(AK$2*0.001-$A12*0.001))/(('Input&Overview'!$D$3-0.5*AK$2*0.001)*PI()*($A12*0.001)^3))*0.000001 -> 1036.276038 | AL12: =((8*'Input&Overview'!$B$13*(AL$2*0.001-$A12*0.001))/(('Input&Overview'!$D$3-0.5*AL$2*0.001)*PI()*($A12*0.001)^3))*0.000001 -> 1044.567955 | AM12: =((8*'Input&Overview'!$B$13*(AM$2*0.001-$A12*0.001))/(('Input&Overview'!$D$3-0.5*AM$2*0.001)*PI()*($A12*0.001)^3))*0.000001 -> 1052.874446 | AN12: =((8*'Input&Overview'!$B$13*(AN$2*0.001-$A12*0.001))/(('Input&Overview'!$D$3-0.5*AN$2*0.001)*PI()*($A12*0.001)^3))*0.000001 -> 1061.195548 | AO12: =((8*'Input&Overview'!$B$13*(AO$2*0.001-$A12*0.001))/(('Input&Overview'!$D$3-0.5*AO$2*0.001)*PI()*($A12*0.001)^3))*0.000001 -> 1069.5313 | AP12: =((8*'Input&Overview'!$B$13*(AP$2*0.001-$A12*0.001))/(('Input&Overview'!$D$3-0.5*AP$2*0.001)*PI()*($A12*0.001)^3))*0.000001 -> 1077.88174 | AQ12: =((8*'Input&Overview'!$B$13*(AQ$2*0.001-$A12*0.001))/(('Input&Overview'!$D$3-0.5*AQ$2*0.001)*PI()*($A12*0.001)^3))*0.000001 -> 1086.246908 | AR12: =((8*'Input&Overview'!$B$13*(AR$2*0.001-$A12*0.001))/(('Input&Overview'!$D$3-0.5*AR$2*0.001)*PI()*($A12*0.001)^3))*0.000001 -> 1094.626842 | AS12: =((8*'Input&Overview'!$B$13*(AS$2*0.001-$A12*0.001))/(('Input&Overview'!$D$3-0.5*AS$2*0.001)*PI()*($A12*0.001)^3))*0.000001 -> 1103.021581 | AT12: =((8*'Input&Overview'!$B$13*(AT$2*0.001-$A12*0.001))/(('Input&Overview'!$D$3-0.5*AT$2*0.001)*PI()*($A12*0.001)^3))*0.000001 -> 1111.431166 | AU12: =((8*'Input&Overview'!$B$13*(AU$2*0.001-$A12*0.001))/(('Input&Overview'!$D$3-0.5*AU$2*0.001)*PI()*($A12*0.001)^3))*0.000001 -> 1119.855634 | AV12: =((8*'Input&Overview'!$B$13*(AV$2*0.001-$A12*0.001))/(('Input&Overview'!$D$3-0.5*AV$2*0.001)*PI()*($A12*0.001)^3))*0.000001 -> 1128.295027 | AW12: =((8*'Input&Overview'!$B$13*(AW$2*0.001-$A12*0.001))/(('Input&Overview'!$D$3-0.5*AW$2*0.001)*PI()*($A12*0.001)^3))*0.000001 -> 1136.749382 | AX12: =((8*'Input&Overview'!$B$13*(AX$2*0.001-$A12*0.001))/(('Input&Overview'!$D$3-0.5*AX$2*0.001)*PI()*($A12*0.001)^3))*0.000001 -> 1145.218742 | AY12: =((8*'Input&Overview'!$B$13*(AY$2*0.001-$A12*0.001))/(('Input&Overview'!$D$3-0.5*AY$2*0.001)*PI()*($A12*0.001)^3))*0.000001 -> 1153.703144 | AZ12: =((8*'Input&Overview'!$B$13*(AZ$2*0.001-$A12*0.001))/(('Input&Overview'!$D$3-0.5*AZ$2*0.001)*PI()*($A12*0.001)^3))*0.000001 -> 1162.20263 | BA12: =((8*'Input&Overview'!$B$13*(BA$2*0.001-$A12*0.001))/(('Input&Overview'!$D$3-0.5*BA$2*0.001)*PI()*($A12*0.001)^3))*0.000001 -> 1170.717239 | BB12: =((8*'Input&Overview'!$B$13*(BB$2*0.001-$A12*0.001))/(('Input&Overview'!$D$3-0.5*BB$2*0.001)*PI()*($A12*0.001)^3))*0.000001 -> 1179.247013 | BC12: =((8*'Input&Overview'!$B$13*(BC$2*0.001-$A12*0.001))/(('Input&Overview'!$D$3-0.5*BC$2*0.001)*PI()*($A12*0.001)^3))*0.000001 -> 1187.791991 | BD12: =((8*'Input&Overview'!$B$13*(BD$2*0.001-$A12*0.001))/(('Input&Overview'!$D$3-0.5*BD$2*0.001)*PI()*($A12*0.001)^3))*0.000001 -> 1196.352214 | BE12: =((8*'Input&Overview'!$B$13*(BE$2*0.001-$A12*0.001))/(('Input&Overview'!$D$3-0.5*BE$2*0.001)*PI()*($A12*0.001)^3))*0.000001 -> 1204.927724 | BF12: =((8*'Input&Overview'!$B$13*(BF$2*0.001-$A12*0.001))/(('Input&Overview'!$D$3-0.5*BF$2*0.001)*PI()*($A12*0.001)^3))*0.000001 -> 1213.51856 | BG12: =((8*'Input&Overview'!$B$13*(BG$2*0.001-$A12*0.001))/(('Input&Overview'!$D$3-0.5*BG$2*0.001)*PI()*($A12*0.001)^3))*0.000001 -> 1222.124765 | BH12: =((8*'Input&Overview'!$B$13*(BH$2*0.001-$A12*0.001))/(('Input&Overview'!$D$3-0.5*BH$2*0.001)*PI()*($A12*0.001)^3))*0.000001 -> 1230.746379 | BI12: =((8*'Input&Overview'!$B$13*(BI$2*0.001-$A12*0.001))/(('Input&Overview'!$D$3-0.5*BI$2*0.001)*PI()*($A12*0.001)^3))*0.000001 -> 1239.383444 | BJ12: =((8*'Input&Overview'!$B$13*(BJ$2*0.001-$A12*0.001))/(('Input&Overview'!$D$3-0.5*BJ$2*0.001)*PI()*($A12*0.001)^3))*0.000001 -> 1248.036002 | BK12: =((8*'Input&Overview'!$B$13*(BK$2*0.001-$A12*0.001))/(('Input&Overview'!$D$3-0.5*BK$2*0.001)*PI()*($A12*0.001)^3))*0.000001 -> 1256.704094 | BL12: =((8*'Input&Overview'!$B$13*(BL$2*0.001-$A12*0.001))/(('Input&Overview'!$D$3-0.5*BL$2*0.001)*PI()*($A12*0.001)^3))*0.000001 -> 1265.387762 | BM12: =((8*'Input&Overview'!$B$13*(BM$2*0.001-$A12*0.001))/(('Input&Overview'!$D$3-0.5*BM$2*0.001)*PI()*($A12*0.001)^3))*0.000001 -> 1274.087048 | BN12: =((8*'Input&Overview'!$B$13*(BN$2*0.001-$A12*0.001))/(('Input&Overview'!$D$3-0.5*BN$2*0.001)*PI()*($A12*0.001)^3))*0.000001 -> 1282.801995 | BO12: =((8*'Input&Overview'!$B$13*(BO$2*0.001-$A12*0.001))/(('Input&Overview'!$D$3-0.5*BO$2*0.001)*PI()*($A12*0.001)^3))*0.000001 -> 1291.532644 | BP12: =((8*'Input&Overview'!$B$13*(BP$2*0.001-$A12*0.001))/(('Input&Overview'!$D$3-0.5*BP$2*0.001)*PI()*($A12*0.001)^3))*0.000001 -> 1300.279038 | BQ12: =((8*'Input&Overview'!$B$13*(BQ$2*0.001-$A12*0.001))/(('Input&Overview'!$D$3-0.5*BQ$2*0.001)*PI()*($A12*0.001)^3))*0.000001 -> 1309.041219 | BR12: =((8*'Input&Overview'!$B$13*(BR$2*0.001-$A12*0.001))/(('Input&Overview'!$D$3-0.5*BR$2*0.001)*PI()*($A12*0.001)^3))*0.000001 -> 1317.819232 | BS12: =((8*'Input&Overview'!$B$13*(BS$2*0.001-$A12*0.001))/(('Input&Overview'!$D$3-0.5*BS$2*0.001)*PI()*($A12*0.001)^3))*0.000001 -> 1326.613117 | BT12: =((8*'Input&Overview'!$B$13*(BT$2*0.001-$A12*0.001))/(('Input&Overview'!$D$3-0.5*BT$2*0.001)*PI()*($A12*0.001)^3))*0.000001 -> 1335.42292 | BU12: =((8*'Input&Overview'!$B$13*(BU$2*0.001-$A12*0.001))/(('Input&Overview'!$D$3-0.5*BU$2*0.001)*PI()*($A12*0.001)^3))*0.000001 -> 1344.248682 | BV12: =((8*'Input&Overview'!$B$13*(BV$2*0.001-$A12*0.001))/(('Input&Overview'!$D$3-0.5*BV$2*0.001)*PI()*($A12*0.001)^3))*0.000001 -> 1353.090447 | BW12: =((8*'Input&Overview'!$B$13*(BW$2*0.001-$A12*0.001))/(('Input&Overview'!$D$3-0.5*BW$2*0.001)*PI()*($A12*0.001)^3))*0.000001 -> 1361.948259 | BX12: =((8*'Input&Overview'!$B$13*(BX$2*0.001-$A12*0.001))/(('Input&Overview'!$D$3-0.5*BX$2*0.001)*PI()*($A12*0.001)^3))*0.000001 -> 1370.822161 | BY12: =((8*'Input&Overview'!$B$13*(BY$2*0.001-$A12*0.001))/(('Input&Overview'!$D$3-0.5*BY$2*0.001)*PI()*($A12*0.001)^3))*0.000001 -> 1379.712198 | BZ12: =((8*'Input&Overview'!$B$13*(BZ$2*0.001-$A12*0.001))/(('Input&Overview'!$D$3-0.5*BZ$2*0.001)*PI()*($A12*0.001)^3))*0.000001 -> 1388.618414 | CA12: =((8*'Input&Overview'!$B$13*(CA$2*0.001-$A12*0.001))/(('Input&Overview'!$D$3-0.5*CA$2*0.001)*PI()*($A12*0.001)^3))*0.000001 -> 1397.540851 | CB12: =((8*'Input&Overview'!$B$13*(CB$2*0.001-$A12*0.001))/(('Input&Overview'!$D$3-0.5*CB$2*0.001)*PI()*($A12*0.001)^3))*0.000001 -> 1406.479556 | CC12: =((8*'Input&Overview'!$B$13*(CC$2*0.001-$A12*0.001))/(('Input&Overview'!$D$3-0.5*CC$2*0.001)*PI()*($A12*0.001)^3))*0.000001 -> 1415.434573 | CD12: =((8*'Input&Overview'!$B$13*(CD$2*0.001-$A12*0.001))/(('Input&Overview'!$D$3-0.5*CD$2*0.001)*PI()*($A12*0.001)^3))*0.000001 -> 1424.405945 | CE12: =((8*'Input&Overview'!$B$13*(CE$2*0.001-$A12*0.001))/(('Input&Overview'!$D$3-0.5*CE$2*0.001)*PI()*($A12*0.001)^3))*0.000001 -> 1433.393719 | CF12: =((8*'Input&Overview'!$B$13*(CF$2*0.001-$A12*0.001))/(('Input&Overview'!$D$3-0.5*CF$2*0.001)*PI()*($A12*0.001)^3))*0.000001 -> 1442.397939 | CG12: =((8*'Input&Overview'!$B$13*(CG$2*0.001-$A12*0.001))/(('Input&Overview'!$D$3-0.5*CG$2*0.001)*PI()*($A12*0.001)^3))*0.000001 -> 1451.418649 | CH12: =((8*'Input&Overview'!$B$13*(CH$2*0.001-$A12*0.001))/(('Input&Overview'!$D$3-0.5*CH$2*0.001)*PI()*($A12*0.001)^3))*0.000001 -> 1460.455897 | CI12: =((8*'Input&Overview'!$B$13*(CI$2*0.001-$A12*0.001))/(('Input&Overview'!$D$3-0.5*CI$2*0.001)*PI()*($A12*0.001)^3))*0.000001 -> 1469.509727
A13: ='c'!$A13 -> 4 | B13: =((8*'Input&Overview'!$B$13*(B$2*0.001-$A13*0.001))/(('Input&Overview'!$D$3-0.5*B$2*0.001)*PI()*($A13*0.001)^3))*0.000001 -> 696.4168372 | C13: =((8*'Input&Overview'!$B$13*(C$2*0.001-$A13*0.001))/(('Input&Overview'!$D$3-0.5*C$2*0.001)*PI()*($A13*0.001)^3))*0.000001 -> 703.6482281 | D13: =((8*'Input&Overview'!$B$13*(D$2*0.001-$A13*0.001))/(('Input&Overview'!$D$3-0.5*D$2*0.001)*PI()*($A13*0.001)^3))*0.000001 -> 710.8919487 | E13: =((8*'Input&Overview'!$B$13*(E$2*0.001-$A13*0.001))/(('Input&Overview'!$D$3-0.5*E$2*0.001)*PI()*($A13*0.001)^3))*0.000001 -> 718.1480306 | F13: =((8*'Input&Overview'!$B$13*(F$2*0.001-$A13*0.001))/(('Input&Overview'!$D$3-0.5*F$2*0.001)*PI()*($A13*0.001)^3))*0.000001 -> 725.4165054 | G13: =((8*'Input&Overview'!$B$13*(G$2*0.001-$A13*0.001))/(('Input&Overview'!$D$3-0.5*G$2*0.001)*PI()*($A13*0.001)^3))*0.000001 -> 732.6974051 | H13: =((8*'Input&Overview'!$B$13*(H$2*0.001-$A13*0.001))/(('Input&Overview'!$D$3-0.5*H$2*0.001)*PI()*($A13*0.001)^3))*0.000001 -> 739.9907613 | I13: =((8*'Input&Overview'!$B$13*(I$2*0.001-$A13*0.001))/(('Input&Overview'!$D$3-0.5*I$2*0.001)*PI()*($A13*0.001)^3))*0.000001 -> 747.2966061 | J13: =((8*'Input&Overview'!$B$13*(J$2*0.001-$A13*0.001))/(('Input&Overview'!$D$3-0.5*J$2*0.001)*PI()*($A13*0.001)^3))*0.000001 -> 754.6149717 | K13: =((8*'Input&Overview'!$B$13*(K$2*0.001-$A13*0.001))/(('Input&Overview'!$D$3-0.5*K$2*0.001)*PI()*($A13*0.001)^3))*0.000001 -> 761.9458903 | L13: =((8*'Input&Overview'!$B$13*(L$2*0.001-$A13*0.001))/(('Input&Overview'!$D$3-0.5*L$2*0.001)*PI()*($A13*0.001)^3))*0.000001 -> 769.2893941 | M13: =((8*'Input&Overview'!$B$13*(M$2*0.001-$A13*0.001))/(('Input&Overview'!$D$3-0.5*M$2*0.001)*PI()*($A13*0.001)^3))*0.000001 -> 776.6455156 | N13: =((8*'Input&Overview'!$B$13*(N$2*0.001-$A13*0.001))/(('Input&Overview'!$D$3-0.5*N$2*0.001)*PI()*($A13*0.001)^3))*0.000001 -> 784.0142873 | O13: =((8*'Input&Overview'!$B$13*(O$2*0.001-$A13*0.001))/(('Input&Overview'!$D$3-0.5*O$2*0.001)*PI()*($A13*0.001)^3))*0.000001 -> 791.395742 | P13: =((8*'Input&Overview'!$B$13*(P$2*0.001-$A13*0.001))/(('Input&Overview'!$D$3-0.5*P$2*0.001)*PI()*($A13*0.001)^3))*0.000001 -> 798.7899123 | Q13: =((8*'Input&Overview'!$B$13*(Q$2*0.001-$A13*0.001))/(('Input&Overview'!$D$3-0.5*Q$2*0.001)*PI()*($A13*0.001)^3))*0.000001 -> 806.1968313 | R13: =((8*'Input&Overview'!$B$13*(R$2*0.001-$A13*0.001))/(('Input&Overview'!$D$3-0.5*R$2*0.001)*PI()*($A13*0.001)^3))*0.000001 -> 813.6165318 | S13: =((8*'Input&Overview'!$B$13*(S$2*0.001-$A13*0.001))/(('Input&Overview'!$D$3-0.5*S$2*0.001)*PI()*($A13*0.001)^3))*0.000001 -> 821.0490469 | T13: =((8*'Input&Overview'!$B$13*(T$2*0.001-$A13*0.001))/(('Input&Overview'!$D$3-0.5*T$2*0.001)*PI()*($A13*0.001)^3))*0.000001 -> 828.49441 | U13: =((8*'Input&Overview'!$B$13*(U$2*0.001-$A13*0.001))/(('Input&Overview'!$D$3-0.5*U$2*0.001)*PI()*($A13*0.001)^3))*0.000001 -> 835.9526543 | V13: =((8*'Input&Overview'!$B$13*(V$2*0.001-$A13*0.001))/(('Input&Overview'!$D$3-0.5*V$2*0.001)*PI()*($A13*0.001)^3))*0.000001 -> 843.4238134 | W13: =((8*'Input&Overview'!$B$13*(W$2*0.001-$A13*0.001))/(('Input&Overview'!$D$3-0.5*W$2*0.001)*PI()*($A13*0.001)^3))*0.000001 -> 850.9079207 | X13: =((8*'Input&Overview'!$B$13*(X$2*0.001-$A13*0.001))/(('Input&Overview'!$D$3-0.5*X$2*0.001)*PI()*($A13*0.001)^3))*0.000001 -> 858.40501 | Y13: =((8*'Input&Overview'!$B$13*(Y$2*0.001-$A13*0.001))/(('Input&Overview'!$D$3-0.5*Y$2*0.001)*PI()*($A13*0.001)^3))*0.000001 -> 865.9151151 | Z13: =((8*'Input&Overview'!$B$13*(Z$2*0.001-$A13*0.001))/(('Input&Overview'!$D$3-0.5*Z$2*0.001)*PI()*($A13*0.001)^3))*0.000001 -> 873.4382698 | AA13: =((8*'Input&Overview'!$B$13*(AA$2*0.001-$A13*0.001))/(('Input&Overview'!$D$3-0.5*AA$2*0.001)*PI()*($A13*0.001)^3))*0.000001 -> 880.9745084 | AB13: =((8*'Input&Overview'!$B$13*(AB$2*0.001-$A13*0.001))/(('Input&Overview'!$D$3-0.5*AB$2*0.001)*PI()*($A13*0.001)^3))*0.000001 -> 888.5238648 | AC13: =((8*'Input&Overview'!$B$13*(AC$2*0.001-$A13*0.001))/(('Input&Overview'!$D$3-0.5*AC$2*0.001)*PI()*($A13*0.001)^3))*0.000001 -> 896.0863734 | AD13: =((8*'Input&Overview'!$B$13*(AD$2*0.001-$A13*0.001))/(('Input&Overview'!$D$3-0.5*AD$2*0.001)*PI()*($A13*0.001)^3))*0.000001 -> 903.6620686 | AE13: =((8*'Input&Overview'!$B$13*(AE$2*0.001-$A13*0.001))/(('Input&Overview'!$D$3-0.5*AE$2*0.001)*PI()*($A13*0.001)^3))*0.000001 -> 911.250985 | AF13: =((8*'Input&Overview'!$B$13*(AF$2*0.001-$A13*0.001))/(('Input&Overview'!$D$3-0.5*AF$2*0.001)*PI()*($A13*0.001)^3))*0.000001 -> 918.853157 | AG13: =((8*'Input&Overview'!$B$13*(AG$2*0.001-$A13*0.001))/(('Input&Overview'!$D$3-0.5*AG$2*0.001)*PI()*($A13*0.001)^3))*0.000001 -> 926.4686196 | AH13: =((8*'Input&Overview'!$B$13*(AH$2*0.001-$A13*0.001))/(('Input&Overview'!$D$3-0.5*AH$2*0.001)*PI()*($A13*0.001)^3))*0.000001 -> 934.0974076 | AI13: =((8*'Input&Overview'!$B$13*(AI$2*0.001-$A13*0.001))/(('Input&Overview'!$D$3-0.5*AI$2*0.001)*PI()*($A13*0.001)^3))*0.000001 -> 941.739556 | AJ13: =((8*'Input&Overview'!$B$13*(AJ$2*0.001-$A13*0.001))/(('Input&Overview'!$D$3-0.5*AJ$2*0.001)*PI()*($A13*0.001)^3))*0.000001 -> 949.3950999 | AK13: =((8*'Input&Overview'!$B$13*(AK$2*0.001-$A13*0.001))/(('Input&Overview'!$D$3-0.5*AK$2*0.001)*PI()*($A13*0.001)^3))*0.000001 -> 957.0640745 | AL13: =((8*'Input&Overview'!$B$13*(AL$2*0.001-$A13*0.001))/(('Input&Overview'!$D$3-0.5*AL$2*0.001)*PI()*($A13*0.001)^3))*0.000001 -> 964.7465154 | AM13: =((8*'Input&Overview'!$B$13*(AM$2*0.001-$A13*0.001))/(('Input&Overview'!$D$3-0.5*AM$2*0.001)*PI()*($A13*0.001)^3))*0.000001 -> 972.4424579 | AN13: =((8*'Input&Overview'!$B$13*(AN$2*0.001-$A13*0.001))/(('Input&Overview'!$D$3-0.5*AN$2*0.001)*PI()*($A13*0.001)^3))*0.000001 -> 980.1519376 | AO13: =((8*'Input&Overview'!$B$13*(AO$2*0.001-$A13*0.001))/(('Input&Overview'!$D$3-0.5*AO$2*0.001)*PI()*($A13*0.001)^3))*0.000001 -> 987.8749904 | AP13: =((8*'Input&Overview'!$B$13*(AP$2*0.001-$A13*0.001))/(('Input&Overview'!$D$3-0.5*AP$2*0.001)*PI()*($A13*0.001)^3))*0.000001 -> 995.6116521 | AQ13: =((8*'Input&Overview'!$B$13*(AQ$2*0.001-$A13*0.001))/(('Input&Overview'!$D$3-0.5*AQ$2*0.001)*PI()*($A13*0.001)^3))*0.000001 -> 1003.361959 | AR13: =((8*'Input&Overview'!$B$13*(AR$2*0.001-$A13*0.001))/(('Input&Overview'!$D$3-0.5*AR$2*0.001)*PI()*($A13*0.001)^3))*0.000001 -> 1011.125946 | AS13: =((8*'Input&Overview'!$B$13*(AS$2*0.001-$A13*0.001))/(('Input&Overview'!$D$3-0.5*AS$2*0.001)*PI()*($A13*0.001)^3))*0.000001 -> 1018.903651 | AT13: =((8*'Input&Overview'!$B$13*(AT$2*0.001-$A13*0.001))/(('Input&Overview'!$D$3-0.5*AT$2*0.001)*PI()*($A13*0.001)^3))*0.000001 -> 1026.69511 | AU13: =((8*'Input&Overview'!$B$13*(AU$2*0.001-$A13*0.001))/(('Input&Overview'!$D$3-0.5*AU$2*0.001)*PI()*($A13*0.001)^3))*0.000001 -> 1034.500359 | AV13: =((8*'Input&Overview'!$B$13*(AV$2*0.001-$A13*0.001))/(('Input&Overview'!$D$3-0.5*AV$2*0.001)*PI()*($A13*0.001)^3))*0.000001 -> 1042.319434 | AW13: =((8*'Input&Overview'!$B$13*(AW$2*0.001-$A13*0.001))/(('Input&Overview'!$D$3-0.5*AW$2*0.001)*PI()*($A13*0.001)^3))*0.000001 -> 1050.152374 | AX13: =((8*'Input&Overview'!$B$13*(AX$2*0.001-$A13*0.001))/(('Input&Overview'!$D$3-0.5*AX$2*0.001)*PI()*($A13*0.001)^3))*0.000001 -> 1057.999213 | AY13: =((8*'Input&Overview'!$B$13*(AY$2*0.001-$A13*0.001))/(('Input&Overview'!$D$3-0.5*AY$2*0.001)*PI()*($A13*0.001)^3))*0.000001 -> 1065.859991 | AZ13: =((8*'Input&Overview'!$B$13*(AZ$2*0.001-$A13*0.001))/(('Input&Overview'!$D$3-0.5*AZ$2*0.001)*PI()*($A13*0.001)^3))*0.000001 -> 1073.734743 | BA13: =((8*'Input&Overview'!$B$13*(BA$2*0.001-$A13*0.001))/(('Input&Overview'!$D$3-0.5*BA$2*0.001)*PI()*($A13*0.001)^3))*0.000001 -> 1081.623507 | BB13: =((8*'Input&Overview'!$B$13*(BB$2*0.001-$A13*0.001))/(('Input&Overview'!$D$3-0.5*BB$2*0.001)*PI()*($A13*0.001)^3))*0.000001 -> 1089.52632 | BC13: =((8*'Input&Overview'!$B$13*(BC$2*0.001-$A13*0.001))/(('Input&Overview'!$D$3-0.5*BC$2*0.001)*PI()*($A13*0.001)^3))*0.000001 -> 1097.443221 | BD13: =((8*'Input&Overview'!$B$13*(BD$2*0.001-$A13*0.001))/(('Input&Overview'!$D$3-0.5*BD$2*0.001)*PI()*($A13*0.001)^3))*0.000001 -> 1105.374246 | BE13: =((8*'Input&Overview'!$B$13*(BE$2*0.001-$A13*0.001))/(('Input&Overview'!$D$3-0.5*BE$2*0.001)*PI()*($A13*0.001)^3))*0.000001 -> 1113.319434 | BF13: =((8*'Input&Overview'!$B$13*(BF$2*0.001-$A13*0.001))/(('Input&Overview'!$D$3-0.5*BF$2*0.001)*PI()*($A13*0.001)^3))*0.000001 -> 1121.278822 | BG13: =((8*'Input&Overview'!$B$13*(BG$2*0.001-$A13*0.001))/(('Input&Overview'!$D$3-0.5*BG$2*0.001)*PI()*($A13*0.001)^3))*0.000001 -> 1129.252449 | BH13: =((8*'Input&Overview'!$B$13*(BH$2*0.001-$A13*0.001))/(('Input&Overview'!$D$3-0.5*BH$2*0.001)*PI()*($A13*0.001)^3))*0.000001 -> 1137.240353 | BI13: =((8*'Input&Overview'!$B$13*(BI$2*0.001-$A13*0.001))/(('Input&Overview'!$D$3-0.5*BI$2*0.001)*PI()*($A13*0.001)^3))*0.000001 -> 1145.242572 | BJ13: =((8*'Input&Overview'!$B$13*(BJ$2*0.001-$A13*0.001))/(('Input&Overview'!$D$3-0.5*BJ$2*0.001)*PI()*($A13*0.001)^3))*0.000001 -> 1153.259144 | BK13: =((8*'Input&Overview'!$B$13*(BK$2*0.001-$A13*0.001))/(('Input&Overview'!$D$3-0.5*BK$2*0.001)*PI()*($A13*0.001)^3))*0.000001 -> 1161.290109 | BL13: =((8*'Input&Overview'!$B$13*(BL$2*0.001-$A13*0.001))/(('Input&Overview'!$D$3-0.5*BL$2*0.001)*PI()*($A13*0.001)^3))*0.000001 -> 1169.335506 | BM13: =((8*'Input&Overview'!$B$13*(BM$2*0.001-$A13*0.001))/(('Input&Overview'!$D$3-0.5*BM$2*0.001)*PI()*($A13*0.001)^3))*0.000001 -> 1177.395372 | BN13: =((8*'Input&Overview'!$B$13*(BN$2*0.001-$A13*0.001))/(('Input&Overview'!$D$3-0.5*BN$2*0.001)*PI()*($A13*0.001)^3))*0.000001 -> 1185.469748 | BO13: =((8*'Input&Overview'!$B$13*(BO$2*0.001-$A13*0.001))/(('Input&Overview'!$D$3-0.5*BO$2*0.001)*PI()*($A13*0.001)^3))*0.000001 -> 1193.558672 | BP13: =((8*'Input&Overview'!$B$13*(BP$2*0.001-$A13*0.001))/(('Input&Overview'!$D$3-0.5*BP$2*0.001)*PI()*($A13*0.001)^3))*0.000001 -> 1201.662184 | BQ13: =((8*'Input&Overview'!$B$13*(BQ$2*0.001-$A13*0.001))/(('Input&Overview'!$D$3-0.5*BQ$2*0.001)*PI()*($A13*0.001)^3))*0.000001 -> 1209.780323 | BR13: =((8*'Input&Overview'!$B$13*(BR$2*0.001-$A13*0.001))/(('Input&Overview'!$D$3-0.5*BR$2*0.001)*PI()*($A13*0.001)^3))*0.000001 -> 1217.913129 | BS13: =((8*'Input&Overview'!$B$13*(BS$2*0.001-$A13*0.001))/(('Input&Overview'!$D$3-0.5*BS$2*0.001)*PI()*($A13*0.001)^3))*0.000001 -> 1226.060642 | BT13: =((8*'Input&Overview'!$B$13*(BT$2*0.001-$A13*0.001))/(('Input&Overview'!$D$3-0.5*BT$2*0.001)*PI()*($A13*0.001)^3))*0.000001 -> 1234.222902 | BU13: =((8*'Input&Overview'!$B$13*(BU$2*0.001-$A13*0.001))/(('Input&Overview'!$D$3-0.5*BU$2*0.001)*PI()*($A13*0.001)^3))*0.000001 -> 1242.399948 | BV13: =((8*'Input&Overview'!$B$13*(BV$2*0.001-$A13*0.001))/(('Input&Overview'!$D$3-0.5*BV$2*0.001)*PI()*($A13*0.001)^3))*0.000001 -> 1250.591821 | BW13: =((8*'Input&Overview'!$B$13*(BW$2*0.001-$A13*0.001))/(('Input&Overview'!$D$3-0.5*BW$2*0.001)*PI()*($A13*0.001)^3))*0.000001 -> 1258.798561 | BX13: =((8*'Input&Overview'!$B$13*(BX$2*0.001-$A13*0.001))/(('Input&Overview'!$D$3-0.5*BX$2*0.001)*PI()*($A13*0.001)^3))*0.000001 -> 1267.020209 | BY13: =((8*'Input&Overview'!$B$13*(BY$2*0.001-$A13*0.001))/(('Input&Overview'!$D$3-0.5*BY$2*0.001)*PI()*($A13*0.001)^3))*0.000001 -> 1275.256806 | BZ13: =((8*'Input&Overview'!$B$13*(BZ$2*0.001-$A13*0.001))/(('Input&Overview'!$D$3-0.5*BZ$2*0.001)*PI()*($A13*0.001)^3))*0.000001 -> 1283.508392 | CA13: =((8*'Input&Overview'!$B$13*(CA$2*0.001-$A13*0.001))/(('Input&Overview'!$D$3-0.5*CA$2*0.001)*PI()*($A13*0.001)^3))*0.000001 -> 1291.775008 | CB13: =((8*'Input&Overview'!$B$13*(CB$2*0.001-$A13*0.001))/(('Input&Overview'!$D$3-0.5*CB$2*0.001)*PI()*($A13*0.001)^3))*0.000001 -> 1300.056695 | CC13: =((8*'Input&Overview'!$B$13*(CC$2*0.001-$A13*0.001))/(('Input&Overview'!$D$3-0.5*CC$2*0.001)*PI()*($A13*0.001)^3))*0.000001 -> 1308.353495 | CD13: =((8*'Input&Overview'!$B$13*(CD$2*0.001-$A13*0.001))/(('Input&Overview'!$D$3-0.5*CD$2*0.001)*PI()*($A13*0.001)^3))*0.000001 -> 1316.665449 | CE13: =((8*'Input&Overview'!$B$13*(CE$2*0.001-$A13*0.001))/(('Input&Overview'!$D$3-0.5*CE$2*0.001)*PI()*($A13*0.001)^3))*0.000001 -> 1324.992598 | CF13: =((8*'Input&Overview'!$B$13*(CF$2*0.001-$A13*0.001))/(('Input&Overview'!$D$3-0.5*CF$2*0.001)*PI()*($A13*0.001)^3))*0.000001 -> 1333.334985 | CG13: =((8*'Input&Overview'!$B$13*(CG$2*0.001-$A13*0.001))/(('Input&Overview'!$D$3-0.5*CG$2*0.001)*PI()*($A13*0.001)^3))*0.000001 -> 1341.692651 | CH13: =((8*'Input&Overview'!$B$13*(CH$2*0.001-$A13*0.001))/(('Input&Overview'!$D$3-0.5*CH$2*0.001)*PI()*($A13*0.001)^3))*0.000001 -> 1350.065638 | CI13: =((8*'Input&Overview'!$B$13*(CI$2*0.001-$A13*0.001))/(('Input&Overview'!$D$3-0.5*CI$2*0.001)*PI()*($A13*0.001)^3))*0.000001 -> 1358.453988
A14: ='c'!$A14 -> 4.1 | B14: =((8*'Input&Overview'!$B$13*(B$2*0.001-$A14*0.001))/(('Input&Overview'!$D$3-0.5*B$2*0.001)*PI()*($A14*0.001)^3))*0.000001 -> 643.6127778 | C14: =((8*'Input&Overview'!$B$13*(C$2*0.001-$A14*0.001))/(('Input&Overview'!$D$3-0.5*C$2*0.001)*PI()*($A14*0.001)^3))*0.000001 -> 650.32522 | D14: =((8*'Input&Overview'!$B$13*(D$2*0.001-$A14*0.001))/(('Input&Overview'!$D$3-0.5*D$2*0.001)*PI()*($A14*0.001)^3))*0.000001 -> 657.0491072 | E14: =((8*'Input&Overview'!$B$13*(E$2*0.001-$A14*0.001))/(('Input&Overview'!$D$3-0.5*E$2*0.001)*PI()*($A14*0.001)^3))*0.000001 -> 663.7844685 | F14: =((8*'Input&Overview'!$B$13*(F$2*0.001-$A14*0.001))/(('Input&Overview'!$D$3-0.5*F$2*0.001)*PI()*($A14*0.001)^3))*0.000001 -> 670.5313335 | G14: =((8*'Input&Overview'!$B$13*(G$2*0.001-$A14*0.001))/(('Input&Overview'!$D$3-0.5*G$2*0.001)*PI()*($A14*0.001)^3))*0.000001 -> 677.2897315 | H14: =((8*'Input&Overview'!$B$13*(H$2*0.001-$A14*0.001))/(('Input&Overview'!$D$3-0.5*H$2*0.001)*PI()*($A14*0.001)^3))*0.000001 -> 684.0596923 | I14: =((8*'Input&Overview'!$B$13*(I$2*0.001-$A14*0.001))/(('Input&Overview'!$D$3-0.5*I$2*0.001)*PI()*($A14*0.001)^3))*0.000001 -> 690.8412454 | J14: =((8*'Input&Overview'!$B$13*(J$2*0.001-$A14*0.001))/(('Input&Overview'!$D$3-0.5*J$2*0.001)*PI()*($A14*0.001)^3))*0.000001 -> 697.6344208 | K14: =((8*'Input&Overview'!$B$13*(K$2*0.001-$A14*0.001))/(('Input&Overview'!$D$3-0.5*K$2*0.001)*PI()*($A14*0.001)^3))*0.000001 -> 704.4392483 | L14: =((8*'Input&Overview'!$B$13*(L$2*0.001-$A14*0.001))/(('Input&Overview'!$D$3-0.5*L$2*0.001)*PI()*($A14*0.001)^3))*0.000001 -> 711.2557578 | M14: =((8*'Input&Overview'!$B$13*(M$2*0.001-$A14*0.001))/(('Input&Overview'!$D$3-0.5*M$2*0.001)*PI()*($A14*0.001)^3))*0.000001 -> 718.0839796 | N14: =((8*'Input&Overview'!$B$13*(N$2*0.001-$A14*0.001))/(('Input&Overview'!$D$3-0.5*N$2*0.001)*PI()*($A14*0.001)^3))*0.000001 -> 724.9239438 | O14: =((8*'Input&Overview'!$B$13*(O$2*0.001-$A14*0.001))/(('Input&Overview'!$D$3-0.5*O$2*0.001)*PI()*($A14*0.001)^3))*0.000001 -> 731.7756807 | P14: =((8*'Input&Overview'!$B$13*(P$2*0.001-$A14*0.001))/(('Input&Overview'!$D$3-0.5*P$2*0.001)*PI()*($A14*0.001)^3))*0.000001 -> 738.6392209 | Q14: =((8*'Input&Overview'!$B$13*(Q$2*0.001-$A14*0.001))/(('Input&Overview'!$D$3-0.5*Q$2*0.001)*PI()*($A14*0.001)^3))*0.000001 -> 745.5145947 | R14: =((8*'Input&Overview'!$B$13*(R$2*0.001-$A14*0.001))/(('Input&Overview'!$D$3-0.5*R$2*0.001)*PI()*($A14*0.001)^3))*0.000001 -> 752.4018328 | S14: =((8*'Input&Overview'!$B$13*(S$2*0.001-$A14*0.001))/(('Input&Overview'!$D$3-0.5*S$2*0.001)*PI()*($A14*0.001)^3))*0.000001 -> 759.300966 | T14: =((8*'Input&Overview'!$B$13*(T$2*0.001-$A14*0.001))/(('Input&Overview'!$D$3-0.5*T$2*0.001)*PI()*($A14*0.001)^3))*0.000001 -> 766.2120251 | U14: =((8*'Input&Overview'!$B$13*(U$2*0.001-$A14*0.001))/(('Input&Overview'!$D$3-0.5*U$2*0.001)*PI()*($A14*0.001)^3))*0.000001 -> 773.135041 | V14: =((8*'Input&Overview'!$B$13*(V$2*0.001-$A14*0.001))/(('Input&Overview'!$D$3-0.5*V$2*0.001)*PI()*($A14*0.001)^3))*0.000001 -> 780.0700448 | W14: =((8*'Input&Overview'!$B$13*(W$2*0.001-$A14*0.001))/(('Input&Overview'!$D$3-0.5*W$2*0.001)*PI()*($A14*0.001)^3))*0.000001 -> 787.0170677 | X14: =((8*'Input&Overview'!$B$13*(X$2*0.001-$A14*0.001))/(('Input&Overview'!$D$3-0.5*X$2*0.001)*PI()*($A14*0.001)^3))*0.000001 -> 793.976141 | Y14: =((8*'Input&Overview'!$B$13*(Y$2*0.001-$A14*0.001))/(('Input&Overview'!$D$3-0.5*Y$2*0.001)*PI()*($A14*0.001)^3))*0.000001 -> 800.947296 | Z14: =((8*'Input&Overview'!$B$13*(Z$2*0.001-$A14*0.001))/(('Input&Overview'!$D$3-0.5*Z$2*0.001)*PI()*($A14*0.001)^3))*0.000001 -> 807.9305642 | AA14: =((8*'Input&Overview'!$B$13*(AA$2*0.001-$A14*0.001))/(('Input&Overview'!$D$3-0.5*AA$2*0.001)*PI()*($A14*0.001)^3))*0.000001 -> 814.9259772 | AB14: =((8*'Input&Overview'!$B$13*(AB$2*0.001-$A14*0.001))/(('Input&Overview'!$D$3-0.5*AB$2*0.001)*PI()*($A14*0.001)^3))*0.000001 -> 821.9335667 | AC14: =((8*'Input&Overview'!$B$13*(AC$2*0.001-$A14*0.001))/(('Input&Overview'!$D$3-0.5*AC$2*0.001)*PI()*($A14*0.001)^3))*0.000001 -> 828.9533646 | AD14: =((8*'Input&Overview'!$B$13*(AD$2*0.001-$A14*0.001))/(('Input&Overview'!$D$3-0.5*AD$2*0.001)*PI()*($A14*0.001)^3))*0.000001 -> 835.9854027 | AE14: =((8*'Input&Overview'!$B$13*(AE$2*0.001-$A14*0.001))/(('Input&Overview'!$D$3-0.5*AE$2*0.001)*PI()*($A14*0.001)^3))*0.000001 -> 843.0297132 | AF14: =((8*'Input&Overview'!$B$13*(AF$2*0.001-$A14*0.001))/(('Input&Overview'!$D$3-0.5*AF$2*0.001)*PI()*($A14*0.001)^3))*0.000001 -> 850.0863281 | AG14: =((8*'Input&Overview'!$B$13*(AG$2*0.001-$A14*0.001))/(('Input&Overview'!$D$3-0.5*AG$2*0.001)*PI()*($A14*0.001)^3))*0.000001 -> 857.1552798 | AH14: =((8*'Input&Overview'!$B$13*(AH$2*0.001-$A14*0.001))/(('Input&Overview'!$D$3-0.5*AH$2*0.001)*PI()*($A14*0.001)^3))*0.000001 -> 864.2366006 | AI14: =((8*'Input&Overview'!$B$13*(AI$2*0.001-$A14*0.001))/(('Input&Overview'!$D$3-0.5*AI$2*0.001)*PI()*($A14*0.001)^3))*0.000001 -> 871.330323 | AJ14: =((8*'Input&Overview'!$B$13*(AJ$2*0.001-$A14*0.001))/(('Input&Overview'!$D$3-0.5*AJ$2*0.001)*PI()*($A14*0.001)^3))*0.000001 -> 878.4364796 | AK14: =((8*'Input&Overview'!$B$13*(AK$2*0.001-$A14*0.001))/(('Input&Overview'!$D$3-0.5*AK$2*0.001)*PI()*($A14*0.001)^3))*0.000001 -> 885.5551032 | AL14: =((8*'Input&Overview'!$B$13*(AL$2*0.001-$A14*0.001))/(('Input&Overview'!$D$3-0.5*AL$2*0.001)*PI()*($A14*0.001)^3))*0.000001 -> 892.6862266 | AM14: =((8*'Input&Overview'!$B$13*(AM$2*0.001-$A14*0.001))/(('Input&Overview'!$D$3-0.5*AM$2*0.001)*PI()*($A14*0.001)^3))*0.000001 -> 899.8298826 | AN14: =((8*'Input&Overview'!$B$13*(AN$2*0.001-$A14*0.001))/(('Input&Overview'!$D$3-0.5*AN$2*0.001)*PI()*($A14*0.001)^3))*0.000001 -> 906.9861045 | AO14: =((8*'Input&Overview'!$B$13*(AO$2*0.001-$A14*0.001))/(('Input&Overview'!$D$3-0.5*AO$2*0.001)*PI()*($A14*0.001)^3))*0.000001 -> 914.1549254 | AP14: =((8*'Input&Overview'!$B$13*(AP$2*0.001-$A14*0.001))/(('Input&Overview'!$D$3-0.5*AP$2*0.001)*PI()*($A14*0.001)^3))*0.000001 -> 921.3363785 | AQ14: =((8*'Input&Overview'!$B$13*(AQ$2*0.001-$A14*0.001))/(('Input&Overview'!$D$3-0.5*AQ$2*0.001)*PI()*($A14*0.001)^3))*0.000001 -> 928.5304974 | AR14: =((8*'Input&Overview'!$B$13*(AR$2*0.001-$A14*0.001))/(('Input&Overview'!$D$3-0.5*AR$2*0.001)*PI()*($A14*0.001)^3))*0.000001 -> 935.7373154 | AS14: =((8*'Input&Overview'!$B$13*(AS$2*0.001-$A14*0.001))/(('Input&Overview'!$D$3-0.5*AS$2*0.001)*PI()*($A14*0.001)^3))*0.000001 -> 942.9568664 | AT14: =((8*'Input&Overview'!$B$13*(AT$2*0.001-$A14*0.001))/(('Input&Overview'!$D$3-0.5*AT$2*0.001)*PI()*($A14*0.001)^3))*0.000001 -> 950.1891841 | AU14: =((8*'Input&Overview'!$B$13*(AU$2*0.001-$A14*0.001))/(('Input&Overview'!$D$3-0.5*AU$2*0.001)*PI()*($A14*0.001)^3))*0.000001 -> 957.4343023 | AV14: =((8*'Input&Overview'!$B$13*(AV$2*0.001-$A14*0.001))/(('Input&Overview'!$D$3-0.5*AV$2*0.001)*PI()*($A14*0.001)^3))*0.000001 -> 964.6922551 | AW14: =((8*'Input&Overview'!$B$13*(AW$2*0.001-$A14*0.001))/(('Input&Overview'!$D$3-0.5*AW$2*0.001)*PI()*($A14*0.001)^3))*0.000001 -> 971.9630766 | AX14: =((8*'Input&Overview'!$B$13*(AX$2*0.001-$A14*0.001))/(('Input&Overview'!$D$3-0.5*AX$2*0.001)*PI()*($A14*0.001)^3))*0.000001 -> 979.246801 | AY14: =((8*'Input&Overview'!$B$13*(AY$2*0.001-$A14*0.001))/(('Input&Overview'!$D$3-0.5*AY$2*0.001)*PI()*($A14*0.001)^3))*0.000001 -> 986.5434628 | AZ14: =((8*'Input&Overview'!$B$13*(AZ$2*0.001-$A14*0.001))/(('Input&Overview'!$D$3-0.5*AZ$2*0.001)*PI()*($A14*0.001)^3))*0.000001 -> 993.8530965 | BA14: =((8*'Input&Overview'!$B$13*(BA$2*0.001-$A14*0.001))/(('Input&Overview'!$D$3-0.5*BA$2*0.001)*PI()*($A14*0.001)^3))*0.000001 -> 1001.175737 | BB14: =((8*'Input&Overview'!$B$13*(BB$2*0.001-$A14*0.001))/(('Input&Overview'!$D$3-0.5*BB$2*0.001)*PI()*($A14*0.001)^3))*0.000001 -> 1008.511418 | BC14: =((8*'Input&Overview'!$B$13*(BC$2*0.001-$A14*0.001))/(('Input&Overview'!$D$3-0.5*BC$2*0.001)*PI()*($A14*0.001)^3))*0.000001 -> 1015.860175 | BD14: =((8*'Input&Overview'!$B$13*(BD$2*0.001-$A14*0.001))/(('Input&Overview'!$D$3-0.5*BD$2*0.001)*PI()*($A14*0.001)^3))*0.000001 -> 1023.222044 | BE14: =((8*'Input&Overview'!$B$13*(BE$2*0.001-$A14*0.001))/(('Input&Overview'!$D$3-0.5*BE$2*0.001)*PI()*($A14*0.001)^3))*0.000001 -> 1030.597058 | BF14: =((8*'Input&Overview'!$B$13*(BF$2*0.001-$A14*0.001))/(('Input&Overview'!$D$3-0.5*BF$2*0.001)*PI()*($A14*0.001)^3))*0.000001 -> 1037.985255 | BG14: =((8*'Input&Overview'!$B$13*(BG$2*0.001-$A14*0.001))/(('Input&Overview'!$D$3-0.5*BG$2*0.001)*PI()*($A14*0.001)^3))*0.000001 -> 1045.386668 | BH14: =((8*'Input&Overview'!$B$13*(BH$2*0.001-$A14*0.001))/(('Input&Overview'!$D$3-0.5*BH$2*0.001)*PI()*($A14*0.001)^3))*0.000001 -> 1052.801333 | BI14: =((8*'Input&Overview'!$B$13*(BI$2*0.001-$A14*0.001))/(('Input&Overview'!$D$3-0.5*BI$2*0.001)*PI()*($A14*0.001)^3))*0.000001 -> 1060.229286 | BJ14: =((8*'Input&Overview'!$B$13*(BJ$2*0.001-$A14*0.001))/(('Input&Overview'!$D$3-0.5*BJ$2*0.001)*PI()*($A14*0.001)^3))*0.000001 -> 1067.670563 | BK14: =((8*'Input&Overview'!$B$13*(BK$2*0.001-$A14*0.001))/(('Input&Overview'!$D$3-0.5*BK$2*0.001)*PI()*($A14*0.001)^3))*0.000001 -> 1075.125199 | BL14: =((8*'Input&Overview'!$B$13*(BL$2*0.001-$A14*0.001))/(('Input&Overview'!$D$3-0.5*BL$2*0.001)*PI()*($A14*0.001)^3))*0.000001 -> 1082.593231 | BM14: =((8*'Input&Overview'!$B$13*(BM$2*0.001-$A14*0.001))/(('Input&Overview'!$D$3-0.5*BM$2*0.001)*PI()*($A14*0.001)^3))*0.000001 -> 1090.074695 | BN14: =((8*'Input&Overview'!$B$13*(BN$2*0.001-$A14*0.001))/(('Input&Overview'!$D$3-0.5*BN$2*0.001)*PI()*($A14*0.001)^3))*0.000001 -> 1097.569626 | BO14: =((8*'Input&Overview'!$B$13*(BO$2*0.001-$A14*0.001))/(('Input&Overview'!$D$3-0.5*BO$2*0.001)*PI()*($A14*0.001)^3))*0.000001 -> 1105.078063 | BP14: =((8*'Input&Overview'!$B$13*(BP$2*0.001-$A14*0.001))/(('Input&Overview'!$D$3-0.5*BP$2*0.001)*PI()*($A14*0.001)^3))*0.000001 -> 1112.600039 | BQ14: =((8*'Input&Overview'!$B$13*(BQ$2*0.001-$A14*0.001))/(('Input&Overview'!$D$3-0.5*BQ$2*0.001)*PI()*($A14*0.001)^3))*0.000001 -> 1120.135594 | BR14: =((8*'Input&Overview'!$B$13*(BR$2*0.001-$A14*0.001))/(('Input&Overview'!$D$3-0.5*BR$2*0.001)*PI()*($A14*0.001)^3))*0.000001 -> 1127.684763 | BS14: =((8*'Input&Overview'!$B$13*(BS$2*0.001-$A14*0.001))/(('Input&Overview'!$D$3-0.5*BS$2*0.001)*PI()*($A14*0.001)^3))*0.000001 -> 1135.247583 | BT14: =((8*'Input&Overview'!$B$13*(BT$2*0.001-$A14*0.001))/(('Input&Overview'!$D$3-0.5*BT$2*0.001)*PI()*($A14*0.001)^3))*0.000001 -> 1142.824092 | BU14: =((8*'Input&Overview'!$B$13*(BU$2*0.001-$A14*0.001))/(('Input&Overview'!$D$3-0.5*BU$2*0.001)*PI()*($A14*0.001)^3))*0.000001 -> 1150.414326 | BV14: =((8*'Input&Overview'!$B$13*(BV$2*0.001-$A14*0.001))/(('Input&Overview'!$D$3-0.5*BV$2*0.001)*PI()*($A14*0.001)^3))*0.000001 -> 1158.018323 | BW14: =((8*'Input&Overview'!$B$13*(BW$2*0.001-$A14*0.001))/(('Input&Overview'!$D$3-0.5*BW$2*0.001)*PI()*($A14*0.001)^3))*0.000001 -> 1165.63612 | BX14: =((8*'Input&Overview'!$B$13*(BX$2*0.001-$A14*0.001))/(('Input&Overview'!$D$3-0.5*BX$2*0.001)*PI()*($A14*0.001)^3))*0.000001 -> 1173.267756 | BY14: =((8*'Input&Overview'!$B$13*(BY$2*0.001-$A14*0.001))/(('Input&Overview'!$D$3-0.5*BY$2*0.001)*PI()*($A14*0.001)^3))*0.000001 -> 1180.913267 | BZ14: =((8*'Input&Overview'!$B$13*(BZ$2*0.001-$A14*0.001))/(('Input&Overview'!$D$3-0.5*BZ$2*0.001)*PI()*($A14*0.001)^3))*0.000001 -> 1188.572691 | CA14: =((8*'Input&Overview'!$B$13*(CA$2*0.001-$A14*0.001))/(('Input&Overview'!$D$3-0.5*CA$2*0.001)*PI()*($A14*0.001)^3))*0.000001 -> 1196.246067 | CB14: =((8*'Input&Overview'!$B$13*(CB$2*0.001-$A14*0.001))/(('Input&Overview'!$D$3-0.5*CB$2*0.001)*PI()*($A14*0.001)^3))*0.000001 -> 1203.933433 | CC14: =((8*'Input&Overview'!$B$13*(CC$2*0.001-$A14*0.001))/(('Input&Overview'!$D$3-0.5*CC$2*0.001)*PI()*($A14*0.001)^3))*0.000001 -> 1211.634827 | CD14: =((8*'Input&Overview'!$B$13*(CD$2*0.001-$A14*0.001))/(('Input&Overview'!$D$3-0.5*CD$2*0.001)*PI()*($A14*0.001)^3))*0.000001 -> 1219.350288 | CE14: =((8*'Input&Overview'!$B$13*(CE$2*0.001-$A14*0.001))/(('Input&Overview'!$D$3-0.5*CE$2*0.001)*PI()*($A14*0.001)^3))*0.000001 -> 1227.079853 | CF14: =((8*'Input&Overview'!$B$13*(CF$2*0.001-$A14*0.001))/(('Input&Overview'!$D$3-0.5*CF$2*0.001)*PI()*($A14*0.001)^3))*0.000001 -> 1234.823563 | CG14: =((8*'Input&Overview'!$B$13*(CG$2*0.001-$A14*0.001))/(('Input&Overview'!$D$3-0.5*CG$2*0.001)*PI()*($A14*0.001)^3))*0.000001 -> 1242.581455 | CH14: =((8*'Input&Overview'!$B$13*(CH$2*0.001-$A14*0.001))/(('Input&Overview'!$D$3-0.5*CH$2*0.001)*PI()*($A14*0.001)^3))*0.000001 -> 1250.353568 | CI14: =((8*'Input&Overview'!$B$13*(CI$2*0.001-$A14*0.001))/(('Input&Overview'!$D$3-0.5*CI$2*0.001)*PI()*($A14*0.001)^3))*0.000001 -> 1258.139942
A15: ='c'!$A15 -> 4.2 | B15: =((8*'Input&Overview'!$B$13*(B$2*0.001-$A15*0.001))/(('Input&Overview'!$D$3-0.5*B$2*0.001)*PI()*($A15*0.001)^3))*0.000001 -> 595.8616097 | C15: =((8*'Input&Overview'!$B$13*(C$2*0.001-$A15*0.001))/(('Input&Overview'!$D$3-0.5*C$2*0.001)*PI()*($A15*0.001)^3))*0.000001 -> 602.1034767 | D15: =((8*'Input&Overview'!$B$13*(D$2*0.001-$A15*0.001))/(('Input&Overview'!$D$3-0.5*D$2*0.001)*PI()*($A15*0.001)^3))*0.000001 -> 608.3559863 | E15: =((8*'Input&Overview'!$B$13*(E$2*0.001-$A15*0.001))/(('Input&Overview'!$D$3-0.5*E$2*0.001)*PI()*($A15*0.001)^3))*0.000001 -> 614.6191658 | F15: =((8*'Input&Overview'!$B$13*(F$2*0.001-$A15*0.001))/(('Input&Overview'!$D$3-0.5*F$2*0.001)*PI()*($A15*0.001)^3))*0.000001 -> 620.8930423 | G15: =((8*'Input&Overview'!$B$13*(G$2*0.001-$A15*0.001))/(('Input&Overview'!$D$3-0.5*G$2*0.001)*PI()*($A15*0.001)^3))*0.000001 -> 627.1776435 | H15: =((8*'Input&Overview'!$B$13*(H$2*0.001-$A15*0.001))/(('Input&Overview'!$D$3-0.5*H$2*0.001)*PI()*($A15*0.001)^3))*0.000001 -> 633.4729967 | I15: =((8*'Input&Overview'!$B$13*(I$2*0.001-$A15*0.001))/(('Input&Overview'!$D$3-0.5*I$2*0.001)*PI()*($A15*0.001)^3))*0.000001 -> 639.7791297 | J15: =((8*'Input&Overview'!$B$13*(J$2*0.001-$A15*0.001))/(('Input&Overview'!$D$3-0.5*J$2*0.001)*PI()*($A15*0.001)^3))*0.000001 -> 646.0960701 | K15: =((8*'Input&Overview'!$B$13*(K$2*0.001-$A15*0.001))/(('Input&Overview'!$D$3-0.5*K$2*0.001)*PI()*($A15*0.001)^3))*0.000001 -> 652.4238457 | L15: =((8*'Input&Overview'!$B$13*(L$2*0.001-$A15*0.001))/(('Input&Overview'!$D$3-0.5*L$2*0.001)*PI()*($A15*0.001)^3))*0.000001 -> 658.7624845 | M15: =((8*'Input&Overview'!$B$13*(M$2*0.001-$A15*0.001))/(('Input&Overview'!$D$3-0.5*M$2*0.001)*PI()*($A15*0.001)^3))*0.000001 -> 665.1120143 | N15: =((8*'Input&Overview'!$B$13*(N$2*0.001-$A15*0.001))/(('Input&Overview'!$D$3-0.5*N$2*0.001)*PI()*($A15*0.001)^3))*0.000001 -> 671.4724635 | O15: =((8*'Input&Overview'!$B$13*(O$2*0.001-$A15*0.001))/(('Input&Overview'!$D$3-0.5*O$2*0.001)*PI()*($A15*0.001)^3))*0.000001 -> 677.84386 | P15: =((8*'Input&Overview'!$B$13*(P$2*0.001-$A15*0.001))/(('Input&Overview'!$D$3-0.5*P$2*0.001)*PI()*($A15*0.001)^3))*0.000001 -> 684.2262322 | Q15: =((8*'Input&Overview'!$B$13*(Q$2*0.001-$A15*0.001))/(('Input&Overview'!$D$3-0.5*Q$2*0.001)*PI()*($A15*0.001)^3))*0.000001 -> 690.6196085 | R15: =((8*'Input&Overview'!$B$13*(R$2*0.001-$A15*0.001))/(('Input&Overview'!$D$3-0.5*R$2*0.001)*PI()*($A15*0.001)^3))*0.000001 -> 697.0240174 | S15: =((8*'Input&Overview'!$B$13*(S$2*0.001-$A15*0.001))/(('Input&Overview'!$D$3-0.5*S$2*0.001)*PI()*($A15*0.001)^3))*0.000001 -> 703.4394875 | T15: =((8*'Input&Overview'!$B$13*(T$2*0.001-$A15*0.001))/(('Input&Overview'!$D$3-0.5*T$2*0.001)*PI()*($A15*0.001)^3))*0.000001 -> 709.8660474 | U15: =((8*'Input&Overview'!$B$13*(U$2*0.001-$A15*0.001))/(('Input&Overview'!$D$3-0.5*U$2*0.001)*PI()*($A15*0.001)^3))*0.000001 -> 716.3037259 | V15: =((8*'Input&Overview'!$B$13*(V$2*0.001-$A15*0.001))/(('Input&Overview'!$D$3-0.5*V$2*0.001)*PI()*($A15*0.001)^3))*0.000001 -> 722.7525519 | W15: =((8*'Input&Overview'!$B$13*(W$2*0.001-$A15*0.001))/(('Input&Overview'!$D$3-0.5*W$2*0.001)*PI()*($A15*0.001)^3))*0.000001 -> 729.2125543 | X15: =((8*'Input&Overview'!$B$13*(X$2*0.001-$A15*0.001))/(('Input&Overview'!$D$3-0.5*X$2*0.001)*PI()*($A15*0.001)^3))*0.000001 -> 735.6837624 | Y15: =((8*'Input&Overview'!$B$13*(Y$2*0.001-$A15*0.001))/(('Input&Overview'!$D$3-0.5*Y$2*0.001)*PI()*($A15*0.001)^3))*0.000001 -> 742.1662051 | Z15: =((8*'Input&Overview'!$B$13*(Z$2*0.001-$A15*0.001))/(('Input&Overview'!$D$3-0.5*Z$2*0.001)*PI()*($A15*0.001)^3))*0.000001 -> 748.6599119 | AA15: =((8*'Input&Overview'!$B$13*(AA$2*0.001-$A15*0.001))/(('Input&Overview'!$D$3-0.5*AA$2*0.001)*PI()*($A15*0.001)^3))*0.000001 -> 755.1649121 | AB15: =((8*'Input&Overview'!$B$13*(AB$2*0.001-$A15*0.001))/(('Input&Overview'!$D$3-0.5*AB$2*0.001)*PI()*($A15*0.001)^3))*0.000001 -> 761.6812352 | AC15: =((8*'Input&Overview'!$B$13*(AC$2*0.001-$A15*0.001))/(('Input&Overview'!$D$3-0.5*AC$2*0.001)*PI()*($A15*0.001)^3))*0.000001 -> 768.2089107 | AD15: =((8*'Input&Overview'!$B$13*(AD$2*0.001-$A15*0.001))/(('Input&Overview'!$D$3-0.5*AD$2*0.001)*PI()*($A15*0.001)^3))*0.000001 -> 774.7479685 | AE15: =((8*'Input&Overview'!$B$13*(AE$2*0.001-$A15*0.001))/(('Input&Overview'!$D$3-0.5*AE$2*0.001)*PI()*($A15*0.001)^3))*0.000001 -> 781.2984382 | AF15: =((8*'Input&Overview'!$B$13*(AF$2*0.001-$A15*0.001))/(('Input&Overview'!$D$3-0.5*AF$2*0.001)*PI()*($A15*0.001)^3))*0.000001 -> 787.8603497 | AG15: =((8*'Input&Overview'!$B$13*(AG$2*0.001-$A15*0.001))/(('Input&Overview'!$D$3-0.5*AG$2*0.001)*PI()*($A15*0.001)^3))*0.000001 -> 794.4337332 | AH15: =((8*'Input&Overview'!$B$13*(AH$2*0.001-$A15*0.001))/(('Input&Overview'!$D$3-0.5*AH$2*0.001)*PI()*($A15*0.001)^3))*0.000001 -> 801.0186186 | AI15: =((8*'Input&Overview'!$B$13*(AI$2*0.001-$A15*0.001))/(('Input&Overview'!$D$3-0.5*AI$2*0.001)*PI()*($A15*0.001)^3))*0.000001 -> 807.6150362 | AJ15: =((8*'Input&Overview'!$B$13*(AJ$2*0.001-$A15*0.001))/(('Input&Overview'!$D$3-0.5*AJ$2*0.001)*PI()*($A15*0.001)^3))*0.000001 -> 814.2230163 | AK15: =((8*'Input&Overview'!$B$13*(AK$2*0.001-$A15*0.001))/(('Input&Overview'!$D$3-0.5*AK$2*0.001)*PI()*($A15*0.001)^3))*0.000001 -> 820.8425894 | AL15: =((8*'Input&Overview'!$B$13*(AL$2*0.001-$A15*0.001))/(('Input&Overview'!$D$3-0.5*AL$2*0.001)*PI()*($A15*0.001)^3))*0.000001 -> 827.473786 | AM15: =((8*'Input&Overview'!$B$13*(AM$2*0.001-$A15*0.001))/(('Input&Overview'!$D$3-0.5*AM$2*0.001)*PI()*($A15*0.001)^3))*0.000001 -> 834.1166367 | AN15: =((8*'Input&Overview'!$B$13*(AN$2*0.001-$A15*0.001))/(('Input&Overview'!$D$3-0.5*AN$2*0.001)*PI()*($A15*0.001)^3))*0.000001 -> 840.7711722 | AO15: =((8*'Input&Overview'!$B$13*(AO$2*0.001-$A15*0.001))/(('Input&Overview'!$D$3-0.5*AO$2*0.001)*PI()*($A15*0.001)^3))*0.000001 -> 847.4374235 | AP15: =((8*'Input&Overview'!$B$13*(AP$2*0.001-$A15*0.001))/(('Input&Overview'!$D$3-0.5*AP$2*0.001)*PI()*($A15*0.001)^3))*0.000001 -> 854.1154215 | AQ15: =((8*'Input&Overview'!$B$13*(AQ$2*0.001-$A15*0.001))/(('Input&Overview'!$D$3-0.5*AQ$2*0.001)*PI()*($A15*0.001)^3))*0.000001 -> 860.8051973 | AR15: =((8*'Input&Overview'!$B$13*(AR$2*0.001-$A15*0.001))/(('Input&Overview'!$D$3-0.5*AR$2*0.001)*PI()*($A15*0.001)^3))*0.000001 -> 867.506782 | AS15: =((8*'Input&Overview'!$B$13*(AS$2*0.001-$A15*0.001))/(('Input&Overview'!$D$3-0.5*AS$2*0.001)*PI()*($A15*0.001)^3))*0.000001 -> 874.220207 | AT15: =((8*'Input&Overview'!$B$13*(AT$2*0.001-$A15*0.001))/(('Input&Overview'!$D$3-0.5*AT$2*0.001)*PI()*($A15*0.001)^3))*0.000001 -> 880.9455037 | AU15: =((8*'Input&Overview'!$B$13*(AU$2*0.001-$A15*0.001))/(('Input&Overview'!$D$3-0.5*AU$2*0.001)*PI()*($A15*0.001)^3))*0.000001 -> 887.6827035 | AV15: =((8*'Input&Overview'!$B$13*(AV$2*0.001-$A15*0.001))/(('Input&Overview'!$D$3-0.5*AV$2*0.001)*PI()*($A15*0.001)^3))*0.000001 -> 894.4318381 | AW15: =((8*'Input&Overview'!$B$13*(AW$2*0.001-$A15*0.001))/(('Input&Overview'!$D$3-0.5*AW$2*0.001)*PI()*($A15*0.001)^3))*0.000001 -> 901.1929393 | AX15: =((8*'Input&Overview'!$B$13*(AX$2*0.001-$A15*0.001))/(('Input&Overview'!$D$3-0.5*AX$2*0.001)*PI()*($A15*0.001)^3))*0.000001 -> 907.9660389 | AY15: =((8*'Input&Overview'!$B$13*(AY$2*0.001-$A15*0.001))/(('Input&Overview'!$D$3-0.5*AY$2*0.001)*PI()*($A15*0.001)^3))*0.000001 -> 914.7511689 | AZ15: =((8*'Input&Overview'!$B$13*(AZ$2*0.001-$A15*0.001))/(('Input&Overview'!$D$3-0.5*AZ$2*0.001)*PI()*($A15*0.001)^3))*0.000001 -> 921.5483613 | BA15: =((8*'Input&Overview'!$B$13*(BA$2*0.001-$A15*0.001))/(('Input&Overview'!$D$3-0.5*BA$2*0.001)*PI()*($A15*0.001)^3))*0.000001 -> 928.3576484 | BB15: =((8*'Input&Overview'!$B$13*(BB$2*0.001-$A15*0.001))/(('Input&Overview'!$D$3-0.5*BB$2*0.001)*PI()*($A15*0.001)^3))*0.000001 -> 935.1790624 | BC15: =((8*'Input&Overview'!$B$13*(BC$2*0.001-$A15*0.001))/(('Input&Overview'!$D$3-0.5*BC$2*0.001)*PI()*($A15*0.001)^3))*0.000001 -> 942.0126358 | BD15: =((8*'Input&Overview'!$B$13*(BD$2*0.001-$A15*0.001))/(('Input&Overview'!$D$3-0.5*BD$2*0.001)*PI()*($A15*0.001)^3))*0.000001 -> 948.8584011 | BE15: =((8*'Input&Overview'!$B$13*(BE$2*0.001-$A15*0.001))/(('Input&Overview'!$D$3-0.5*BE$2*0.001)*PI()*($A15*0.001)^3))*0.000001 -> 955.716391 | BF15: =((8*'Input&Overview'!$B$13*(BF$2*0.001-$A15*0.001))/(('Input&Overview'!$D$3-0.5*BF$2*0.001)*PI()*($A15*0.001)^3))*0.000001 -> 962.5866383 | BG15: =((8*'Input&Overview'!$B$13*(BG$2*0.001-$A15*0.001))/(('Input&Overview'!$D$3-0.5*BG$2*0.001)*PI()*($A15*0.001)^3))*0.000001 -> 969.4691758 | BH15: =((8*'Input&Overview'!$B$13*(BH$2*0.001-$A15*0.001))/(('Input&Overview'!$D$3-0.5*BH$2*0.001)*PI()*($A15*0.001)^3))*0.000001 -> 976.3640366 | BI15: =((8*'Input&Overview'!$B$13*(BI$2*0.001-$A15*0.001))/(('Input&Overview'!$D$3-0.5*BI$2*0.001)*PI()*($A15*0.001)^3))*0.000001 -> 983.2712537 | BJ15: =((8*'Input&Overview'!$B$13*(BJ$2*0.001-$A15*0.001))/(('Input&Overview'!$D$3-0.5*BJ$2*0.001)*PI()*($A15*0.001)^3))*0.000001 -> 990.1908605 | BK15: =((8*'Input&Overview'!$B$13*(BK$2*0.001-$A15*0.001))/(('Input&Overview'!$D$3-0.5*BK$2*0.001)*PI()*($A15*0.001)^3))*0.000001 -> 997.1228903 | BL15: =((8*'Input&Overview'!$B$13*(BL$2*0.001-$A15*0.001))/(('Input&Overview'!$D$3-0.5*BL$2*0.001)*PI()*($A15*0.001)^3))*0.000001 -> 1004.067377 | BM15: =((8*'Input&Overview'!$B$13*(BM$2*0.001-$A15*0.001))/(('Input&Overview'!$D$3-0.5*BM$2*0.001)*PI()*($A15*0.001)^3))*0.000001 -> 1011.024353 | BN15: =((8*'Input&Overview'!$B$13*(BN$2*0.001-$A15*0.001))/(('Input&Overview'!$D$3-0.5*BN$2*0.001)*PI()*($A15*0.001)^3))*0.000001 -> 1017.993853 | BO15: =((8*'Input&Overview'!$B$13*(BO$2*0.001-$A15*0.001))/(('Input&Overview'!$D$3-0.5*BO$2*0.001)*PI()*($A15*0.001)^3))*0.000001 -> 1024.975911 | BP15: =((8*'Input&Overview'!$B$13*(BP$2*0.001-$A15*0.001))/(('Input&Overview'!$D$3-0.5*BP$2*0.001)*PI()*($A15*0.001)^3))*0.000001 -> 1031.97056 | BQ15: =((8*'Input&Overview'!$B$13*(BQ$2*0.001-$A15*0.001))/(('Input&Overview'!$D$3-0.5*BQ$2*0.001)*PI()*($A15*0.001)^3))*0.000001 -> 1038.977835 | BR15: =((8*'Input&Overview'!$B$13*(BR$2*0.001-$A15*0.001))/(('Input&Overview'!$D$3-0.5*BR$2*0.001)*PI()*($A15*0.001)^3))*0.000001 -> 1045.99777 | BS15: =((8*'Input&Overview'!$B$13*(BS$2*0.001-$A15*0.001))/(('Input&Overview'!$D$3-0.5*BS$2*0.001)*PI()*($A15*0.001)^3))*0.000001 -> 1053.0304 | BT15: =((8*'Input&Overview'!$B$13*(BT$2*0.001-$A15*0.001))/(('Input&Overview'!$D$3-0.5*BT$2*0.001)*PI()*($A15*0.001)^3))*0.000001 -> 1060.075758 | BU15: =((8*'Input&Overview'!$B$13*(BU$2*0.001-$A15*0.001))/(('Input&Overview'!$D$3-0.5*BU$2*0.001)*PI()*($A15*0.001)^3))*0.000001 -> 1067.133879 | BV15: =((8*'Input&Overview'!$B$13*(BV$2*0.001-$A15*0.001))/(('Input&Overview'!$D$3-0.5*BV$2*0.001)*PI()*($A15*0.001)^3))*0.000001 -> 1074.204799 | BW15: =((8*'Input&Overview'!$B$13*(BW$2*0.001-$A15*0.001))/(('Input&Overview'!$D$3-0.5*BW$2*0.001)*PI()*($A15*0.001)^3))*0.000001 -> 1081.288551 | BX15: =((8*'Input&Overview'!$B$13*(BX$2*0.001-$A15*0.001))/(('Input&Overview'!$D$3-0.5*BX$2*0.001)*PI()*($A15*0.001)^3))*0.000001 -> 1088.385171 | BY15: =((8*'Input&Overview'!$B$13*(BY$2*0.001-$A15*0.001))/(('Input&Overview'!$D$3-0.5*BY$2*0.001)*PI()*($A15*0.001)^3))*0.000001 -> 1095.494695 | BZ15: =((8*'Input&Overview'!$B$13*(BZ$2*0.001-$A15*0.001))/(('Input&Overview'!$D$3-0.5*BZ$2*0.001)*PI()*($A15*0.001)^3))*0.000001 -> 1102.617156 | CA15: =((8*'Input&Overview'!$B$13*(CA$2*0.001-$A15*0.001))/(('Input&Overview'!$D$3-0.5*CA$2*0.001)*PI()*($A15*0.001)^3))*0.000001 -> 1109.752591 | CB15: =((8*'Input&Overview'!$B$13*(CB$2*0.001-$A15*0.001))/(('Input&Overview'!$D$3-0.5*CB$2*0.001)*PI()*($A15*0.001)^3))*0.000001 -> 1116.901035 | CC15: =((8*'Input&Overview'!$B$13*(CC$2*0.001-$A15*0.001))/(('Input&Overview'!$D$3-0.5*CC$2*0.001)*PI()*($A15*0.001)^3))*0.000001 -> 1124.062523 | CD15: =((8*'Input&Overview'!$B$13*(CD$2*0.001-$A15*0.001))/(('Input&Overview'!$D$3-0.5*CD$2*0.001)*PI()*($A15*0.001)^3))*0.000001 -> 1131.237092 | CE15: =((8*'Input&Overview'!$B$13*(CE$2*0.001-$A15*0.001))/(('Input&Overview'!$D$3-0.5*CE$2*0.001)*PI()*($A15*0.001)^3))*0.000001 -> 1138.424777 | CF15: =((8*'Input&Overview'!$B$13*(CF$2*0.001-$A15*0.001))/(('Input&Overview'!$D$3-0.5*CF$2*0.001)*PI()*($A15*0.001)^3))*0.000001 -> 1145.625614 | CG15: =((8*'Input&Overview'!$B$13*(CG$2*0.001-$A15*0.001))/(('Input&Overview'!$D$3-0.5*CG$2*0.001)*PI()*($A15*0.001)^3))*0.000001 -> 1152.83964 | CH15: =((8*'Input&Overview'!$B$13*(CH$2*0.001-$A15*0.001))/(('Input&Overview'!$D$3-0.5*CH$2*0.001)*PI()*($A15*0.001)^3))*0.000001 -> 1160.06689 | CI15: =((8*'Input&Overview'!$B$13*(CI$2*0.001-$A15*0.001))/(('Input&Overview'!$D$3-0.5*CI$2*0.001)*PI()*($A15*0.001)^3))*0.000001 -> 1167.307401
... 18 more rows

Sheet K
A1: K <-> | B1: D | C1: K = 1 + 5/(4*w) + 7/(8*w²) + 1/w³
A2: d | B2: ='c'!B$2 -> 25 | C2: ='c'!C$2 -> 25.2 | D2: ='c'!D$2 -> 25.4 | E2: ='c'!E$2 -> 25.6 | F2: ='c'!F$2 -> 25.8 | G2: ='c'!G$2 -> 26 | H2: ='c'!H$2 -> 26.2 | I2: ='c'!I$2 -> 26.4 | J2: ='c'!J$2 -> 26.6 | K2: ='c'!K$2 -> 26.8 | L2: ='c'!L$2 -> 27 | M2: ='c'!M$2 -> 27.2 | N2: ='c'!N$2 -> 27.4 | O2: ='c'!O$2 -> 27.6 | P2: ='c'!P$2 -> 27.8 | Q2: ='c'!Q$2 -> 28 | R2: ='c'!R$2 -> 28.2 | S2: ='c'!S$2 -> 28.4 | T2: ='c'!T$2 -> 28.6 | U2: ='c'!U$2 -> 28.8 | V2: ='c'!V$2 -> 29 | W2: ='c'!W$2 -> 29.2 | X2: ='c'!X$2 -> 29.4 | Y2: ='c'!Y$2 -> 29.6 | Z2: ='c'!Z$2 -> 29.8 | AA2: ='c'!AA$2 -> 30 | AB2: ='c'!AB$2 -> 30.2 | AC2: ='c'!AC$2 -> 30.4 | AD2: ='c'!AD$2 -> 30.6 | AE2: ='c'!AE$2 -> 30.8 | AF2: ='c'!AF$2 -> 31 | AG2: ='c'!AG$2 -> 31.2 | AH2: ='c'!AH$2 -> 31.4 | AI2: ='c'!AI$2 -> 31.6 | AJ2: ='c'!AJ$2 -> 31.8 | AK2: ='c'!AK$2 -> 32 | AL2: ='c'!AL$2 -> 32.2 | AM2: ='c'!AM$2 -> 32.4 | AN2: ='c'!AN$2 -> 32.6 | AO2: ='c'!AO$2 -> 32.8 | AP2: ='c'!AP$2 -> 33 | AQ2: ='c'!AQ$2 -> 33.2 | AR2: ='c'!AR$2 -> 33.4 | AS2: ='c'!AS$2 -> 33.6 | AT2: ='c'!AT$2 -> 33.8 | AU2: ='c'!AU$2 -> 34 | AV2: ='c'!AV$2 -> 34.2 | AW2: ='c'!AW$2 -> 34.4 | AX2: ='c'!AX$2 -> 34.6 | AY2: ='c'!AY$2 -> 34.8 | AZ2: ='c'!AZ$2 -> 35 | BA2: ='c'!BA$2 -> 35.2 | BB2: ='c'!BB$2 -> 35.4 | BC2: ='c'!BC$2 -> 35.6 | BD2: ='c'!BD$2 -> 35.8 | BE2: ='c'!BE$2 -> 36 | BF2: ='c'!BF$2 -> 36.2 | BG2: ='c'!BG$2 -> 36.4 | BH2: ='c'!BH$2 -> 36.6 | BI2: ='c'!BI$2 -> 36.8 | BJ2: ='c'!BJ$2 -> 37 | BK2: ='c'!BK$2 -> 37.2 | BL2: ='c'!BL$2 -> 37.4 | BM2: ='c'!BM$2 -> 37.6 | BN2: ='c'!BN$2 -> 37.8 | BO2: ='c'!BO$2 -> 38 | BP2: ='c'!BP$2 -> 38.2 | BQ2: ='c'!BQ$2 -> 38.4 | BR2: ='c'!BR$2 -> 38.6 | BS2: ='c'!BS$2 -> 38.8 | BT2: ='c'!BT$2 -> 39 | BU2: ='c'!BU$2 -> 39.2 | BV2: ='c'!BV$2 -> 39.4 | BW2: ='c'!BW$2 -> 39.6 | BX2: ='c'!BX$2 -> 39.8 | BY2: ='c'!BY$2 -> 40 | BZ2: ='c'!BZ$2 -> 40.2 | CA2: ='c'!CA$2 -> 40.4 | CB2: ='c'!CB$2 -> 40.6 | CC2: ='c'!CC$2 -> 40.8 | CD2: ='c'!CD$2 -> 41 | CE2: ='c'!CE$2 -> 41.2 | CF2: ='c'!CF$2 -> 41.4 | CG2: ='c'!CG$2 -> 41.6 | CH2: ='c'!CH$2 -> 41.8 | CI2: ='c'!CI$2 -> 42
A3: ='c'!$A3 -> 3 | B3: =1+5/(4*'c'!B3)+7/(8*'c'!B3^2)+1/('c'!B3^3) -> 1.189260894 | C3: =1+5/(4*'c'!C3)+7/(8*'c'!C3^2)+1/('c'!C3^3) -> 1.187365506 | D3: =1+5/(4*'c'!D3)+7/(8*'c'!D3^2)+1/('c'!D3^3) -> 1.185507727 | E3: =1+5/(4*'c'!E3)+7/(8*'c'!E3^2)+1/('c'!E3^3) -> 1.183686448 | F3: =1+5/(4*'c'!F3)+7/(8*'c'!F3^2)+1/('c'!F3^3) -> 1.181900605 | G3: =1+5/(4*'c'!G3)+7/(8*'c'!G3^2)+1/('c'!G3^3) -> 1.180149174 | H3: =1+5/(4*'c'!H3)+7/(8*'c'!H3^2)+1/('c'!H3^3) -> 1.17843117 | I3: =1+5/(4*'c'!I3)+7/(8*'c'!I3^2)+1/('c'!I3^3) -> 1.176745646 | J3: =1+5/(4*'c'!J3)+7/(8*'c'!J3^2)+1/('c'!J3^3) -> 1.17509169 | K3: =1+5/(4*'c'!K3)+7/(8*'c'!K3^2)+1/('c'!K3^3) -> 1.173468423 | L3: =1+5/(4*'c'!L3)+7/(8*'c'!L3^2)+1/('c'!L3^3) -> 1.171875 | M3: =1+5/(4*'c'!M3)+7/(8*'c'!M3^2)+1/('c'!M3^3) -> 1.170310605 | N3: =1+5/(4*'c'!N3)+7/(8*'c'!N3^2)+1/('c'!N3^3) -> 1.168774451 | O3: =1+5/(4*'c'!O3)+7/(8*'c'!O3^2)+1/('c'!O3^3) -> 1.167265783 | P3: =1+5/(4*'c'!P3)+7/(8*'c'!P3^2)+1/('c'!P3^3) -> 1.165783867 | Q3: =1+5/(4*'c'!Q3)+7/(8*'c'!Q3^2)+1/('c'!Q3^3) -> 1.164328 | R3: =1+5/(4*'c'!R3)+7/(8*'c'!R3^2)+1/('c'!R3^3) -> 1.1628975 | S3: =1+5/(4*'c'!S3)+7/(8*'c'!S3^2)+1/('c'!S3^3) -> 1.161491711 | T3: =1+5/(4*'c'!T3)+7/(8*'c'!T3^2)+1/('c'!T3^3) -> 1.160109997 | U3: =1+5/(4*'c'!U3)+7/(8*'c'!U3^2)+1/('c'!U3^3) -> 1.158751745 | V3: =1+5/(4*'c'!V3)+7/(8*'c'!V3^2)+1/('c'!V3^3) -> 1.157416363 | W3: =1+5/(4*'c'!W3)+7/(8*'c'!W3^2)+1/('c'!W3^3) -> 1.156103278 | X3: =1+5/(4*'c'!X3)+7/(8*'c'!X3^2)+1/('c'!X3^3) -> 1.154811937 | Y3: =1+5/(4*'c'!Y3)+7/(8*'c'!Y3^2)+1/('c'!Y3^3) -> 1.153541802 | Z3: =1+5/(4*'c'!Z3)+7/(8*'c'!Z3^2)+1/('c'!Z3^3) -> 1.152292357 | AA3: =1+5/(4*'c'!AA3)+7/(8*'c'!AA3^2)+1/('c'!AA3^3) -> 1.1510631 | AB3: =1+5/(4*'c'!AB3)+7/(8*'c'!AB3^2)+1/('c'!AB3^3) -> 1.149853545 | AC3: =1+5/(4*'c'!AC3)+7/(8*'c'!AC3^2)+1/('c'!AC3^3) -> 1.148663223 | AD3: =1+5/(4*'c'!AD3)+7/(8*'c'!AD3^2)+1/('c'!AD3^3) -> 1.147491678 | AE3: =1+5/(4*'c'!AE3)+7/(8*'c'!AE3^2)+1/('c'!AE3^3) -> 1.14633847 | AF3: =1+5/(4*'c'!AF3)+7/(8*'c'!AF3^2)+1/('c'!AF3^3) -> 1.145203171 | AG3: =1+5/(4*'c'!AG3)+7/(8*'c'!AG3^2)+1/('c'!AG3^3) -> 1.144085366 | AH3: =1+5/(4*'c'!AH3)+7/(8*'c'!AH3^2)+1/('c'!AH3^3) -> 1.142984656 | AI3: =1+5/(4*'c'!AI3)+7/(8*'c'!AI3^2)+1/('c'!AI3^3) -> 1.14190065 | AJ3: =1+5/(4*'c'!AJ3)+7/(8*'c'!AJ3^2)+1/('c'!AJ3^3) -> 1.140832972 | AK3: =1+5/(4*'c'!AK3)+7/(8*'c'!AK3^2)+1/('c'!AK3^3) -> 1.139781254 | AL3: =1+5/(4*'c'!AL3)+7/(8*'c'!AL3^2)+1/('c'!AL3^3) -> 1.138745142 | AM3: =1+5/(4*'c'!AM3)+7/(8*'c'!AM3^2)+1/('c'!AM3^3) -> 1.13772429 | AN3: =1+5/(4*'c'!AN3)+7/(8*'c'!AN3^2)+1/('c'!AN3^3) -> 1.136718364 | AO3: =1+5/(4*'c'!AO3)+7/(8*'c'!AO3^2)+1/('c'!AO3^3) -> 1.13572704 | AP3: =1+5/(4*'c'!AP3)+7/(8*'c'!AP3^2)+1/('c'!AP3^3) -> 1.13475 | AQ3: =1+5/(4*'c'!AQ3)+7/(8*'c'!AQ3^2)+1/('c'!AQ3^3) -> 1.133786939 | AR3: =1+5/(4*'c'!AR3)+7/(8*'c'!AR3^2)+1/('c'!AR3^3) -> 1.132837558 | AS3: =1+5/(4*'c'!AS3)+7/(8*'c'!AS3^2)+1/('c'!AS3^3) -> 1.131901569 | AT3: =1+5/(4*'c'!AT3)+7/(8*'c'!AT3^2)+1/('c'!AT3^3) -> 1.130978689 | AU3: =1+5/(4*'c'!AU3)+7/(8*'c'!AU3^2)+1/('c'!AU3^3) -> 1.130068645 | AV3: =1+5/(4*'c'!AV3)+7/(8*'c'!AV3^2)+1/('c'!AV3^3) -> 1.129171171 | AW3: =1+5/(4*'c'!AW3)+7/(8*'c'!AW3^2)+1/('c'!AW3^3) -> 1.128286008 | AX3: =1+5/(4*'c'!AX3)+7/(8*'c'!AX3^2)+1/('c'!AX3^3) -> 1.127412905 | AY3: =1+5/(4*'c'!AY3)+7/(8*'c'!AY3^2)+1/('c'!AY3^3) -> 1.126551616 | AZ3: =1+5/(4*'c'!AZ3)+7/(8*'c'!AZ3^2)+1/('c'!AZ3^3) -> 1.125701904 | BA3: =1+5/(4*'c'!BA3)+7/(8*'c'!BA3^2)+1/('c'!BA3^3) -> 1.124863537 | BB3: =1+5/(4*'c'!BB3)+7/(8*'c'!BB3^2)+1/('c'!BB3^3) -> 1.124036288 | BC3: =1+5/(4*'c'!BC3)+7/(8*'c'!BC3^2)+1/('c'!BC3^3) -> 1.123219938 | BD3: =1+5/(4*'c'!BD3)+7/(8*'c'!BD3^2)+1/('c'!BD3^3) -> 1.122414272 | BE3: =1+5/(4*'c'!BE3)+7/(8*'c'!BE3^2)+1/('c'!BE3^3) -> 1.121619083 | BF3: =1+5/(4*'c'!BF3)+7/(8*'c'!BF3^2)+1/('c'!BF3^3) -> 1.120834168 | BG3: =1+5/(4*'c'!BG3)+7/(8*'c'!BG3^2)+1/('c'!BG3^3) -> 1.120059327 | BH3: =1+5/(4*'c'!BH3)+7/(8*'c'!BH3^2)+1/('c'!BH3^3) -> 1.11929437 | BI3: =1+5/(4*'c'!BI3)+7/(8*'c'!BI3^2)+1/('c'!BI3^3) -> 1.118539106 | BJ3: =1+5/(4*'c'!BJ3)+7/(8*'c'!BJ3^2)+1/('c'!BJ3^3) -> 1.117793354 | BK3: =1+5/(4*'c'!BK3)+7/(8*'c'!BK3^2)+1/('c'!BK3^3) -> 1.117056935 | BL3: =1+5/(4*'c'!BL3)+7/(8*'c'!BL3^2)+1/('c'!BL3^3) -> 1.116329675 | BM3: =1+5/(4*'c'!BM3)+7/(8*'c'!BM3^2)+1/('c'!BM3^3) -> 1.115611403 | BN3: =1+5/(4*'c'!BN3)+7/(8*'c'!BN3^2)+1/('c'!BN3^3) -> 1.114901954 | BO3: =1+5/(4*'c'!BO3)+7/(8*'c'!BO3^2)+1/('c'!BO3^3) -> 1.114201166 | BP3: =1+5/(4*'c'!BP3)+7/(8*'c'!BP3^2)+1/('c'!BP3^3) -> 1.113508882 | BQ3: =1+5/(4*'c'!BQ3)+7/(8*'c'!BQ3^2)+1/('c'!BQ3^3) -> 1.112824948 | BR3: =1+5/(4*'c'!BR3)+7/(8*'c'!BR3^2)+1/('c'!BR3^3) -> 1.112149213 | BS3: =1+5/(4*'c'!BS3)+7/(8*'c'!BS3^2)+1/('c'!BS3^3) -> 1.111481531 | BT3: =1+5/(4*'c'!BT3)+7/(8*'c'!BT3^2)+1/('c'!BT3^3) -> 1.110821759 | BU3: =1+5/(4*'c'!BU3)+7/(8*'c'!BU3^2)+1/('c'!BU3^3) -> 1.110169757 | BV3: =1+5/(4*'c'!BV3)+7/(8*'c'!BV3^2)+1/('c'!BV3^3) -> 1.109525388 | BW3: =1+5/(4*'c'!BW3)+7/(8*'c'!BW3^2)+1/('c'!BW3^3) -> 1.108888519 | BX3: =1+5/(4*'c'!BX3)+7/(8*'c'!BX3^2)+1/('c'!BX3^3) -> 1.10825902 | BY3: =1+5/(4*'c'!BY3)+7/(8*'c'!BY3^2)+1/('c'!BY3^3) -> 1.107636764 | BZ3: =1+5/(4*'c'!BZ3)+7/(8*'c'!BZ3^2)+1/('c'!BZ3^3) -> 1.107021626 | CA3: =1+5/(4*'c'!CA3)+7/(8*'c'!CA3^2)+1/('c'!CA3^3) -> 1.106413484 | CB3: =1+5/(4*'c'!CB3)+7/(8*'c'!CB3^2)+1/('c'!CB3^3) -> 1.105812221 | CC3: =1+5/(4*'c'!CC3)+7/(8*'c'!CC3^2)+1/('c'!CC3^3) -> 1.105217719 | CD3: =1+5/(4*'c'!CD3)+7/(8*'c'!CD3^2)+1/('c'!CD3^3) -> 1.104629866 | CE3: =1+5/(4*'c'!CE3)+7/(8*'c'!CE3^2)+1/('c'!CE3^3) -> 1.10404855 | CF3: =1+5/(4*'c'!CF3)+7/(8*'c'!CF3^2)+1/('c'!CF3^3) -> 1.103473663 | CG3: =1+5/(4*'c'!CG3)+7/(8*'c'!CG3^2)+1/('c'!CG3^3) -> 1.102905099 | CH3: =1+5/(4*'c'!CH3)+7/(8*'c'!CH3^2)+1/('c'!CH3^3) -> 1.102342754 | CI3: =1+5/(4*'c'!CI3)+7/(8*'c'!CI3^2)+1/('c'!CI3^3) -> 1.101786527
A4: ='c'!$A4 -> 3.1 | B4: =1+5/(4*'c'!B4)+7/(8*'c'!B4^2)+1/('c'!B4^3) -> 1.197309417 | C4: =1+5/(4*'c'!C4)+7/(8*'c'!C4^2)+1/('c'!C4^3) -> 1.195315942 | D4: =1+5/(4*'c'!D4)+7/(8*'c'!D4^2)+1/('c'!D4^3) -> 1.193362363 | E4: =1+5/(4*'c'!E4)+7/(8*'c'!E4^2)+1/('c'!E4^3) -> 1.191447495 | F4: =1+5/(4*'c'!F4)+7/(8*'c'!F4^2)+1/('c'!F4^3) -> 1.189570201 | G4: =1+5/(4*'c'!G4)+7/(8*'c'!G4^2)+1/('c'!G4^3) -> 1.187729385 | H4: =1+5/(4*'c'!H4)+7/(8*'c'!H4^2)+1/('c'!H4^3) -> 1.185923996 | I4: =1+5/(4*'c'!I4)+7/(8*'c'!I4^2)+1/('c'!I4^3) -> 1.184153021 | J4: =1+5/(4*'c'!J4)+7/(8*'c'!J4^2)+1/('c'!J4^3) -> 1.182415486 | K4: =1+5/(4*'c'!K4)+7/(8*'c'!K4^2)+1/('c'!K4^3) -> 1.180710453 | L4: =1+5/(4*'c'!L4)+7/(8*'c'!L4^2)+1/('c'!L4^3) -> 1.179037019 | M4: =1+5/(4*'c'!M4)+7/(8*'c'!M4^2)+1/('c'!M4^3) -> 1.177394313 | N4: =1+5/(4*'c'!N4)+7/(8*'c'!N4^2)+1/('c'!N4^3) -> 1.175781499 | O4: =1+5/(4*'c'!O4)+7/(8*'c'!O4^2)+1/('c'!O4^3) -> 1.174197766 | P4: =1+5/(4*'c'!P4)+7/(8*'c'!P4^2)+1/('c'!P4^3) -> 1.172642337 | Q4: =1+5/(4*'c'!Q4)+7/(8*'c'!Q4^2)+1/('c'!Q4^3) -> 1.171114459 | R4: =1+5/(4*'c'!R4)+7/(8*'c'!R4^2)+1/('c'!R4^3) -> 1.169613407 | S4: =1+5/(4*'c'!S4)+7/(8*'c'!S4^2)+1/('c'!S4^3) -> 1.16813848 | T4: =1+5/(4*'c'!T4)+7/(8*'c'!T4^2)+1/('c'!T4^3) -> 1.166689003 | U4: =1+5/(4*'c'!U4)+7/(8*'c'!U4^2)+1/('c'!U4^3) -> 1.165264323 | V4: =1+5/(4*'c'!V4)+7/(8*'c'!V4^2)+1/('c'!V4^3) -> 1.163863809 | W4: =1+5/(4*'c'!W4)+7/(8*'c'!W4^2)+1/('c'!W4^3) -> 1.162486851 | X4: =1+5/(4*'c'!X4)+7/(8*'c'!X4^2)+1/('c'!X4^3) -> 1.16113286 | Y4: =1+5/(4*'c'!Y4)+7/(8*'c'!Y4^2)+1/('c'!Y4^3) -> 1.159801265 | Z4: =1+5/(4*'c'!Z4)+7/(8*'c'!Z4^2)+1/('c'!Z4^3) -> 1.158491517 | AA4: =1+5/(4*'c'!AA4)+7/(8*'c'!AA4^2)+1/('c'!AA4^3) -> 1.157203082 | AB4: =1+5/(4*'c'!AB4)+7/(8*'c'!AB4^2)+1/('c'!AB4^3) -> 1.155935443 | AC4: =1+5/(4*'c'!AC4)+7/(8*'c'!AC4^2)+1/('c'!AC4^3) -> 1.154688102 | AD4: =1+5/(4*'c'!AD4)+7/(8*'c'!AD4^2)+1/('c'!AD4^3) -> 1.153460574 | AE4: =1+5/(4*'c'!AE4)+7/(8*'c'!AE4^2)+1/('c'!AE4^3) -> 1.152252391 | AF4: =1+5/(4*'c'!AF4)+7/(8*'c'!AF4^2)+1/('c'!AF4^3) -> 1.1510631 | AG4: =1+5/(4*'c'!AG4)+7/(8*'c'!AG4^2)+1/('c'!AG4^3) -> 1.149892261 | AH4: =1+5/(4*'c'!AH4)+7/(8*'c'!AH4^2)+1/('c'!AH4^3) -> 1.148739447 | AI4: =1+5/(4*'c'!AI4)+7/(8*'c'!AI4^2)+1/('c'!AI4^3) -> 1.147604245 | AJ4: =1+5/(4*'c'!AJ4)+7/(8*'c'!AJ4^2)+1/('c'!AJ4^3) -> 1.146486256 | AK4: =1+5/(4*'c'!AK4)+7/(8*'c'!AK4^2)+1/('c'!AK4^3) -> 1.145385089 | AL4: =1+5/(4*'c'!AL4)+7/(8*'c'!AL4^2)+1/('c'!AL4^3) -> 1.144300369 | AM4: =1+5/(4*'c'!AM4)+7/(8*'c'!AM4^2)+1/('c'!AM4^3) -> 1.14323173 | AN4: =1+5/(4*'c'!AN4)+7/(8*'c'!AN4^2)+1/('c'!AN4^3) -> 1.142178816 | AO4: =1+5/(4*'c'!AO4)+7/(8*'c'!AO4^2)+1/('c'!AO4^3) -> 1.141141283 | AP4: =1+5/(4*'c'!AP4)+7/(8*'c'!AP4^2)+1/('c'!AP4^3) -> 1.140118796 | AQ4: =1+5/(4*'c'!AQ4)+7/(8*'c'!AQ4^2)+1/('c'!AQ4^3) -> 1.13911103 | AR4: =1+5/(4*'c'!AR4)+7/(8*'c'!AR4^2)+1/('c'!AR4^3) -> 1.13811767 | AS4: =1+5/(4*'c'!AS4)+7/(8*'c'!AS4^2)+1/('c'!AS4^3) -> 1.137138408 | AT4: =1+5/(4*'c'!AT4)+7/(8*'c'!AT4^2)+1/('c'!AT4^3) -> 1.136172947 | AU4: =1+5/(4*'c'!AU4)+7/(8*'c'!AU4^2)+1/('c'!AU4^3) -> 1.135220997 | AV4: =1+5/(4*'c'!AV4)+7/(8*'c'!AV4^2)+1/('c'!AV4^3) -> 1.134282276 | AW4: =1+5/(4*'c'!AW4)+7/(8*'c'!AW4^2)+1/('c'!AW4^3) -> 1.13335651 | AX4: =1+5/(4*'c'!AX4)+7/(8*'c'!AX4^2)+1/('c'!AX4^3) -> 1.132443433 | AY4: =1+5/(4*'c'!AY4)+7/(8*'c'!AY4^2)+1/('c'!AY4^3) -> 1.131542785 | AZ4: =1+5/(4*'c'!AZ4)+7/(8*'c'!AZ4^2)+1/('c'!AZ4^3) -> 1.130654315 | BA4: =1+5/(4*'c'!BA4)+7/(8*'c'!BA4^2)+1/('c'!BA4^3) -> 1.129777776 | BB4: =1+5/(4*'c'!BB4)+7/(8*'c'!BB4^2)+1/('c'!BB4^3) -> 1.128912931 | BC4: =1+5/(4*'c'!BC4)+7/(8*'c'!BC4^2)+1/('c'!BC4^3) -> 1.128059547 | BD4: =1+5/(4*'c'!BD4)+7/(8*'c'!BD4^2)+1/('c'!BD4^3) -> 1.127217396 | BE4: =1+5/(4*'c'!BE4)+7/(8*'c'!BE4^2)+1/('c'!BE4^3) -> 1.12638626 | BF4: =1+5/(4*'c'!BF4)+7/(8*'c'!BF4^2)+1/('c'!BF4^3) -> 1.125565922 | BG4: =1+5/(4*'c'!BG4)+7/(8*'c'!BG4^2)+1/('c'!BG4^3) -> 1.124756175 | BH4: =1+5/(4*'c'!BH4)+7/(8*'c'!BH4^2)+1/('c'!BH4^3) -> 1.123956813 | BI4: =1+5/(4*'c'!BI4)+7/(8*'c'!BI4^2)+1/('c'!BI4^3) -> 1.123167639 | BJ4: =1+5/(4*'c'!BJ4)+7/(8*'c'!BJ4^2)+1/('c'!BJ4^3) -> 1.122388459 | BK4: =1+5/(4*'c'!BK4)+7/(8*'c'!BK4^2)+1/('c'!BK4^3) -> 1.121619083 | BL4: =1+5/(4*'c'!BL4)+7/(8*'c'!BL4^2)+1/('c'!BL4^3) -> 1.120859329 | BM4: =1+5/(4*'c'!BM4)+7/(8*'c'!BM4^2)+1/('c'!BM4^3) -> 1.120109017 | BN4: =1+5/(4*'c'!BN4)+7/(8*'c'!BN4^2)+1/('c'!BN4^3) -> 1.119367971 | BO4: =1+5/(4*'c'!BO4)+7/(8*'c'!BO4^2)+1/('c'!BO4^3) -> 1.118636021 | BP4: =1+5/(4*'c'!BP4)+7/(8*'c'!BP4^2)+1/('c'!BP4^3) -> 1.117913001 | BQ4: =1+5/(4*'c'!BQ4)+7/(8*'c'!BQ4^2)+1/('c'!BQ4^3) -> 1.117198748 | BR4: =1+5/(4*'c'!BR4)+7/(8*'c'!BR4^2)+1/('c'!BR4^3) -> 1.116493103 | BS4: =1+5/(4*'c'!BS4)+7/(8*'c'!BS4^2)+1/('c'!BS4^3) -> 1.115795912 | BT4: =1+5/(4*'c'!BT4)+7/(8*'c'!BT4^2)+1/('c'!BT4^3) -> 1.115107023 | BU4: =1+5/(4*'c'!BU4)+7/(8*'c'!BU4^2)+1/('c'!BU4^3) -> 1.11442629 | BV4: =1+5/(4*'c'!BV4)+7/(8*'c'!BV4^2)+1/('c'!BV4^3) -> 1.113753568 | BW4: =1+5/(4*'c'!BW4)+7/(8*'c'!BW4^2)+1/('c'!BW4^3) -> 1.113088716 | BX4: =1+5/(4*'c'!BX4)+7/(8*'c'!BX4^2)+1/('c'!BX4^3) -> 1.112431597 | BY4: =1+5/(4*'c'!BY4)+7/(8*'c'!BY4^2)+1/('c'!BY4^3) -> 1.111782077 | BZ4: =1+5/(4*'c'!BZ4)+7/(8*'c'!BZ4^2)+1/('c'!BZ4^3) -> 1.111140025 | CA4: =1+5/(4*'c'!CA4)+7/(8*'c'!CA4^2)+1/('c'!CA4^3) -> 1.110505313 | CB4: =1+5/(4*'c'!CB4)+7/(8*'c'!CB4^2)+1/('c'!CB4^3) -> 1.109877815 | CC4: =1+5/(4*'c'!CC4)+7/(8*'c'!CC4^2)+1/('c'!CC4^3) -> 1.109257409 | CD4: =1+5/(4*'c'!CD4)+7/(8*'c'!CD4^2)+1/('c'!CD4^3) -> 1.108643975 | CE4: =1+5/(4*'c'!CE4)+7/(8*'c'!CE4^2)+1/('c'!CE4^3) -> 1.108037397 | CF4: =1+5/(4*'c'!CF4)+7/(8*'c'!CF4^2)+1/('c'!CF4^3) -> 1.10743756 | CG4: =1+5/(4*'c'!CG4)+7/(8*'c'!CG4^2)+1/('c'!CG4^3) -> 1.106844353 | CH4: =1+5/(4*'c'!CH4)+7/(8*'c'!CH4^2)+1/('c'!CH4^3) -> 1.106257666 | CI4: =1+5/(4*'c'!CI4)+7/(8*'c'!CI4^2)+1/('c'!CI4^3) -> 1.105677391
A5: ='c'!$A5 -> 3.2 | B5: =1+5/(4*'c'!B5)+7/(8*'c'!B5^2)+1/('c'!B5^3) -> 1.205502734 | C5: =1+5/(4*'c'!C5)+7/(8*'c'!C5^2)+1/('c'!C5^3) -> 1.203407964 | D5: =1+5/(4*'c'!D5)+7/(8*'c'!D5^2)+1/('c'!D5^3) -> 1.201355483 | E5: =1+5/(4*'c'!E5)+7/(8*'c'!E5^2)+1/('c'!E5^3) -> 1.199344023 | F5: =1+5/(4*'c'!F5)+7/(8*'c'!F5^2)+1/('c'!F5^3) -> 1.19737237 | G5: =1+5/(4*'c'!G5)+7/(8*'c'!G5^2)+1/('c'!G5^3) -> 1.195439352 | H5: =1+5/(4*'c'!H5)+7/(8*'c'!H5^2)+1/('c'!H5^3) -> 1.193543848 | I5: =1+5/(4*'c'!I5)+7/(8*'c'!I5^2)+1/('c'!I5^3) -> 1.191684776 | J5: =1+5/(4*'c'!J5)+7/(8*'c'!J5^2)+1/('c'!J5^3) -> 1.189861096 | K5: =1+5/(4*'c'!K5)+7/(8*'c'!K5^2)+1/('c'!K5^3) -> 1.188071809 | L5: =1+5/(4*'c'!L5)+7/(8*'c'!L5^2)+1/('c'!L5^3) -> 1.18631595 | M5: =1+5/(4*'c'!M5)+7/(8*'c'!M5^2)+1/('c'!M5^3) -> 1.184592593 | N5: =1+5/(4*'c'!N5)+7/(8*'c'!N5^2)+1/('c'!N5^3) -> 1.182900843 | O5: =1+5/(4*'c'!O5)+7/(8*'c'!O5^2)+1/('c'!O5^3) -> 1.181239839 | P5: =1+5/(4*'c'!P5)+7/(8*'c'!P5^2)+1/('c'!P5^3) -> 1.179608752 | Q5: =1+5/(4*'c'!Q5)+7/(8*'c'!Q5^2)+1/('c'!Q5^3) -> 1.178006781 | R5: =1+5/(4*'c'!R5)+7/(8*'c'!R5^2)+1/('c'!R5^3) -> 1.176433152 | S5: =1+5/(4*'c'!S5)+7/(8*'c'!S5^2)+1/('c'!S5^3) -> 1.174887121 | T5: =1+5/(4*'c'!T5)+7/(8*'c'!T5^2)+1/('c'!T5^3) -> 1.173367969 | U5: =1+5/(4*'c'!U5)+7/(8*'c'!U5^2)+1/('c'!U5^3) -> 1.171875 | V5: =1+5/(4*'c'!V5)+7/(8*'c'!V5^2)+1/('c'!V5^3) -> 1.170407544 | W5: =1+5/(4*'c'!W5)+7/(8*'c'!W5^2)+1/('c'!W5^3) -> 1.168964952 | X5: =1+5/(4*'c'!X5)+7/(8*'c'!X5^2)+1/('c'!X5^3) -> 1.167546598 | Y5: =1+5/(4*'c'!Y5)+7/(8*'c'!Y5^2)+1/('c'!Y5^3) -> 1.166151877 | Z5: =1+5/(4*'c'!Z5)+7/(8*'c'!Z5^2)+1/('c'!Z5^3) -> 1.164780202 | AA5: =1+5/(4*'c'!AA5)+7/(8*'c'!AA5^2)+1/('c'!AA5^3) -> 1.163431007 | AB5: =1+5/(4*'c'!AB5)+7/(8*'c'!AB5^2)+1/('c'!AB5^3) -> 1.162103744 | AC5: =1+5/(4*'c'!AC5)+7/(8*'c'!AC5^2)+1/('c'!AC5^3) -> 1.160797883 | AD5: =1+5/(4*'c'!AD5)+7/(8*'c'!AD5^2)+1/('c'!AD5^3) -> 1.15951291 | AE5: =1+5/(4*'c'!AE5)+7/(8*'c'!AE5^2)+1/('c'!AE5^3) -> 1.158248328 | AF5: =1+5/(4*'c'!AF5)+7/(8*'c'!AF5^2)+1/('c'!AF5^3) -> 1.157003655 | AG5: =1+5/(4*'c'!AG5)+7/(8*'c'!AG5^2)+1/('c'!AG5^3) -> 1.155778426 | AH5: =1+5/(4*'c'!AH5)+7/(8*'c'!AH5^2)+1/('c'!AH5^3) -> 1.154572187 | AI5: =1+5/(4*'c'!AI5)+7/(8*'c'!AI5^2)+1/('c'!AI5^3) -> 1.153384501 | AJ5: =1+5/(4*'c'!AJ5)+7/(8*'c'!AJ5^2)+1/('c'!AJ5^3) -> 1.152214942 | AK5: =1+5/(4*'c'!AK5)+7/(8*'c'!AK5^2)+1/('c'!AK5^3) -> 1.1510631 | AL5: =1+5/(4*'c'!AL5)+7/(8*'c'!AL5^2)+1/('c'!AL5^3) -> 1.149928574 | AM5: =1+5/(4*'c'!AM5)+7/(8*'c'!AM5^2)+1/('c'!AM5^3) -> 1.148810977 | AN5: =1+5/(4*'c'!AN5)+7/(8*'c'!AN5^2)+1/('c'!AN5^3) -> 1.147709933 | AO5: =1+5/(4*'c'!AO5)+7/(8*'c'!AO5^2)+1/('c'!AO5^3) -> 1.146625077 | AP5: =1+5/(4*'c'!AP5)+7/(8*'c'!AP5^2)+1/('c'!AP5^3) -> 1.145556053 | AQ5: =1+5/(4*'c'!AQ5)+7/(8*'c'!AQ5^2)+1/('c'!AQ5^3) -> 1.144502519 | AR5: =1+5/(4*'c'!AR5)+7/(8*'c'!AR5^2)+1/('c'!AR5^3) -> 1.143464139 | AS5: =1+5/(4*'c'!AS5)+7/(8*'c'!AS5^2)+1/('c'!AS5^3) -> 1.142440589 | AT5: =1+5/(4*'c'!AT5)+7/(8*'c'!AT5^2)+1/('c'!AT5^3) -> 1.141431554 | AU5: =1+5/(4*'c'!AU5)+7/(8*'c'!AU5^2)+1/('c'!AU5^3) -> 1.140436726 | AV5: =1+5/(4*'c'!AV5)+7/(8*'c'!AV5^2)+1/('c'!AV5^3) -> 1.139455809 | AW5: =1+5/(4*'c'!AW5)+7/(8*'c'!AW5^2)+1/('c'!AW5^3) -> 1.138488511 | AX5: =1+5/(4*'c'!AX5)+7/(8*'c'!AX5^2)+1/('c'!AX5^3) -> 1.137534552 | AY5: =1+5/(4*'c'!AY5)+7/(8*'c'!AY5^2)+1/('c'!AY5^3) -> 1.136593657 | AZ5: =1+5/(4*'c'!AZ5)+7/(8*'c'!AZ5^2)+1/('c'!AZ5^3) -> 1.135665559 | BA5: =1+5/(4*'c'!BA5)+7/(8*'c'!BA5^2)+1/('c'!BA5^3) -> 1.13475 | BB5: =1+5/(4*'c'!BB5)+7/(8*'c'!BB5^2)+1/('c'!BB5^3) -> 1.133846726 | BC5: =1+5/(4*'c'!BC5)+7/(8*'c'!BC5^2)+1/('c'!BC5^3) -> 1.132955493 | BD5: =1+5/(4*'c'!BD5)+7/(8*'c'!BD5^2)+1/('c'!BD5^3) -> 1.13207606 | BE5: =1+5/(4*'c'!BE5)+7/(8*'c'!BE5^2)+1/('c'!BE5^3) -> 1.131208195 | BF5: =1+5/(4*'c'!BF5)+7/(8*'c'!BF5^2)+1/('c'!BF5^3) -> 1.130351671 | BG5: =1+5/(4*'c'!BG5)+7/(8*'c'!BG5^2)+1/('c'!BG5^3) -> 1.129506267 | BH5: =1+5/(4*'c'!BH5)+7/(8*'c'!BH5^2)+1/('c'!BH5^3) -> 1.128671768 | BI5: =1+5/(4*'c'!BI5)+7/(8*'c'!BI5^2)+1/('c'!BI5^3) -> 1.127847965 | BJ5: =1+5/(4*'c'!BJ5)+7/(8*'c'!BJ5^2)+1/('c'!BJ5^3) -> 1.127034652 | BK5: =1+5/(4*'c'!BK5)+7/(8*'c'!BK5^2)+1/('c'!BK5^3) -> 1.12623163 | BL5: =1+5/(4*'c'!BL5)+7/(8*'c'!BL5^2)+1/('c'!BL5^3) -> 1.125438706 | BM5: =1+5/(4*'c'!BM5)+7/(8*'c'!BM5^2)+1/('c'!BM5^3) -> 1.124655691 | BN5: =1+5/(4*'c'!BN5)+7/(8*'c'!BN5^2)+1/('c'!BN5^3) -> 1.123882398 | BO5: =1+5/(4*'c'!BO5)+7/(8*'c'!BO5^2)+1/('c'!BO5^3) -> 1.123118649 | BP5: =1+5/(4*'c'!BP5)+7/(8*'c'!BP5^2)+1/('c'!BP5^3) -> 1.122364268 | BQ5: =1+5/(4*'c'!BQ5)+7/(8*'c'!BQ5^2)+1/('c'!BQ5^3) -> 1.121619083 | BR5: =1+5/(4*'c'!BR5)+7/(8*'c'!BR5^2)+1/('c'!BR5^3) -> 1.120882928 | BS5: =1+5/(4*'c'!BS5)+7/(8*'c'!BS5^2)+1/('c'!BS5^3) -> 1.120155638 | BT5: =1+5/(4*'c'!BT5)+7/(8*'c'!BT5^2)+1/('c'!BT5^3) -> 1.119437055 | BU5: =1+5/(4*'c'!BU5)+7/(8*'c'!BU5^2)+1/('c'!BU5^3) -> 1.118727023 | BV5: =1+5/(4*'c'!BV5)+7/(8*'c'!BV5^2)+1/('c'!BV5^3) -> 1.118025391 | BW5: =1+5/(4*'c'!BW5)+7/(8*'c'!BW5^2)+1/('c'!BW5^3) -> 1.11733201 | BX5: =1+5/(4*'c'!BX5)+7/(8*'c'!BX5^2)+1/('c'!BX5^3) -> 1.116646735 | BY5: =1+5/(4*'c'!BY5)+7/(8*'c'!BY5^2)+1/('c'!BY5^3) -> 1.115969425 | BZ5: =1+5/(4*'c'!BZ5)+7/(8*'c'!BZ5^2)+1/('c'!BZ5^3) -> 1.115299943 | CA5: =1+5/(4*'c'!CA5)+7/(8*'c'!CA5^2)+1/('c'!CA5^3) -> 1.114638152 | CB5: =1+5/(4*'c'!CB5)+7/(8*'c'!CB5^2)+1/('c'!CB5^3) -> 1.113983921 | CC5: =1+5/(4*'c'!CC5)+7/(8*'c'!CC5^2)+1/('c'!CC5^3) -> 1.113337122 | CD5: =1+5/(4*'c'!CD5)+7/(8*'c'!CD5^2)+1/('c'!CD5^3) -> 1.112697628 | CE5: =1+5/(4*'c'!CE5)+7/(8*'c'!CE5^2)+1/('c'!CE5^3) -> 1.112065316 | CF5: =1+5/(4*'c'!CF5)+7/(8*'c'!CF5^2)+1/('c'!CF5^3) -> 1.111440065 | CG5: =1+5/(4*'c'!CG5)+7/(8*'c'!CG5^2)+1/('c'!CG5^3) -> 1.110821759 | CH5: =1+5/(4*'c'!CH5)+7/(8*'c'!CH5^2)+1/('c'!CH5^3) -> 1.110210282 | CI5: =1+5/(4*'c'!CI5)+7/(8*'c'!CI5^2)+1/('c'!CI5^3) -> 1.109605521
A6: ='c'!$A6 -> 3.3 | B6: =1+5/(4*'c'!B6)+7/(8*'c'!B6^2)+1/('c'!B6^3) -> 1.213844705 | C6: =1+5/(4*'c'!C6)+7/(8*'c'!C6^2)+1/('c'!C6^3) -> 1.211645314 | D6: =1+5/(4*'c'!D6)+7/(8*'c'!D6^2)+1/('c'!D6^3) -> 1.209490712 | E6: =1+5/(4*'c'!E6)+7/(8*'c'!E6^2)+1/('c'!E6^3) -> 1.207379546 | F6: =1+5/(4*'c'!F6)+7/(8*'c'!F6^2)+1/('c'!F6^3) -> 1.205310519 | G6: =1+5/(4*'c'!G6)+7/(8*'c'!G6^2)+1/('c'!G6^3) -> 1.20328238 | H6: =1+5/(4*'c'!H6)+7/(8*'c'!H6^2)+1/('c'!H6^3) -> 1.201293933 | I6: =1+5/(4*'c'!I6)+7/(8*'c'!I6^2)+1/('c'!I6^3) -> 1.199344023 | J6: =1+5/(4*'c'!J6)+7/(8*'c'!J6^2)+1/('c'!J6^3) -> 1.197431543 | K6: =1+5/(4*'c'!K6)+7/(8*'c'!K6^2)+1/('c'!K6^3) -> 1.195555426 | L6: =1+5/(4*'c'!L6)+7/(8*'c'!L6^2)+1/('c'!L6^3) -> 1.193714645 | M6: =1+5/(4*'c'!M6)+7/(8*'c'!M6^2)+1/('c'!M6^3) -> 1.191908213 | N6: =1+5/(4*'c'!N6)+7/(8*'c'!N6^2)+1/('c'!N6^3) -> 1.190135176 | O6: =1+5/(4*'c'!O6)+7/(8*'c'!O6^2)+1/('c'!O6^3) -> 1.18839462 | P6: =1+5/(4*'c'!P6)+7/(8*'c'!P6^2)+1/('c'!P6^3) -> 1.186685658 | Q6: =1+5/(4*'c'!Q6)+7/(8*'c'!Q6^2)+1/('c'!Q6^3) -> 1.18500744 | R6: =1+5/(4*'c'!R6)+7/(8*'c'!R6^2)+1/('c'!R6^3) -> 1.183359144 | S6: =1+5/(4*'c'!S6)+7/(8*'c'!S6^2)+1/('c'!S6^3) -> 1.181739977 | T6: =1+5/(4*'c'!T6)+7/(8*'c'!T6^2)+1/('c'!T6^3) -> 1.180149174 | U6: =1+5/(4*'c'!U6)+7/(8*'c'!U6^2)+1/('c'!U6^3) -> 1.178585996 | V6: =1+5/(4*'c'!V6)+7/(8*'c'!V6^2)+1/('c'!V6^3) -> 1.177049731 | W6: =1+5/(4*'c'!W6)+7/(8*'c'!W6^2)+1/('c'!W6^3) -> 1.175539689 | X6: =1+5/(4*'c'!X6)+7/(8*'c'!X6^2)+1/('c'!X6^3) -> 1.174055206 | Y6: =1+5/(4*'c'!Y6)+7/(8*'c'!Y6^2)+1/('c'!Y6^3) -> 1.172595637 | Z6: =1+5/(4*'c'!Z6)+7/(8*'c'!Z6^2)+1/('c'!Z6^3) -> 1.171160361 | AA6: =1+5/(4*'c'!AA6)+7/(8*'c'!AA6^2)+1/('c'!AA6^3) -> 1.169748776 | AB6: =1+5/(4*'c'!AB6)+7/(8*'c'!AB6^2)+1/('c'!AB6^3) -> 1.168360302 | AC6: =1+5/(4*'c'!AC6)+7/(8*'c'!AC6^2)+1/('c'!AC6^3) -> 1.166994374 | AD6: =1+5/(4*'c'!AD6)+7/(8*'c'!AD6^2)+1/('c'!AD6^3) -> 1.16565045 | AE6: =1+5/(4*'c'!AE6)+7/(8*'c'!AE6^2)+1/('c'!AE6^3) -> 1.164328 | AF6: =1+5/(4*'c'!AF6)+7/(8*'c'!AF6^2)+1/('c'!AF6^3) -> 1.163026515 | AG6: =1+5/(4*'c'!AG6)+7/(8*'c'!AG6^2)+1/('c'!AG6^3) -> 1.1617455 | AH6: =1+5/(4*'c'!AH6)+7/(8*'c'!AH6^2)+1/('c'!AH6^3) -> 1.160484476 | AI6: =1+5/(4*'c'!AI6)+7/(8*'c'!AI6^2)+1/('c'!AI6^3) -> 1.159242978 | AJ6: =1+5/(4*'c'!AJ6)+7/(8*'c'!AJ6^2)+1/('c'!AJ6^3) -> 1.158020557 | AK6: =1+5/(4*'c'!AK6)+7/(8*'c'!AK6^2)+1/('c'!AK6^3) -> 1.156816776 | AL6: =1+5/(4*'c'!AL6)+7/(8*'c'!AL6^2)+1/('c'!AL6^3) -> 1.155631212 | AM6: =1+5/(4*'c'!AM6)+7/(8*'c'!AM6^2)+1/('c'!AM6^3) -> 1.154463455 | AN6: =1+5/(4*'c'!AN6)+7/(8*'c'!AN6^2)+1/('c'!AN6^3) -> 1.153313106 | AO6: =1+5/(4*'c'!AO6)+7/(8*'c'!AO6^2)+1/('c'!AO6^3) -> 1.15217978 | AP6: =1+5/(4*'c'!AP6)+7/(8*'c'!AP6^2)+1/('c'!AP6^3) -> 1.1510631 | AQ6: =1+5/(4*'c'!AQ6)+7/(8*'c'!AQ6^2)+1/('c'!AQ6^3) -> 1.149962703 | AR6: =1+5/(4*'c'!AR6)+7/(8*'c'!AR6^2)+1/('c'!AR6^3) -> 1.148878236 | AS6: =1+5/(4*'c'!AS6)+7/(8*'c'!AS6^2)+1/('c'!AS6^3) -> 1.147809354 | AT6: =1+5/(4*'c'!AT6)+7/(8*'c'!AT6^2)+1/('c'!AT6^3) -> 1.146755724 | AU6: =1+5/(4*'c'!AU6)+7/(8*'c'!AU6^2)+1/('c'!AU6^3) -> 1.145717022 | AV6: =1+5/(4*'c'!AV6)+7/(8*'c'!AV6^2)+1/('c'!AV6^3) -> 1.144692933 | AW6: =1+5/(4*'c'!AW6)+7/(8*'c'!AW6^2)+1/('c'!AW6^3) -> 1.143683151 | AX6: =1+5/(4*'c'!AX6)+7/(8*'c'!AX6^2)+1/('c'!AX6^3) -> 1.142687378 | AY6: =1+5/(4*'c'!AY6)+7/(8*'c'!AY6^2)+1/('c'!AY6^3) -> 1.141705323 | AZ6: =1+5/(4*'c'!AZ6)+7/(8*'c'!AZ6^2)+1/('c'!AZ6^3) -> 1.140736707 | BA6: =1+5/(4*'c'!BA6)+7/(8*'c'!BA6^2)+1/('c'!BA6^3) -> 1.139781254 | BB6: =1+5/(4*'c'!BB6)+7/(8*'c'!BB6^2)+1/('c'!BB6^3) -> 1.138838698 | BC6: =1+5/(4*'c'!BC6)+7/(8*'c'!BC6^2)+1/('c'!BC6^3) -> 1.13790878 | BD6: =1+5/(4*'c'!BD6)+7/(8*'c'!BD6^2)+1/('c'!BD6^3) -> 1.136991246 | BE6: =1+5/(4*'c'!BE6)+7/(8*'c'!BE6^2)+1/('c'!BE6^3) -> 1.136085852 | BF6: =1+5/(4*'c'!BF6)+7/(8*'c'!BF6^2)+1/('c'!BF6^3) -> 1.135192358 | BG6: =1+5/(4*'c'!BG6)+7/(8*'c'!BG6^2)+1/('c'!BG6^3) -> 1.13431053 | BH6: =1+5/(4*'c'!BH6)+7/(8*'c'!BH6^2)+1/('c'!BH6^3) -> 1.133440142 | BI6: =1+5/(4*'c'!BI6)+7/(8*'c'!BI6^2)+1/('c'!BI6^3) -> 1.132580972 | BJ6: =1+5/(4*'c'!BJ6)+7/(8*'c'!BJ6^2)+1/('c'!BJ6^3) -> 1.131732805 | BK6: =1+5/(4*'c'!BK6)+7/(8*'c'!BK6^2)+1/('c'!BK6^3) -> 1.130895431 | BL6: =1+5/(4*'c'!BL6)+7/(8*'c'!BL6^2)+1/('c'!BL6^3) -> 1.130068645 | BM6: =1+5/(4*'c'!BM6)+7/(8*'c'!BM6^2)+1/('c'!BM6^3) -> 1.129252247 | BN6: =1+5/(4*'c'!BN6)+7/(8*'c'!BN6^2)+1/('c'!BN6^3) -> 1.128446043 | BO6: =1+5/(4*'c'!BO6)+7/(8*'c'!BO6^2)+1/('c'!BO6^3) -> 1.127649842 | BP6: =1+5/(4*'c'!BP6)+7/(8*'c'!BP6^2)+1/('c'!BP6^3) -> 1.12686346 | BQ6: =1+5/(4*'c'!BQ6)+7/(8*'c'!BQ6^2)+1/('c'!BQ6^3) -> 1.126086717 | BR6: =1+5/(4*'c'!BR6)+7/(8*'c'!BR6^2)+1/('c'!BR6^3) -> 1.125319435 | BS6: =1+5/(4*'c'!BS6)+7/(8*'c'!BS6^2)+1/('c'!BS6^3) -> 1.124561444 | BT6: =1+5/(4*'c'!BT6)+7/(8*'c'!BT6^2)+1/('c'!BT6^3) -> 1.123812575 | BU6: =1+5/(4*'c'!BU6)+7/(8*'c'!BU6^2)+1/('c'!BU6^3) -> 1.123072664 | BV6: =1+5/(4*'c'!BV6)+7/(8*'c'!BV6^2)+1/('c'!BV6^3) -> 1.122341553 | BW6: =1+5/(4*'c'!BW6)+7/(8*'c'!BW6^2)+1/('c'!BW6^3) -> 1.121619083 | BX6: =1+5/(4*'c'!BX6)+7/(8*'c'!BX6^2)+1/('c'!BX6^3) -> 1.120905104 | BY6: =1+5/(4*'c'!BY6)+7/(8*'c'!BY6^2)+1/('c'!BY6^3) -> 1.120199467 | BZ6: =1+5/(4*'c'!BZ6)+7/(8*'c'!BZ6^2)+1/('c'!BZ6^3) -> 1.119502025 | CA6: =1+5/(4*'c'!CA6)+7/(8*'c'!CA6^2)+1/('c'!CA6^3) -> 1.118812637 | CB6: =1+5/(4*'c'!CB6)+7/(8*'c'!CB6^2)+1/('c'!CB6^3) -> 1.118131165 | CC6: =1+5/(4*'c'!CC6)+7/(8*'c'!CC6^2)+1/('c'!CC6^3) -> 1.117457472 | CD6: =1+5/(4*'c'!CD6)+7/(8*'c'!CD6^2)+1/('c'!CD6^3) -> 1.116791426 | CE6: =1+5/(4*'c'!CE6)+7/(8*'c'!CE6^2)+1/('c'!CE6^3) -> 1.116132898 | CF6: =1+5/(4*'c'!CF6)+7/(8*'c'!CF6^2)+1/('c'!CF6^3) -> 1.11548176 | CG6: =1+5/(4*'c'!CG6)+7/(8*'c'!CG6^2)+1/('c'!CG6^3) -> 1.11483789 | CH6: =1+5/(4*'c'!CH6)+7/(8*'c'!CH6^2)+1/('c'!CH6^3) -> 1.114201166 | CI6: =1+5/(4*'c'!CI6)+7/(8*'c'!CI6^2)+1/('c'!CI6^3) -> 1.11357147
A7: ='c'!$A7 -> 3.4 | B7: =1+5/(4*'c'!B7)+7/(8*'c'!B7^2)+1/('c'!B7^3) -> 1.222339312 | C7: =1+5/(4*'c'!C7)+7/(8*'c'!C7^2)+1/('c'!C7^3) -> 1.220031849 | D7: =1+5/(4*'c'!D7)+7/(8*'c'!D7^2)+1/('c'!D7^3) -> 1.217771788 | E7: =1+5/(4*'c'!E7)+7/(8*'c'!E7^2)+1/('c'!E7^3) -> 1.215557687 | F7: =1+5/(4*'c'!F7)+7/(8*'c'!F7^2)+1/('c'!F7^3) -> 1.213388159 | G7: =1+5/(4*'c'!G7)+7/(8*'c'!G7^2)+1/('c'!G7^3) -> 1.211261875 | H7: =1+5/(4*'c'!H7)+7/(8*'c'!H7^2)+1/('c'!H7^3) -> 1.209177554 | I7: =1+5/(4*'c'!I7)+7/(8*'c'!I7^2)+1/('c'!I7^3) -> 1.207133969 | J7: =1+5/(4*'c'!J7)+7/(8*'c'!J7^2)+1/('c'!J7^3) -> 1.205129938 | K7: =1+5/(4*'c'!K7)+7/(8*'c'!K7^2)+1/('c'!K7^3) -> 1.203164326 | L7: =1+5/(4*'c'!L7)+7/(8*'c'!L7^2)+1/('c'!L7^3) -> 1.201236038 | M7: =1+5/(4*'c'!M7)+7/(8*'c'!M7^2)+1/('c'!M7^3) -> 1.199344023 | N7: =1+5/(4*'c'!N7)+7/(8*'c'!N7^2)+1/('c'!N7^3) -> 1.197487269 | O7: =1+5/(4*'c'!O7)+7/(8*'c'!O7^2)+1/('c'!O7^3) -> 1.195664798 | P7: =1+5/(4*'c'!P7)+7/(8*'c'!P7^2)+1/('c'!P7^3) -> 1.193875671 | Q7: =1+5/(4*'c'!Q7)+7/(8*'c'!Q7^2)+1/('c'!Q7^3) -> 1.192118983 | R7: =1+5/(4*'c'!R7)+7/(8*'c'!R7^2)+1/('c'!R7^3) -> 1.190393858 | S7: =1+5/(4*'c'!S7)+7/(8*'c'!S7^2)+1/('c'!S7^3) -> 1.188699456 | T7: =1+5/(4*'c'!T7)+7/(8*'c'!T7^2)+1/('c'!T7^3) -> 1.187034962 | U7: =1+5/(4*'c'!U7)+7/(8*'c'!U7^2)+1/('c'!U7^3) -> 1.185399593 | V7: =1+5/(4*'c'!V7)+7/(8*'c'!V7^2)+1/('c'!V7^3) -> 1.183792591 | W7: =1+5/(4*'c'!W7)+7/(8*'c'!W7^2)+1/('c'!W7^3) -> 1.182213225 | X7: =1+5/(4*'c'!X7)+7/(8*'c'!X7^2)+1/('c'!X7^3) -> 1.180660787 | Y7: =1+5/(4*'c'!Y7)+7/(8*'c'!Y7^2)+1/('c'!Y7^3) -> 1.179134597 | Z7: =1+5/(4*'c'!Z7)+7/(8*'c'!Z7^2)+1/('c'!Z7^3) -> 1.177633993 | AA7: =1+5/(4*'c'!AA7)+7/(8*'c'!AA7^2)+1/('c'!AA7^3) -> 1.176158338 | AB7: =1+5/(4*'c'!AB7)+7/(8*'c'!AB7^2)+1/('c'!AB7^3) -> 1.174707016 | AC7: =1+5/(4*'c'!AC7)+7/(8*'c'!AC7^2)+1/('c'!AC7^3) -> 1.173279429 | AD7: =1+5/(4*'c'!AD7)+7/(8*'c'!AD7^2)+1/('c'!AD7^3) -> 1.171875 | AE7: =1+5/(4*'c'!AE7)+7/(8*'c'!AE7^2)+1/('c'!AE7^3) -> 1.17049317 | AF7: =1+5/(4*'c'!AF7)+7/(8*'c'!AF7^2)+1/('c'!AF7^3) -> 1.169133399 | AG7: =1+5/(4*'c'!AG7)+7/(8*'c'!AG7^2)+1/('c'!AG7^3) -> 1.167795162 | AH7: =1+5/(4*'c'!AH7)+7/(8*'c'!AH7^2)+1/('c'!AH7^3) -> 1.166477952 | AI7: =1+5/(4*'c'!AI7)+7/(8*'c'!AI7^2)+1/('c'!AI7^3) -> 1.165181277 | AJ7: =1+5/(4*'c'!AJ7)+7/(8*'c'!AJ7^2)+1/('c'!AJ7^3) -> 1.163904661 | AK7: =1+5/(4*'c'!AK7)+7/(8*'c'!AK7^2)+1/('c'!AK7^3) -> 1.162647643 | AL7: =1+5/(4*'c'!AL7)+7/(8*'c'!AL7^2)+1/('c'!AL7^3) -> 1.161409773 | AM7: =1+5/(4*'c'!AM7)+7/(8*'c'!AM7^2)+1/('c'!AM7^3) -> 1.160190619 | AN7: =1+5/(4*'c'!AN7)+7/(8*'c'!AN7^2)+1/('c'!AN7^3) -> 1.158989758 | AO7: =1+5/(4*'c'!AO7)+7/(8*'c'!AO7^2)+1/('c'!AO7^3) -> 1.157806783 | AP7: =1+5/(4*'c'!AP7)+7/(8*'c'!AP7^2)+1/('c'!AP7^3) -> 1.156641296 | AQ7: =1+5/(4*'c'!AQ7)+7/(8*'c'!AQ7^2)+1/('c'!AQ7^3) -> 1.155492913 | AR7: =1+5/(4*'c'!AR7)+7/(8*'c'!AR7^2)+1/('c'!AR7^3) -> 1.154361259 | AS7: =1+5/(4*'c'!AS7)+7/(8*'c'!AS7^2)+1/('c'!AS7^3) -> 1.153245973 | AT7: =1+5/(4*'c'!AT7)+7/(8*'c'!AT7^2)+1/('c'!AT7^3) -> 1.152146701 | AU7: =1+5/(4*'c'!AU7)+7/(8*'c'!AU7^2)+1/('c'!AU7^3) -> 1.1510631 | AV7: =1+5/(4*'c'!AV7)+7/(8*'c'!AV7^2)+1/('c'!AV7^3) -> 1.149994839 | AW7: =1+5/(4*'c'!AW7)+7/(8*'c'!AW7^2)+1/('c'!AW7^3) -> 1.148941593 | AX7: =1+5/(4*'c'!AX7)+7/(8*'c'!AX7^2)+1/('c'!AX7^3) -> 1.147903049 | AY7: =1+5/(4*'c'!AY7)+7/(8*'c'!AY7^2)+1/('c'!AY7^3) -> 1.146878899 | AZ7: =1+5/(4*'c'!AZ7)+7/(8*'c'!AZ7^2)+1/('c'!AZ7^3) -> 1.145868849 | BA7: =1+5/(4*'c'!BA7)+7/(8*'c'!BA7^2)+1/('c'!BA7^3) -> 1.144872607 | BB7: =1+5/(4*'c'!BB7)+7/(8*'c'!BB7^2)+1/('c'!BB7^3) -> 1.143889893 | BC7: =1+5/(4*'c'!BC7)+7/(8*'c'!BC7^2)+1/('c'!BC7^3) -> 1.142920432 | BD7: =1+5/(4*'c'!BD7)+7/(8*'c'!BD7^2)+1/('c'!BD7^3) -> 1.14196396 | BE7: =1+5/(4*'c'!BE7)+7/(8*'c'!BE7^2)+1/('c'!BE7^3) -> 1.141020215 | BF7: =1+5/(4*'c'!BF7)+7/(8*'c'!BF7^2)+1/('c'!BF7^3) -> 1.140088947 | BG7: =1+5/(4*'c'!BG7)+7/(8*'c'!BG7^2)+1/('c'!BG7^3) -> 1.139169908 | BH7: =1+5/(4*'c'!BH7)+7/(8*'c'!BH7^2)+1/('c'!BH7^3) -> 1.138262861 | BI7: =1+5/(4*'c'!BI7)+7/(8*'c'!BI7^2)+1/('c'!BI7^3) -> 1.13736757 | BJ7: =1+5/(4*'c'!BJ7)+7/(8*'c'!BJ7^2)+1/('c'!BJ7^3) -> 1.13648381 | BK7: =1+5/(4*'c'!BK7)+7/(8*'c'!BK7^2)+1/('c'!BK7^3) -> 1.135611358 | BL7: =1+5/(4*'c'!BL7)+7/(8*'c'!BL7^2)+1/('c'!BL7^3) -> 1.13475 | BM7: =1+5/(4*'c'!BM7)+7/(8*'c'!BM7^2)+1/('c'!BM7^3) -> 1.133899524 | BN7: =1+5/(4*'c'!BN7)+7/(8*'c'!BN7^2)+1/('c'!BN7^3) -> 1.133059727 | BO7: =1+5/(4*'c'!BO7)+7/(8*'c'!BO7^2)+1/('c'!BO7^3) -> 1.132230407 | BP7: =1+5/(4*'c'!BP7)+7/(8*'c'!BP7^2)+1/('c'!BP7^3) -> 1.13141137 | BQ7: =1+5/(4*'c'!BQ7)+7/(8*'c'!BQ7^2)+1/('c'!BQ7^3) -> 1.130602426 | BR7: =1+5/(4*'c'!BR7)+7/(8*'c'!BR7^2)+1/('c'!BR7^3) -> 1.129803389 | BS7: =1+5/(4*'c'!BS7)+7/(8*'c'!BS7^2)+1/('c'!BS7^3) -> 1.129014078 | BT7: =1+5/(4*'c'!BT7)+7/(8*'c'!BT7^2)+1/('c'!BT7^3) -> 1.128234318 | BU7: =1+5/(4*'c'!BU7)+7/(8*'c'!BU7^2)+1/('c'!BU7^3) -> 1.127463935 | BV7: =1+5/(4*'c'!BV7)+7/(8*'c'!BV7^2)+1/('c'!BV7^3) -> 1.126702761 | BW7: =1+5/(4*'c'!BW7)+7/(8*'c'!BW7^2)+1/('c'!BW7^3) -> 1.125950632 | BX7: =1+5/(4*'c'!BX7)+7/(8*'c'!BX7^2)+1/('c'!BX7^3) -> 1.125207388 | BY7: =1+5/(4*'c'!BY7)+7/(8*'c'!BY7^2)+1/('c'!BY7^3) -> 1.124472872 | BZ7: =1+5/(4*'c'!BZ7)+7/(8*'c'!BZ7^2)+1/('c'!BZ7^3) -> 1.123746931 | CA7: =1+5/(4*'c'!CA7)+7/(8*'c'!CA7^2)+1/('c'!CA7^3) -> 1.123029416 | CB7: =1+5/(4*'c'!CB7)+7/(8*'c'!CB7^2)+1/('c'!CB7^3) -> 1.122320181 | CC7: =1+5/(4*'c'!CC7)+7/(8*'c'!CC7^2)+1/('c'!CC7^3) -> 1.121619083 | CD7: =1+5/(4*'c'!CD7)+7/(8*'c'!CD7^2)+1/('c'!CD7^3) -> 1.120925984 | CE7: =1+5/(4*'c'!CE7)+7/(8*'c'!CE7^2)+1/('c'!CE7^3) -> 1.120240747 | CF7: =1+5/(4*'c'!CF7)+7/(8*'c'!CF7^2)+1/('c'!CF7^3) -> 1.119563238 | CG7: =1+5/(4*'c'!CG7)+7/(8*'c'!CG7^2)+1/('c'!CG7^3) -> 1.118893328 | CH7: =1+5/(4*'c'!CH7)+7/(8*'c'!CH7^2)+1/('c'!CH7^3) -> 1.11823089 | CI7: =1+5/(4*'c'!CI7)+7/(8*'c'!CI7^2)+1/('c'!CI7^3) -> 1.1175758
A8: ='c'!$A8 -> 3.5 | B8: =1+5/(4*'c'!B8)+7/(8*'c'!B8^2)+1/('c'!B8^3) -> 1.230990667 | C8: =1+5/(4*'c'!C8)+7/(8*'c'!C8^2)+1/('c'!C8^3) -> 1.228571548 | D8: =1+5/(4*'c'!D8)+7/(8*'c'!D8^2)+1/('c'!D8^3) -> 1.226202566 | E8: =1+5/(4*'c'!E8)+7/(8*'c'!E8^2)+1/('c'!E8^3) -> 1.223882179 | F8: =1+5/(4*'c'!F8)+7/(8*'c'!F8^2)+1/('c'!F8^3) -> 1.221608912 | G8: =1+5/(4*'c'!G8)+7/(8*'c'!G8^2)+1/('c'!G8^3) -> 1.219381344 | H8: =1+5/(4*'c'!H8)+7/(8*'c'!H8^2)+1/('c'!H8^3) -> 1.217198115 | I8: =1+5/(4*'c'!I8)+7/(8*'c'!I8^2)+1/('c'!I8^3) -> 1.215057914 | J8: =1+5/(4*'c'!J8)+7/(8*'c'!J8^2)+1/('c'!J8^3) -> 1.212959485 | K8: =1+5/(4*'c'!K8)+7/(8*'c'!K8^2)+1/('c'!K8^3) -> 1.210901617 | L8: =1+5/(4*'c'!L8)+7/(8*'c'!L8^2)+1/('c'!L8^3) -> 1.208883147 | M8: =1+5/(4*'c'!M8)+7/(8*'c'!M8^2)+1/('c'!M8^3) -> 1.206902957 | N8: =1+5/(4*'c'!N8)+7/(8*'c'!N8^2)+1/('c'!N8^3) -> 1.204959968 | O8: =1+5/(4*'c'!O8)+7/(8*'c'!O8^2)+1/('c'!O8^3) -> 1.203053142 | P8: =1+5/(4*'c'!P8)+7/(8*'c'!P8^2)+1/('c'!P8^3) -> 1.201181482 | Q8: =1+5/(4*'c'!Q8)+7/(8*'c'!Q8^2)+1/('c'!Q8^3) -> 1.199344023 | R8: =1+5/(4*'c'!R8)+7/(8*'c'!R8^2)+1/('c'!R8^3) -> 1.197539838 | S8: =1+5/(4*'c'!S8)+7/(8*'c'!S8^2)+1/('c'!S8^3) -> 1.195768032 | T8: =1+5/(4*'c'!T8)+7/(8*'c'!T8^2)+1/('c'!T8^3) -> 1.194027741 | U8: =1+5/(4*'c'!U8)+7/(8*'c'!U8^2)+1/('c'!U8^3) -> 1.192318133 | V8: =1+5/(4*'c'!V8)+7/(8*'c'!V8^2)+1/('c'!V8^3) -> 1.190638405 | W8: =1+5/(4*'c'!W8)+7/(8*'c'!W8^2)+1/('c'!W8^3) -> 1.188987779 | X8: =1+5/(4*'c'!X8)+7/(8*'c'!X8^2)+1/('c'!X8^3) -> 1.187365506 | Y8: =1+5/(4*'c'!Y8)+7/(8*'c'!Y8^2)+1/('c'!Y8^3) -> 1.185770864 | Z8: =1+5/(4*'c'!Z8)+7/(8*'c'!Z8^2)+1/('c'!Z8^3) -> 1.184203152 | AA8: =1+5/(4*'c'!AA8)+7/(8*'c'!AA8^2)+1/('c'!AA8^3) -> 1.182661694 | AB8: =1+5/(4*'c'!AB8)+7/(8*'c'!AB8^2)+1/('c'!AB8^3) -> 1.181145836 | AC8: =1+5/(4*'c'!AC8)+7/(8*'c'!AC8^2)+1/('c'!AC8^3) -> 1.179654947 | AD8: =1+5/(4*'c'!AD8)+7/(8*'c'!AD8^2)+1/('c'!AD8^3) -> 1.178188414 | AE8: =1+5/(4*'c'!AE8)+7/(8*'c'!AE8^2)+1/('c'!AE8^3) -> 1.176745646 | AF8: =1+5/(4*'c'!AF8)+7/(8*'c'!AF8^2)+1/('c'!AF8^3) -> 1.175326071 | AG8: =1+5/(4*'c'!AG8)+7/(8*'c'!AG8^2)+1/('c'!AG8^3) -> 1.173929132 | AH8: =1+5/(4*'c'!AH8)+7/(8*'c'!AH8^2)+1/('c'!AH8^3) -> 1.172554294 | AI8: =1+5/(4*'c'!AI8)+7/(8*'c'!AI8^2)+1/('c'!AI8^3) -> 1.171201037 | AJ8: =1+5/(4*'c'!AJ8)+7/(8*'c'!AJ8^2)+1/('c'!AJ8^3) -> 1.169868855 | AK8: =1+5/(4*'c'!AK8)+7/(8*'c'!AK8^2)+1/('c'!AK8^3) -> 1.168557262 | AL8: =1+5/(4*'c'!AL8)+7/(8*'c'!AL8^2)+1/('c'!AL8^3) -> 1.167265783 | AM8: =1+5/(4*'c'!AM8)+7/(8*'c'!AM8^2)+1/('c'!AM8^3) -> 1.165993958 | AN8: =1+5/(4*'c'!AN8)+7/(8*'c'!AN8^2)+1/('c'!AN8^3) -> 1.164741344 | AO8: =1+5/(4*'c'!AO8)+7/(8*'c'!AO8^2)+1/('c'!AO8^3) -> 1.163507508 | AP8: =1+5/(4*'c'!AP8)+7/(8*'c'!AP8^2)+1/('c'!AP8^3) -> 1.162292031 | AQ8: =1+5/(4*'c'!AQ8)+7/(8*'c'!AQ8^2)+1/('c'!AQ8^3) -> 1.161094506 | AR8: =1+5/(4*'c'!AR8)+7/(8*'c'!AR8^2)+1/('c'!AR8^3) -> 1.159914538 | AS8: =1+5/(4*'c'!AS8)+7/(8*'c'!AS8^2)+1/('c'!AS8^3) -> 1.158751745 | AT8: =1+5/(4*'c'!AT8)+7/(8*'c'!AT8^2)+1/('c'!AT8^3) -> 1.157605754 | AU8: =1+5/(4*'c'!AU8)+7/(8*'c'!AU8^2)+1/('c'!AU8^3) -> 1.156476203 | AV8: =1+5/(4*'c'!AV8)+7/(8*'c'!AV8^2)+1/('c'!AV8^3) -> 1.155362741 | AW8: =1+5/(4*'c'!AW8)+7/(8*'c'!AW8^2)+1/('c'!AW8^3) -> 1.154265027 | AX8: =1+5/(4*'c'!AX8)+7/(8*'c'!AX8^2)+1/('c'!AX8^3) -> 1.153182729 | AY8: =1+5/(4*'c'!AY8)+7/(8*'c'!AY8^2)+1/('c'!AY8^3) -> 1.152115525 | AZ8: =1+5/(4*'c'!AZ8)+7/(8*'c'!AZ8^2)+1/('c'!AZ8^3) -> 1.1510631 | BA8: =1+5/(4*'c'!BA8)+7/(8*'c'!BA8^2)+1/('c'!BA8^3) -> 1.150025151 | BB8: =1+5/(4*'c'!BB8)+7/(8*'c'!BB8^2)+1/('c'!BB8^3) -> 1.14900138 | BC8: =1+5/(4*'c'!BC8)+7/(8*'c'!BC8^2)+1/('c'!BC8^3) -> 1.147991498 | BD8: =1+5/(4*'c'!BD8)+7/(8*'c'!BD8^2)+1/('c'!BD8^3) -> 1.146995226 | BE8: =1+5/(4*'c'!BE8)+7/(8*'c'!BE8^2)+1/('c'!BE8^3) -> 1.146012289 | BF8: =1+5/(4*'c'!BF8)+7/(8*'c'!BF8^2)+1/('c'!BF8^3) -> 1.145042423 | BG8: =1+5/(4*'c'!BG8)+7/(8*'c'!BG8^2)+1/('c'!BG8^3) -> 1.144085366 | BH8: =1+5/(4*'c'!BH8)+7/(8*'c'!BH8^2)+1/('c'!BH8^3) -> 1.143140869 | BI8: =1+5/(4*'c'!BI8)+7/(8*'c'!BI8^2)+1/('c'!BI8^3) -> 1.142208684 | BJ8: =1+5/(4*'c'!BJ8)+7/(8*'c'!BJ8^2)+1/('c'!BJ8^3) -> 1.141288573 | BK8: =1+5/(4*'c'!BK8)+7/(8*'c'!BK8^2)+1/('c'!BK8^3) -> 1.140380302 | BL8: =1+5/(4*'c'!BL8)+7/(8*'c'!BL8^2)+1/('c'!BL8^3) -> 1.139483645 | BM8: =1+5/(4*'c'!BM8)+7/(8*'c'!BM8^2)+1/('c'!BM8^3) -> 1.138598379 | BN8: =1+5/(4*'c'!BN8)+7/(8*'c'!BN8^2)+1/('c'!BN8^3) -> 1.13772429 | BO8: =1+5/(4*'c'!BO8)+7/(8*'c'!BO8^2)+1/('c'!BO8^3) -> 1.136861167 | BP8: =1+5/(4*'c'!BP8)+7/(8*'c'!BP8^2)+1/('c'!BP8^3) -> 1.136008804 | BQ8: =1+5/(4*'c'!BQ8)+7/(8*'c'!BQ8^2)+1/('c'!BQ8^3) -> 1.135167002 | BR8: =1+5/(4*'c'!BR8)+7/(8*'c'!BR8^2)+1/('c'!BR8^3) -> 1.134335565 | BS8: =1+5/(4*'c'!BS8)+7/(8*'c'!BS8^2)+1/('c'!BS8^3) -> 1.133514304 | BT8: =1+5/(4*'c'!BT8)+7/(8*'c'!BT8^2)+1/('c'!BT8^3) -> 1.132703032 | BU8: =1+5/(4*'c'!BU8)+7/(8*'c'!BU8^2)+1/('c'!BU8^3) -> 1.131901569 | BV8: =1+5/(4*'c'!BV8)+7/(8*'c'!BV8^2)+1/('c'!BV8^3) -> 1.131109737 | BW8: =1+5/(4*'c'!BW8)+7/(8*'c'!BW8^2)+1/('c'!BW8^3) -> 1.130327363 | BX8: =1+5/(4*'c'!BX8)+7/(8*'c'!BX8^2)+1/('c'!BX8^3) -> 1.12955428 | BY8: =1+5/(4*'c'!BY8)+7/(8*'c'!BY8^2)+1/('c'!BY8^3) -> 1.128790323 | BZ8: =1+5/(4*'c'!BZ8)+7/(8*'c'!BZ8^2)+1/('c'!BZ8^3) -> 1.12803533 | CA8: =1+5/(4*'c'!CA8)+7/(8*'c'!CA8^2)+1/('c'!CA8^3) -> 1.127289146 | CB8: =1+5/(4*'c'!CB8)+7/(8*'c'!CB8^2)+1/('c'!CB8^3) -> 1.126551616 | CC8: =1+5/(4*'c'!CC8)+7/(8*'c'!CC8^2)+1/('c'!CC8^3) -> 1.125822592 | CD8: =1+5/(4*'c'!CD8)+7/(8*'c'!CD8^2)+1/('c'!CD8^3) -> 1.125101926 | CE8: =1+5/(4*'c'!CE8)+7/(8*'c'!CE8^2)+1/('c'!CE8^3) -> 1.124389476 | CF8: =1+5/(4*'c'!CF8)+7/(8*'c'!CF8^2)+1/('c'!CF8^3) -> 1.123685101 | CG8: =1+5/(4*'c'!CG8)+7/(8*'c'!CG8^2)+1/('c'!CG8^3) -> 1.122988666 | CH8: =1+5/(4*'c'!CH8)+7/(8*'c'!CH8^2)+1/('c'!CH8^3) -> 1.122300037 | CI8: =1+5/(4*'c'!CI8)+7/(8*'c'!CI8^2)+1/('c'!CI8^3) -> 1.121619083
A9: ='c'!$A9 -> 3.6 | B9: =1+5/(4*'c'!B9)+7/(8*'c'!B9^2)+1/('c'!B9^3) -> 1.239803011 | C9: =1+5/(4*'c'!C9)+7/(8*'c'!C9^2)+1/('c'!C9^3) -> 1.237268519 | D9: =1+5/(4*'c'!D9)+7/(8*'c'!D9^2)+1/('c'!D9^3) -> 1.23478702 | E9: =1+5/(4*'c'!E9)+7/(8*'c'!E9^2)+1/('c'!E9^3) -> 1.232356875 | F9: =1+5/(4*'c'!F9)+7/(8*'c'!F9^2)+1/('c'!F9^3) -> 1.229976507 | G9: =1+5/(4*'c'!G9)+7/(8*'c'!G9^2)+1/('c'!G9^3) -> 1.227644406 | H9: =1+5/(4*'c'!H9)+7/(8*'c'!H9^2)+1/('c'!H9^3) -> 1.225359121 | I9: =1+5/(4*'c'!I9)+7/(8*'c'!I9^2)+1/('c'!I9^3) -> 1.223119259 | J9: =1+5/(4*'c'!J9)+7/(8*'c'!J9^2)+1/('c'!J9^3) -> 1.220923482 | K9: =1+5/(4*'c'!K9)+7/(8*'c'!K9^2)+1/('c'!K9^3) -> 1.218770501 | L9: =1+5/(4*'c'!L9)+7/(8*'c'!L9^2)+1/('c'!L9^3) -> 1.216659081 | M9: =1+5/(4*'c'!M9)+7/(8*'c'!M9^2)+1/('c'!M9^3) -> 1.21458803 | N9: =1+5/(4*'c'!N9)+7/(8*'c'!N9^2)+1/('c'!N9^3) -> 1.212556204 | O9: =1+5/(4*'c'!O9)+7/(8*'c'!O9^2)+1/('c'!O9^3) -> 1.2105625 | P9: =1+5/(4*'c'!P9)+7/(8*'c'!P9^2)+1/('c'!P9^3) -> 1.208605857 | Q9: =1+5/(4*'c'!Q9)+7/(8*'c'!Q9^2)+1/('c'!Q9^3) -> 1.206685251 | R9: =1+5/(4*'c'!R9)+7/(8*'c'!R9^2)+1/('c'!R9^3) -> 1.204799698 | S9: =1+5/(4*'c'!S9)+7/(8*'c'!S9^2)+1/('c'!S9^3) -> 1.202948248 | T9: =1+5/(4*'c'!T9)+7/(8*'c'!T9^2)+1/('c'!T9^3) -> 1.201129984 | U9: =1+5/(4*'c'!U9)+7/(8*'c'!U9^2)+1/('c'!U9^3) -> 1.199344023 | V9: =1+5/(4*'c'!V9)+7/(8*'c'!V9^2)+1/('c'!V9^3) -> 1.197589513 | W9: =1+5/(4*'c'!W9)+7/(8*'c'!W9^2)+1/('c'!W9^3) -> 1.195865631 | X9: =1+5/(4*'c'!X9)+7/(8*'c'!X9^2)+1/('c'!X9^3) -> 1.194171582 | Y9: =1+5/(4*'c'!Y9)+7/(8*'c'!Y9^2)+1/('c'!Y9^3) -> 1.1925066 | Z9: =1+5/(4*'c'!Z9)+7/(8*'c'!Z9^2)+1/('c'!Z9^3) -> 1.190869943 | AA9: =1+5/(4*'c'!AA9)+7/(8*'c'!AA9^2)+1/('c'!AA9^3) -> 1.189260894 | AB9: =1+5/(4*'c'!AB9)+7/(8*'c'!AB9^2)+1/('c'!AB9^3) -> 1.187678762 | AC9: =1+5/(4*'c'!AC9)+7/(8*'c'!AC9^2)+1/('c'!AC9^3) -> 1.186122877 | AD9: =1+5/(4*'c'!AD9)+7/(8*'c'!AD9^2)+1/('c'!AD9^3) -> 1.184592593 | AE9: =1+5/(4*'c'!AE9)+7/(8*'c'!AE9^2)+1/('c'!AE9^3) -> 1.183087281 | AF9: =1+5/(4*'c'!AF9)+7/(8*'c'!AF9^2)+1/('c'!AF9^3) -> 1.181606337 | AG9: =1+5/(4*'c'!AG9)+7/(8*'c'!AG9^2)+1/('c'!AG9^3) -> 1.180149174 | AH9: =1+5/(4*'c'!AH9)+7/(8*'c'!AH9^2)+1/('c'!AH9^3) -> 1.178715224 | AI9: =1+5/(4*'c'!AI9)+7/(8*'c'!AI9^2)+1/('c'!AI9^3) -> 1.177303936 | AJ9: =1+5/(4*'c'!AJ9)+7/(8*'c'!AJ9^2)+1/('c'!AJ9^3) -> 1.175914778 | AK9: =1+5/(4*'c'!AK9)+7/(8*'c'!AK9^2)+1/('c'!AK9^3) -> 1.174547234 | AL9: =1+5/(4*'c'!AL9)+7/(8*'c'!AL9^2)+1/('c'!AL9^3) -> 1.173200803 | AM9: =1+5/(4*'c'!AM9)+7/(8*'c'!AM9^2)+1/('c'!AM9^3) -> 1.171875 | AN9: =1+5/(4*'c'!AN9)+7/(8*'c'!AN9^2)+1/('c'!AN9^3) -> 1.170569355 | AO9: =1+5/(4*'c'!AO9)+7/(8*'c'!AO9^2)+1/('c'!AO9^3) -> 1.169283412 | AP9: =1+5/(4*'c'!AP9)+7/(8*'c'!AP9^2)+1/('c'!AP9^3) -> 1.168016728 | AQ9: =1+5/(4*'c'!AQ9)+7/(8*'c'!AQ9^2)+1/('c'!AQ9^3) -> 1.166768874 | AR9: =1+5/(4*'c'!AR9)+7/(8*'c'!AR9^2)+1/('c'!AR9^3) -> 1.165539432 | AS9: =1+5/(4*'c'!AS9)+7/(8*'c'!AS9^2)+1/('c'!AS9^3) -> 1.164328 | AT9: =1+5/(4*'c'!AT9)+7/(8*'c'!AT9^2)+1/('c'!AT9^3) -> 1.163134183 | AU9: =1+5/(4*'c'!AU9)+7/(8*'c'!AU9^2)+1/('c'!AU9^3) -> 1.161957601 | AV9: =1+5/(4*'c'!AV9)+7/(8*'c'!AV9^2)+1/('c'!AV9^3) -> 1.160797883 | AW9: =1+5/(4*'c'!AW9)+7/(8*'c'!AW9^2)+1/('c'!AW9^3) -> 1.159654669 | AX9: =1+5/(4*'c'!AX9)+7/(8*'c'!AX9^2)+1/('c'!AX9^3) -> 1.158527609 | AY9: =1+5/(4*'c'!AY9)+7/(8*'c'!AY9^2)+1/('c'!AY9^3) -> 1.157416363 | AZ9: =1+5/(4*'c'!AZ9)+7/(8*'c'!AZ9^2)+1/('c'!AZ9^3) -> 1.156320601 | BA9: =1+5/(4*'c'!BA9)+7/(8*'c'!BA9^2)+1/('c'!BA9^3) -> 1.155240001 | BB9: =1+5/(4*'c'!BB9)+7/(8*'c'!BB9^2)+1/('c'!BB9^3) -> 1.154174251 | BC9: =1+5/(4*'c'!BC9)+7/(8*'c'!BC9^2)+1/('c'!BC9^3) -> 1.153123047 | BD9: =1+5/(4*'c'!BD9)+7/(8*'c'!BD9^2)+1/('c'!BD9^3) -> 1.152086092 | BE9: =1+5/(4*'c'!BE9)+7/(8*'c'!BE9^2)+1/('c'!BE9^3) -> 1.1510631 | BF9: =1+5/(4*'c'!BF9)+7/(8*'c'!BF9^2)+1/('c'!BF9^3) -> 1.15005379 | BG9: =1+5/(4*'c'!BG9)+7/(8*'c'!BG9^2)+1/('c'!BG9^3) -> 1.149057889 | BH9: =1+5/(4*'c'!BH9)+7/(8*'c'!BH9^2)+1/('c'!BH9^3) -> 1.148075131 | BI9: =1+5/(4*'c'!BI9)+7/(8*'c'!BI9^2)+1/('c'!BI9^3) -> 1.147105259 | BJ9: =1+5/(4*'c'!BJ9)+7/(8*'c'!BJ9^2)+1/('c'!BJ9^3) -> 1.146148021 | BK9: =1+5/(4*'c'!BK9)+7/(8*'c'!BK9^2)+1/('c'!BK9^3) -> 1.145203171 | BL9: =1+5/(4*'c'!BL9)+7/(8*'c'!BL9^2)+1/('c'!BL9^3) -> 1.144270469 | BM9: =1+5/(4*'c'!BM9)+7/(8*'c'!BM9^2)+1/('c'!BM9^3) -> 1.143349685 | BN9: =1+5/(4*'c'!BN9)+7/(8*'c'!BN9^2)+1/('c'!BN9^3) -> 1.142440589 | BO9: =1+5/(4*'c'!BO9)+7/(8*'c'!BO9^2)+1/('c'!BO9^3) -> 1.141542962 | BP9: =1+5/(4*'c'!BP9)+7/(8*'c'!BP9^2)+1/('c'!BP9^3) -> 1.140656587 | BQ9: =1+5/(4*'c'!BQ9)+7/(8*'c'!BQ9^2)+1/('c'!BQ9^3) -> 1.139781254 | BR9: =1+5/(4*'c'!BR9)+7/(8*'c'!BR9^2)+1/('c'!BR9^3) -> 1.138916758 | BS9: =1+5/(4*'c'!BS9)+7/(8*'c'!BS9^2)+1/('c'!BS9^3) -> 1.138062899 | BT9: =1+5/(4*'c'!BT9)+7/(8*'c'!BT9^2)+1/('c'!BT9^3) -> 1.137219482 | BU9: =1+5/(4*'c'!BU9)+7/(8*'c'!BU9^2)+1/('c'!BU9^3) -> 1.136386316 | BV9: =1+5/(4*'c'!BV9)+7/(8*'c'!BV9^2)+1/('c'!BV9^3) -> 1.135563216 | BW9: =1+5/(4*'c'!BW9)+7/(8*'c'!BW9^2)+1/('c'!BW9^3) -> 1.13475 | BX9: =1+5/(4*'c'!BX9)+7/(8*'c'!BX9^2)+1/('c'!BX9^3) -> 1.133946491 | BY9: =1+5/(4*'c'!BY9)+7/(8*'c'!BY9^2)+1/('c'!BY9^3) -> 1.133152516 | BZ9: =1+5/(4*'c'!BZ9)+7/(8*'c'!BZ9^2)+1/('c'!BZ9^3) -> 1.132367907 | CA9: =1+5/(4*'c'!CA9)+7/(8*'c'!CA9^2)+1/('c'!CA9^3) -> 1.131592499 | CB9: =1+5/(4*'c'!CB9)+7/(8*'c'!CB9^2)+1/('c'!CB9^3) -> 1.130826131 | CC9: =1+5/(4*'c'!CC9)+7/(8*'c'!CC9^2)+1/('c'!CC9^3) -> 1.130068645 | CD9: =1+5/(4*'c'!CD9)+7/(8*'c'!CD9^2)+1/('c'!CD9^3) -> 1.129319888 | CE9: =1+5/(4*'c'!CE9)+7/(8*'c'!CE9^2)+1/('c'!CE9^3) -> 1.12857971 | CF9: =1+5/(4*'c'!CF9)+7/(8*'c'!CF9^2)+1/('c'!CF9^3) -> 1.127847965 | CG9: =1+5/(4*'c'!CG9)+7/(8*'c'!CG9^2)+1/('c'!CG9^3) -> 1.127124508 | CH9: =1+5/(4*'c'!CH9)+7/(8*'c'!CH9^2)+1/('c'!CH9^3) -> 1.1264092 | CI9: =1+5/(4*'c'!CI9)+7/(8*'c'!CI9^2)+1/('c'!CI9^3) -> 1.125701904
A10: ='c'!$A10 -> 3.7 | B10: =1+5/(4*'c'!B10)+7/(8*'c'!B10^2)+1/('c'!B10^3) -> 1.248780721 | C10: =1+5/(4*'c'!C10)+7/(8*'c'!C10^2)+1/('c'!C10^3) -> 1.246126995 | D10: =1+5/(4*'c'!D10)+7/(8*'c'!D10^2)+1/('c'!D10^3) -> 1.243529252 | E10: =1+5/(4*'c'!E10)+7/(8*'c'!E10^2)+1/('c'!E10^3) -> 1.240985743 | F10: =1+5/(4*'c'!F10)+7/(8*'c'!F10^2)+1/('c'!F10^3) -> 1.238494791 | G10: =1+5/(4*'c'!G10)+7/(8*'c'!G10^2)+1/('c'!G10^3) -> 1.236054787 | H10: =1+5/(4*'c'!H10)+7/(8*'c'!H10^2)+1/('c'!H10^3) -> 1.233664187 | I10: =1+5/(4*'c'!I10)+7/(8*'c'!I10^2)+1/('c'!I10^3) -> 1.231321508 | J10: =1+5/(4*'c'!J10)+7/(8*'c'!J10^2)+1/('c'!J10^3) -> 1.229025326 | K10: =1+5/(4*'c'!K10)+7/(8*'c'!K10^2)+1/('c'!K10^3) -> 1.226774274 | L10: =1+5/(4*'c'!L10)+7/(8*'c'!L10^2)+1/('c'!L10^3) -> 1.224567037 | M10: =1+5/(4*'c'!M10)+7/(8*'c'!M10^2)+1/('c'!M10^3) -> 1.222402348 | N10: =1+5/(4*'c'!N10)+7/(8*'c'!N10^2)+1/('c'!N10^3) -> 1.220278993 | O10: =1+5/(4*'c'!O10)+7/(8*'c'!O10^2)+1/('c'!O10^3) -> 1.218195799 | P10: =1+5/(4*'c'!P10)+7/(8*'c'!P10^2)+1/('c'!P10^3) -> 1.21615164 | Q10: =1+5/(4*'c'!Q10)+7/(8*'c'!Q10^2)+1/('c'!Q10^3) -> 1.214145431 | R10: =1+5/(4*'c'!R10)+7/(8*'c'!R10^2)+1/('c'!R10^3) -> 1.212176126 | S10: =1+5/(4*'c'!S10)+7/(8*'c'!S10^2)+1/('c'!S10^3) -> 1.210242716 | T10: =1+5/(4*'c'!T10)+7/(8*'c'!T10^2)+1/('c'!T10^3) -> 1.208344232 | U10: =1+5/(4*'c'!U10)+7/(8*'c'!U10^2)+1/('c'!U10^3) -> 1.206479735 | V10: =1+5/(4*'c'!V10)+7/(8*'c'!V10^2)+1/('c'!V10^3) -> 1.204648323 | W10: =1+5/(4*'c'!W10)+7/(8*'c'!W10^2)+1/('c'!W10^3) -> 1.202849123 | X10: =1+5/(4*'c'!X10)+7/(8*'c'!X10^2)+1/('c'!X10^3) -> 1.201081294 | Y10: =1+5/(4*'c'!Y10)+7/(8*'c'!Y10^2)+1/('c'!Y10^3) -> 1.199344023 | Z10: =1+5/(4*'c'!Z10)+7/(8*'c'!Z10^2)+1/('c'!Z10^3) -> 1.197636526 | AA10: =1+5/(4*'c'!AA10)+7/(8*'c'!AA10^2)+1/('c'!AA10^3) -> 1.195958044 | AB10: =1+5/(4*'c'!AB10)+7/(8*'c'!AB10^2)+1/('c'!AB10^3) -> 1.194307845 | AC10: =1+5/(4*'c'!AC10)+7/(8*'c'!AC10^2)+1/('c'!AC10^3) -> 1.192685219 | AD10: =1+5/(4*'c'!AD10)+7/(8*'c'!AD10^2)+1/('c'!AD10^3) -> 1.191089483 | AE10: =1+5/(4*'c'!AE10)+7/(8*'c'!AE10^2)+1/('c'!AE10^3) -> 1.189519974 | AF10: =1+5/(4*'c'!AF10)+7/(8*'c'!AF10^2)+1/('c'!AF10^3) -> 1.187976051 | AG10: =1+5/(4*'c'!AG10)+7/(8*'c'!AG10^2)+1/('c'!AG10^3) -> 1.186457094 | AH10: =1+5/(4*'c'!AH10)+7/(8*'c'!AH10^2)+1/('c'!AH10^3) -> 1.184962502 | AI10: =1+5/(4*'c'!AI10)+7/(8*'c'!AI10^2)+1/('c'!AI10^3) -> 1.183491694 | AJ10: =1+5/(4*'c'!AJ10)+7/(8*'c'!AJ10^2)+1/('c'!AJ10^3) -> 1.182044108 | AK10: =1+5/(4*'c'!AK10)+7/(8*'c'!AK10^2)+1/('c'!AK10^3) -> 1.180619197 | AL10: =1+5/(4*'c'!AL10)+7/(8*'c'!AL10^2)+1/('c'!AL10^3) -> 1.179216434 | AM10: =1+5/(4*'c'!AM10)+7/(8*'c'!AM10^2)+1/('c'!AM10^3) -> 1.177835306 | AN10: =1+5/(4*'c'!AN10)+7/(8*'c'!AN10^2)+1/('c'!AN10^3) -> 1.176475316 | AO10: =1+5/(4*'c'!AO10)+7/(8*'c'!AO10^2)+1/('c'!AO10^3) -> 1.175135984 | AP10: =1+5/(4*'c'!AP10)+7/(8*'c'!AP10^2)+1/('c'!AP10^3) -> 1.173816843 | AQ10: =1+5/(4*'c'!AQ10)+7/(8*'c'!AQ10^2)+1/('c'!AQ10^3) -> 1.172517438 | AR10: =1+5/(4*'c'!AR10)+7/(8*'c'!AR10^2)+1/('c'!AR10^3) -> 1.171237332 | AS10: =1+5/(4*'c'!AS10)+7/(8*'c'!AS10^2)+1/('c'!AS10^3) -> 1.169976097 | AT10: =1+5/(4*'c'!AT10)+7/(8*'c'!AT10^2)+1/('c'!AT10^3) -> 1.168733319 | AU10: =1+5/(4*'c'!AU10)+7/(8*'c'!AU10^2)+1/('c'!AU10^3) -> 1.167508595 | AV10: =1+5/(4*'c'!AV10)+7/(8*'c'!AV10^2)+1/('c'!AV10^3) -> 1.166301536 | AW10: =1+5/(4*'c'!AW10)+7/(8*'c'!AW10^2)+1/('c'!AW10^3) -> 1.165111762 | AX10: =1+5/(4*'c'!AX10)+7/(8*'c'!AX10^2)+1/('c'!AX10^3) -> 1.163938905 | AY10: =1+5/(4*'c'!AY10)+7/(8*'c'!AY10^2)+1/('c'!AY10^3) -> 1.162782605 | AZ10: =1+5/(4*'c'!AZ10)+7/(8*'c'!AZ10^2)+1/('c'!AZ10^3) -> 1.161642516 | BA10: =1+5/(4*'c'!BA10)+7/(8*'c'!BA10^2)+1/('c'!BA10^3) -> 1.160518299 | BB10: =1+5/(4*'c'!BB10)+7/(8*'c'!BB10^2)+1/('c'!BB10^3) -> 1.159409623 | BC10: =1+5/(4*'c'!BC10)+7/(8*'c'!BC10^2)+1/('c'!BC10^3) -> 1.158316171 | BD10: =1+5/(4*'c'!BD10)+7/(8*'c'!BD10^2)+1/('c'!BD10^3) -> 1.157237629 | BE10: =1+5/(4*'c'!BE10)+7/(8*'c'!BE10^2)+1/('c'!BE10^3) -> 1.156173695 | BF10: =1+5/(4*'c'!BF10)+7/(8*'c'!BF10^2)+1/('c'!BF10^3) -> 1.155124075 | BG10: =1+5/(4*'c'!BG10)+7/(8*'c'!BG10^2)+1/('c'!BG10^3) -> 1.154088481 | BH10: =1+5/(4*'c'!BH10)+7/(8*'c'!BH10^2)+1/('c'!BH10^3) -> 1.153066634 | BI10: =1+5/(4*'c'!BI10)+7/(8*'c'!BI10^2)+1/('c'!BI10^3) -> 1.152058262 | BJ10: =1+5/(4*'c'!BJ10)+7/(8*'c'!BJ10^2)+1/('c'!BJ10^3) -> 1.1510631 | BK10: =1+5/(4*'c'!BK10)+7/(8*'c'!BK10^2)+1/('c'!BK10^3) -> 1.150080891 | BL10: =1+5/(4*'c'!BL10)+7/(8*'c'!BL10^2)+1/('c'!BL10^3) -> 1.149111383 | BM10: =1+5/(4*'c'!BM10)+7/(8*'c'!BM10^2)+1/('c'!BM10^3) -> 1.148154331 | BN10: =1+5/(4*'c'!BN10)+7/(8*'c'!BN10^2)+1/('c'!BN10^3) -> 1.147209497 | BO10: =1+5/(4*'c'!BO10)+7/(8*'c'!BO10^2)+1/('c'!BO10^3) -> 1.146276648 | BP10: =1+5/(4*'c'!BP10)+7/(8*'c'!BP10^2)+1/('c'!BP10^3) -> 1.145355558 | BQ10: =1+5/(4*'c'!BQ10)+7/(8*'c'!BQ10^2)+1/('c'!BQ10^3) -> 1.144446005 | BR10: =1+5/(4*'c'!BR10)+7/(8*'c'!BR10^2)+1/('c'!BR10^3) -> 1.143547775 | BS10: =1+5/(4*'c'!BS10)+7/(8*'c'!BS10^2)+1/('c'!BS10^3) -> 1.142660656 | BT10: =1+5/(4*'c'!BT10)+7/(8*'c'!BT10^2)+1/('c'!BT10^3) -> 1.141784445 | BU10: =1+5/(4*'c'!BU10)+7/(8*'c'!BU10^2)+1/('c'!BU10^3) -> 1.140918941 | BV10: =1+5/(4*'c'!BV10)+7/(8*'c'!BV10^2)+1/('c'!BV10^3) -> 1.140063948 | BW10: =1+5/(4*'c'!BW10)+7/(8*'c'!BW10^2)+1/('c'!BW10^3) -> 1.139219278 | BX10: =1+5/(4*'c'!BX10)+7/(8*'c'!BX10^2)+1/('c'!BX10^3) -> 1.138384742 | BY10: =1+5/(4*'c'!BY10)+7/(8*'c'!BY10^2)+1/('c'!BY10^3) -> 1.137560162 | BZ10: =1+5/(4*'c'!BZ10)+7/(8*'c'!BZ10^2)+1/('c'!BZ10^3) -> 1.136745358 | CA10: =1+5/(4*'c'!CA10)+7/(8*'c'!CA10^2)+1/('c'!CA10^3) -> 1.135940159 | CB10: =1+5/(4*'c'!CB10)+7/(8*'c'!CB10^2)+1/('c'!CB10^3) -> 1.135144395 | CC10: =1+5/(4*'c'!CC10)+7/(8*'c'!CC10^2)+1/('c'!CC10^3) -> 1.134357902 | CD10: =1+5/(4*'c'!CD10)+7/(8*'c'!CD10^2)+1/('c'!CD10^3) -> 1.133580518 | CE10: =1+5/(4*'c'!CE10)+7/(8*'c'!CE10^2)+1/('c'!CE10^3) -> 1.132812087 | CF10: =1+5/(4*'c'!CF10)+7/(8*'c'!CF10^2)+1/('c'!CF10^3) -> 1.132052453 | CG10: =1+5/(4*'c'!CG10)+7/(8*'c'!CG10^2)+1/('c'!CG10^3) -> 1.131301467 | CH10: =1+5/(4*'c'!CH10)+7/(8*'c'!CH10^2)+1/('c'!CH10^3) -> 1.130558983 | CI10: =1+5/(4*'c'!CI10)+7/(8*'c'!CI10^2)+1/('c'!CI10^3) -> 1.129824856
A11: ='c'!$A11 -> 3.8 | B11: =1+5/(4*'c'!B11)+7/(8*'c'!B11^2)+1/('c'!B11^3) -> 1.257928315 | C11: =1+5/(4*'c'!C11)+7/(8*'c'!C11^2)+1/('c'!C11^3) -> 1.25515135 | D11: =1+5/(4*'c'!D11)+7/(8*'c'!D11^2)+1/('c'!D11^3) -> 1.252433493 | E11: =1+5/(4*'c'!E11)+7/(8*'c'!E11^2)+1/('c'!E11^3) -> 1.249772882 | F11: =1+5/(4*'c'!F11)+7/(8*'c'!F11^2)+1/('c'!F11^3) -> 1.247167731 | G11: =1+5/(4*'c'!G11)+7/(8*'c'!G11^2)+1/('c'!G11^3) -> 1.244616329 | H11: =1+5/(4*'c'!H11)+7/(8*'c'!H11^2)+1/('c'!H11^3) -> 1.242117034 | I11: =1+5/(4*'c'!I11)+7/(8*'c'!I11^2)+1/('c'!I11^3) -> 1.239668268 | J11: =1+5/(4*'c'!J11)+7/(8*'c'!J11^2)+1/('c'!J11^3) -> 1.237268519 | K11: =1+5/(4*'c'!K11)+7/(8*'c'!K11^2)+1/('c'!K11^3) -> 1.234916331 | L11: =1+5/(4*'c'!L11)+7/(8*'c'!L11^2)+1/('c'!L11^3) -> 1.232610308 | M11: =1+5/(4*'c'!M11)+7/(8*'c'!M11^2)+1/('c'!M11^3) -> 1.230349107 | N11: =1+5/(4*'c'!N11)+7/(8*'c'!N11^2)+1/('c'!N11^3) -> 1.228131436 | O11: =1+5/(4*'c'!O11)+7/(8*'c'!O11^2)+1/('c'!O11^3) -> 1.225956052 | P11: =1+5/(4*'c'!P11)+7/(8*'c'!P11^2)+1/('c'!P11^3) -> 1.223821759 | Q11: =1+5/(4*'c'!Q11)+7/(8*'c'!Q11^2)+1/('c'!Q11^3) -> 1.221727406 | R11: =1+5/(4*'c'!R11)+7/(8*'c'!R11^2)+1/('c'!R11^3) -> 1.219671883 | S11: =1+5/(4*'c'!S11)+7/(8*'c'!S11^2)+1/('c'!S11^3) -> 1.217654123 | T11: =1+5/(4*'c'!T11)+7/(8*'c'!T11^2)+1/('c'!T11^3) -> 1.215673095 | U11: =1+5/(4*'c'!U11)+7/(8*'c'!U11^2)+1/('c'!U11^3) -> 1.213727808 | V11: =1+5/(4*'c'!V11)+7/(8*'c'!V11^2)+1/('c'!V11^3) -> 1.211817303 | W11: =1+5/(4*'c'!W11)+7/(8*'c'!W11^2)+1/('c'!W11^3) -> 1.209940658 | X11: =1+5/(4*'c'!X11)+7/(8*'c'!X11^2)+1/('c'!X11^3) -> 1.208096981 | Y11: =1+5/(4*'c'!Y11)+7/(8*'c'!Y11^2)+1/('c'!Y11^3) -> 1.206285412 | Z11: =1+5/(4*'c'!Z11)+7/(8*'c'!Z11^2)+1/('c'!Z11^3) -> 1.204505121 | AA11: =1+5/(4*'c'!AA11)+7/(8*'c'!AA11^2)+1/('c'!AA11^3) -> 1.202755304 | AB11: =1+5/(4*'c'!AB11)+7/(8*'c'!AB11^2)+1/('c'!AB11^3) -> 1.201035188 | AC11: =1+5/(4*'c'!AC11)+7/(8*'c'!AC11^2)+1/('c'!AC11^3) -> 1.199344023 | AD11: =1+5/(4*'c'!AD11)+7/(8*'c'!AD11^2)+1/('c'!AD11^3) -> 1.197681085 | AE11: =1+5/(4*'c'!AE11)+7/(8*'c'!AE11^2)+1/('c'!AE11^3) -> 1.196045674 | AF11: =1+5/(4*'c'!AF11)+7/(8*'c'!AF11^2)+1/('c'!AF11^3) -> 1.194437112 | AG11: =1+5/(4*'c'!AG11)+7/(8*'c'!AG11^2)+1/('c'!AG11^3) -> 1.192854744 | AH11: =1+5/(4*'c'!AH11)+7/(8*'c'!AH11^2)+1/('c'!AH11^3) -> 1.191297936 | AI11: =1+5/(4*'c'!AI11)+7/(8*'c'!AI11^2)+1/('c'!AI11^3) -> 1.189766074 | AJ11: =1+5/(4*'c'!AJ11)+7/(8*'c'!AJ11^2)+1/('c'!AJ11^3) -> 1.188258564 | AK11: =1+5/(4*'c'!AK11)+7/(8*'c'!AK11^2)+1/('c'!AK11^3) -> 1.18677483 | AL11: =1+5/(4*'c'!AL11)+7/(8*'c'!AL11^2)+1/('c'!AL11^3) -> 1.185314313 | AM11: =1+5/(4*'c'!AM11)+7/(8*'c'!AM11^2)+1/('c'!AM11^3) -> 1.183876475 | AN11: =1+5/(4*'c'!AN11)+7/(8*'c'!AN11^2)+1/('c'!AN11^3) -> 1.18246079 | AO11: =1+5/(4*'c'!AO11)+7/(8*'c'!AO11^2)+1/('c'!AO11^3) -> 1.181066751 | AP11: =1+5/(4*'c'!AP11)+7/(8*'c'!AP11^2)+1/('c'!AP11^3) -> 1.179693866 | AQ11: =1+5/(4*'c'!AQ11)+7/(8*'c'!AQ11^2)+1/('c'!AQ11^3) -> 1.178341657 | AR11: =1+5/(4*'c'!AR11)+7/(8*'c'!AR11^2)+1/('c'!AR11^3) -> 1.17700966 | AS11: =1+5/(4*'c'!AS11)+7/(8*'c'!AS11^2)+1/('c'!AS11^3) -> 1.175697426 | AT11: =1+5/(4*'c'!AT11)+7/(8*'c'!AT11^2)+1/('c'!AT11^3) -> 1.174404519 | AU11: =1+5/(4*'c'!AU11)+7/(8*'c'!AU11^2)+1/('c'!AU11^3) -> 1.173130514 | AV11: =1+5/(4*'c'!AV11)+7/(8*'c'!AV11^2)+1/('c'!AV11^3) -> 1.171875 | AW11: =1+5/(4*'c'!AW11)+7/(8*'c'!AW11^2)+1/('c'!AW11^3) -> 1.170637578 | AX11: =1+5/(4*'c'!AX11)+7/(8*'c'!AX11^2)+1/('c'!AX11^3) -> 1.16941786 | AY11: =1+5/(4*'c'!AY11)+7/(8*'c'!AY11^2)+1/('c'!AY11^3) -> 1.168215468 | AZ11: =1+5/(4*'c'!AZ11)+7/(8*'c'!AZ11^2)+1/('c'!AZ11^3) -> 1.167030036 | BA11: =1+5/(4*'c'!BA11)+7/(8*'c'!BA11^2)+1/('c'!BA11^3) -> 1.165861207 | BB11: =1+5/(4*'c'!BB11)+7/(8*'c'!BB11^2)+1/('c'!BB11^3) -> 1.164708636 | BC11: =1+5/(4*'c'!BC11)+7/(8*'c'!BC11^2)+1/('c'!BC11^3) -> 1.163571985 | BD11: =1+5/(4*'c'!BD11)+7/(8*'c'!BD11^2)+1/('c'!BD11^3) -> 1.162450928 | BE11: =1+5/(4*'c'!BE11)+7/(8*'c'!BE11^2)+1/('c'!BE11^3) -> 1.161345144 | BF11: =1+5/(4*'c'!BF11)+7/(8*'c'!BF11^2)+1/('c'!BF11^3) -> 1.160254325 | BG11: =1+5/(4*'c'!BG11)+7/(8*'c'!BG11^2)+1/('c'!BG11^3) -> 1.159178168 | BH11: =1+5/(4*'c'!BH11)+7/(8*'c'!BH11^2)+1/('c'!BH11^3) -> 1.158116381 | BI11: =1+5/(4*'c'!BI11)+7/(8*'c'!BI11^2)+1/('c'!BI11^3) -> 1.157068676 | BJ11: =1+5/(4*'c'!BJ11)+7/(8*'c'!BJ11^2)+1/('c'!BJ11^3) -> 1.156034776 | BK11: =1+5/(4*'c'!BK11)+7/(8*'c'!BK11^2)+1/('c'!BK11^3) -> 1.155014409 | BL11: =1+5/(4*'c'!BL11)+7/(8*'c'!BL11^2)+1/('c'!BL11^3) -> 1.154007312 | BM11: =1+5/(4*'c'!BM11)+7/(8*'c'!BM11^2)+1/('c'!BM11^3) -> 1.153013228 | BN11: =1+5/(4*'c'!BN11)+7/(8*'c'!BN11^2)+1/('c'!BN11^3) -> 1.152031905 | BO11: =1+5/(4*'c'!BO11)+7/(8*'c'!BO11^2)+1/('c'!BO11^3) -> 1.1510631 | BP11: =1+5/(4*'c'!BP11)+7/(8*'c'!BP11^2)+1/('c'!BP11^3) -> 1.150106575 | BQ11: =1+5/(4*'c'!BQ11)+7/(8*'c'!BQ11^2)+1/('c'!BQ11^3) -> 1.149162097 | BR11: =1+5/(4*'c'!BR11)+7/(8*'c'!BR11^2)+1/('c'!BR11^3) -> 1.14822944 | BS11: =1+5/(4*'c'!BS11)+7/(8*'c'!BS11^2)+1/('c'!BS11^3) -> 1.147308385 | BT11: =1+5/(4*'c'!BT11)+7/(8*'c'!BT11^2)+1/('c'!BT11^3) -> 1.146398715 | BU11: =1+5/(4*'c'!BU11)+7/(8*'c'!BU11^2)+1/('c'!BU11^3) -> 1.145500221 | BV11: =1+5/(4*'c'!BV11)+7/(8*'c'!BV11^2)+1/('c'!BV11^3) -> 1.144612698 | BW11: =1+5/(4*'c'!BW11)+7/(8*'c'!BW11^2)+1/('c'!BW11^3) -> 1.143735946 | BX11: =1+5/(4*'c'!BX11)+7/(8*'c'!BX11^2)+1/('c'!BX11^3) -> 1.14286977 | BY11: =1+5/(4*'c'!BY11)+7/(8*'c'!BY11^2)+1/('c'!BY11^3) -> 1.142013981 | BZ11: =1+5/(4*'c'!BZ11)+7/(8*'c'!BZ11^2)+1/('c'!BZ11^3) -> 1.141168392 | CA11: =1+5/(4*'c'!CA11)+7/(8*'c'!CA11^2)+1/('c'!CA11^3) -> 1.140332822 | CB11: =1+5/(4*'c'!CB11)+7/(8*'c'!CB11^2)+1/('c'!CB11^3) -> 1.139507094 | CC11: =1+5/(4*'c'!CC11)+7/(8*'c'!CC11^2)+1/('c'!CC11^3) -> 1.138691035 | CD11: =1+5/(4*'c'!CD11)+7/(8*'c'!CD11^2)+1/('c'!CD11^3) -> 1.137884476 | CE11: =1+5/(4*'c'!CE11)+7/(8*'c'!CE11^2)+1/('c'!CE11^3) -> 1.137087253 | CF11: =1+5/(4*'c'!CF11)+7/(8*'c'!CF11^2)+1/('c'!CF11^3) -> 1.136299203 | CG11: =1+5/(4*'c'!CG11)+7/(8*'c'!CG11^2)+1/('c'!CG11^3) -> 1.13552017 | CH11: =1+5/(4*'c'!CH11)+7/(8*'c'!CH11^2)+1/('c'!CH11^3) -> 1.13475 | CI11: =1+5/(4*'c'!CI11)+7/(8*'c'!CI11^2)+1/('c'!CI11^3) -> 1.133988542
A12: ='c'!$A12 -> 3.9 | B12: =1+5/(4*'c'!B12)+7/(8*'c'!B12^2)+1/('c'!B12^3) -> 1.267250459 | C12: =1+5/(4*'c'!C12)+7/(8*'c'!C12^2)+1/('c'!C12^3) -> 1.264346094 | D12: =1+5/(4*'c'!D12)+7/(8*'c'!D12^2)+1/('c'!D12^3) -> 1.261504107 | E12: =1+5/(4*'c'!E12)+7/(8*'c'!E12^2)+1/('c'!E12^3) -> 1.258722514 | F12: =1+5/(4*'c'!F12)+7/(8*'c'!F12^2)+1/('c'!F12^3) -> 1.255999416 | G12: =1+5/(4*'c'!G12)+7/(8*'c'!G12^2)+1/('c'!G12^3) -> 1.253332994 | H12: =1+5/(4*'c'!H12)+7/(8*'c'!H12^2)+1/('c'!H12^3) -> 1.2507215 | I12: =1+5/(4*'c'!I12)+7/(8*'c'!I12^2)+1/('c'!I12^3) -> 1.248163259 | J12: =1+5/(4*'c'!J12)+7/(8*'c'!J12^2)+1/('c'!J12^3) -> 1.245656663 | K12: =1+5/(4*'c'!K12)+7/(8*'c'!K12^2)+1/('c'!K12^3) -> 1.243200167 | L12: =1+5/(4*'c'!L12)+7/(8*'c'!L12^2)+1/('c'!L12^3) -> 1.240792287 | M12: =1+5/(4*'c'!M12)+7/(8*'c'!M12^2)+1/('c'!M12^3) -> 1.238431597 | N12: =1+5/(4*'c'!N12)+7/(8*'c'!N12^2)+1/('c'!N12^3) -> 1.236116728 | O12: =1+5/(4*'c'!O12)+7/(8*'c'!O12^2)+1/('c'!O12^3) -> 1.233846359 | P12: =1+5/(4*'c'!P12)+7/(8*'c'!P12^2)+1/('c'!P12^3) -> 1.231619223 | Q12: =1+5/(4*'c'!Q12)+7/(8*'c'!Q12^2)+1/('c'!Q12^3) -> 1.229434099 | R12: =1+5/(4*'c'!R12)+7/(8*'c'!R12^2)+1/('c'!R12^3) -> 1.227289812 | S12: =1+5/(4*'c'!S12)+7/(8*'c'!S12^2)+1/('c'!S12^3) -> 1.225185229 | T12: =1+5/(4*'c'!T12)+7/(8*'c'!T12^2)+1/('c'!T12^3) -> 1.223119259 | U12: =1+5/(4*'c'!U12)+7/(8*'c'!U12^2)+1/('c'!U12^3) -> 1.221090852 | V12: =1+5/(4*'c'!V12)+7/(8*'c'!V12^2)+1/('c'!V12^3) -> 1.219098993 | W12: =1+5/(4*'c'!W12)+7/(8*'c'!W12^2)+1/('c'!W12^3) -> 1.217142706 | X12: =1+5/(4*'c'!X12)+7/(8*'c'!X12^2)+1/('c'!X12^3) -> 1.215221046 | Y12: =1+5/(4*'c'!Y12)+7/(8*'c'!Y12^2)+1/('c'!Y12^3) -> 1.213333105 | Z12: =1+5/(4*'c'!Z12)+7/(8*'c'!Z12^2)+1/('c'!Z12^3) -> 1.211478003 | AA12: =1+5/(4*'c'!AA12)+7/(8*'c'!AA12^2)+1/('c'!AA12^3) -> 1.209654891 | AB12: =1+5/(4*'c'!AB12)+7/(8*'c'!AB12^2)+1/('c'!AB12^3) -> 1.207862952 | AC12: =1+5/(4*'c'!AC12)+7/(8*'c'!AC12^2)+1/('c'!AC12^3) -> 1.206101392 | AD12: =1+5/(4*'c'!AD12)+7/(8*'c'!AD12^2)+1/('c'!AD12^3) -> 1.204369447 | AE12: =1+5/(4*'c'!AE12)+7/(8*'c'!AE12^2)+1/('c'!AE12^3) -> 1.202666377 | AF12: =1+5/(4*'c'!AF12)+7/(8*'c'!AF12^2)+1/('c'!AF12^3) -> 1.200991467 | AG12: =1+5/(4*'c'!AG12)+7/(8*'c'!AG12^2)+1/('c'!AG12^3) -> 1.199344023 | AH12: =1+5/(4*'c'!AH12)+7/(8*'c'!AH12^2)+1/('c'!AH12^3) -> 1.197723378 | AI12: =1+5/(4*'c'!AI12)+7/(8*'c'!AI12^2)+1/('c'!AI12^3) -> 1.196128882 | AJ12: =1+5/(4*'c'!AJ12)+7/(8*'c'!AJ12^2)+1/('c'!AJ12^3) -> 1.194559909 | AK12: =1+5/(4*'c'!AK12)+7/(8*'c'!AK12^2)+1/('c'!AK12^3) -> 1.193015851 | AL12: =1+5/(4*'c'!AL12)+7/(8*'c'!AL12^2)+1/('c'!AL12^3) -> 1.19149612 | AM12: =1+5/(4*'c'!AM12)+7/(8*'c'!AM12^2)+1/('c'!AM12^3) -> 1.190000146 | AN12: =1+5/(4*'c'!AN12)+7/(8*'c'!AN12^2)+1/('c'!AN12^3) -> 1.188527376 | AO12: =1+5/(4*'c'!AO12)+7/(8*'c'!AO12^2)+1/('c'!AO12^3) -> 1.187077275 | AP12: =1+5/(4*'c'!AP12)+7/(8*'c'!AP12^2)+1/('c'!AP12^3) -> 1.185649323 | AQ12: =1+5/(4*'c'!AQ12)+7/(8*'c'!AQ12^2)+1/('c'!AQ12^3) -> 1.184243019 | AR12: =1+5/(4*'c'!AR12)+7/(8*'c'!AR12^2)+1/('c'!AR12^3) -> 1.182857873 | AS12: =1+5/(4*'c'!AS12)+7/(8*'c'!AS12^2)+1/('c'!AS12^3) -> 1.181493411 | AT12: =1+5/(4*'c'!AT12)+7/(8*'c'!AT12^2)+1/('c'!AT12^3) -> 1.180149174 | AU12: =1+5/(4*'c'!AU12)+7/(8*'c'!AU12^2)+1/('c'!AU12^3) -> 1.178824716 | AV12: =1+5/(4*'c'!AV12)+7/(8*'c'!AV12^2)+1/('c'!AV12^3) -> 1.177519603 | AW12: =1+5/(4*'c'!AW12)+7/(8*'c'!AW12^2)+1/('c'!AW12^3) -> 1.176233416 | AX12: =1+5/(4*'c'!AX12)+7/(8*'c'!AX12^2)+1/('c'!AX12^3) -> 1.174965745 | AY12: =1+5/(4*'c'!AY12)+7/(8*'c'!AY12^2)+1/('c'!AY12^3) -> 1.173716194 | AZ12: =1+5/(4*'c'!AZ12)+7/(8*'c'!AZ12^2)+1/('c'!AZ12^3) -> 1.172484376 | BA12: =1+5/(4*'c'!BA12)+7/(8*'c'!BA12^2)+1/('c'!BA12^3) -> 1.171269918 | BB12: =1+5/(4*'c'!BB12)+7/(8*'c'!BB12^2)+1/('c'!BB12^3) -> 1.170072454 | BC12: =1+5/(4*'c'!BC12)+7/(8*'c'!BC12^2)+1/('c'!BC12^3) -> 1.168891632 | BD12: =1+5/(4*'c'!BD12)+7/(8*'c'!BD12^2)+1/('c'!BD12^3) -> 1.167727105 | BE12: =1+5/(4*'c'!BE12)+7/(8*'c'!BE12^2)+1/('c'!BE12^3) -> 1.166578541 | BF12: =1+5/(4*'c'!BF12)+7/(8*'c'!BF12^2)+1/('c'!BF12^3) -> 1.165445611 | BG12: =1+5/(4*'c'!BG12)+7/(8*'c'!BG12^2)+1/('c'!BG12^3) -> 1.164328 | BH12: =1+5/(4*'c'!BH12)+7/(8*'c'!BH12^2)+1/('c'!BH12^3) -> 1.163225399 | BI12: =1+5/(4*'c'!BI12)+7/(8*'c'!BI12^2)+1/('c'!BI12^3) -> 1.162137507 | BJ12: =1+5/(4*'c'!BJ12)+7/(8*'c'!BJ12^2)+1/('c'!BJ12^3) -> 1.161064033 | BK12: =1+5/(4*'c'!BK12)+7/(8*'c'!BK12^2)+1/('c'!BK12^3) -> 1.160004691 | BL12: =1+5/(4*'c'!BL12)+7/(8*'c'!BL12^2)+1/('c'!BL12^3) -> 1.158959204 | BM12: =1+5/(4*'c'!BM12)+7/(8*'c'!BM12^2)+1/('c'!BM12^3) -> 1.157927302 | BN12: =1+5/(4*'c'!BN12)+7/(8*'c'!BN12^2)+1/('c'!BN12^3) -> 1.156908723 | BO12: =1+5/(4*'c'!BO12)+7/(8*'c'!BO12^2)+1/('c'!BO12^3) -> 1.155903209 | BP12: =1+5/(4*'c'!BP12)+7/(8*'c'!BP12^2)+1/('c'!BP12^3) -> 1.154910511 | BQ12: =1+5/(4*'c'!BQ12)+7/(8*'c'!BQ12^2)+1/('c'!BQ12^3) -> 1.153930385 | BR12: =1+5/(4*'c'!BR12)+7/(8*'c'!BR12^2)+1/('c'!BR12^3) -> 1.152962595 | BS12: =1+5/(4*'c'!BS12)+7/(8*'c'!BS12^2)+1/('c'!BS12^3) -> 1.152006909 | BT12: =1+5/(4*'c'!BT12)+7/(8*'c'!BT12^2)+1/('c'!BT12^3) -> 1.1510631 | BU12: =1+5/(4*'c'!BU12)+7/(8*'c'!BU12^2)+1/('c'!BU12^3) -> 1.15013095 | BV12: =1+5/(4*'c'!BV12)+7/(8*'c'!BV12^2)+1/('c'!BV12^3) -> 1.149210242 | BW12: =1+5/(4*'c'!BW12)+7/(8*'c'!BW12^2)+1/('c'!BW12^3) -> 1.148300769 | BX12: =1+5/(4*'c'!BX12)+7/(8*'c'!BX12^2)+1/('c'!BX12^3) -> 1.147402324 | BY12: =1+5/(4*'c'!BY12)+7/(8*'c'!BY12^2)+1/('c'!BY12^3) -> 1.14651471 | BZ12: =1+5/(4*'c'!BZ12)+7/(8*'c'!BZ12^2)+1/('c'!BZ12^3) -> 1.145637731 | CA12: =1+5/(4*'c'!CA12)+7/(8*'c'!CA12^2)+1/('c'!CA12^3) -> 1.144771198 | CB12: =1+5/(4*'c'!CB12)+7/(8*'c'!CB12^2)+1/('c'!CB12^3) -> 1.143914924 | CC12: =1+5/(4*'c'!CC12)+7/(8*'c'!CC12^2)+1/('c'!CC12^3) -> 1.143068728 | CD12: =1+5/(4*'c'!CD12)+7/(8*'c'!CD12^2)+1/('c'!CD12^3) -> 1.142232434 | CE12: =1+5/(4*'c'!CE12)+7/(8*'c'!CE12^2)+1/('c'!CE12^3) -> 1.141405869 | CF12: =1+5/(4*'c'!CF12)+7/(8*'c'!CF12^2)+1/('c'!CF12^3) -> 1.140588864 | CG12: =1+5/(4*'c'!CG12)+7/(8*'c'!CG12^2)+1/('c'!CG12^3) -> 1.139781254 | CH12: =1+5/(4*'c'!CH12)+7/(8*'c'!CH12^2)+1/('c'!CH12^3) -> 1.138982878 | CI12: =1+5/(4*'c'!CI12)+7/(8*'c'!CI12^2)+1/('c'!CI12^3) -> 1.138193578
A13: ='c'!$A13 -> 4 | B13: =1+5/(4*'c'!B13)+7/(8*'c'!B13^2)+1/('c'!B13^3) -> 1.276751971 | C13: =1+5/(4*'c'!C13)+7/(8*'c'!C13^2)+1/('c'!C13^3) -> 1.273715886 | D13: =1+5/(4*'c'!D13)+7/(8*'c'!D13^2)+1/('c'!D13^3) -> 1.270745598 | E13: =1+5/(4*'c'!E13)+7/(8*'c'!E13^2)+1/('c'!E13^3) -> 1.267838998 | F13: =1+5/(4*'c'!F13)+7/(8*'c'!F13^2)+1/('c'!F13^3) -> 1.264994066 | G13: =1+5/(4*'c'!G13)+7/(8*'c'!G13^2)+1/('c'!G13^3) -> 1.262208866 | H13: =1+5/(4*'c'!H13)+7/(8*'c'!H13^2)+1/('c'!H13^3) -> 1.259481541 | I13: =1+5/(4*'c'!I13)+7/(8*'c'!I13^2)+1/('c'!I13^3) -> 1.256810313 | J13: =1+5/(4*'c'!J13)+7/(8*'c'!J13^2)+1/('c'!J13^3) -> 1.254193473 | K13: =1+5/(4*'c'!K13)+7/(8*'c'!K13^2)+1/('c'!K13^3) -> 1.251629381 | L13: =1+5/(4*'c'!L13)+7/(8*'c'!L13^2)+1/('c'!L13^3) -> 1.249116463 | M13: =1+5/(4*'c'!M13)+7/(8*'c'!M13^2)+1/('c'!M13^3) -> 1.246653204 | N13: =1+5/(4*'c'!N13)+7/(8*'c'!N13^2)+1/('c'!N13^3) -> 1.244238152 | O13: =1+5/(4*'c'!O13)+7/(8*'c'!O13^2)+1/('c'!O13^3) -> 1.241869909 | P13: =1+5/(4*'c'!P13)+7/(8*'c'!P13^2)+1/('c'!P13^3) -> 1.239547129 | Q13: =1+5/(4*'c'!Q13)+7/(8*'c'!Q13^2)+1/('c'!Q13^3) -> 1.237268519 | R13: =1+5/(4*'c'!R13)+7/(8*'c'!R13^2)+1/('c'!R13^3) -> 1.235032833 | S13: =1+5/(4*'c'!S13)+7/(8*'c'!S13^2)+1/('c'!S13^3) -> 1.232838872 | T13: =1+5/(4*'c'!T13)+7/(8*'c'!T13^2)+1/('c'!T13^3) -> 1.230685482 | U13: =1+5/(4*'c'!U13)+7/(8*'c'!U13^2)+1/('c'!U13^3) -> 1.228571548 | V13: =1+5/(4*'c'!V13)+7/(8*'c'!V13^2)+1/('c'!V13^3) -> 1.226496 | W13: =1+5/(4*'c'!W13)+7/(8*'c'!W13^2)+1/('c'!W13^3) -> 1.224457802 | X13: =1+5/(4*'c'!X13)+7/(8*'c'!X13^2)+1/('c'!X13^3) -> 1.222455957 | Y13: =1+5/(4*'c'!Y13)+7/(8*'c'!Y13^2)+1/('c'!Y13^3) -> 1.220489502 | Z13: =1+5/(4*'c'!Z13)+7/(8*'c'!Z13^2)+1/('c'!Z13^3) -> 1.218557509 | AA13: =1+5/(4*'c'!AA13)+7/(8*'c'!AA13^2)+1/('c'!AA13^3) -> 1.216659081 | AB13: =1+5/(4*'c'!AB13)+7/(8*'c'!AB13^2)+1/('c'!AB13^3) -> 1.214793351 | AC13: =1+5/(4*'c'!AC13)+7/(8*'c'!AC13^2)+1/('c'!AC13^3) -> 1.212959485 | AD13: =1+5/(4*'c'!AD13)+7/(8*'c'!AD13^2)+1/('c'!AD13^3) -> 1.211156672 | AE13: =1+5/(4*'c'!AE13)+7/(8*'c'!AE13^2)+1/('c'!AE13^3) -> 1.209384133 | AF13: =1+5/(4*'c'!AF13)+7/(8*'c'!AF13^2)+1/('c'!AF13^3) -> 1.207641112 | AG13: =1+5/(4*'c'!AG13)+7/(8*'c'!AG13^2)+1/('c'!AG13^3) -> 1.205926878 | AH13: =1+5/(4*'c'!AH13)+7/(8*'c'!AH13^2)+1/('c'!AH13^3) -> 1.204240725 | AI13: =1+5/(4*'c'!AI13)+7/(8*'c'!AI13^2)+1/('c'!AI13^3) -> 1.202581969 | AJ13: =1+5/(4*'c'!AJ13)+7/(8*'c'!AJ13^2)+1/('c'!AJ13^3) -> 1.200949949 | AK13: =1+5/(4*'c'!AK13)+7/(8*'c'!AK13^2)+1/('c'!AK13^3) -> 1.199344023 | AL13: =1+5/(4*'c'!AL13)+7/(8*'c'!AL13^2)+1/('c'!AL13^3) -> 1.197763573 | AM13: =1+5/(4*'c'!AM13)+7/(8*'c'!AM13^2)+1/('c'!AM13^3) -> 1.196207996 | AN13: =1+5/(4*'c'!AN13)+7/(8*'c'!AN13^2)+1/('c'!AN13^3) -> 1.194676711 | AO13: =1+5/(4*'c'!AO13)+7/(8*'c'!AO13^2)+1/('c'!AO13^3) -> 1.193169153 | AP13: =1+5/(4*'c'!AP13)+7/(8*'c'!AP13^2)+1/('c'!AP13^3) -> 1.191684776 | AQ13: =1+5/(4*'c'!AQ13)+7/(8*'c'!AQ13^2)+1/('c'!AQ13^3) -> 1.190223049 | AR13: =1+5/(4*'c'!AR13)+7/(8*'c'!AR13^2)+1/('c'!AR13^3) -> 1.188783459 | AS13: =1+5/(4*'c'!AS13)+7/(8*'c'!AS13^2)+1/('c'!AS13^3) -> 1.187365506 | AT13: =1+5/(4*'c'!AT13)+7/(8*'c'!AT13^2)+1/('c'!AT13^3) -> 1.185968707 | AU13: =1+5/(4*'c'!AU13)+7/(8*'c'!AU13^2)+1/('c'!AU13^3) -> 1.184592593 | AV13: =1+5/(4*'c'!AV13)+7/(8*'c'!AV13^2)+1/('c'!AV13^3) -> 1.183236706 | AW13: =1+5/(4*'c'!AW13)+7/(8*'c'!AW13^2)+1/('c'!AW13^3) -> 1.181900605 | AX13: =1+5/(4*'c'!AX13)+7/(8*'c'!AX13^2)+1/('c'!AX13^3) -> 1.18058386 | AY13: =1+5/(4*'c'!AY13)+7/(8*'c'!AY13^2)+1/('c'!AY13^3) -> 1.179286054 | AZ13: =1+5/(4*'c'!AZ13)+7/(8*'c'!AZ13^2)+1/('c'!AZ13^3) -> 1.178006781 | BA13: =1+5/(4*'c'!BA13)+7/(8*'c'!BA13^2)+1/('c'!BA13^3) -> 1.176745646 | BB13: =1+5/(4*'c'!BB13)+7/(8*'c'!BB13^2)+1/('c'!BB13^3) -> 1.175502268 | BC13: =1+5/(4*'c'!BC13)+7/(8*'c'!BC13^2)+1/('c'!BC13^3) -> 1.174276274 | BD13: =1+5/(4*'c'!BD13)+7/(8*'c'!BD13^2)+1/('c'!BD13^3) -> 1.173067302 | BE13: =1+5/(4*'c'!BE13)+7/(8*'c'!BE13^2)+1/('c'!BE13^3) -> 1.171875 | BF13: =1+5/(4*'c'!BF13)+7/(8*'c'!BF13^2)+1/('c'!BF13^3) -> 1.170699026 | BG13: =1+5/(4*'c'!BG13)+7/(8*'c'!BG13^2)+1/('c'!BG13^3) -> 1.169539046 | BH13: =1+5/(4*'c'!BH13)+7/(8*'c'!BH13^2)+1/('c'!BH13^3) -> 1.168394737 | BI13: =1+5/(4*'c'!BI13)+7/(8*'c'!BI13^2)+1/('c'!BI13^3) -> 1.167265783 | BJ13: =1+5/(4*'c'!BJ13)+7/(8*'c'!BJ13^2)+1/('c'!BJ13^3) -> 1.166151877 | BK13: =1+5/(4*'c'!BK13)+7/(8*'c'!BK13^2)+1/('c'!BK13^3) -> 1.165052721 | BL13: =1+5/(4*'c'!BL13)+7/(8*'c'!BL13^2)+1/('c'!BL13^3) -> 1.163968023 | BM13: =1+5/(4*'c'!BM13)+7/(8*'c'!BM13^2)+1/('c'!BM13^3) -> 1.1628975 | BN13: =1+5/(4*'c'!BN13)+7/(8*'c'!BN13^2)+1/('c'!BN13^3) -> 1.161840877 | BO13: =1+5/(4*'c'!BO13)+7/(8*'c'!BO13^2)+1/('c'!BO13^3) -> 1.160797883 | BP13: =1+5/(4*'c'!BP13)+7/(8*'c'!BP13^2)+1/('c'!BP13^3) -> 1.159768258 | BQ13: =1+5/(4*'c'!BQ13)+7/(8*'c'!BQ13^2)+1/('c'!BQ13^3) -> 1.158751745 | BR13: =1+5/(4*'c'!BR13)+7/(8*'c'!BR13^2)+1/('c'!BR13^3) -> 1.157748096 | BS13: =1+5/(4*'c'!BS13)+7/(8*'c'!BS13^2)+1/('c'!BS13^3) -> 1.156757069 | BT13: =1+5/(4*'c'!BT13)+7/(8*'c'!BT13^2)+1/('c'!BT13^3) -> 1.155778426 | BU13: =1+5/(4*'c'!BU13)+7/(8*'c'!BU13^2)+1/('c'!BU13^3) -> 1.154811937 | BV13: =1+5/(4*'c'!BV13)+7/(8*'c'!BV13^2)+1/('c'!BV13^3) -> 1.153857376 | BW13: =1+5/(4*'c'!BW13)+7/(8*'c'!BW13^2)+1/('c'!BW13^3) -> 1.152914525 | BX13: =1+5/(4*'c'!BX13)+7/(8*'c'!BX13^2)+1/('c'!BX13^3) -> 1.15198317 | BY13: =1+5/(4*'c'!BY13)+7/(8*'c'!BY13^2)+1/('c'!BY13^3) -> 1.1510631 | BZ13: =1+5/(4*'c'!BZ13)+7/(8*'c'!BZ13^2)+1/('c'!BZ13^3) -> 1.150154113 | CA13: =1+5/(4*'c'!CA13)+7/(8*'c'!CA13^2)+1/('c'!CA13^3) -> 1.149256009 | CB13: =1+5/(4*'c'!CB13)+7/(8*'c'!CB13^2)+1/('c'!CB13^3) -> 1.148368594 | CC13: =1+5/(4*'c'!CC13)+7/(8*'c'!CC13^2)+1/('c'!CC13^3) -> 1.147491678 | CD13: =1+5/(4*'c'!CD13)+7/(8*'c'!CD13^2)+1/('c'!CD13^3) -> 1.146625077 | CE13: =1+5/(4*'c'!CE13)+7/(8*'c'!CE13^2)+1/('c'!CE13^3) -> 1.145768608 | CF13: =1+5/(4*'c'!CF13)+7/(8*'c'!CF13^2)+1/('c'!CF13^3) -> 1.144922095 | CG13: =1+5/(4*'c'!CG13)+7/(8*'c'!CG13^2)+1/('c'!CG13^3) -> 1.144085366 | CH13: =1+5/(4*'c'!CH13)+7/(8*'c'!CH13^2)+1/('c'!CH13^3) -> 1.143258253 | CI13: =1+5/(4*'c'!CI13)+7/(8*'c'!CI13^2)+1/('c'!CI13^3) -> 1.142440589
A14: ='c'!$A14 -> 4.1 | B14: =1+5/(4*'c'!B14)+7/(8*'c'!B14^2)+1/('c'!B14^3) -> 1.286437823 | C14: =1+5/(4*'c'!C14)+7/(8*'c'!C14^2)+1/('c'!C14^3) -> 1.283265533 | D14: =1+5/(4*'c'!D14)+7/(8*'c'!D14^2)+1/('c'!D14^3) -> 1.280162617 | E14: =1+5/(4*'c'!E14)+7/(8*'c'!E14^2)+1/('c'!E14^3) -> 1.277126832 | F14: =1+5/(4*'c'!F14)+7/(8*'c'!F14^2)+1/('c'!F14^3) -> 1.27415603 | G14: =1+5/(4*'c'!G14)+7/(8*'c'!G14^2)+1/('c'!G14^3) -> 1.271248155 | H14: =1+5/(4*'c'!H14)+7/(8*'c'!H14^2)+1/('c'!H14^3) -> 1.268401235 | I14: =1+5/(4*'c'!I14)+7/(8*'c'!I14^2)+1/('c'!I14^3) -> 1.26561338 | J14: =1+5/(4*'c'!J14)+7/(8*'c'!J14^2)+1/('c'!J14^3) -> 1.262882776 | K14: =1+5/(4*'c'!K14)+7/(8*'c'!K14^2)+1/('c'!K14^3) -> 1.260207684 | L14: =1+5/(4*'c'!L14)+7/(8*'c'!L14^2)+1/('c'!L14^3) -> 1.257586432 | M14: =1+5/(4*'c'!M14)+7/(8*'c'!M14^2)+1/('c'!M14^3) -> 1.255017415 | N14: =1+5/(4*'c'!N14)+7/(8*'c'!N14^2)+1/('c'!N14^3) -> 1.252499093 | O14: =1+5/(4*'c'!O14)+7/(8*'c'!O14^2)+1/('c'!O14^3) -> 1.250029984 | P14: =1+5/(4*'c'!P14)+7/(8*'c'!P14^2)+1/('c'!P14^3) -> 1.247608661 | Q14: =1+5/(4*'c'!Q14)+7/(8*'c'!Q14^2)+1/('c'!Q14^3) -> 1.245233756 | R14: =1+5/(4*'c'!R14)+7/(8*'c'!R14^2)+1/('c'!R14^3) -> 1.242903949 | S14: =1+5/(4*'c'!S14)+7/(8*'c'!S14^2)+1/('c'!S14^3) -> 1.24061797 | T14: =1+5/(4*'c'!T14)+7/(8*'c'!T14^2)+1/('c'!T14^3) -> 1.238374597 | U14: =1+5/(4*'c'!U14)+7/(8*'c'!U14^2)+1/('c'!U14^3) -> 1.236172653 | V14: =1+5/(4*'c'!V14)+7/(8*'c'!V14^2)+1/('c'!V14^3) -> 1.234011002 | W14: =1+5/(4*'c'!W14)+7/(8*'c'!W14^2)+1/('c'!W14^3) -> 1.231888552 | X14: =1+5/(4*'c'!X14)+7/(8*'c'!X14^2)+1/('c'!X14^3) -> 1.229804247 | Y14: =1+5/(4*'c'!Y14)+7/(8*'c'!Y14^2)+1/('c'!Y14^3) -> 1.227757069 | Z14: =1+5/(4*'c'!Z14)+7/(8*'c'!Z14^2)+1/('c'!Z14^3) -> 1.225746039 | AA14: =1+5/(4*'c'!AA14)+7/(8*'c'!AA14^2)+1/('c'!AA14^3) -> 1.223770207 | AB14: =1+5/(4*'c'!AB14)+7/(8*'c'!AB14^2)+1/('c'!AB14^3) -> 1.22182866 | AC14: =1+5/(4*'c'!AC14)+7/(8*'c'!AC14^2)+1/('c'!AC14^3) -> 1.219920514 | AD14: =1+5/(4*'c'!AD14)+7/(8*'c'!AD14^2)+1/('c'!AD14^3) -> 1.218044916 | AE14: =1+5/(4*'c'!AE14)+7/(8*'c'!AE14^2)+1/('c'!AE14^3) -> 1.216201042 | AF14: =1+5/(4*'c'!AF14)+7/(8*'c'!AF14^2)+1/('c'!AF14^3) -> 1.214388094 | AG14: =1+5/(4*'c'!AG14)+7/(8*'c'!AG14^2)+1/('c'!AG14^3) -> 1.212605303 | AH14: =1+5/(4*'c'!AH14)+7/(8*'c'!AH14^2)+1/('c'!AH14^3) -> 1.210851922 | AI14: =1+5/(4*'c'!AI14)+7/(8*'c'!AI14^2)+1/('c'!AI14^3) -> 1.209127231 | AJ14: =1+5/(4*'c'!AJ14)+7/(8*'c'!AJ14^2)+1/('c'!AJ14^3) -> 1.207430532 | AK14: =1+5/(4*'c'!AK14)+7/(8*'c'!AK14^2)+1/('c'!AK14^3) -> 1.20576115 | AL14: =1+5/(4*'c'!AL14)+7/(8*'c'!AL14^2)+1/('c'!AL14^3) -> 1.204118431 | AM14: =1+5/(4*'c'!AM14)+7/(8*'c'!AM14^2)+1/('c'!AM14^3) -> 1.202501743 | AN14: =1+5/(4*'c'!AN14)+7/(8*'c'!AN14^2)+1/('c'!AN14^3) -> 1.200910472 | AO14: =1+5/(4*'c'!AO14)+7/(8*'c'!AO14^2)+1/('c'!AO14^3) -> 1.199344023 | AP14: =1+5/(4*'c'!AP14)+7/(8*'c'!AP14^2)+1/('c'!AP14^3) -> 1.197801822 | AQ14: =1+5/(4*'c'!AQ14)+7/(8*'c'!AQ14^2)+1/('c'!AQ14^3) -> 1.196283309 | AR14: =1+5/(4*'c'!AR14)+7/(8*'c'!AR14^2)+1/('c'!AR14^3) -> 1.194787945 | AS14: =1+5/(4*'c'!AS14)+7/(8*'c'!AS14^2)+1/('c'!AS14^3) -> 1.193315203 | AT14: =1+5/(4*'c'!AT14)+7/(8*'c'!AT14^2)+1/('c'!AT14^3) -> 1.191864574 | AU14: =1+5/(4*'c'!AU14)+7/(8*'c'!AU14^2)+1/('c'!AU14^3) -> 1.190435566 | AV14: =1+5/(4*'c'!AV14)+7/(8*'c'!AV14^2)+1/('c'!AV14^3) -> 1.189027698 | AW14: =1+5/(4*'c'!AW14)+7/(8*'c'!AW14^2)+1/('c'!AW14^3) -> 1.187640504 | AX14: =1+5/(4*'c'!AX14)+7/(8*'c'!AX14^2)+1/('c'!AX14^3) -> 1.186273534 | AY14: =1+5/(4*'c'!AY14)+7/(8*'c'!AY14^2)+1/('c'!AY14^3) -> 1.184926348 | AZ14: =1+5/(4*'c'!AZ14)+7/(8*'c'!AZ14^2)+1/('c'!AZ14^3) -> 1.18359852 | BA14: =1+5/(4*'c'!BA14)+7/(8*'c'!BA14^2)+1/('c'!BA14^3) -> 1.182289637 | BB14: =1+5/(4*'c'!BB14)+7/(8*'c'!BB14^2)+1/('c'!BB14^3) -> 1.180999295 | BC14: =1+5/(4*'c'!BC14)+7/(8*'c'!BC14^2)+1/('c'!BC14^3) -> 1.179727103 | BD14: =1+5/(4*'c'!BD14)+7/(8*'c'!BD14^2)+1/('c'!BD14^3) -> 1.178472683 | BE14: =1+5/(4*'c'!BE14)+7/(8*'c'!BE14^2)+1/('c'!BE14^3) -> 1.177235663 | BF14: =1+5/(4*'c'!BF14)+7/(8*'c'!BF14^2)+1/('c'!BF14^3) -> 1.176015685 | BG14: =1+5/(4*'c'!BG14)+7/(8*'c'!BG14^2)+1/('c'!BG14^3) -> 1.174812398 | BH14: =1+5/(4*'c'!BH14)+7/(8*'c'!BH14^2)+1/('c'!BH14^3) -> 1.173625464 | BI14: =1+5/(4*'c'!BI14)+7/(8*'c'!BI14^2)+1/('c'!BI14^3) -> 1.17245455 | BJ14: =1+5/(4*'c'!BJ14)+7/(8*'c'!BJ14^2)+1/('c'!BJ14^3) -> 1.171299335 | BK14: =1+5/(4*'c'!BK14)+7/(8*'c'!BK14^2)+1/('c'!BK14^3) -> 1.170159505 | BL14: =1+5/(4*'c'!BL14)+7/(8*'c'!BL14^2)+1/('c'!BL14^3) -> 1.169034755 | BM14: =1+5/(4*'c'!BM14)+7/(8*'c'!BM14^2)+1/('c'!BM14^3) -> 1.167924788 | BN14: =1+5/(4*'c'!BN14)+7/(8*'c'!BN14^2)+1/('c'!BN14^3) -> 1.166829314 | BO14: =1+5/(4*'c'!BO14)+7/(8*'c'!BO14^2)+1/('c'!BO14^3) -> 1.165748051 | BP14: =1+5/(4*'c'!BP14)+7/(8*'c'!BP14^2)+1/('c'!BP14^3) -> 1.164680725 | BQ14: =1+5/(4*'c'!BQ14)+7/(8*'c'!BQ14^2)+1/('c'!BQ14^3) -> 1.163627067 | BR14: =1+5/(4*'c'!BR14)+7/(8*'c'!BR14^2)+1/('c'!BR14^3) -> 1.162586818 | BS14: =1+5/(4*'c'!BS14)+7/(8*'c'!BS14^2)+1/('c'!BS14^3) -> 1.161559722 | BT14: =1+5/(4*'c'!BT14)+7/(8*'c'!BT14^2)+1/('c'!BT14^3) -> 1.160545532 | BU14: =1+5/(4*'c'!BU14)+7/(8*'c'!BU14^2)+1/('c'!BU14^3) -> 1.159544006 | BV14: =1+5/(4*'c'!BV14)+7/(8*'c'!BV14^2)+1/('c'!BV14^3) -> 1.158554909 | BW14: =1+5/(4*'c'!BW14)+7/(8*'c'!BW14^2)+1/('c'!BW14^3) -> 1.15757801 | BX14: =1+5/(4*'c'!BX14)+7/(8*'c'!BX14^2)+1/('c'!BX14^3) -> 1.156613085 | BY14: =1+5/(4*'c'!BY14)+7/(8*'c'!BY14^2)+1/('c'!BY14^3) -> 1.155659915 | BZ14: =1+5/(4*'c'!BZ14)+7/(8*'c'!BZ14^2)+1/('c'!BZ14^3) -> 1.154718287 | CA14: =1+5/(4*'c'!CA14)+7/(8*'c'!CA14^2)+1/('c'!CA14^3) -> 1.153787993 | CB14: =1+5/(4*'c'!CB14)+7/(8*'c'!CB14^2)+1/('c'!CB14^3) -> 1.152868828 | CC14: =1+5/(4*'c'!CC14)+7/(8*'c'!CC14^2)+1/('c'!CC14^3) -> 1.151960595 | CD14: =1+5/(4*'c'!CD14)+7/(8*'c'!CD14^2)+1/('c'!CD14^3) -> 1.1510631 | CE14: =1+5/(4*'c'!CE14)+7/(8*'c'!CE14^2)+1/('c'!CE14^3) -> 1.150176153 | CF14: =1+5/(4*'c'!CF14)+7/(8*'c'!CF14^2)+1/('c'!CF14^3) -> 1.149299569 | CG14: =1+5/(4*'c'!CG14)+7/(8*'c'!CG14^2)+1/('c'!CG14^3) -> 1.148433169 | CH14: =1+5/(4*'c'!CH14)+7/(8*'c'!CH14^2)+1/('c'!CH14^3) -> 1.147576774 | CI14: =1+5/(4*'c'!CI14)+7/(8*'c'!CI14^2)+1/('c'!CI14^3) -> 1.146730214
A15: ='c'!$A15 -> 4.2 | B15: =1+5/(4*'c'!B15)+7/(8*'c'!B15^2)+1/('c'!B15^3) -> 1.296313154 | C15: =1+5/(4*'c'!C15)+7/(8*'c'!C15^2)+1/('c'!C15^3) -> 1.293 | D15: =1+5/(4*'c'!D15)+7/(8*'c'!D15^2)+1/('c'!D15^3) -> 1.289759961 | E15: =1+5/(4*'c'!E15)+7/(8*'c'!E15^2)+1/('c'!E15^3) -> 1.286590654 | F15: =1+5/(4*'c'!F15)+7/(8*'c'!F15^2)+1/('c'!F15^3) -> 1.283489798 | G15: =1+5/(4*'c'!G15)+7/(8*'c'!G15^2)+1/('c'!G15^3) -> 1.280455206 | H15: =1+5/(4*'c'!H15)+7/(8*'c'!H15^2)+1/('c'!H15^3) -> 1.277484786 | I15: =1+5/(4*'c'!I15)+7/(8*'c'!I15^2)+1/('c'!I15^3) -> 1.274576531 | J15: =1+5/(4*'c'!J15)+7/(8*'c'!J15^2)+1/('c'!J15^3) -> 1.271728516 | K15: =1+5/(4*'c'!K15)+7/(8*'c'!K15^2)+1/('c'!K15^3) -> 1.268938895 | L15: =1+5/(4*'c'!L15)+7/(8*'c'!L15^2)+1/('c'!L15^3) -> 1.266205897 | M15: =1+5/(4*'c'!M15)+7/(8*'c'!M15^2)+1/('c'!M15^3) -> 1.263527821 | N15: =1+5/(4*'c'!N15)+7/(8*'c'!N15^2)+1/('c'!N15^3) -> 1.260903033 | O15: =1+5/(4*'c'!O15)+7/(8*'c'!O15^2)+1/('c'!O15^3) -> 1.258329962 | P15: =1+5/(4*'c'!P15)+7/(8*'c'!P15^2)+1/('c'!P15^3) -> 1.255807099 | Q15: =1+5/(4*'c'!Q15)+7/(8*'c'!Q15^2)+1/('c'!Q15^3) -> 1.253332994 | R15: =1+5/(4*'c'!R15)+7/(8*'c'!R15^2)+1/('c'!R15^3) -> 1.25090625 | S15: =1+5/(4*'c'!S15)+7/(8*'c'!S15^2)+1/('c'!S15^3) -> 1.248525524 | T15: =1+5/(4*'c'!T15)+7/(8*'c'!T15^2)+1/('c'!T15^3) -> 1.246189521 | U15: =1+5/(4*'c'!U15)+7/(8*'c'!U15^2)+1/('c'!U15^3) -> 1.243896998 | V15: =1+5/(4*'c'!V15)+7/(8*'c'!V15^2)+1/('c'!V15^3) -> 1.241646754 | W15: =1+5/(4*'c'!W15)+7/(8*'c'!W15^2)+1/('c'!W15^3) -> 1.239437632 | X15: =1+5/(4*'c'!X15)+7/(8*'c'!X15^2)+1/('c'!X15^3) -> 1.237268519 | Y15: =1+5/(4*'c'!Y15)+7/(8*'c'!Y15^2)+1/('c'!Y15^3) -> 1.235138338 | Z15: =1+5/(4*'c'!Z15)+7/(8*'c'!Z15^2)+1/('c'!Z15^3) -> 1.233046055 | AA15: =1+5/(4*'c'!AA15)+7/(8*'c'!AA15^2)+1/('c'!AA15^3) -> 1.230990667 | AB15: =1+5/(4*'c'!AB15)+7/(8*'c'!AB15^2)+1/('c'!AB15^3) -> 1.228971211 | AC15: =1+5/(4*'c'!AC15)+7/(8*'c'!AC15^2)+1/('c'!AC15^3) -> 1.226986752 | AD15: =1+5/(4*'c'!AD15)+7/(8*'c'!AD15^2)+1/('c'!AD15^3) -> 1.225036392 | AE15: =1+5/(4*'c'!AE15)+7/(8*'c'!AE15^2)+1/('c'!AE15^3) -> 1.223119259 | AF15: =1+5/(4*'c'!AF15)+7/(8*'c'!AF15^2)+1/('c'!AF15^3) -> 1.221234514 | AG15: =1+5/(4*'c'!AG15)+7/(8*'c'!AG15^2)+1/('c'!AG15^3) -> 1.219381344 | AH15: =1+5/(4*'c'!AH15)+7/(8*'c'!AH15^2)+1/('c'!AH15^3) -> 1.217558963 | AI15: =1+5/(4*'c'!AI15)+7/(8*'c'!AI15^2)+1/('c'!AI15^3) -> 1.215766612 | AJ15: =1+5/(4*'c'!AJ15)+7/(8*'c'!AJ15^2)+1/('c'!AJ15^3) -> 1.214003555 | AK15: =1+5/(4*'c'!AK15)+7/(8*'c'!AK15^2)+1/('c'!AK15^3) -> 1.21226908 | AL15: =1+5/(4*'c'!AL15)+7/(8*'c'!AL15^2)+1/('c'!AL15^3) -> 1.2105625 | AM15: =1+5/(4*'c'!AM15)+7/(8*'c'!AM15^2)+1/('c'!AM15^3) -> 1.208883147 | AN15: =1+5/(4*'c'!AN15)+7/(8*'c'!AN15^2)+1/('c'!AN15^3) -> 1.207230376 | AO15: =1+5/(4*'c'!AO15)+7/(8*'c'!AO15^2)+1/('c'!AO15^3) -> 1.205603562 | AP15: =1+5/(4*'c'!AP15)+7/(8*'c'!AP15^2)+1/('c'!AP15^3) -> 1.204002098 | AQ15: =1+5/(4*'c'!AQ15)+7/(8*'c'!AQ15^2)+1/('c'!AQ15^3) -> 1.202425397 | AR15: =1+5/(4*'c'!AR15)+7/(8*'c'!AR15^2)+1/('c'!AR15^3) -> 1.200872889 | AS15: =1+5/(4*'c'!AS15)+7/(8*'c'!AS15^2)+1/('c'!AS15^3) -> 1.199344023 | AT15: =1+5/(4*'c'!AT15)+7/(8*'c'!AT15^2)+1/('c'!AT15^3) -> 1.197838264 | AU15: =1+5/(4*'c'!AU15)+7/(8*'c'!AU15^2)+1/('c'!AU15^3) -> 1.19635509 | AV15: =1+5/(4*'c'!AV15)+7/(8*'c'!AV15^2)+1/('c'!AV15^3) -> 1.194894 | AW15: =1+5/(4*'c'!AW15)+7/(8*'c'!AW15^2)+1/('c'!AW15^3) -> 1.193454503 | AX15: =1+5/(4*'c'!AX15)+7/(8*'c'!AX15^2)+1/('c'!AX15^3) -> 1.192036125 | AY15: =1+5/(4*'c'!AY15)+7/(8*'c'!AY15^2)+1/('c'!AY15^3) -> 1.190638405 | AZ15: =1+5/(4*'c'!AZ15)+7/(8*'c'!AZ15^2)+1/('c'!AZ15^3) -> 1.189260894 | BA15: =1+5/(4*'c'!BA15)+7/(8*'c'!BA15^2)+1/('c'!BA15^3) -> 1.187903159 | BB15: =1+5/(4*'c'!BB15)+7/(8*'c'!BB15^2)+1/('c'!BB15^3) -> 1.186564776 | BC15: =1+5/(4*'c'!BC15)+7/(8*'c'!BC15^2)+1/('c'!BC15^3) -> 1.185245335 | BD15: =1+5/(4*'c'!BD15)+7/(8*'c'!BD15^2)+1/('c'!BD15^3) -> 1.183944437 | BE15: =1+5/(4*'c'!BE15)+7/(8*'c'!BE15^2)+1/('c'!BE15^3) -> 1.182661694 | BF15: =1+5/(4*'c'!BF15)+7/(8*'c'!BF15^2)+1/('c'!BF15^3) -> 1.181396729 | BG15: =1+5/(4*'c'!BG15)+7/(8*'c'!BG15^2)+1/('c'!BG15^3) -> 1.180149174 | BH15: =1+5/(4*'c'!BH15)+7/(8*'c'!BH15^2)+1/('c'!BH15^3) -> 1.178918673 | BI15: =1+5/(4*'c'!BI15)+7/(8*'c'!BI15^2)+1/('c'!BI15^3) -> 1.17770488 | BJ15: =1+5/(4*'c'!BJ15)+7/(8*'c'!BJ15^2)+1/('c'!BJ15^3) -> 1.176507455 | BK15: =1+5/(4*'c'!BK15)+7/(8*'c'!BK15^2)+1/('c'!BK15^3) -> 1.175326071 | BL15: =1+5/(4*'c'!BL15)+7/(8*'c'!BL15^2)+1/('c'!BL15^3) -> 1.174160406 | BM15: =1+5/(4*'c'!BM15)+7/(8*'c'!BM15^2)+1/('c'!BM15^3) -> 1.173010151 | BN15: =1+5/(4*'c'!BN15)+7/(8*'c'!BN15^2)+1/('c'!BN15^3) -> 1.171875 | BO15: =1+5/(4*'c'!BO15)+7/(8*'c'!BO15^2)+1/('c'!BO15^3) -> 1.170754659 | BP15: =1+5/(4*'c'!BP15)+7/(8*'c'!BP15^2)+1/('c'!BP15^3) -> 1.16964884 | BQ15: =1+5/(4*'c'!BQ15)+7/(8*'c'!BQ15^2)+1/('c'!BQ15^3) -> 1.168557262 | BR15: =1+5/(4*'c'!BR15)+7/(8*'c'!BR15^2)+1/('c'!BR15^3) -> 1.167479652 | BS15: =1+5/(4*'c'!BS15)+7/(8*'c'!BS15^2)+1/('c'!BS15^3) -> 1.166415744 | BT15: =1+5/(4*'c'!BT15)+7/(8*'c'!BT15^2)+1/('c'!BT15^3) -> 1.165365277 | BU15: =1+5/(4*'c'!BU15)+7/(8*'c'!BU15^2)+1/('c'!BU15^3) -> 1.164328 | BV15: =1+5/(4*'c'!BV15)+7/(8*'c'!BV15^2)+1/('c'!BV15^3) -> 1.163303665 | BW15: =1+5/(4*'c'!BW15)+7/(8*'c'!BW15^2)+1/('c'!BW15^3) -> 1.162292031 | BX15: =1+5/(4*'c'!BX15)+7/(8*'c'!BX15^2)+1/('c'!BX15^3) -> 1.161292864 | BY15: =1+5/(4*'c'!BY15)+7/(8*'c'!BY15^2)+1/('c'!BY15^3) -> 1.160305934 | BZ15: =1+5/(4*'c'!BZ15)+7/(8*'c'!BZ15^2)+1/('c'!BZ15^3) -> 1.159331019 | CA15: =1+5/(4*'c'!CA15)+7/(8*'c'!CA15^2)+1/('c'!CA15^3) -> 1.158367899 | CB15: =1+5/(4*'c'!CB15)+7/(8*'c'!CB15^2)+1/('c'!CB15^3) -> 1.157416363 | CC15: =1+5/(4*'c'!CC15)+7/(8*'c'!CC15^2)+1/('c'!CC15^3) -> 1.156476203 | CD15: =1+5/(4*'c'!CD15)+7/(8*'c'!CD15^2)+1/('c'!CD15^3) -> 1.155547215 | CE15: =1+5/(4*'c'!CE15)+7/(8*'c'!CE15^2)+1/('c'!CE15^3) -> 1.154629203 | CF15: =1+5/(4*'c'!CF15)+7/(8*'c'!CF15^2)+1/('c'!CF15^3) -> 1.153721971 | CG15: =1+5/(4*'c'!CG15)+7/(8*'c'!CG15^2)+1/('c'!CG15^3) -> 1.152825333 | CH15: =1+5/(4*'c'!CH15)+7/(8*'c'!CH15^2)+1/('c'!CH15^3) -> 1.151939102 | CI15: =1+5/(4*'c'!CI15)+7/(8*'c'!CI15^2)+1/('c'!CI15^3) -> 1.1510631
... 18 more rows

Sheet tau_k1
A1: tau_k <N/mm²> | B1: D | C1: tau_k = K* tau
A2: d | B2: ='c'!B$2 -> 25 | C2: ='c'!C$2 -> 25.2 | D2: ='c'!D$2 -> 25.4 | E2: ='c'!E$2 -> 25.6 | F2: ='c'!F$2 -> 25.8 | G2: ='c'!G$2 -> 26 | H2: ='c'!H$2 -> 26.2 | I2: ='c'!I$2 -> 26.4 | J2: ='c'!J$2 -> 26.6 | K2: ='c'!K$2 -> 26.8 | L2: ='c'!L$2 -> 27 | M2: ='c'!M$2 -> 27.2 | N2: ='c'!N$2 -> 27.4 | O2: ='c'!O$2 -> 27.6 | P2: ='c'!P$2 -> 27.8 | Q2: ='c'!Q$2 -> 28 | R2: ='c'!R$2 -> 28.2 | S2: ='c'!S$2 -> 28.4 | T2: ='c'!T$2 -> 28.6 | U2: ='c'!U$2 -> 28.8 | V2: ='c'!V$2 -> 29 | W2: ='c'!W$2 -> 29.2 | X2: ='c'!X$2 -> 29.4 | Y2: ='c'!Y$2 -> 29.6 | Z2: ='c'!Z$2 -> 29.8 | AA2: ='c'!AA$2 -> 30 | AB2: ='c'!AB$2 -> 30.2 | AC2: ='c'!AC$2 -> 30.4 | AD2: ='c'!AD$2 -> 30.6 | AE2: ='c'!AE$2 -> 30.8 | AF2: ='c'!AF$2 -> 31 | AG2: ='c'!AG$2 -> 31.2 | AH2: ='c'!AH$2 -> 31.4 | AI2: ='c'!AI$2 -> 31.6 | AJ2: ='c'!AJ$2 -> 31.8 | AK2: ='c'!AK$2 -> 32 | AL2: ='c'!AL$2 -> 32.2 | AM2: ='c'!AM$2 -> 32.4 | AN2: ='c'!AN$2 -> 32.6 | AO2: ='c'!AO$2 -> 32.8 | AP2: ='c'!AP$2 -> 33 | AQ2: ='c'!AQ$2 -> 33.2 | AR2: ='c'!AR$2 -> 33.4 | AS2: ='c'!AS$2 -> 33.6 | AT2: ='c'!AT$2 -> 33.8 | AU2: ='c'!AU$2 -> 34 | AV2: ='c'!AV$2 -> 34.2 | AW2: ='c'!AW$2 -> 34.4 | AX2: ='c'!AX$2 -> 34.6 | AY2: ='c'!AY$2 -> 34.8 | AZ2: ='c'!AZ$2 -> 35 | BA2: ='c'!BA$2 -> 35.2 | BB2: ='c'!BB$2 -> 35.4 | BC2: ='c'!BC$2 -> 35.6 | BD2: ='c'!BD$2 -> 35.8 | BE2: ='c'!BE$2 -> 36 | BF2: ='c'!BF$2 -> 36.2 | BG2: ='c'!BG$2 -> 36.4 | BH2: ='c'!BH$2 -> 36.6 | BI2: ='c'!BI$2 -> 36.8 | BJ2: ='c'!BJ$2 -> 37 | BK2: ='c'!BK$2 -> 37.2 | BL2: ='c'!BL$2 -> 37.4 | BM2: ='c'!BM$2 -> 37.6 | BN2: ='c'!BN$2 -> 37.8 | BO2: ='c'!BO$2 -> 38 | BP2: ='c'!BP$2 -> 38.2 | BQ2: ='c'!BQ$2 -> 38.4 | BR2: ='c'!BR$2 -> 38.6 | BS2: ='c'!BS$2 -> 38.8 | BT2: ='c'!BT$2 -> 39 | BU2: ='c'!BU$2 -> 39.2 | BV2: ='c'!BV$2 -> 39.4 | BW2: ='c'!BW$2 -> 39.6 | BX2: ='c'!BX$2 -> 39.8 | BY2: ='c'!BY$2 -> 40 | BZ2: ='c'!BZ$2 -> 40.2 | CA2: ='c'!CA$2 -> 40.4 | CB2: ='c'!CB$2 -> 40.6 | CC2: ='c'!CC$2 -> 40.8 | CD2: ='c'!CD$2 -> 41 | CE2: 34.2 | CF2: 34.4 | CG2: 34.6 | CH2: 34.8 | CI2: 35
A3: ='c'!$A3 -> 3 | B3: ='tau1'!B3*K!B3 -> 2056.676552 | C3: ='tau1'!C3*K!C3 -> 2073.830942 | D3: ='tau1'!D3*K!D3 -> 2091.021217 | E3: ='tau1'!E3*K!E3 -> 2108.247272 | F3: ='tau1'!F3*K!F3 -> 2125.509014 | G3: ='tau1'!G3*K!G3 -> 2142.806353 | H3: ='tau1'!H3*K!H3 -> 2160.139206 | I3: ='tau1'!I3*K!I3 -> 2177.507498 | J3: ='tau1'!J3*K!J3 -> 2194.911158 | K3: ='tau1'!K3*K!K3 -> 2212.350122 | L3: ='tau1'!L3*K!L3 -> 2229.824331 | M3: ='tau1'!M3*K!M3 -> 2247.33373 | N3: ='tau1'!N3*K!N3 -> 2264.878272 | O3: ='tau1'!O3*K!O3 -> 2282.457912 | P3: ='tau1'!P3*K!P3 -> 2300.07261 | Q3: ='tau1'!Q3*K!Q3 -> 2317.722331 | R3: ='tau1'!R3*K!R3 -> 2335.407045 | S3: ='tau1'!S3*K!S3 -> 2353.126724 | T3: ='tau1'!T3*K!T3 -> 2370.881346 | U3: ='tau1'!U3*K!U3 -> 2388.670892 | V3: ='tau1'!V3*K!V3 -> 2406.495345 | W3: ='tau1'!W3*K!W3 -> 2424.354694 | X3: ='tau1'!X3*K!X3 -> 2442.24893 | Y3: ='tau1'!Y3*K!Y3 -> 2460.178047 | Z3: ='tau1'!Z3*K!Z3 -> 2478.142044 | AA3: ='tau1'!AA3*K!AA3 -> 2496.14092 | AB3: ='tau1'!AB3*K!AB3 -> 2514.174679 | AC3: ='tau1'!AC3*K!AC3 -> 2532.243327 | AD3: ='tau1'!AD3*K!AD3 -> 2550.346874 | AE3: ='tau1'!AE3*K!AE3 -> 2568.48533 | AF3: ='tau1'!AF3*K!AF3 -> 2586.65871 | AG3: ='tau1'!AG3*K!AG3 -> 2604.867029 | AH3: ='tau1'!AH3*K!AH3 -> 2623.110308 | AI3: ='tau1'!AI3*K!AI3 -> 2641.388567 | AJ3: ='tau1'!AJ3*K!AJ3 -> 2659.701829 | AK3: ='tau1'!AK3*K!AK3 -> 2678.050119 | AL3: ='tau1'!AL3*K!AL3 -> 2696.433466 | AM3: ='tau1'!AM3*K!AM3 -> 2714.851898 | AN3: ='tau1'!AN3*K!AN3 -> 2733.305447 | AO3: ='tau1'!AO3*K!AO3 -> 2751.794147 | AP3: ='tau1'!AP3*K!AP3 -> 2770.318032 | AQ3: ='tau1'!AQ3*K!AQ3 -> 2788.877138 | AR3: ='tau1'!AR3*K!AR3 -> 2807.471506 | AS3: ='tau1'!AS3*K!AS3 -> 2826.101175 | AT3: ='tau1'!AT3*K!AT3 -> 2844.766187 | AU3: ='tau1'!AU3*K!AU3 -> 2863.466586 | AV3: ='tau1'!AV3*K!AV3 -> 2882.202416 | AW3: ='tau1'!AW3*K!AW3 -> 2900.973724 | AX3: ='tau1'!AX3*K!AX3 -> 2919.780558 | AY3: ='tau1'!AY3*K!AY3 -> 2938.622968 | AZ3: ='tau1'!AZ3*K!AZ3 -> 2957.501005 | BA3: ='tau1'!BA3*K!BA3 -> 2976.41472 | BB3: ='tau1'!BB3*K!BB3 -> 2995.364167 | BC3: ='tau1'!BC3*K!BC3 -> 3014.349401 | BD3: ='tau1'!BD3*K!BD3 -> 3033.370478 | BE3: ='tau1'!BE3*K!BE3 -> 3052.427455 | BF3: ='tau1'!BF3*K!BF3 -> 3071.520392 | BG3: ='tau1'!BG3*K!BG3 -> 3090.649347 | BH3: ='tau1'!BH3*K!BH3 -> 3109.814381 | BI3: ='tau1'!BI3*K!BI3 -> 3129.015556 | BJ3: ='tau1'!BJ3*K!BJ3 -> 3148.252936 | BK3: ='tau1'!BK3*K!BK3 -> 3167.526585 | BL3: ='tau1'!BL3*K!BL3 -> 3186.836567 | BM3: ='tau1'!BM3*K!BM3 -> 3206.18295 | BN3: ='tau1'!BN3*K!BN3 -> 3225.5658 | BO3: ='tau1'!BO3*K!BO3 -> 3244.985185 | BP3: ='tau1'!BP3*K!BP3 -> 3264.441176 | BQ3: ='tau1'!BQ3*K!BQ3 -> 3283.933842 | BR3: ='tau1'!BR3*K!BR3 -> 3303.463254 | BS3: ='tau1'!BS3*K!BS3 -> 3323.029484 | BT3: ='tau1'!BT3*K!BT3 -> 3342.632606 | BU3: ='tau1'!BU3*K!BU3 -> 3362.272693 | BV3: ='tau1'!BV3*K!BV3 -> 3381.949821 | BW3: ='tau1'!BW3*K!BW3 -> 3401.664065 | BX3: ='tau1'!BX3*K!BX3 -> 3421.415501 | BY3: ='tau1'!BY3*K!BY3 -> 3441.204207 | BZ3: ='tau1'!BZ3*K!BZ3 -> 3461.030261 | CA3: ='tau1'!CA3*K!CA3 -> 3480.893743 | CB3: ='tau1'!CB3*K!CB3 -> 3500.794731 | CC3: ='tau1'!CC3*K!CC3 -> 3520.733307 | CD3: ='tau1'!CD3*K!CD3 -> 3540.709553 | CE3: ='tau1'!CE3*K!CE3 -> 3560.723549 | CF3: ='tau1'!CF3*K!CF3 -> 3580.775381 | CG3: ='tau1'!CG3*K!CG3 -> 3600.86513 | CH3: ='tau1'!CH3*K!CH3 -> 3620.992882 | CI3: ='tau1'!CI3*K!CI3 -> 3641.158722
A4: ='c'!$A4 -> 3.1 | B4: ='tau1'!B4*K!B4 -> 1868.079581 | C4: ='tau1'!C4*K!C4 -> 1883.604049 | D4: ='tau1'!D4*K!D4 -> 1899.161573 | E4: ='tau1'!E4*K!E4 -> 1914.752044 | F4: ='tau1'!F4*K!F4 -> 1930.37536 | G4: ='tau1'!G4*K!G4 -> 1946.031424 | H4: ='tau1'!H4*K!H4 -> 1961.720147 | I4: ='tau1'!I4*K!I4 -> 1977.441446 | J4: ='tau1'!J4*K!J4 -> 1993.195243 | K4: ='tau1'!K4*K!K4 -> 2008.981467 | L4: ='tau1'!L4*K!L4 -> 2024.800052 | M4: ='tau1'!M4*K!M4 -> 2040.650937 | N4: ='tau1'!N4*K!N4 -> 2056.534066 | O4: ='tau1'!O4*K!O4 -> 2072.449387 | P4: ='tau1'!P4*K!P4 -> 2088.396854 | Q4: ='tau1'!Q4*K!Q4 -> 2104.376424 | R4: ='tau1'!R4*K!R4 -> 2120.388061 | S4: ='tau1'!S4*K!S4 -> 2136.431729 | T4: ='tau1'!T4*K!T4 -> 2152.507398 | U4: ='tau1'!U4*K!U4 -> 2168.615043 | V4: ='tau1'!V4*K!V4 -> 2184.75464 | W4: ='tau1'!W4*K!W4 -> 2200.926171 | X4: ='tau1'!X4*K!X4 -> 2217.129618 | Y4: ='tau1'!Y4*K!Y4 -> 2233.36497 | Z4: ='tau1'!Z4*K!Z4 -> 2249.632216 | AA4: ='tau1'!AA4*K!AA4 -> 2265.93135 | AB4: ='tau1'!AB4*K!AB4 -> 2282.262368 | AC4: ='tau1'!AC4*K!AC4 -> 2298.625269 | AD4: ='tau1'!AD4*K!AD4 -> 2315.020054 | AE4: ='tau1'!AE4*K!AE4 -> 2331.446727 | AF4: ='tau1'!AF4*K!AF4 -> 2347.905295 | AG4: ='tau1'!AG4*K!AG4 -> 2364.395767 | AH4: ='tau1'!AH4*K!AH4 -> 2380.918155 | AI4: ='tau1'!AI4*K!AI4 -> 2397.472471 | AJ4: ='tau1'!AJ4*K!AJ4 -> 2414.058732 | AK4: ='tau1'!AK4*K!AK4 -> 2430.676954 | AL4: ='tau1'!AL4*K!AL4 -> 2447.327159 | AM4: ='tau1'!AM4*K!AM4 -> 2464.009368 | AN4: ='tau1'!AN4*K!AN4 -> 2480.723605 | AO4: ='tau1'!AO4*K!AO4 -> 2497.469894 | AP4: ='tau1'!AP4*K!AP4 -> 2514.248264 | AQ4: ='tau1'!AQ4*K!AQ4 -> 2531.058744 | AR4: ='tau1'!AR4*K!AR4 -> 2547.901365 | AS4: ='tau1'!AS4*K!AS4 -> 2564.776158 | AT4: ='tau1'!AT4*K!AT4 -> 2581.683158 | AU4: ='tau1'!AU4*K!AU4 -> 2598.622401 | AV4: ='tau1'!AV4*K!AV4 -> 2615.593924 | AW4: ='tau1'!AW4*K!AW4 -> 2632.597765 | AX4: ='tau1'!AX4*K!AX4 -> 2649.633964 | AY4: ='tau1'!AY4*K!AY4 -> 2666.702563 | AZ4: ='tau1'!AZ4*K!AZ4 -> 2683.803604 | BA4: ='tau1'!BA4*K!BA4 -> 2700.937132 | BB4: ='tau1'!BB4*K!BB4 -> 2718.103192 | BC4: ='tau1'!BC4*K!BC4 -> 2735.301831 | BD4: ='tau1'!BD4*K!BD4 -> 2752.533096 | BE4: ='tau1'!BE4*K!BE4 -> 2769.797036 | BF4: ='tau1'!BF4*K!BF4 -> 2787.093703 | BG4: ='tau1'!BG4*K!BG4 -> 2804.423146 | BH4: ='tau1'!BH4*K!BH4 -> 2821.785419 | BI4: ='tau1'!BI4*K!BI4 -> 2839.180575 | BJ4: ='tau1'!BJ4*K!BJ4 -> 2856.60867 | BK4: ='tau1'!BK4*K!BK4 -> 2874.069757 | BL4: ='tau1'!BL4*K!BL4 -> 2891.563896 | BM4: ='tau1'!BM4*K!BM4 -> 2909.091142 | BN4: ='tau1'!BN4*K!BN4 -> 2926.651555 | BO4: ='tau1'!BO4*K!BO4 -> 2944.245195 | BP4: ='tau1'!BP4*K!BP4 -> 2961.872122 | BQ4: ='tau1'!BQ4*K!BQ4 -> 2979.532398 | BR4: ='tau1'!BR4*K!BR4 -> 2997.226085 | BS4: ='tau1'!BS4*K!BS4 -> 3014.953247 | BT4: ='tau1'!BT4*K!BT4 -> 3032.713947 | BU4: ='tau1'!BU4*K!BU4 -> 3050.508252 | BV4: ='tau1'!BV4*K!BV4 -> 3068.336227 | BW4: ='tau1'!BW4*K!BW4 -> 3086.197939 | BX4: ='tau1'!BX4*K!BX4 -> 3104.093455 | BY4: ='tau1'!BY4*K!BY4 -> 3122.022844 | BZ4: ='tau1'!BZ4*K!BZ4 -> 3139.986175 | CA4: ='tau1'!CA4*K!CA4 -> 3157.983518 | CB4: ='tau1'!CB4*K!CB4 -> 3176.014945 | CC4: ='tau1'!CC4*K!CC4 -> 3194.080525 | CD4: ='tau1'!CD4*K!CD4 -> 3212.180333 | CE4: ='tau1'!CE4*K!CE4 -> 3230.314441 | CF4: ='tau1'!CF4*K!CF4 -> 3248.482923 | CG4: ='tau1'!CG4*K!CG4 -> 3266.685852 | CH4: ='tau1'!CH4*K!CH4 -> 3284.923306 | CI4: ='tau1'!CI4*K!CI4 -> 3303.195358
A5: ='c'!$A5 -> 3.2 | B5: ='tau1'!B5*K!B5 -> 1702.17693 | C5: ='tau1'!C5*K!C5 -> 1716.268923 | D5: ='tau1'!D5*K!D5 -> 1730.391489 | E5: ='tau1'!E5*K!E5 -> 1744.544513 | F5: ='tau1'!F5*K!F5 -> 1758.727886 | G5: ='tau1'!G5*K!G5 -> 1772.941504 | H5: ='tau1'!H5*K!H5 -> 1787.185272 | I5: ='tau1'!I5*K!I5 -> 1801.459101 | J5: ='tau1'!J5*K!J5 -> 1815.762906 | K5: ='tau1'!K5*K!K5 -> 1830.096611 | L5: ='tau1'!L5*K!L5 -> 1844.460141 | M5: ='tau1'!M5*K!M5 -> 1858.853431 | N5: ='tau1'!N5*K!N5 -> 1873.276417 | O5: ='tau1'!O5*K!O5 -> 1887.729043 | P5: ='tau1'!P5*K!P5 -> 1902.211255 | Q5: ='tau1'!Q5*K!Q5 -> 1916.723004 | R5: ='tau1'!R5*K!R5 -> 1931.264247 | S5: ='tau1'!S5*K!S5 -> 1945.834942 | T5: ='tau1'!T5*K!T5 -> 1960.435054 | U5: ='tau1'!U5*K!U5 -> 1975.06455 | V5: ='tau1'!V5*K!V5 -> 1989.7234 | W5: ='tau1'!W5*K!W5 -> 2004.411579 | X5: ='tau1'!X5*K!X5 -> 2019.129064 | Y5: ='tau1'!Y5*K!Y5 -> 2033.875837 | Z5: ='tau1'!Z5*K!Z5 -> 2048.65188 | AA5: ='tau1'!AA5*K!AA5 -> 2063.457181 | AB5: ='tau1'!AB5*K!AB5 -> 2078.291729 | AC5: ='tau1'!AC5*K!AC5 -> 2093.155518 | AD5: ='tau1'!AD5*K!AD5 -> 2108.04854 | AE5: ='tau1'!AE5*K!AE5 -> 2122.970795 | AF5: ='tau1'!AF5*K!AF5 -> 2137.922282 | AG5: ='tau1'!AG5*K!AG5 -> 2152.903004 | AH5: ='tau1'!AH5*K!AH5 -> 2167.912965 | AI5: ='tau1'!AI5*K!AI5 -> 2182.952172 | AJ5: ='tau1'!AJ5*K!AJ5 -> 2198.020634 | AK5: ='tau1'!AK5*K!AK5 -> 2213.118363 | AL5: ='tau1'!AL5*K!AL5 -> 2228.245371 | AM5: ='tau1'!AM5*K!AM5 -> 2243.401674 | AN5: ='tau1'!AN5*K!AN5 -> 2258.587288 | AO5: ='tau1'!AO5*K!AO5 -> 2273.802232 | AP5: ='tau1'!AP5*K!AP5 -> 2289.046528 | AQ5: ='tau1'!AQ5*K!AQ5 -> 2304.320196 | AR5: ='tau1'!AR5*K!AR5 -> 2319.623262 | AS5: ='tau1'!AS5*K!AS5 -> 2334.95575 | AT5: ='tau1'!AT5*K!AT5 -> 2350.317688 | AU5: ='tau1'!AU5*K!AU5 -> 2365.709104 | AV5: ='tau1'!AV5*K!AV5 -> 2381.130029 | AW5: ='tau1'!AW5*K!AW5 -> 2396.580494 | AX5: ='tau1'!AX5*K!AX5 -> 2412.060532 | AY5: ='tau1'!AY5*K!AY5 -> 2427.570177 | AZ5: ='tau1'!AZ5*K!AZ5 -> 2443.109465 | BA5: ='tau1'!BA5*K!BA5 -> 2458.678434 | BB5: ='tau1'!BB5*K!BB5 -> 2474.277121 | BC5: ='tau1'!BC5*K!BC5 -> 2489.905565 | BD5: ='tau1'!BD5*K!BD5 -> 2505.563808 | BE5: ='tau1'!BE5*K!BE5 -> 2521.251892 | BF5: ='tau1'!BF5*K!BF5 -> 2536.969858 | BG5: ='tau1'!BG5*K!BG5 -> 2552.717752 | BH5: ='tau1'!BH5*K!BH5 -> 2568.495618 | BI5: ='tau1'!BI5*K!BI5 -> 2584.303503 | BJ5: ='tau1'!BJ5*K!BJ5 -> 2600.141454 | BK5: ='tau1'!BK5*K!BK5 -> 2616.009519 | BL5: ='tau1'!BL5*K!BL5 -> 2631.907748 | BM5: ='tau1'!BM5*K!BM5 -> 2647.836191 | BN5: ='tau1'!BN5*K!BN5 -> 2663.794898 | BO5: ='tau1'!BO5*K!BO5 -> 2679.783923 | BP5: ='tau1'!BP5*K!BP5 -> 2695.803318 | BQ5: ='tau1'!BQ5*K!BQ5 -> 2711.853138 | BR5: ='tau1'!BR5*K!BR5 -> 2727.933436 | BS5: ='tau1'!BS5*K!BS5 -> 2744.044269 | BT5: ='tau1'!BT5*K!BT5 -> 2760.185694 | BU5: ='tau1'!BU5*K!BU5 -> 2776.357768 | BV5: ='tau1'!BV5*K!BV5 -> 2792.560548 | BW5: ='tau1'!BW5*K!BW5 -> 2808.794094 | BX5: ='tau1'!BX5*K!BX5 -> 2825.058467 | BY5: ='tau1'!BY5*K!BY5 -> 2841.353725 | BZ5: ='tau1'!BZ5*K!BZ5 -> 2857.679931 | CA5: ='tau1'!CA5*K!CA5 -> 2874.037148 | CB5: ='tau1'!CB5*K!CB5 -> 2890.425437 | CC5: ='tau1'!CC5*K!CC5 -> 2906.844862 | CD5: ='tau1'!CD5*K!CD5 -> 2923.295487 | CE5: ='tau1'!CE5*K!CE5 -> 2939.777378 | CF5: ='tau1'!CF5*K!CF5 -> 2956.290601 | CG5: ='tau1'!CG5*K!CG5 -> 2972.835221 | CH5: ='tau1'!CH5*K!CH5 -> 2989.411306 | CI5: ='tau1'!CI5*K!CI5 -> 3006.018923
A6: ='c'!$A6 -> 3.3 | B6: ='tau1'!B6*K!B6 -> 1555.646743 | C6: ='tau1'!C6*K!C6 -> 1568.474685 | D6: ='tau1'!D6*K!D6 -> 1581.331011 | E6: ='tau1'!E6*K!E6 -> 1594.2156 | F6: ='tau1'!F6*K!F6 -> 1607.128336 | G6: ='tau1'!G6*K!G6 -> 1620.069111 | H6: ='tau1'!H6*K!H6 -> 1633.037823 | I6: ='tau1'!I6*K!I6 -> 1646.034377 | J6: ='tau1'!J6*K!J6 -> 1659.058684 | K6: ='tau1'!K6*K!K6 -> 1672.110659 | L6: ='tau1'!L6*K!L6 -> 1685.190226 | M6: ='tau1'!M6*K!M6 -> 1698.297309 | N6: ='tau1'!N6*K!N6 -> 1711.431843 | O6: ='tau1'!O6*K!O6 -> 1724.593763 | P6: ='tau1'!P6*K!P6 -> 1737.783011 | Q6: ='tau1'!Q6*K!Q6 -> 1750.999532 | R6: ='tau1'!R6*K!R6 -> 1764.243276 | S6: ='tau1'!S6*K!S6 -> 1777.514198 | T6: ='tau1'!T6*K!T6 -> 1790.812255 | U6: ='tau1'!U6*K!U6 -> 1804.137409 | V6: ='tau1'!V6*K!V6 -> 1817.489624 | W6: ='tau1'!W6*K!W6 -> 1830.86887 | X6: ='tau1'!X6*K!X6 -> 1844.275119 | Y6: ='tau1'!Y6*K!Y6 -> 1857.708344 | Z6: ='tau1'!Z6*K!Z6 -> 1871.168526 | AA6: ='tau1'!AA6*K!AA6 -> 1884.655643 | AB6: ='tau1'!AB6*K!AB6 -> 1898.169681 | AC6: ='tau1'!AC6*K!AC6 -> 1911.710626 | AD6: ='tau1'!AD6*K!AD6 -> 1925.278466 | AE6: ='tau1'!AE6*K!AE6 -> 1938.873195 | AF6: ='tau1'!AF6*K!AF6 -> 1952.494805 | AG6: ='tau1'!AG6*K!AG6 -> 1966.143294 | AH6: ='tau1'!AH6*K!AH6 -> 1979.81866 | AI6: ='tau1'!AI6*K!AI6 -> 1993.520905 | AJ6: ='tau1'!AJ6*K!AJ6 -> 2007.250031 | AK6: ='tau1'!AK6*K!AK6 -> 2021.006043 | AL6: ='tau1'!AL6*K!AL6 -> 2034.78895 | AM6: ='tau1'!AM6*K!AM6 -> 2048.598759 | AN6: ='tau1'!AN6*K!AN6 -> 2062.435483 | AO6: ='tau1'!AO6*K!AO6 -> 2076.299133 | AP6: ='tau1'!AP6*K!AP6 -> 2090.189724 | AQ6: ='tau1'!AQ6*K!AQ6 -> 2104.107273 | AR6: ='tau1'!AR6*K!AR6 -> 2118.051797 | AS6: ='tau1'!AS6*K!AS6 -> 2132.023316 | AT6: ='tau1'!AT6*K!AT6 -> 2146.021851 | AU6: ='tau1'!AU6*K!AU6 -> 2160.047424 | AV6: ='tau1'!AV6*K!AV6 -> 2174.10006 | AW6: ='tau1'!AW6*K!AW6 -> 2188.179783 | AX6: ='tau1'!AX6*K!AX6 -> 2202.28662 | AY6: ='tau1'!AY6*K!AY6 -> 2216.4206 | AZ6: ='tau1'!AZ6*K!AZ6 -> 2230.581752 | BA6: ='tau1'!BA6*K!BA6 -> 2244.770107 | BB6: ='tau1'!BB6*K!BB6 -> 2258.985696 | BC6: ='tau1'!BC6*K!BC6 -> 2273.228553 | BD6: ='tau1'!BD6*K!BD6 -> 2287.498712 | BE6: ='tau1'!BE6*K!BE6 -> 2301.796208 | BF6: ='tau1'!BF6*K!BF6 -> 2316.121078 | BG6: ='tau1'!BG6*K!BG6 -> 2330.47336 | BH6: ='tau1'!BH6*K!BH6 -> 2344.853092 | BI6: ='tau1'!BI6*K!BI6 -> 2359.260314 | BJ6: ='tau1'!BJ6*K!BJ6 -> 2373.695066 | BK6: ='tau1'!BK6*K!BK6 -> 2388.157392 | BL6: ='tau1'!BL6*K!BL6 -> 2402.647332 | BM6: ='tau1'!BM6*K!BM6 -> 2417.164932 | BN6: ='tau1'!BN6*K!BN6 -> 2431.710235 | BO6: ='tau1'!BO6*K!BO6 -> 2446.283287 | BP6: ='tau1'!BP6*K!BP6 -> 2460.884134 | BQ6: ='tau1'!BQ6*K!BQ6 -> 2475.512824 | BR6: ='tau1'!BR6*K!BR6 -> 2490.169405 | BS6: ='tau1'!BS6*K!BS6 -> 2504.853925 | BT6: ='tau1'!BT6*K!BT6 -> 2519.566435 | BU6: ='tau1'!BU6*K!BU6 -> 2534.306985 | BV6: ='tau1'!BV6*K!BV6 -> 2549.075626 | BW6: ='tau1'!BW6*K!BW6 -> 2563.872411 | BX6: ='tau1'!BX6*K!BX6 -> 2578.697392 | BY6: ='tau1'!BY6*K!BY6 -> 2593.550623 | BZ6: ='tau1'!BZ6*K!BZ6 -> 2608.432159 | CA6: ='tau1'!CA6*K!CA6 -> 2623.342055 | CB6: ='tau1'!CB6*K!CB6 -> 2638.280365 | CC6: ='tau1'!CC6*K!CC6 -> 2653.247148 | CD6: ='tau1'!CD6*K!CD6 -> 2668.24246 | CE6: ='tau1'!CE6*K!CE6 -> 2683.266359 | CF6: ='tau1'!CF6*K!CF6 -> 2698.318903 | CG6: ='tau1'!CG6*K!CG6 -> 2713.400152 | CH6: ='tau1'!CH6*K!CH6 -> 2728.510166 | CI6: ='tau1'!CI6*K!CI6 -> 2743.649006
A7: ='c'!$A7 -> 3.4 | B7: ='tau1'!B7*K!B7 -> 1425.734705 | C7: ='tau1'!C7*K!C7 -> 1437.442966 | D7: ='tau1'!D7*K!D7 -> 1449.177674 | E7: ='tau1'!E7*K!E7 -> 1460.938701 | F7: ='tau1'!F7*K!F7 -> 1472.725929 | G7: ='tau1'!G7*K!G7 -> 1484.539242 | H7: ='tau1'!H7*K!H7 -> 1496.378535 | I7: ='tau1'!I7*K!I7 -> 1508.243706 | J7: ='tau1'!J7*K!J7 -> 1520.134661 | K7: ='tau1'!K7*K!K7 -> 1532.05131 | L7: ='tau1'!L7*K!L7 -> 1543.993571 | M7: ='tau1'!M7*K!M7 -> 1555.961365 | N7: ='tau1'!N7*K!N7 -> 1567.954619 | O7: ='tau1'!O7*K!O7 -> 1579.973265 | P7: ='tau1'!P7*K!P7 -> 1592.017239 | Q7: ='tau1'!Q7*K!Q7 -> 1604.086481 | R7: ='tau1'!R7*K!R7 -> 1616.180936 | S7: ='tau1'!S7*K!S7 -> 1628.300553 | T7: ='tau1'!T7*K!T7 -> 1640.445285 | U7: ='tau1'!U7*K!U7 -> 1652.615089 | V7: ='tau1'!V7*K!V7 -> 1664.809923 | W7: ='tau1'!W7*K!W7 -> 1677.029752 | X7: ='tau1'!X7*K!X7 -> 1689.274543 | Y7: ='tau1'!Y7*K!Y7 -> 1701.544265 | Z7: ='tau1'!Z7*K!Z7 -> 1713.838891 | AA7: ='tau1'!AA7*K!AA7 -> 1726.158398 | AB7: ='tau1'!AB7*K!AB7 -> 1738.502763 | AC7: ='tau1'!AC7*K!AC7 -> 1750.871968 | AD7: ='tau1'!AD7*K!AD7 -> 1763.265998 | AE7: ='tau1'!AE7*K!AE7 -> 1775.684838 | AF7: ='tau1'!AF7*K!AF7 -> 1788.128478 | AG7: ='tau1'!AG7*K!AG7 -> 1800.596909 | AH7: ='tau1'!AH7*K!AH7 -> 1813.090125 | AI7: ='tau1'!AI7*K!AI7 -> 1825.608122 | AJ7: ='tau1'!AJ7*K!AJ7 -> 1838.150896 | AK7: ='tau1'!AK7*K!AK7 -> 1850.718449 | AL7: ='tau1'!AL7*K!AL7 -> 1863.310783 | AM7: ='tau1'!AM7*K!AM7 -> 1875.9279 | AN7: ='tau1'!AN7*K!AN7 -> 1888.569807 | AO7: ='tau1'!AO7*K!AO7 -> 1901.236511 | AP7: ='tau1'!AP7*K!AP7 -> 1913.928021 | AQ7: ='tau1'!AQ7*K!AQ7 -> 1926.644348 | AR7: ='tau1'!AR7*K!AR7 -> 1939.385505 | AS7: ='tau1'!AS7*K!AS7 -> 1952.151505 | AT7: ='tau1'!AT7*K!AT7 -> 1964.942365 | AU7: ='tau1'!AU7*K!AU7 -> 1977.758101 | AV7: ='tau1'!AV7*K!AV7 -> 1990.598732 | AW7: ='tau1'!AW7*K!AW7 -> 2003.464277 | AX7: ='tau1'!AX7*K!AX7 -> 2016.354758 | AY7: ='tau1'!AY7*K!AY7 -> 2029.270198 | AZ7: ='tau1'!AZ7*K!AZ7 -> 2042.21062 | BA7: ='tau1'!BA7*K!BA7 -> 2055.17605 | BB7: ='tau1'!BB7*K!BB7 -> 2068.166513 | BC7: ='tau1'!BC7*K!BC7 -> 2081.182037 | BD7: ='tau1'!BD7*K!BD7 -> 2094.222651 | BE7: ='tau1'!BE7*K!BE7 -> 2107.288385 | BF7: ='tau1'!BF7*K!BF7 -> 2120.37927 | BG7: ='tau1'!BG7*K!BG7 -> 2133.495337 | BH7: ='tau1'!BH7*K!BH7 -> 2146.636619 | BI7: ='tau1'!BI7*K!BI7 -> 2159.803151 | BJ7: ='tau1'!BJ7*K!BJ7 -> 2172.994967 | BK7: ='tau1'!BK7*K!BK7 -> 2186.212103 | BL7: ='tau1'!BL7*K!BL7 -> 2199.454597 | BM7: ='tau1'!BM7*K!BM7 -> 2212.722486 | BN7: ='tau1'!BN7*K!BN7 -> 2226.015808 | BO7: ='tau1'!BO7*K!BO7 -> 2239.334604 | BP7: ='tau1'!BP7*K!BP7 -> 2252.678913 | BQ7: ='tau1'!BQ7*K!BQ7 -> 2266.048778 | BR7: ='tau1'!BR7*K!BR7 -> 2279.44424 | BS7: ='tau1'!BS7*K!BS7 -> 2292.865342 | BT7: ='tau1'!BT7*K!BT7 -> 2306.312128 | BU7: ='tau1'!BU7*K!BU7 -> 2319.784642 | BV7: ='tau1'!BV7*K!BV7 -> 2333.282931 | BW7: ='tau1'!BW7*K!BW7 -> 2346.807039 | BX7: ='tau1'!BX7*K!BX7 -> 2360.357014 | BY7: ='tau1'!BY7*K!BY7 -> 2373.932902 | BZ7: ='tau1'!BZ7*K!BZ7 -> 2387.534754 | CA7: ='tau1'!CA7*K!CA7 -> 2401.162616 | CB7: ='tau1'!CB7*K!CB7 -> 2414.816539 | CC7: ='tau1'!CC7*K!CC7 -> 2428.496574 | CD7: ='tau1'!CD7*K!CD7 -> 2442.20277 | CE7: ='tau1'!CE7*K!CE7 -> 2455.935181 | CF7: ='tau1'!CF7*K!CF7 -> 2469.693857 | CG7: ='tau1'!CG7*K!CG7 -> 2483.478852 | CH7: ='tau1'!CH7*K!CH7 -> 2497.290219 | CI7: ='tau1'!CI7*K!CI7 -> 2511.128012
A8: ='c'!$A8 -> 3.5 | B8: ='tau1'!B8*K!B8 -> 1310.14399 | C8: ='tau1'!C8*K!C8 -> 1320.85689 | D8: ='tau1'!D8*K!D8 -> 1331.594518 | E8: ='tau1'!E8*K!E8 -> 1342.356742 | F8: ='tau1'!F8*K!F8 -> 1353.143437 | G8: ='tau1'!G8*K!G8 -> 1363.954484 | H8: ='tau1'!H8*K!H8 -> 1374.789772 | I8: ='tau1'!I8*K!I8 -> 1385.649194 | J8: ='tau1'!J8*K!J8 -> 1396.532651 | K8: ='tau1'!K8*K!K8 -> 1407.440049 | L8: ='tau1'!L8*K!L8 -> 1418.371302 | M8: ='tau1'!M8*K!M8 -> 1429.326324 | N8: ='tau1'!N8*K!N8 -> 1440.305039 | O8: ='tau1'!O8*K!O8 -> 1451.307373 | P8: ='tau1'!P8*K!P8 -> 1462.333258 | Q8: ='tau1'!Q8*K!Q8 -> 1473.38263 | R8: ='tau1'!R8*K!R8 -> 1484.455429 | S8: ='tau1'!S8*K!S8 -> 1495.5516 | T8: ='tau1'!T8*K!T8 -> 1506.671089 | U8: ='tau1'!U8*K!U8 -> 1517.81385 | V8: ='tau1'!V8*K!V8 -> 1528.979837 | W8: ='tau1'!W8*K!W8 -> 1540.169009 | X8: ='tau1'!X8*K!X8 -> 1551.381329 | Y8: ='tau1'!Y8*K!Y8 -> 1562.616762 | Z8: ='tau1'!Z8*K!Z8 -> 1573.875275 | AA8: ='tau1'!AA8*K!AA8 -> 1585.156841 | AB8: ='tau1'!AB8*K!AB8 -> 1596.461433 | AC8: ='tau1'!AC8*K!AC8 -> 1607.789028 | AD8: ='tau1'!AD8*K!AD8 -> 1619.139605 | AE8: ='tau1'!AE8*K!AE8 -> 1630.513147 | AF8: ='tau1'!AF8*K!AF8 -> 1641.909638 | AG8: ='tau1'!AG8*K!AG8 -> 1653.329063 | AH8: ='tau1'!AH8*K!AH8 -> 1664.771413 | AI8: ='tau1'!AI8*K!AI8 -> 1676.236679 | AJ8: ='tau1'!AJ8*K!AJ8 -> 1687.724853 | AK8: ='tau1'!AK8*K!AK8 -> 1699.23593 | AL8: ='tau1'!AL8*K!AL8 -> 1710.769909 | AM8: ='tau1'!AM8*K!AM8 -> 1722.326787 | AN8: ='tau1'!AN8*K!AN8 -> 1733.906566 | AO8: ='tau1'!AO8*K!AO8 -> 1745.509249 | AP8: ='tau1'!AP8*K!AP8 -> 1757.13484 | AQ8: ='tau1'!AQ8*K!AQ8 -> 1768.783344 | AR8: ='tau1'!AR8*K!AR8 -> 1780.454771 | AS8: ='tau1'!AS8*K!AS8 -> 1792.149128 | AT8: ='tau1'!AT8*K!AT8 -> 1803.866427 | AU8: ='tau1'!AU8*K!AU8 -> 1815.606679 | AV8: ='tau1'!AV8*K!AV8 -> 1827.369899 | AW8: ='tau1'!AW8*K!AW8 -> 1839.156101 | AX8: ='tau1'!AX8*K!AX8 -> 1850.965302 | AY8: ='tau1'!AY8*K!AY8 -> 1862.79752 | AZ8: ='tau1'!AZ8*K!AZ8 -> 1874.652773 | BA8: ='tau1'!BA8*K!BA8 -> 1886.531081 | BB8: ='tau1'!BB8*K!BB8 -> 1898.432465 | BC8: ='tau1'!BC8*K!BC8 -> 1910.356949 | BD8: ='tau1'!BD8*K!BD8 -> 1922.304556 | BE8: ='tau1'!BE8*K!BE8 -> 1934.275311 | BF8: ='tau1'!BF8*K!BF8 -> 1946.269239 | BG8: ='tau1'!BG8*K!BG8 -> 1958.286367 | BH8: ='tau1'!BH8*K!BH8 -> 1970.326723 | BI8: ='tau1'!BI8*K!BI8 -> 1982.390336 | BJ8: ='tau1'!BJ8*K!BJ8 -> 1994.477236 | BK8: ='tau1'!BK8*K!BK8 -> 2006.587453 | BL8: ='tau1'!BL8*K!BL8 -> 2018.72102 | BM8: ='tau1'!BM8*K!BM8 -> 2030.877969 | BN8: ='tau1'!BN8*K!BN8 -> 2043.058333 | BO8: ='tau1'!BO8*K!BO8 -> 2055.262146 | BP8: ='tau1'!BP8*K!BP8 -> 2067.489445 | BQ8: ='tau1'!BQ8*K!BQ8 -> 2079.740265 | BR8: ='tau1'!BR8*K!BR8 -> 2092.014642 | BS8: ='tau1'!BS8*K!BS8 -> 2104.312615 | BT8: ='tau1'!BT8*K!BT8 -> 2116.634221 | BU8: ='tau1'!BU8*K!BU8 -> 2128.979501 | BV8: ='tau1'!BV8*K!BV8 -> 2141.348494 | BW8: ='tau1'!BW8*K!BW8 -> 2153.741239 | BX8: ='tau1'!BX8*K!BX8 -> 2166.15778 | BY8: ='tau1'!BY8*K!BY8 -> 2178.598158 | BZ8: ='tau1'!BZ8*K!BZ8 -> 2191.062415 | CA8: ='tau1'!CA8*K!CA8 -> 2203.550596 | CB8: ='tau1'!CB8*K!CB8 -> 2216.062743 | CC8: ='tau1'!CC8*K!CC8 -> 2228.598903 | CD8: ='tau1'!CD8*K!CD8 -> 2241.159119 | CE8: ='tau1'!CE8*K!CE8 -> 2253.743439 | CF8: ='tau1'!CF8*K!CF8 -> 2266.351909 | CG8: ='tau1'!CG8*K!CG8 -> 2278.984576 | CH8: ='tau1'!CH8*K!CH8 -> 2291.641487 | CI8: ='tau1'!CI8*K!CI8 -> 2304.322692
A9: ='c'!$A9 -> 3.6 | B9: ='tau1'!B9*K!B9 -> 1206.948945 | C9: ='tau1'!C9*K!C9 -> 1216.774005 | D9: ='tau1'!D9*K!D9 -> 1226.622264 | E9: ='tau1'!E9*K!E9 -> 1236.493584 | F9: ='tau1'!F9*K!F9 -> 1246.387835 | G9: ='tau1'!G9*K!G9 -> 1256.304895 | H9: ='tau1'!H9*K!H9 -> 1266.244646 | I9: ='tau1'!I9*K!I9 -> 1276.206978 | J9: ='tau1'!J9*K!J9 -> 1286.191788 | K9: ='tau1'!K9*K!K9 -> 1296.198978 | L9: ='tau1'!L9*K!L9 -> 1306.228454 | M9: ='tau1'!M9*K!M9 -> 1316.28013 | N9: ='tau1'!N9*K!N9 -> 1326.353923 | O9: ='tau1'!O9*K!O9 -> 1336.449756 | P9: ='tau1'!P9*K!P9 -> 1346.567557 | Q9: ='tau1'!Q9*K!Q9 -> 1356.707256 | R9: ='tau1'!R9*K!R9 -> 1366.86879 | S9: ='tau1'!S9*K!S9 -> 1377.052098 | T9: ='tau1'!T9*K!T9 -> 1387.257126 | U9: ='tau1'!U9*K!U9 -> 1397.483819 | V9: ='tau1'!V9*K!V9 -> 1407.732129 | W9: ='tau1'!W9*K!W9 -> 1418.002012 | X9: ='tau1'!X9*K!X9 -> 1428.293424 | Y9: ='tau1'!Y9*K!Y9 -> 1438.606328 | Z9: ='tau1'!Z9*K!Z9 -> 1448.940686 | AA9: ='tau1'!AA9*K!AA9 -> 1459.296467 | AB9: ='tau1'!AB9*K!AB9 -> 1469.673639 | AC9: ='tau1'!AC9*K!AC9 -> 1480.072176 | AD9: ='tau1'!AD9*K!AD9 -> 1490.492053 | AE9: ='tau1'!AE9*K!AE9 -> 1500.933248 | AF9: ='tau1'!AF9*K!AF9 -> 1511.39574 | AG9: ='tau1'!AG9*K!AG9 -> 1521.879512 | AH9: ='tau1'!AH9*K!AH9 -> 1532.384548 | AI9: ='tau1'!AI9*K!AI9 -> 1542.910837 | AJ9: ='tau1'!AJ9*K!AJ9 -> 1553.458366 | AK9: ='tau1'!AK9*K!AK9 -> 1564.027126 | AL9: ='tau1'!AL9*K!AL9 -> 1574.617111 | AM9: ='tau1'!AM9*K!AM9 -> 1585.228316 | AN9: ='tau1'!AN9*K!AN9 -> 1595.860736 | AO9: ='tau1'!AO9*K!AO9 -> 1606.51437 | AP9: ='tau1'!AP9*K!AP9 -> 1617.189219 | AQ9: ='tau1'!AQ9*K!AQ9 -> 1627.885284 | AR9: ='tau1'!AR9*K!AR9 -> 1638.602569 | AS9: ='tau1'!AS9*K!AS9 -> 1649.341078 | AT9: ='tau1'!AT9*K!AT9 -> 1660.100818 | AU9: ='tau1'!AU9*K!AU9 -> 1670.881796 | AV9: ='tau1'!AV9*K!AV9 -> 1681.684023 | AW9: ='tau1'!AW9*K!AW9 -> 1692.507507 | AX9: ='tau1'!AX9*K!AX9 -> 1703.352263 | AY9: ='tau1'!AY9*K!AY9 -> 1714.218302 | AZ9: ='tau1'!AZ9*K!AZ9 -> 1725.105639 | BA9: ='tau1'!BA9*K!BA9 -> 1736.01429 | BB9: ='tau1'!BB9*K!BB9 -> 1746.944272 | BC9: ='tau1'!BC9*K!BC9 -> 1757.895602 | BD9: ='tau1'!BD9*K!BD9 -> 1768.868301 | BE9: ='tau1'!BE9*K!BE9 -> 1779.862387 | BF9: ='tau1'!BF9*K!BF9 -> 1790.877883 | BG9: ='tau1'!BG9*K!BG9 -> 1801.91481 | BH9: ='tau1'!BH9*K!BH9 -> 1812.973193 | BI9: ='tau1'!BI9*K!BI9 -> 1824.053055 | BJ9: ='tau1'!BJ9*K!BJ9 -> 1835.154421 | BK9: ='tau1'!BK9*K!BK9 -> 1846.277318 | BL9: ='tau1'!BL9*K!BL9 -> 1857.421773 | BM9: ='tau1'!BM9*K!BM9 -> 1868.587813 | BN9: ='tau1'!BN9*K!BN9 -> 1879.775468 | BO9: ='tau1'!BO9*K!BO9 -> 1890.984768 | BP9: ='tau1'!BP9*K!BP9 -> 1902.215742 | BQ9: ='tau1'!BQ9*K!BQ9 -> 1913.468422 | BR9: ='tau1'!BR9*K!BR9 -> 1924.74284 | BS9: ='tau1'!BS9*K!BS9 -> 1936.039029 | BT9: ='tau1'!BT9*K!BT9 -> 1947.357023 | BU9: ='tau1'!BU9*K!BU9 -> 1958.696856 | BV9: ='tau1'!BV9*K!BV9 -> 1970.058563 | BW9: ='tau1'!BW9*K!BW9 -> 1981.442179 | BX9: ='tau1'!BX9*K!BX9 -> 1992.847743 | BY9: ='tau1'!BY9*K!BY9 -> 2004.275289 | BZ9: ='tau1'!BZ9*K!BZ9 -> 2015.724858 | CA9: ='tau1'!CA9*K!CA9 -> 2027.196486 | CB9: ='tau1'!CB9*K!CB9 -> 2038.690213 | CC9: ='tau1'!CC9*K!CC9 -> 2050.206079 | CD9: ='tau1'!CD9*K!CD9 -> 2061.744124 | CE9: ='tau1'!CE9*K!CE9 -> 2073.304389 | CF9: ='tau1'!CF9*K!CF9 -> 2084.886917 | CG9: ='tau1'!CG9*K!CG9 -> 2096.491748 | CH9: ='tau1'!CH9*K!CH9 -> 2108.118927 | CI9: ='tau1'!CI9*K!CI9 -> 2119.768495
A10: ='c'!$A10 -> 3.7 | B10: ='tau1'!B10*K!B10 -> 1114.526908 | C10: ='tau1'!C10*K!C10 -> 1123.557501 | D10: ='tau1'!D10*K!D10 -> 1132.609927 | E10: ='tau1'!E10*K!E10 -> 1141.684044 | F10: ='tau1'!F10*K!F10 -> 1150.779718 | G10: ='tau1'!G10*K!G10 -> 1159.896821 | H10: ='tau1'!H10*K!H10 -> 1169.035233 | I10: ='tau1'!I10*K!I10 -> 1178.194839 | J10: ='tau1'!J10*K!J10 -> 1187.375531 | K10: ='tau1'!K10*K!K10 -> 1196.577207 | L10: ='tau1'!L10*K!L10 -> 1205.79977 | M10: ='tau1'!M10*K!M10 -> 1215.043128 | N10: ='tau1'!N10*K!N10 -> 1224.307196 | O10: ='tau1'!O10*K!O10 -> 1233.591893 | P10: ='tau1'!P10*K!P10 -> 1242.897141 | Q10: ='tau1'!Q10*K!Q10 -> 1252.222868 | R10: ='tau1'!R10*K!R10 -> 1261.569006 | S10: ='tau1'!S10*K!S10 -> 1270.935491 | T10: ='tau1'!T10*K!T10 -> 1280.322263 | U10: ='tau1'!U10*K!U10 -> 1289.729267 | V10: ='tau1'!V10*K!V10 -> 1299.156449 | W10: ='tau1'!W10*K!W10 -> 1308.603759 | X10: ='tau1'!X10*K!X10 -> 1318.071153 | Y10: ='tau1'!Y10*K!Y10 -> 1327.558588 | Z10: ='tau1'!Z10*K!Z10 -> 1337.066023 | AA10: ='tau1'!AA10*K!AA10 -> 1346.593422 | AB10: ='tau1'!AB10*K!AB10 -> 1356.140751 | AC10: ='tau1'!AC10*K!AC10 -> 1365.707979 | AD10: ='tau1'!AD10*K!AD10 -> 1375.295077 | AE10: ='tau1'!AE10*K!AE10 -> 1384.902019 | AF10: ='tau1'!AF10*K!AF10 -> 1394.528782 | AG10: ='tau1'!AG10*K!AG10 -> 1404.175344 | AH10: ='tau1'!AH10*K!AH10 -> 1413.841685 | AI10: ='tau1'!AI10*K!AI10 -> 1423.52779 | AJ10: ='tau1'!AJ10*K!AJ10 -> 1433.233643 | AK10: ='tau1'!AK10*K!AK10 -> 1442.959231 | AL10: ='tau1'!AL10*K!AL10 -> 1452.704544 | AM10: ='tau1'!AM10*K!AM10 -> 1462.469572 | AN10: ='tau1'!AN10*K!AN10 -> 1472.254308 | AO10: ='tau1'!AO10*K!AO10 -> 1482.058747 | AP10: ='tau1'!AP10*K!AP10 -> 1491.882885 | AQ10: ='tau1'!AQ10*K!AQ10 -> 1501.72672 | AR10: ='tau1'!AR10*K!AR10 -> 1511.590251 | AS10: ='tau1'!AS10*K!AS10 -> 1521.473479 | AT10: ='tau1'!AT10*K!AT10 -> 1531.376407 | AU10: ='tau1'!AU10*K!AU10 -> 1541.299039 | AV10: ='tau1'!AV10*K!AV10 -> 1551.24138 | AW10: ='tau1'!AW10*K!AW10 -> 1561.203437 | AX10: ='tau1'!AX10*K!AX10 -> 1571.185217 | AY10: ='tau1'!AY10*K!AY10 -> 1581.18673 | AZ10: ='tau1'!AZ10*K!AZ10 -> 1591.207987 | BA10: ='tau1'!BA10*K!BA10 -> 1601.248999 | BB10: ='tau1'!BB10*K!BB10 -> 1611.309779 | BC10: ='tau1'!BC10*K!BC10 -> 1621.390341 | BD10: ='tau1'!BD10*K!BD10 -> 1631.490701 | BE10: ='tau1'!BE10*K!BE10 -> 1641.610873 | BF10: ='tau1'!BF10*K!BF10 -> 1651.750876 | BG10: ='tau1'!BG10*K!BG10 -> 1661.910728 | BH10: ='tau1'!BH10*K!BH10 -> 1672.090449 | BI10: ='tau1'!BI10*K!BI10 -> 1682.290057 | BJ10: ='tau1'!BJ10*K!BJ10 -> 1692.509574 | BK10: ='tau1'!BK10*K!BK10 -> 1702.749023 | BL10: ='tau1'!BL10*K!BL10 -> 1713.008427 | BM10: ='tau1'!BM10*K!BM10 -> 1723.287808 | BN10: ='tau1'!BN10*K!BN10 -> 1733.587192 | BO10: ='tau1'!BO10*K!BO10 -> 1743.906605 | BP10: ='tau1'!BP10*K!BP10 -> 1754.246072 | BQ10: ='tau1'!BQ10*K!BQ10 -> 1764.60562 | BR10: ='tau1'!BR10*K!BR10 -> 1774.985278 | BS10: ='tau1'!BS10*K!BS10 -> 1785.385075 | BT10: ='tau1'!BT10*K!BT10 -> 1795.805038 | BU10: ='tau1'!BU10*K!BU10 -> 1806.245199 | BV10: ='tau1'!BV10*K!BV10 -> 1816.705589 | BW10: ='tau1'!BW10*K!BW10 -> 1827.186238 | BX10: ='tau1'!BX10*K!BX10 -> 1837.687179 | BY10: ='tau1'!BY10*K!BY10 -> 1848.208445 | BZ10: ='tau1'!BZ10*K!BZ10 -> 1858.750069 | CA10: ='tau1'!CA10*K!CA10 -> 1869.312085 | CB10: ='tau1'!CB10*K!CB10 -> 1879.894529 | CC10: ='tau1'!CC10*K!CC10 -> 1890.497434 | CD10: ='tau1'!CD10*K!CD10 -> 1901.120839 | CE10: ='tau1'!CE10*K!CE10 -> 1911.764778 | CF10: ='tau1'!CF10*K!CF10 -> 1922.429289 | CG10: ='tau1'!CG10*K!CG10 -> 1933.11441 | CH10: ='tau1'!CH10*K!CH10 -> 1943.820179 | CI10: ='tau1'!CI10*K!CI10 -> 1954.546635
